Workbook

Sheet Data
B1: BAD | C1: AVERAGE | D1: GOOD | E1: VERY GOOD
A2: 16-24 | B2: 69 | C2: 49 | D2: 48 | E2: 41
A3: 25-34 | B3: 148 | C3: 45 | D3: 14 | E3: 22
A4: 35-44 | B4: 170 | C4: 65 | D4: 12 | E4: 29
A5: 45-54 | B5: 159 | C5: 57 | D5: 12 | E5: 28
A6: 55-64 | B6: 122 | C6: 26 | D6: 6 | E6: 18
A7: 65-74 | B7: 106 | C7: 21 | D7: 5 | E7: 23
A8: 75+ | B8: 40 | C8: 7 | D8: 1 | E8: 14

Sheet CA
B1: XLSTAT 2024.2.2.1422 - Correspondence Analysis (CA) - Start time: 08/29/2024 at 23:09:47 / End time: 08/29/2024 at 23:09:54 / Microsoft Excel 16.017928
B2: Two-way table: Workbook = DemoCA_EN.xlsm / Sheet = Data / Range = 'Data'!$A$1:$E$8 / 7 rows and 5 columns
B3: Distance: Chi-square
B4: Significance level (%): 5
B9: Test of independence between the rows and the columns:
B11: Chi-square (Observed value) | C11: 148.2675709
B12: Chi-square (Critical value) | C12: 28.86929943
B13: DF | C13: 18
B14: p-value | C14: 0
B15: alpha | C15: 0.05
B17: Test interpretation:
B18: H0: The rows and the columns of the table are independent.
B19: Ha: There is a link between the rows and the columns of the table.
B20: As the computed p-value is lower than the significance level alpha=0.05, one should reject the null hypothesis H0, and accept the alternative hypothesis Ha.
B24: Total inertia: | C24: 0.1092612903
B27: Eigenvalues and percentages of inertia:
C29: F1 | D29: F2 | E29: F3
B30: Eigenvalue | C30: 0.09466447583 | D30: 0.01166300737 | E30: 0.002933807084
B31: Inertia % | C31: 86.64045206 | D31: 10.67441849 | E31: 2.685129451
B32: Cumulative % | C32: 86.64045206 | D32: 97.31487055 | E32: 100
B55: Results for the rows:
B57: Weights, distances and squared distances to the origin, inertias and relative inertias (rows):
C59: Weight (relative) | D59: Distance | E59: Sq-Distance | F59: Inertia | G59: Inertia relative
B60: 16-24 | C60: 0.1525423729 | D60: 0.7180619355 | E60: 0.5156129432 | F60: 0.07865282185 | G60: 0.7198599033
B61: 25-34 | C61: 0.1687546057 | D61: 0.1171096202 | E61: 0.01371466313 | F61: 0.00231441257 | G61: 0.02118236536
B62: 35-44 | C62: 0.2033898305 | D62: 0.151670654 | E62: 0.02300398728 | F62: 0.004678777074 | G62: 0.0428219094
B63: 45-54 | C63: 0.188651437 | D63: 0.1242595929 | E63: 0.01544044642 | F63: 0.002912862406 | G63: 0.02665960102
B64: 55-64 | C64: 0.1267501842 | D64: 0.2352436487 | E64: 0.05533957423 | F64: 0.007014301229 | G64: 0.06419749585
B65: 65-74 | C65: 0.1142225497 | D65: 0.2388745515 | E65: 0.05706105136 | F65: 0.006517658777 | G65: 0.05965203926
B66: 75+ | C66: 0.0456890199 | D66: 0.3961571311 | E66: 0.1569404725 | F66: 0.007170456373 | G66: 0.06562668585
B69: Profiles (rows):
C71: BAD | D71: AVERAGE | E71: GOOD | F71: VERY GOOD | G71: Sum
B72: 16-24 | C72: 0.3333333333 | D72: 0.2367149758 | E72: 0.231884058 | F72: 0.1980676329 | G72: 1
B73: 25-34 | C73: 0.6462882096 | D73: 0.1965065502 | E73: 0.06113537118 | F73: 0.096069869 | G73: 1
B74: 35-44 | C74: 0.615942029 | D74: 0.2355072464 | E74: 0.04347826087 | F74: 0.1050724638 | G74: 1
B75: 45-54 | C75: 0.62109375 | D75: 0.22265625 | E75: 0.046875 | F75: 0.109375 | G75: 1
B76: 55-64 | C76: 0.7093023256 | D76: 0.1511627907 | E76: 0.03488372093 | F76: 0.1046511628 | G76: 1
B77: 65-74 | C77: 0.6838709677 | D77: 0.135483871 | E77: 0.03225806452 | F77: 0.1483870968 | G77: 1
B78: 75+ | C78: 0.6451612903 | D78: 0.1129032258 | E78: 0.01612903226 | F78: 0.2258064516 | G78: 1
B79: Mean | C79: 0.6078559865 | D79: 0.1844192728 | E79: 0.06666335825 | F79: 0.1410613824 | G79: 1
B82: Chi-square distances (rows):
C84: 16-24 | D84: 25-34 | E84: 35-44 | F84: 45-54 | G84: 55-64 | H84: 65-74 | I84: 75+
B85: 16-24 | C85: 0 | D85: 0.8098032666 | E85: 0.831705431 | F85: 0.8209710337 | G85: 0.936743214 | H85: 0.9095580276 | I85: 0.9432336889
B86: 25-34 | C86: 0.8098032666 | D86: 0 | E86: 0.1188506192 | F86: 0.09318561804 | G86: 0.1645199054 | H86: 0.2320370783 | I86: 0.440108787
B87: 35-44 | C87: 0.831705431 | D87: 0.1188506192 | E87: 0 | F87: 0.03431583287 | G87: 0.2265150022 | H87: 0.2725191861 | I87: 0.447616839
B88: 45-54 | C88: 0.8209710337 | D88: 0.09318561804 | E88: 0.03431583287 | F88: 0 | G88: 0.2020502236 | H88: 0.2439715015 | I88: 0.4239287437
B89: 55-64 | C89: 0.936743214 | D89: 0.1645199054 | E89: 0.2265150022 | F89: 0.2020502236 | G89: 0 | H89: 0.131308077 | I89: 0.3645654709
B90: 65-74 | C90: 0.9095580276 | D90: 0.2320370783 | E90: 0.2725191861 | F90: 0.2439715015 | G90: 0.131308077 | H90: 0 | I90: 0.2348194644
B91: 75+ | C91: 0.9432336889 | D91: 0.440108787 | E91: 0.447616839 | F91: 0.4239287437 | G91: 0.3645654709 | H91: 0.2348194644 | I91: 0
B94: Principal coordinates (rows):
C96: F1 | D96: F2 | E96: F3
B97: 16-24 | C97: 0.7175784094 | D97: 0.02524982883 | E97: 0.007524343006
B98: 25-34 | C98: -0.08673545548 | D98: -0.05567435739 | E98: 0.0556056636
B99: 35-44 | C99: -0.1026913915 | D99: -0.09738822176 | E99: -0.0545343896
B100: 45-54 | C100: -0.09679010632 | D100: -0.06907756669 | E100: -0.03606121911
B101: 55-64 | C101: -0.2159526001 | D101: 0.04237016672 | E101: 0.08311929796
B102: 65-74 | C102: -0.1829805934 | D102: 0.1523283367 | E102: 0.01937089632
B103: 75+ | C103: -0.1620867897 | D103: 0.3417283658 | E103: -0.1178561375
B109: Standard coordinates (rows):
C111: F1 | D111: F2 | E111: F3
B112: 16-24 | C112: 2.332253996 | D112: 0.2338046603 | E112: 0.1389161725
B113: 25-34 | C113: -0.2819052385 | D113: -0.5155252458 | E113: 1.026604708
B114: 35-44 | C114: -0.3337647915 | D114: -0.9017811667 | E114: -1.006826598
B115: 45-54 | C115: -0.3145845935 | D115: -0.6396343167 | E115: -0.6657706233
B116: 55-64 | C116: -0.7018833177 | D116: 0.3923330531 | E116: 1.534567831
B117: 65-74 | C117: -0.5947185904 | D117: 1.410507582 | E117: 0.357629998
B118: 75+ | C118: -0.5268101132 | D118: 3.164286182 | E118: -2.17588745
B121: Contributions (rows):
C123: Weight (relative) | D123: F1 | E123: F2 | F123: F3
B124: 16-24 | C124: 0.1525423729 | D124: 0.8297403106 | E124: 0.00833867072 | F124: 0.002943717402
B125: 25-34 | C125: 0.1687546057 | D125: 0.01341102361 | E125: 0.04484928364 | F125: 0.1778533861
B126: 35-44 | C126: 0.2033898305 | D126: 0.02265741073 | E126: 0.1653984961 | F126: 0.2061762302
B127: 45-54 | C127: 0.188651437 | D127: 0.01866960016 | E127: 0.07718335088 | F127: 0.08361984809
B128: 55-64 | C128: 0.1267501842 | D128: 0.06244223505 | E128: 0.01951005057 | F128: 0.2984838097
B129: 65-74 | C129: 0.1142225497 | D129: 0.04039939667 | E129: 0.2272493767 | F129: 0.0146089745
B130: 75+ | C130: 0.0456890199 | D130: 0.01268002322 | E130: 0.4574707713 | F130: 0.216314034
B133: Squared cosines (rows):
C135: F1 | D135: F2 | E135: F3
B136: 16-24 | C136: 0.9986537002 | D136: 0.001236496997 | E136: 0.000109802786
B137: 25-34 | C137: 0.5485398485 | D137: 0.2260087645 | E137: 0.2254513869
B138: 35-44 | C138: 0.4584214799 | D138: 0.4122965998 | E138: 0.1292819203
B139: 45-54 | C139: 0.6067392369 | D139: 0.3090396539 | E139: 0.08422110916
B140: 55-64 | C140: 0.8427156544 | D140: 0.03244027539 | E140: 0.1248440702
B141: 65-74 | C141: 0.5867732325 | D141: 0.4066507999 | E141: 0.006575967591
B142: 75+ | C142: 0.1674018625 | D142: 0.7440928022 | E142: 0.08850533527
B145: Results for the columns:
B147: Weights, distances and squared distances to the origin, inertias and relative inertias (columns):
C149: Weight (relative) | D149: Distance | E149: Sq-Distance | F149: Inertia | G149: Inertia relative
B150: BAD | C150: 0.5998526161 | D150: 0.1955217351 | E150: 0.03822874889 | F150: 0.02293161503 | G150: 0.2098786768
B151: AVERAGE | C151: 0.1989683125 | D151: 0.2062598385 | E151: 0.04254312099 | F151: 0.00846473299 | G151: 0.07747238723
B152: GOOD | C152: 0.07221812822 | D152: 0.9494481837 | E152: 0.9014518536 | F152: 0.06510116555 | G152: 0.5958301004
B153: VERY GOOD | C153: 0.1289609433 | D153: 0.3146012895 | E153: 0.09897397133 | F153: 0.0127637767 | G153: 0.1168188356
B156: Profiles (columns):
C158: BAD | D158: AVERAGE | E158: GOOD | F158: VERY GOOD | G158: Mean
B159: 16-24 | C159: 0.08476658477 | D159: 0.1814814815 | E159: 0.4897959184 | F159: 0.2342857143 | G159: 0.2475824247
B160: 25-34 | C160: 0.1818181818 | D160: 0.1666666667 | E160: 0.1428571429 | F160: 0.1257142857 | G160: 0.1542640693
B161: 35-44 | C161: 0.2088452088 | D161: 0.2407407407 | E161: 0.1224489796 | F161: 0.1657142857 | G161: 0.1844373037
B162: 45-54 | C162: 0.1953316953 | D162: 0.2111111111 | E162: 0.1224489796 | F162: 0.16 | G162: 0.1722229465
B163: 55-64 | C163: 0.1498771499 | D163: 0.0962962963 | E163: 0.0612244898 | F163: 0.1028571429 | G163: 0.1025637697
B164: 65-74 | C164: 0.1302211302 | D164: 0.07777777778 | E164: 0.05102040816 | F164: 0.1314285714 | G164: 0.0976119719
B165: 75+ | C165: 0.04914004914 | D165: 0.02592592593 | E165: 0.01020408163 | F165: 0.08 | G165: 0.04131751417
B166: Sum | C166: 1 | D166: 1 | E166: 1 | F166: 1 | G166: 1
B169: Chi-square distances (columns):
C171: BAD | D171: AVERAGE | E171: GOOD | F171: VERY GOOD
B172: BAD | C172: 0 | D172: 0.3571059913 | E172: 1.139906451 | F172: 0.4682637775
B173: AVERAGE | C173: 0.3571059913 | D173: 0 | E173: 0.8708422803 | F173: 0.399096079
B174: GOOD | C174: 1.139906451 | D174: 0.8708422803 | E174: 0 | F174: 0.7894955152
B175: VERY GOOD | C175: 0.4682637775 | D175: 0.399096079 | E175: 0.7894955152 | F175: 0
B178: Principal coordinates (columns):
C180: F1 | D180: F2 | E180: F3
B181: BAD | C181: -0.1932404845 | D181: 0.01078625797 | E181: 0.02775825446
B182: AVERAGE | C182: 0.1020109235 | D182: -0.1660956212 | E182: -0.06744729135
B183: GOOD | C183: 0.9439757437 | D183: -0.01960095037 | E183: 0.09988719452
B184: VERY GOOD | C184: 0.2128296122 | D184: 0.2170668392 | E184: -0.08099083161
B190: Standard coordinates (columns):
C192: F1 | D192: F2 | E192: F3
B193: BAD | C193: -0.6280650118 | D193: 0.09987700891 | E193: 0.5124793568
B194: AVERAGE | C194: 0.3315531528 | D194: -1.537987863 | E194: -1.245227597
B195: GOOD | C195: 3.068084507 | D195: -0.1814980043 | E195: 1.844140642
B196: VERY GOOD | C196: 0.6917330665 | D196: 2.009963669 | E196: -1.49527159
B199: Contributions (columns):
C201: Weight (relative) | D201: F1 | E201: F2 | F201: F3
B202: BAD | C202: 0.5998526161 | D202: 0.2366212575 | E202: 0.00598377993 | F202: 0.1575423465
B203: AVERAGE | C203: 0.1989683125 | D203: 0.0218720878 | E203: 0.4706409725 | F203: 0.3085186272
B204: GOOD | C204: 0.07221812822 | D204: 0.6797995352 | E204: 0.002378975318 | F204: 0.2456033613
B205: VERY GOOD | C205: 0.1289609433 | D205: 0.06170711952 | E205: 0.5209962722 | F205: 0.288335665
B208: Squared cosines (columns):
C210: F1 | D210: F2 | E210: F3
B211: BAD | C211: 0.9768011228 | D211: 0.003043347331 | E211: 0.02015552988
B212: AVERAGE | C212: 0.2446042573 | D212: 0.6484657149 | E212: 0.1069300278
B213: GOOD | C213: 0.9885055992 | D213: 0.0004261983088 | E213: 0.01106820247
B214: VERY GOOD | C214: 0.4576601629 | D214: 0.4760646871 | E214: 0.06627515008
B217: Symmetric plots:
B279: Asymmetric plots:
B321: Contribution coordinates (rows):
C323: F1 | D323: F2 | E323: F3
B324: 16-24 | C324: 0.9109008237 | D324: 0.09131632231 | E324: 0.05425603563
B325: 25-34 | C325: -0.115805974 | D325: -0.2117764945 | E325: 0.4217266722
B326: 35-44 | C326: -0.1505237879 | D326: -0.4066921393 | E326: -0.454066328
B327: 45-54 | C327: -0.1366367453 | D327: -0.2778189174 | E327: -0.2891709669
B328: 55-64 | C328: -0.2498844434 | D328: 0.1396783826 | E328: 0.5463367183
B329: 65-74 | C329: -0.2009960116 | D329: 0.4767068038 | E329: 0.1208675908
B330: 75+ | C330: -0.1126056092 | D330: 0.6763658561 | E330: -0.4650957256
B333: Contribution coordinates (columns):
C335: F1 | D335: F2 | E335: F3
B336: BAD | C336: -0.486437311 | D336: 0.07735489596 | E336: 0.3969160446
B337: AVERAGE | C337: 0.1478921492 | D337: -0.686032778 | E337: -0.5554445312
B338: GOOD | C338: 0.8244995665 | D338: -0.04877474058 | E338: 0.495583859
B339: VERY GOOD | C339: 0.2484091776 | D339: 0.721800715 | E339: -0.5369689609
B342: Contribution biplot:

Sheet XLSTAT_20240829_230944_1_HID5 (hidden)
A1: -0.1932404845 | B1: 0.01078625797 | C1: 0.9109008237 | D1: 0.09131632231
A2: 0.1020109235 | B2: -0.1660956212 | C2: -0.115805974 | D2: -0.2117764945
A3: 0.9439757437 | B3: -0.01960095037 | C3: -0.1505237879 | D3: -0.4066921393
A4: 0.2128296122 | B4: 0.2170668392 | C4: -0.1366367453 | D4: -0.2778189174
C5: -0.2498844434 | D5: 0.1396783826
C6: -0.2009960116 | D6: 0.4767068038
C7: -0.1126056092 | D7: 0.6763658561

Sheet XLSTAT_20240829_230944_1_HID4 (hidden)
A1: -0.486437311 | B1: 0.07735489596 | C1: 0.7175784094 | D1: 0.02524982883
A2: 0.1478921492 | B2: -0.686032778 | C2: -0.08673545548 | D2: -0.05567435739
A3: 0.8244995665 | B3: -0.04877474058 | C3: -0.1026913915 | D3: -0.09738822176
A4: 0.2484091776 | B4: 0.721800715 | C4: -0.09679010632 | D4: -0.06907756669
C5: -0.2159526001 | D5: 0.04237016672
C6: -0.1829805934 | D6: 0.1523283367
C7: -0.1620867897 | D7: 0.3417283658

Sheet XLSTAT_20240829_230944_1_HID3 (hidden)
A1: -0.1932404845 | B1: 0.01078625797 | C1: 2.332253996 | D1: 0.2338046603
A2: 0.1020109235 | B2: -0.1660956212 | C2: -0.2819052385 | D2: -0.5155252458
A3: 0.9439757437 | B3: -0.01960095037 | C3: -0.3337647915 | D3: -0.9017811667
A4: 0.2128296122 | B4: 0.2170668392 | C4: -0.3145845935 | D4: -0.6396343167
C5: -0.7018833177 | D5: 0.3923330531
C6: -0.5947185904 | D6: 1.410507582
C7: -0.5268101132 | D7: 3.164286182

Sheet XLSTAT_20240829_230944_1_HID2 (hidden)
A1: 1 | B1: =-3.14159265358979+(A1-1)*0.0210139976828748 -> -3.141592654 | C1: =0.347098823636324*COS(B1)+0.717578409393402 -> 0.3704795858 | D1: =0.121832989107382*SIN(B1)+0.0252498288314242+0*COS(B1) -> 0.02524982883 | E1: 1 | F1: =-3.14159265358979+(E1-1)*0.0210139976828748 -> -3.141592654 | G1: =0.299664552058601*COS(F1)+-0.0867354554826123 -> -0.3864000075 | H1: =0.105183381851725*SIN(F1)+-0.055674357386175+0*COS(F1) -> -0.05567435739 | I1: 1 | J1: =-3.14159265358979+(I1-1)*0.0210139976828748 -> -3.141592654 | K1: =0.268216805569019*COS(J1)+-0.102691391514969 -> -0.3709081971 | L1: =0.0941451048694578*SIN(J1)+-0.0973882217616218+0*COS(J1) -> -0.09738822176 | M1: 1 | N1: =-3.14159265358979+(M1-1)*0.0210139976828748 -> -3.141592654 | O1: =0.299223936258687*COS(N1)+-0.0967901063170089 -> -0.3960140426 | P1: =0.105028724053151*SIN(N1)+-0.0690775666880996+0*COS(N1) -> -0.06907756669 | Q1: 1 | R1: =-3.14159265358979+(Q1-1)*0.0210139976828748 -> -3.141592654 | S1: =0.31939866983129*COS(R1)+-0.215952600146413 -> -0.53535127 | T1: =0.112110131215079*SIN(R1)+0.0423701667184607+0*COS(R1) -> 0.04237016672 | U1: 1 | V1: =-3.14159265358979+(U1-1)*0.0210139976828748 -> -3.141592654 | W1: =0.398764905135784*COS(V1)+-0.18298059338715 -> -0.5817454985 | X1: =0.139967977519616*SIN(V1)+0.15232833674674+0*COS(V1) -> 0.1523283367 | Y1: 1 | Z1: =-3.14159265358979+(Y1-1)*0.0210139976828748 -> -3.141592654 | AA1: =0.562281335126711*COS(Z1)+-0.162086789732886 -> -0.7243681249 | AB1: =0.19736285781698*SIN(Z1)+0.341728365812427+0*COS(Z1) -> 0.3417283658 | AC1: 1 | AD1: =-3.14159265358979+(AC1-1)*0.0210139976828748 -> -3.141592654 | AE1: =0.16089417266906*COS(AD1)+-0.193240484481897 -> -0.3541346572 | AF1: =0.056474458140974*SIN(AD1)+0.0107862579656094+0*COS(AD1) -> 0.01078625797 | AG1: 1 | AH1: =-3.14159265358979+(AG1-1)*0.0210139976828748 -> -3.141592654 | AI1: =0.253096907093471*COS(AH1)+0.102010923502568 -> -0.1510859836 | AJ1: =0.0888379637879133*SIN(AH1)+-0.166095621152538+0*COS(AH1) -> -0.1660956212 | AK1: 1 | AL1: =-3.14159265358979+(AK1-1)*0.0210139976828748 -> -3.141592654 | AM1: =0.438798679365524*COS(AL1)+0.943975743712232 -> 0.5051770643 | AN1: =0.154019982445942*SIN(AL1)+-0.0196009503722022+0*COS(AL1) -> -0.01960095037 | AO1: 1 | AP1: =-3.14159265358979+(AO1-1)*0.0210139976828748 -> -3.141592654 | AQ1: =0.318931234452992*COS(AP1)+0.212829612221555 -> -0.1061016222 | AR1: =0.111946059643888*SIN(AP1)+0.217066839220887+0*COS(AP1) -> 0.2170668392
A2: 2 | B2: -3.120578656 | C2: 0.3705562203 | D2: 0.0226898191 | E2: 2 | F2: -3.120578656 | G2: -0.3863338458 | H2: -0.05788451806 | I2: 2 | J2: -3.120578656 | K2: -0.3708489786 | L2: -0.09936644118 | M2: 2 | N2: -3.120578656 | O2: -0.3959479781 | P2: -0.07128447762 | Q2: 2 | R2: -3.120578656 | S2: -0.5352807512 | T2: 0.04001445807 | U2: 2 | V2: -3.120578656 | W2: -0.5816574568 | X2: 0.1493872665 | Y2: 2 | Z2: -3.120578656 | AA2: -0.7242439811 | AB2: 0.3375812884 | AC2: 2 | AD2: -3.120578656 | AE2: -0.354099134 | AF2: 0.009599591174 | AG2: 2 | AH2: -3.120578656 | AI2: -0.1510301034 | AJ2: -0.1679623245 | AK2: 2 | AL2: -3.120578656 | AM2: 0.5052739449 | AN2: -0.02283728773 | AO2: 2 | AP2: -3.120578656 | AQ2: -0.1060312067 | AR2: 0.2147145781
A3: 3 | B3: -3.099564658 | C3: 0.3707860901 | D3: 0.0201309398 | E3: 3 | F3: -3.099564658 | G3: -0.3861353899 | H3: -0.06009370278 | I3: 3 | J3: -3.099564658 | K3: -0.3706713493 | L3: -0.1013437871 | M3: 3 | N3: -3.099564658 | O3: -0.395749814 | P3: -0.07349041404 | Q3: 3 | R3: -3.099564658 | S3: -0.5350692262 | T3: 0.03765978963 | U3: 3 | V3: -3.099564658 | W3: -0.5813933707 | X3: 0.1464474949 | Y3: 3 | Z3: -3.099564658 | AA3: -0.7238716045 | AB3: 0.3334360422 | AC3: 3 | AD3: -3.099564658 | AE3: -0.3539925802 | AF3: 0.008413448381 | AG3: 3 | AH3: -3.099564658 | AI3: -0.1508624873 | AJ3: -0.1698282036 | AK3: 3 | AL3: -3.099564658 | AM3: 0.5055645439 | AN3: -0.026072196 | AO3: 3 | AP3: -3.099564658 | AQ3: -0.1058199912 | AR3: 0.2123633557
A4: 4 | B4: -3.078550661 | C4: 0.3711690935 | D4: 0.01757432086 | E4: 4 | F4: -3.078550661 | G4: -0.3858047274 | H4: -0.06230093605 | I4: 4 | J4: -3.078550661 | K4: -0.3703753875 | L4: -0.1033193863 | M4: 4 | N4: -3.078550661 | O4: -0.3954196377 | P4: -0.07569440187 | Q4: 4 | R4: -3.078550661 | S4: -0.5347167882 | T4: 0.03530720116 | U4: 4 | V4: -3.078550661 | W4: -0.5809533567 | X4: 0.1435103201 | Y4: 4 | Z4: -3.078550661 | AA4: -0.7232511595 | AB4: 0.3292944577 | AC4: 4 | AD4: -3.078550661 | AE4: -0.3538150427 | AF4: 0.007228353354 | AG4: 4 | AH4: -3.078550661 | AI4: -0.1505832095 | AJ4: -0.1716924345 | AK4: 4 | AL4: -3.078550661 | AM4: 0.5060487328 | AN4: -0.02930424676 | AO4: 4 | AP4: -3.078550661 | AQ4: -0.105468069 | AR4: 0.2100142102
A5: 5 | B5: -3.057536663 | C5: 0.3717050616 | D5: 0.0150210912 | E5: 5 | F5: -3.057536663 | G5: -0.3853420043 | H5: -0.06450524321 | I5: 5 | J5: -3.057536663 | K5: -0.3699612241 | L5: -0.1052923665 | M5: 5 | N5: -3.057536663 | O5: -0.394957595 | P5: -0.0778954679 | Q5: 5 | R5: -3.057536663 | S5: -0.534223593 | T5: 0.0329577315 | U5: 5 | V5: -3.057536663 | W5: -0.5803376091 | X5: 0.1405770391 | Y5: 5 | Z5: -3.057536663 | AA5: -0.7223829202 | AB5: 0.3251583637 | AC5: 5 | AD5: -3.057536663 | AE5: -0.3535666001 | AF5: 0.006044829397 | AG5: 5 | AH5: -3.057536663 | AI5: -0.1501923933 | AJ5: -0.173554194 | AK5: 5 | AL5: -3.057536663 | AM5: 0.5067262981 | AN5: -0.03253201282 | AO5: 5 | AP5: -3.057536663 | AQ5: -0.1049755956 | AR5: 0.207668179
A6: 6 | B6: -3.036522665 | C6: 0.3723937577 | D6: 0.01247237827 | E6: 6 | F6: -3.036522665 | G6: -0.384747425 | H6: -0.06670565089 | I6: 6 | J6: -3.036522665 | K6: -0.3694290418 | L6: -0.1072618564 | M6: 6 | N6: -3.036522665 | O6: -0.3943638899 | P6: -0.08009264018 | Q6: 6 | R6: -3.036522665 | S6: -0.5335898582 | T6: 0.0306124181 | U6: 6 | V6: -3.036522665 | W6: -0.5795463998 | X6: 0.1376489471 | Y6: 6 | Z6: -3.036522665 | AA6: -0.7212672698 | AB6: 0.3210295865 | AC6: 6 | AD6: -3.036522665 | AE6: -0.353247362 | AF6: 0.004863399122 | AG6: 6 | AH6: -3.036522665 | AI6: -0.1496902111 | AJ6: -0.17541266 | AK6: 6 | AL6: -3.036522665 | AM6: 0.5075969403 | AN6: -0.03575406888 | AO6: 6 | AP6: -3.036522665 | AQ6: -0.1043427882 | AR6: 0.2053262979
A7: 7 | B7: -3.015508667 | C7: 0.3732348775 | D7: 0.009929307497 | E7: 7 | F7: -3.015508667 | G7: -0.3840212519 | H7: -0.06890118747 | I7: 7 | J7: -3.015508667 | K7: -0.3687790756 | L7: -0.1092269864 | M7: 7 | N7: -3.015508667 | O7: -0.3936387846 | P7: -0.08228494853 | Q7: 7 | R7: -3.015508667 | S7: -0.5328158637 | T7: 0.0282722966 | U7: 7 | V7: -3.015508667 | W7: -0.5785800782 | X7: 0.1347273372 | Y7: 7 | Z7: -3.015508667 | AA7: -0.7199047011 | AB7: 0.3169099493 | AC7: 7 | AD7: -3.015508667 | AE7: -0.3528574693 | AF7: 0.003684584214 | AG7: 7 | AH7: -3.015508667 | AI7: -0.1490768848 | AJ7: -0.1772670118 | AK7: 7 | AL7: -3.015508667 | AM7: 0.5086602752 | AN7: -0.03896899218 | AO7: 7 | AP7: -3.015508667 | AQ7: -0.1035699265 | AR7: 0.2029896011
A8: 8 | B8: -2.99449467 | C8: 0.3742280498 | D8: 0.007393001838 | E8: 8 | F8: -2.99449467 | G8: -0.3831638059 | H8: -0.07109088345 | I8: 8 | J8: -2.99449467 | K8: -0.3680116127 | L8: -0.1111868888 | M8: 8 | N8: -2.99449467 | O8: -0.3927825993 | P8: -0.08447142486 | Q8: 8 | R8: -2.99449467 | S8: -0.5319019514 | T8: 0.02593840031 | U8: 8 | V8: -2.99449467 | W8: -0.5774390711 | X8: 0.1318134994 | Y8: 8 | Z8: -2.99449467 | AA8: -0.7182958157 | AB8: 0.3128012712 | AC8: 8 | AD8: -2.99449467 | AE8: -0.3523970943 | AF8: 0.002508905206 | AG8: 8 | AH8: -2.99449467 | AI8: -0.1483526852 | AJ8: -0.1791164307 | AK8: 8 | AL8: -2.99449467 | AM8: 0.5099158331 | AN8: -0.0421753631 | AO8: 8 | AP8: -2.99449467 | AQ8: -0.1026573517 | AR8: 0.2006591205
A9: 9 | B9: -2.973480672 | C9: 0.3753728359 | D9: 0.00486458125 | E9: 9 | F9: -2.973480672 | G9: -0.3821754654 | H9: -0.07327377193 | I9: 9 | J9: -2.973480672 | K9: -0.3671269918 | L9: -0.113140698 | M9: 9 | N9: -2.973480672 | O9: -0.391795712 | P9: -0.0866511037 | Q9: 9 | R9: -2.973480672 | S9: -0.5308485247 | T9: 0.02361175984 | U9: 9 | V9: -2.973480672 | W9: -0.5761238822 | X9: 0.1289087203 | Y9: 9 | Z9: -2.973480672 | AA9: -0.7164413241 | AB9: 0.3087053665 | AC9: 9 | AD9: -2.973480672 | AE9: -0.3518664402 | AF9: 0.001336881244 | AG9: 9 | AH9: -2.973480672 | AI9: -0.1475179321 | AJ9: -0.1809601 | AK9: 9 | AL9: -2.973480672 | AM9: 0.5113630597 | AN9: -0.04537176579 | AO9: 9 | AP9: -2.973480672 | AQ9: -0.1016054667 | AR9: 0.198335885
A10: 10 | B10: -2.952466674 | C10: 0.3766687303 | D10: 0.002345162214 | E10: 10 | F10: -2.952466674 | G10: -0.3810566669 | H10: -0.075448889 | I10: 10 | J10: -2.952466674 | K10: -0.3661256035 | L10: -0.1150875514 | M10: 10 | N10: -2.952466674 | O10: -0.3906785586 | P10: -0.08882302256 | Q10: 10 | R10: -2.952466674 | S10: -0.5296560489 | T10: 0.02129340255 | U10: 10 | V10: -2.952466674 | W10: -0.5746350922 | X10: 0.1260142827 | Y10: 10 | Z10: -2.952466674 | AA10: -0.7143420451 | AB10: 0.3046240438 | AC10: 10 | AD10: -2.952466674 | AE10: -0.3512657414 | AF10: 0.0001690298602 | AG10: 10 | AH10: -2.952466674 | AI10: -0.1465729941 | AJ10: -0.1827972055 | AK10: 10 | AL10: -2.952466674 | AM10: 0.5130013158 | AN10: -0.04855678882 | AO10: 10 | AP10: -2.952466674 | AQ10: -0.100414736 | AR10: 0.1960209206
A11: 11 | B11: -2.931452677 | C11: 0.3781151609 | D11: -0.0001641427662 | E11: 11 | F11: -2.931452677 | G11: -0.3798079045 | H11: -0.0776152742 | I11: 11 | J11: -2.931452677 | K11: -0.3650078902 | L11: -0.1170265893 | M11: 11 | N11: -2.931452677 | O11: -0.3894316323 | P11: -0.09098622238 | Q11: 11 | R11: -2.931452677 | S11: -0.5283250504 | T11: 0.01898435216 | U11: 11 | V11: -2.931452677 | W11: -0.5729733587 | X11: 0.1231314646 | Y11: 11 | Z11: -2.931452677 | AA11: -0.7119989058 | AB11: 0.3005591053 | AC11: 11 | AD11: -2.931452677 | AE11: -0.350595263 | AF11: -0.0009941332544 | AG11: 11 | AH11: -2.931452677 | AI11: -0.1455182884 | AJ11: -0.1846269361 | AK11: 11 | AL11: -2.931452677 | AM11: 0.5148298781 | AN11: -0.05172902576 | AO11: 11 | AP11: -2.931452677 | AQ11: -0.09908568542 | AR11: 0.1937152495
A12: 12 | B12: -2.910438679 | C12: 0.3797114889 | D12: -0.002662225652 | E12: 12 | F12: -2.910438679 | G12: -0.3784297295 | H12: -0.0797719709 | I12: 12 | J12: -2.910438679 | K12: -0.3637743453 | L12: -0.1189569554 | M12: 12 | N12: -2.910438679 | O12: -0.3880554838 | P12: -0.09313974795 | Q12: 12 | R12: -2.910438679 | S12: -0.526856117 | T12: 0.01668562829 | U12: 12 | V12: -2.910438679 | W12: -0.5711394154 | X12: 0.1202615391 | Y12: 12 | Z12: -2.910438679 | AA12: -0.7094129407 | AB12: 0.2965123461 | AC12: 12 | AD12: -2.910438679 | AE12: -0.3498553012 | AF12: -0.00215209448 | AG12: 12 | AH12: -2.910438679 | AI12: -0.1443542807 | AJ12: -0.1864484837 | AK12: 12 | AL12: -2.910438679 | AM12: 0.5168479392 | AN12: -0.05488707585 | AO12: 12 | AP12: -2.910438679 | AQ12: -0.09761890183 | AR12: 0.1914198897
A13: 13 | B13: -2.889424681 | C13: 0.3814570094 | D13: -0.00514798336 | E13: 13 | F13: -2.889424681 | G13: -0.3769227506 | H13: -0.08191802678 | I13: 13 | J13: -2.889424681 | K13: -0.3624255134 | L13: -0.1208777974 | M13: 13 | N13: -2.889424681 | O13: -0.3865507206 | P13: -0.09528264835 | Q13: 13 | R13: -2.889424681 | S13: -0.5252498975 | T13: 0.01439824599 | U13: 13 | V13: -2.889424681 | W13: -0.569134072 | X13: 0.1174057733 | Y13: 13 | Z13: -2.889424681 | AA13: -0.7065852918 | AB13: 0.2924855529 | AC13: 13 | AD13: -2.889424681 | AE13: -0.3490461827 | AF13: -0.003304342493 | AG13: 13 | AH13: -2.889424681 | AI13: -0.1430814852 | AJ13: -0.1882610442 | AK13: 13 | AL13: -2.889424681 | AM13: 0.5190546078 | AN13: -0.05802954458 | AO13: 13 | AP13: -2.889424681 | AQ13: -0.09601503292 | AR13: 0.189135855
A14: 14 | B14: -2.868410684 | C14: 0.3833509517 | D14: -0.00762031825 | E14: 14 | F14: -2.868410684 | G14: -0.3752876331 | H14: -0.08405249419 | I14: 14 | J14: -2.868410684 | K14: -0.3609619904 | L14: -0.1227882671 | M14: 14 | N14: -2.868410684 | O14: -0.3849180073 | P14: -0.09741397732 | Q14: 14 | R14: -2.868410684 | S14: -0.5235071009 | T14: 0.0121232153 | U14: 14 | V14: -2.868410684 | W14: -0.5669582141 | X14: 0.1145654283 | Y14: 14 | Z14: -2.868410684 | AA14: -0.7035172077 | AB14: 0.288480504 | AC14: 14 | AD14: -2.868410684 | AE14: -0.3481682648 | AF14: -0.004450368494 | AG14: 14 | AH14: -2.868410684 | AI14: -0.1417004637 | AJ14: -0.1900638169 | AK14: 14 | AL14: -2.868410684 | AM14: 0.5214489097 | AN14: -0.06115504433 | AO14: 14 | AP14: -2.868410684 | AQ14: -0.09427478691 | AR14: 0.1868641538
A15: 15 | B15: -2.847396686 | C15: 0.3853924794 | D15: -0.01007813861 | E15: 15 | F15: -2.847396686 | G15: -0.3735250991 | H15: -0.08617443061 | I15: 15 | J15: -2.847396686 | K15: -0.3593844222 | L15: -0.1246875208 | M15: 15 | N15: -2.847396686 | O15: -0.3831580649 | P15: -0.09953279372 | Q15: 15 | R15: -2.847396686 | S15: -0.5216284969 | T15: 0.009861540818 | U15: 15 | V15: -2.847396686 | W15: -0.5646128026 | X15: 0.1117417584 | Y15: 15 | Z15: -2.847396686 | AA15: -0.7002100431 | AB15: 0.2844989679 | AC15: 15 | AD15: -2.847396686 | AE15: -0.3472219351 | AF15: -0.005589666429 | AG15: 15 | AH15: -2.847396686 | AI15: -0.1402118262 | AJ15: -0.191856006 | AK15: 15 | AL15: -2.847396686 | AM15: 0.5240297875 | AN15: -0.06426219496 | AO15: 15 | AP15: -2.847396686 | AQ15: -0.09239893224 | AR15: 0.1846057892
A16: 16 | B16: -2.826382688 | C16: 0.387580691 | D16: -0.01252035913 | E16: 16 | F16: -2.826382688 | G16: -0.3716359268 | H16: -0.08828289906 | I16: 16 | J16: -2.826382688 | K16: -0.3576935057 | L16: -0.1265747199 | M16: 16 | N16: -2.826382688 | O16: -0.3812716704 | P16: -0.101638162 | Q16: 16 | R16: -2.826382688 | S16: -0.5196149151 | T16: 0.007614221227 | U16: 16 | V16: -2.826382688 | W16: -0.5620988729 | X16: 0.1089360104 | Y16: 16 | Z16: -2.826382688 | AA16: -0.6966652585 | AB16: 0.2805427026 | AC16: 16 | AD16: -2.826382688 | AE16: -0.3462076116 | AF16: -0.006721733217 | AG16: 16 | AH16: -2.826382688 | AI16: -0.1386162298 | AJ16: -0.1936368201 | AK16: 16 | AL16: -2.826382688 | AM16: 0.5267961017 | AN16: -0.06734962443 | AO16: 16 | AP16: -2.826382688 | AQ16: -0.09038829724 | AR16: 0.1823617586
A17: 17 | B17: -2.805368691 | C17: 0.3899146204 | D17: -0.0149459014 | E17: 17 | F17: -2.805368691 | G17: -0.3696209505 | H17: -0.0903769685 | I17: 17 | J17: -2.805368691 | K17: -0.3558899874 | L17: -0.128449031 | M17: 17 | N17: -2.805368691 | O17: -0.3792596569 | P17: -0.1037291524 | Q17: 17 | R17: -2.805368691 | S17: -0.5174672445 | T17: 0.005382248883 | U17: 17 | V17: -2.805368691 | W17: -0.5594175354 | X17: 0.1061494232 | Y17: 17 | Z17: -2.805368691 | AA17: -0.6928844191 | AB17: 0.2766134552 | AC17: 17 | AD17: -2.805368691 | AE17: -0.3451257421 | AF17: -0.007846068969 | AG17: 17 | AH17: -2.805368691 | AI17: -0.1369143794 | AJ17: -0.1954054727 | AK17: 17 | AL17: -2.805368691 | AM17: 0.5297466306 | AN17: -0.07041596944 | AO17: 17 | AP17: -2.805368691 | AQ17: -0.08824376974 | AR17: 0.1801330527
A18: 18 | B18: -2.784354693 | C18: 0.3923932369 | D18: -0.01735369437 | E18: 18 | F18: -2.784354693 | G18: -0.36748106 | H18: -0.09245571424 | I18: 18 | J18: -2.784354693 | K18: -0.3539746638 | L18: -0.1303096266 | M18: 18 | N18: -2.784354693 | O18: -0.3771229127 | P18: -0.1058048416 | Q18: 18 | R18: -2.784354693 | S18: -0.5151864335 | T18: 0.003166609362 | U18: 18 | V18: -2.784354693 | W18: -0.5565699738 | X18: 0.1033832274 | Y18: 18 | Z18: -2.784354693 | AA18: -0.6888691944 | AB18: 0.2727129608 | AC18: 18 | AD18: -2.784354693 | AE18: -0.3439768043 | AF18: -0.00896217721 | AG18: 18 | AH18: -2.784354693 | AI18: -0.1351070262 | AJ18: -0.1971611829 | AK18: 18 | AL18: -2.784354693 | AM18: 0.5328800714 | AN18: -0.07345987597 | AO18: 18 | AP18: -2.784354693 | AQ18: -0.08596629672 | AR18: 0.1779206557
A19: 19 | B19: -2.763340695 | C19: 0.3950154459 | D19: -0.01974267482 | E19: 19 | F19: -2.763340695 | G19: -0.3652172001 | H19: -0.09451821837 | I19: 19 | J19: -2.763340695 | K19: -0.3519483805 | L19: -0.132155685 | M19: 19 | N19: -2.763340695 | O19: -0.3748623815 | P19: -0.1078643131 | Q19: 19 | R19: -2.763340695 | S19: -0.5127734893 | T19: 0.0009682810292 | U19: 19 | V19: -2.763340695 | W19: -0.5535574457 | X19: 0.1006386443 | Y19: 19 | Z19: -2.763340695 | AA19: -0.6846213574 | AB19: 0.2688429415 | AC19: 19 | AD19: -2.763340695 | AE19: -0.3427613057 | AF19: -0.0100695651 | AG19: 19 | AH19: -2.763340695 | AI19: -0.1331949684 | AJ19: -0.1989031755 | AK19: 19 | AL19: -2.763340695 | AM19: 0.5361950405 | AN19: -0.07647999991 | AO19: 19 | AP19: -2.763340695 | AQ19: -0.08355688383 | AR19: 0.1757255446
A20: 20 | B20: -2.742326698 | C20: 0.3977800897 | D20: -0.02211178785 | E20: 20 | F20: -2.742326698 | G20: -0.3628303705 | H20: -0.09656357014 | I20: 20 | J20: -2.742326698 | K20: -0.3498120323 | L20: -0.1339863911 | M20: 20 | N20: -2.742326698 | O20: -0.3724790614 | P20: -0.1099066574 | Q20: 20 | R20: -2.742326698 | S20: -0.5102294774 | T20: -0.001211765397 | U20: 20 | V20: -2.742326698 | W20: -0.5503812814 | X20: 0.0979168859 | Y20: 20 | Z20: -2.742326698 | AA20: -0.6801427839 | AB20: 0.2650051065 | AC20: 20 | AD20: -2.742326698 | AE20: -0.3414797828 | AF20: -0.01116774364 | AG20: 20 | AH20: -2.742326698 | AI20: -0.1311790503 | AJ20: -0.2006306811 | AK20: 20 | AL20: -2.742326698 | AM20: 0.5396900741 | AN20: -0.07947500766 | AO20: 20 | AP20: -2.742326698 | AQ20: -0.08101659501 | AR20: 0.1735486886
A21: 21 | B21: -2.7213127 | C21: 0.4006859475 | D21: -0.02445998732 | E21: 21 | F21: -2.7213127 | G21: -0.3603216251 | H21: -0.09859086639 | I21: 21 | J21: -2.7213127 | K21: -0.3475665627 | L21: -0.1358009365 | M21: 21 | N21: -2.7213127 | O21: -0.3699740049 | P21: -0.1119309728 | Q21: 21 | R21: -2.7213127 | S21: -0.507555521 | T21: -0.003372567269 | U21: 21 | V21: -2.7213127 | W21: -0.5470428832 | X21: 0.09521915408 | Y21: 21 | Z21: -2.7213127 | AA21: -0.6754354514 | AB21: 0.2612011502 | AC21: 21 | AD21: -2.7213127 | AE21: -0.3401328016 | AF21: -0.01225622792 | AG21: 21 | AH21: -2.7213127 | AI21: -0.1290601621 | AJ21: -0.2023429371 | AK21: 21 | AL21: -2.7213127 | AM21: 0.5433636289 | AN21: -0.08244357672 | AO21: 21 | AP21: -2.7213127 | AQ21: -0.07834655198 | AR21: 0.1713910491
A22: 22 | B22: -2.700298702 | C22: 0.403731736 | D22: -0.02678623634 | E22: 22 | F22: -2.700298702 | G22: -0.3576920718 | H22: -0.1005992119 | I22: 22 | J22: -2.700298702 | K22: -0.345212963 | L22: -0.1375985199 | M22: 22 | N22: -2.700298702 | O22: -0.367348318 | P22: -0.1139363654 | Q22: 22 | R22: -2.700298702 | S22: -0.5047528011 | T22: -0.005513170437 | U22: 22 | V22: -2.700298702 | W22: -0.5435437253 | X22: 0.09254664007 | Y22: 22 | Z22: -2.700298702 | AA22: -0.6705014386 | AB22: 0.2574327526 | AC22: 22 | AD22: -2.700298702 | AE22: -0.338720957 | AF22: -0.01333453728 | AG22: 22 | AH22: -2.700298702 | AI22: -0.1268392394 | AJ22: -0.2040391872 | AK22: 22 | AL22: -2.700298702 | AM22: 0.5472140827 | AN22: -0.08538439624 | AO22: 22 | AP22: -2.700298702 | AQ22: -0.07554793375 | AR22: 0.1692535786
A23: 23 | B23: -2.679284705 | C23: 0.4069161104 | D23: -0.02908950769 | E23: 23 | F23: -2.679284705 | G23: -0.3549428717 | H23: -0.1025877199 | I23: 23 | J23: -2.679284705 | K23: -0.3427522727 | L23: -0.1393783475 | M23: 23 | N23: -2.679284705 | O23: -0.3646031602 | P23: -0.1159219495 | Q23: 23 | R23: -2.679284705 | S23: -0.5018225551 | T23: -0.007632629671 | U23: 23 | V23: -2.679284705 | W23: -0.5398853529 | X23: 0.08990052398 | Y23: 23 | Z23: -2.679284705 | AA23: -0.6653429242 | AB23: 0.2537015774 | AC23: 23 | AD23: -2.679284705 | AE23: -0.3372448722 | AF23: -0.01440219558 | AG23: 23 | AH23: -2.679284705 | AI23: -0.1245172629 | AJ23: -0.2057186826 | AK23: 23 | AL23: -2.679284705 | AM23: 0.5512397353 | AN23: -0.08829616764 | AO23: 23 | AP23: -2.679284705 | AQ23: -0.07262197612 | AR23: 0.1671372212
A24: 24 | B24: -2.658270707 | C24: 0.4102376645 | D24: -0.03136878433 | E24: 24 | F24: -2.658270707 | G24: -0.3520752388 | H24: -0.1045555122 | I24: 24 | J24: -2.658270707 | K24: -0.3401855782 | L24: -0.1411396335 | M24: 24 | N24: -2.658270707 | O24: -0.3617397437 | P24: -0.1178868485 | Q24: 24 | R24: -2.658270707 | S24: -0.4987660769 | T24: -0.009730009078 | U24: 24 | V24: -2.658270707 | W24: -0.5360693815 | X24: 0.08728197425 | Y24: 24 | Z24: -2.658270707 | AA24: -0.659962186 | AB24: 0.2500092725 | AC24: 24 | AD24: -2.658270707 | AE24: -0.3357051992 | AF24: -0.01545873136 | AG24: 24 | AH24: -2.658270707 | AI24: -0.122095258 | AJ24: -0.2073806815 | AK24: 24 | AL24: -2.658270707 | AM24: 0.555438809 | AN24: -0.09117760517 | AO24: 24 | AP24: -2.658270707 | AQ24: -0.06956997109 | AR24: 0.1650429113
A25: 25 | B25: -2.637256709 | C25: 0.4136949316 | D25: -0.03362305977 | E25: 25 | F25: -2.637256709 | G25: -0.3490904392 | H25: -0.1065017201 | I25: 25 | J25: -2.637256709 | K25: -0.337514013 | L25: -0.1428816001 | M25: 25 | N25: -2.637256709 | O25: -0.3587593329 | P25: -0.1198301947 | Q25: 25 | R25: -2.637256709 | S25: -0.4955847163 | T25: -0.01180438251 | U25: 25 | V25: -2.637256709 | W25: -0.5320974959 | X25: 0.08469214716 | Y25: 25 | Z25: -2.637256709 | AA25: -0.6543616001 | AB25: 0.2463574681 | AC25: 25 | AD25: -2.637256709 | AE25: -0.3341026177 | AF25: -0.0165036781 | AG25: 25 | AH25: -2.637256709 | AI25: -0.119574294 | AJ25: -0.2090244501 | AK25: 25 | AL25: -2.637256709 | AM25: 0.5598094497 | AN25: -0.09402743647 | AO25: 25 | AP25: -2.637256709 | AQ25: -0.06639326637 | AR25: 0.1629715737
A26: 26 | B26: -2.616242712 | C26: 0.4172863852 | D26: -0.03585133861 | E26: 26 | F26: -2.616242712 | G26: -0.3459897911 | H26: -0.1084254839 | I26: 26 | J26: -2.616242712 | K26: -0.3347387567 | L26: -0.1446034781 | M26: 26 | N26: -2.616242712 | O26: -0.3556632439 | P26: -0.1217511299 | Q26: 26 | R26: -2.616242712 | S26: -0.4922798781 | T26: -0.01385483399 | U26: 26 | V26: -2.616242712 | W26: -0.5279714502 | X26: 0.08213218631 | Y26: 26 | Z26: -2.616242712 | AA26: -0.6485436395 | AB26: 0.2427477768 | AC26: 26 | AD26: -2.616242712 | AE26: -0.3324378355 | AF26: -0.01753657437 | AG26: 26 | AH26: -2.616242712 | AI26: -0.1169554843 | AJ26: -0.2106492625 | AK26: 26 | AL26: -2.616242712 | AM26: 0.5643497275 | AN26: -0.09684440312 | AO26: 26 | AP26: -2.616242712 | AQ26: -0.06309326468 | AR26: 0.160924123
A27: 27 | B27: -2.595228714 | C27: 0.4210104392 | D27: -0.03805263689 | E27: 27 | F27: -2.595228714 | G27: -0.3427746636 | H27: -0.1103259544 | I27: 27 | J27: -2.595228714 | K27: -0.3318610348 | L27: -0.1463045072 | M27: 27 | N27: -2.595228714 | O27: -0.3524528438 | P27: -0.123648806 | Q27: 27 | R27: -2.595228714 | S27: -0.4888530214 | T27: -0.0158804581 | U27: 27 | V27: -2.595228714 | W27: -0.5236930662 | X27: 0.07960322211 | Y27: 27 | Z27: -2.595228714 | AA27: -0.6425108733 | AB27: 0.2391817926 | AC27: 27 | AD27: -2.595228714 | AE27: -0.3307115877 | AF27: -0.01855696407 | AG27: 27 | AH27: -2.595228714 | AI27: -0.1142399851 | AJ27: -0.2122544013 | AK27: 27 | AL27: -2.595228714 | AM27: 0.5690576374 | AN27: -0.09962726124 | AO27: 27 | AP27: -2.595228714 | AQ27: -0.05967142321 | AR27: 0.1589014634
A28: 28 | B28: -2.574214716 | C28: 0.4248654493 | D28: -0.04022598259 | E28: 28 | F28: -2.574214716 | G28: -0.3394464764 | H28: -0.1122022923 | I28: 28 | J28: -2.574214716 | K28: -0.3288821181 | L28: -0.1479839363 | M28: 28 | N28: -2.574214716 | O28: -0.3491295502 | P28: -0.125522385 | Q28: 28 | R28: -2.574214716 | S28: -0.4853056597 | T28: -0.01788036036 | U28: 28 | V28: -2.574214716 | W28: -0.5192642332 | X28: 0.07710637127 | Y28: 28 | Z28: -2.574214716 | AA28: -0.6362659653 | AB28: 0.23566109 | AC28: 28 | AD28: -2.574214716 | AE28: -0.3289246365 | AF28: -0.01956439663 | AG28: 28 | AH28: -2.574214716 | AI28: -0.1114289957 | AJ28: -0.2138391577 | AK28: 28 | AL28: -2.574214716 | AM28: 0.5739311006 | AN28: -0.102374782 | AO28: 28 | AP28: -2.574214716 | AQ28: -0.05612925296 | AR28: 0.1569044879
A29: 29 | B29: -2.553200718 | C29: 0.4288497132 | D29: -0.04237041601 | E29: 29 | F29: -2.553200718 | G29: -0.3360066991 | H29: -0.114053669 | I29: 29 | J29: -2.553200718 | K29: -0.3258033219 | L29: -0.1496410236 | M29: 29 | N29: -2.553200718 | O29: -0.3456948306 | P29: -0.1273710395 | Q29: 29 | R29: -2.553200718 | S29: -0.4816393592 | T29: -0.01985365769 | U29: 29 | V29: -2.553200718 | W29: -0.5146869067 | X29: 0.07464273633 | Y29: 29 | Z29: -2.553200718 | AA29: -0.6298116731 | AB29: 0.2321872237 | AC29: 29 | AD29: -2.553200718 | AE29: -0.327077771 | AF29: -0.0205584272 | AG29: 29 | AH29: -2.553200718 | AI29: -0.1085237572 | AJ29: -0.2154028318 | AK29: 29 | AL29: -2.553200718 | AM29: 0.578967965 | AN29: -0.1050857521 | AO29: 29 | AP29: -2.553200718 | AQ29: -0.05246831805 | AR29: 0.1549340785
A30: 30 | B30: -2.532186721 | C30: 0.4329614715 | D30: -0.04448499023 | E30: 30 | F30: -2.532186721 | G30: -0.3324568506 | H30: -0.115879267 | I30: 30 | J30: -2.532186721 | K30: -0.3226260058 | L30: -0.1512750377 | M30: 30 | N30: -2.532186721 | O30: -0.3421502017 | P30: -0.1291939532 | Q30: 30 | R30: -2.532186721 | S30: -0.4778557389 | T30: -0.02179947873 | U30: 30 | V30: -2.532186721 | W30: -0.5099631082 | X30: 0.07221340516 | Y30: 30 | Z30: -2.532186721 | AA30: -0.6231508468 | AB30: 0.2287617278 | AC30: 30 | AD30: -2.532186721 | AE30: -0.3251718067 | AF30: -0.02153861684 | AG30: 30 | AH30: -2.532186721 | AI30: -0.1055255525 | AJ30: -0.2169447333 | AK30: 30 | AL30: -2.532186721 | AM30: 0.5841660067 | AN30: -0.1077589746 | AO30: 30 | AP30: -2.532186721 | AQ30: -0.04869023503 | AR30: 0.1529911051
A31: 31 | B31: -2.511172723 | C31: 0.4371989087 | D31: -0.04656877152 | E31: 31 | F31: -2.511172723 | G31: -0.3287984985 | H31: -0.1176782803 | I31: 31 | J31: -2.511172723 | K31: -0.3193515727 | L31: -0.1528852568 | M31: 31 | N31: -2.511172723 | O31: -0.3384972287 | P31: -0.1309903213 | Q31: 31 | R31: -2.511172723 | S31: -0.4739564696 | T31: -0.02371696427 | U31: 31 | V31: -2.511172723 | W31: -0.5050949233 | X31: 0.0698194505 | Y31: 31 | Z31: -2.511172723 | AA31: -0.6162864276 | AB31: 0.2253861147 | AC31: 31 | AD31: -2.511172723 | AE31: -0.3232075853 | AF31: -0.02250453272 | AG31: 31 | AH31: -2.511172723 | AI31: -0.1024357055 | AJ31: -0.2184641813 | AK31: 31 | AL31: -2.511172723 | AM31: 0.5895229302 | AN31: -0.110393269 | AO31: 31 | AP31: -2.511172723 | AQ31: -0.04479667222 | AR31: 0.1510764258
A32: 32 | B32: -2.490158725 | C32: 0.4415601536 | D32: -0.04862083974 | E32: 32 | F32: -2.490158725 | G32: -0.3250332582 | H32: -0.1194499144 | I32: 32 | J32: -2.490158725 | K32: -0.3159814686 | L32: -0.15447097 | M32: 32 | N32: -2.490158725 | O32: -0.3347375246 | P32: -0.1327593504 | Q32: 32 | R32: -2.490158725 | S32: -0.469943273 | T32: -0.02560526758 | U32: 32 | V32: -2.490158725 | W32: -0.5000845018 | X32: 0.06746192943 | Y32: 32 | Z32: -2.490158725 | AA32: -0.6092214466 | AB32: 0.2220618751 | AC32: 32 | AD32: -2.490158725 | AE32: -0.321185974 | AF32: -0.02345574833 | AG32: 32 | AH32: -2.490158725 | AI32: -0.09925558069 | AJ32: -0.2199605048 | AK32: 32 | AL32: -2.490158725 | AM32: 0.59503637 | AN32: -0.112987472 | AO32: 32 | AP32: -2.490158725 | AQ32: -0.04078934889 | AR32: 0.149190886
A33: 33 | B33: -2.469144728 | C33: 0.4460432804 | D33: -0.05064028875 | E33: 33 | F33: -2.469144728 | G33: -0.3211627922 | H33: -0.121193387 | I33: 33 | J33: -2.469144728 | K33: -0.3125171816 | L33: -0.156031477 | M33: 33 | N33: -2.469144728 | O33: -0.3308727497 | P33: -0.1345002595 | Q33: 33 | R33: -2.469144728 | S33: -0.4658179213 | T33: -0.02746355486 | U33: 33 | V33: -2.469144728 | W33: -0.4949340562 | X33: 0.06514188298 | Y33: 33 | Z33: -2.469144728 | AA33: -0.6019590235 | AB33: 0.2187904769 | AC33: 33 | AD33: -2.469144728 | AE33: -0.3191078656 | AF33: -0.02439184363 | AG33: 33 | AH33: -2.469144728 | AI33: -0.09598658223 | AJ33: -0.221433043 | AK33: 33 | AL33: -2.469144728 | AM33: 0.6007038917 | AN33: -0.1155404382 | AO33: 33 | AP33: -2.469144728 | AQ33: -0.03667003457 | AR33: 0.1473353183
A34: 34 | B34: -2.44813073 | C34: 0.4506463094 | D34: -0.05262622682 | E34: 34 | F34: -2.44813073 | G34: -0.3171888098 | H34: -0.1229079282 | I34: 34 | J34: -2.44813073 | K34: -0.3089602414 | L34: -0.1575660889 | M34: 34 | N34: -2.44813073 | O34: -0.3269046104 | P34: -0.1362122797 | Q34: 34 | R34: -2.44813073 | S34: -0.461582236 | T34: -0.02929100553 | U34: 34 | V34: -2.44813073 | W34: -0.4896458607 | X34: 0.06286033562 | Y34: 34 | Z34: -2.44813073 | AA34: -0.5945023652 | AB34: 0.2155733645 | AC34: 34 | AD34: -2.44813073 | AE34: -0.3169741778 | AF34: -0.02531240527 | AG34: 34 | AH34: -2.44813073 | AI34: -0.09263015365 | AJ34: -0.2228811459 | AK34: 34 | AL34: -2.44813073 | AM34: 0.6065229926 | AN34: -0.1180510402 | AO34: 34 | AP34: -2.44813073 | AQ34: -0.03244054822 | AR34: 0.1455105421
A35: 35 | B35: -2.427116732 | C35: 0.4553672081 | D35: -0.05457777702 | E35: 35 | F35: -2.427116732 | G35: -0.3131130656 | H35: -0.124592781 | I35: 35 | J35: -2.427116732 | K35: -0.3053122188 | L35: -0.1590741278 | M35: 35 | N35: -2.427116732 | O35: -0.3228348591 | P35: -0.1378946551 | Q35: 35 | R35: -2.427116732 | S35: -0.4572380877 | T35: -0.03108681265 | U35: 35 | V35: -2.427116732 | W35: -0.4842222504 | X35: 0.0606182948 | Y35: 35 | Z35: -2.427116732 | AA35: -0.5868547644 | AB35: 0.2124119587 | AC35: 35 | AD35: -2.427116732 | AE35: -0.3147858526 | AF35: -0.02621702676 | AG35: 35 | AH35: -2.427116732 | AI35: -0.08918777704 | AJ35: -0.2243041738 | AK35: 35 | AL35: -2.427116732 | AM35: 0.6124911031 | AN35: -0.1205181694 | AO35: 35 | AP35: -2.427116732 | AQ35: -0.02810275748 | AR35: 0.1437173631
A36: 36 | B36: -2.406102735 | C36: 0.460203892 | D36: -0.0564940776 | E36: 36 | F36: -2.406102735 | G36: -0.3089373594 | H36: -0.1262472013 | I36: 36 | J36: -2.406102735 | K36: -0.3015747244 | L36: -0.1605549281 | M36: 36 | N36: -2.406102735 | O36: -0.3186652927 | P36: -0.1395466429 | Q36: 36 | R36: -2.406102735 | S36: -0.4527873945 | T36: -0.03285018323 | U36: 36 | V36: -2.406102735 | W36: -0.4786656203 | X36: 0.05841675056 | Y36: 36 | Z36: -2.406102735 | AA36: -0.579019598 | AB36: 0.2093076553 | AC36: 36 | AD36: -2.406102735 | AE36: -0.3125438564 | AF36: -0.02710530864 | AG36: 36 | AH36: -2.406102735 | AI36: -0.08566097247 | AJ36: -0.2257014984 | AK36: 36 | AL36: -2.406102735 | AM36: 0.6186055879 | AN36: -0.1229407365 | AO36: 36 | AP36: -2.406102735 | AQ36: -0.02365857779 | AR36: 0.1419565732
A37: 37 | B37: -2.385088737 | C37: 0.4651542251 | D37: -0.05837428236 | E37: 37 | F37: -2.385088737 | G37: -0.3046635352 | H37: -0.1278704587 | I37: 37 | J37: -2.385088737 | K37: -0.2977494088 | L37: -0.1620078357 | M37: 37 | N37: -2.385088737 | O37: -0.3143977525 | P37: -0.1411675135 | Q37: 37 | R37: -2.385088737 | S37: -0.4482321217 | T37: -0.03458033862 | U37: 37 | V37: -2.385088737 | W37: -0.4729784241 | X37: 0.05625667503 | Y37: 37 | Z37: -2.385088737 | AA37: -0.5710003258 | AB37: 0.2062618252 | AC37: 37 | AD37: -2.385088737 | AE37: -0.3102491792 | AF37: -0.02797685867 | AG37: 37 | AH37: -2.385088737 | AI37: -0.08205129728 | AJ37: -0.2270725028 | AK37: 37 | AL37: -2.385088737 | AM37: 0.6248637469 | AN37: -0.1253176715 | AO37: 37 | AP37: -2.385088737 | AQ37: -0.01910997157 | AR37: 0.1402289498
A38: 38 | B38: -2.364074739 | C38: 0.4702160217 | D38: -0.06021756107 | E38: 38 | F38: -2.364074739 | G38: -0.30029348 | H38: -0.1294618362 | I38: 38 | J38: -2.364074739 | K38: -0.2938379611 | L38: -0.1634322091 | M38: 38 | N38: -2.364074739 | O38: -0.3100341229 | P38: -0.1427565511 | Q38: 38 | R38: -2.364074739 | S38: -0.4435742808 | T38: -0.03627651483 | U38: 38 | V38: -2.364074739 | W38: -0.4671631729 | X38: 0.05413902204 | Y38: 38 | Z38: -2.364074739 | AA38: -0.5628004889 | AB38: 0.2032758133 | AC38: 38 | AD38: -2.364074739 | AE38: -0.3079028342 | AF38: -0.028831292 | AG38: 38 | AH38: -2.364074739 | AI38: -0.07836034539 | AJ38: -0.2284165816 | AK38: 38 | AL38: -2.364074739 | AM38: 0.6312628169 | AN38: -0.1276479251 | AO38: 38 | AP38: -2.364074739 | AQ38: -0.01445894736 | AR38: 0.138535256
A39: 39 | B39: -2.343060742 | C39: 0.4753870466 | D39: -0.06202309979 | E39: 39 | F39: -2.343060742 | G39: -0.2958291237 | H39: -0.1310206314 | I39: 39 | J39: -2.343060742 | K39: -0.2898421084 | L39: -0.1648274193 | M39: 39 | N39: -2.343060742 | O39: -0.3055763308 | P39: -0.1443130543 | Q39: 39 | R39: -2.343060742 | S39: -0.4388159286 | T39: -0.03793796289 | U39: 39 | V39: -2.343060742 | W39: -0.4612224347 | X39: 0.05206472669 | Y39: 39 | Z39: -2.343060742 | AA39: -0.5544237081 | AB39: 0.2003509382 | AC39: 39 | AD39: -2.343060742 | AE39: -0.3055058576 | AF39: -0.02966823134 | AG39: 39 | AH39: -2.343060742 | AI39: -0.07458974662 | AJ39: -0.2297331411 | AK39: 39 | AL39: -2.343060742 | AM39: 0.6377999721 | AN39: -0.1299304681 | AO39: 39 | AP39: -2.343060742 | AQ39: -0.009707558916 | AR39: 0.1368762394
A40: 40 | B40: -2.322046744 | C40: 0.4806650163 | D40: -0.06379010124 | E40: 40 | F40: -2.322046744 | G40: -0.2912724374 | H40: -0.1325461557 | I40: 40 | J40: -2.322046744 | K40: -0.2857636152 | L40: -0.1661928503 | M40: 40 | N40: -2.322046744 | O40: -0.3010263445 | P40: -0.1458363355 | Q40: 40 | R40: -2.322046744 | S40: -0.4339591662 | T40: -0.03956394913 | U40: 40 | V40: -2.322046744 | W40: -0.4551588328 | X40: 0.05003470493 | Y40: 40 | Z40: -2.322046744 | AA40: -0.5458736824 | AB40: 0.1974884913 | AC40: 40 | AD40: -2.322046744 | AE40: -0.3030593078 | AF40: -0.03048730711 | AG40: 40 | AH40: -2.322046744 | AI40: -0.07074116597 | AJ40: -0.2310216001 | AK40: 40 | AL40: -2.322046744 | AM40: 0.6444723259 | AN40: -0.1321642928 | AO40: 40 | AP40: -2.322046744 | AQ40: -0.004857904325 | AR40: 0.1352526328
A41: 41 | B41: -2.301032746 | C41: 0.4860476003 | D41: -0.06551778517 | E41: 41 | F41: -2.301032746 | G41: -0.2866254334 | H41: -0.1340377356 | I41: 41 | J41: -2.301032746 | K41: -0.2816042825 | L41: -0.167527899 | M41: 41 | N41: -2.301032746 | O41: -0.2963861733 | P41: -0.1473257222 | Q41: 41 | R41: -2.301032746 | S41: -0.4290061382 | T41: -0.04115375558 | U41: 41 | V41: -2.301032746 | W41: -0.4489750446 | X41: 0.04804985315 | Y41: 41 | Z41: -2.301032746 | AA41: -0.5371541872 | AB41: 0.1946897367 | AC41: 41 | AD41: -2.301032746 | AE41: -0.300564265 | AF41: -0.03128815763 | AG41: 41 | AH41: -2.301032746 | AI41: -0.06681630286 | AJ41: -0.2322813896 | AK41: 41 | AL41: -2.301032746 | AM41: 0.6512769319 | AN41: -0.1343484126 | AO41: 41 | AP41: -2.301032746 | AQ41: 8.787494522e-05 | AR41: 0.133665153
A42: 42 | B42: -2.280018749 | C42: 0.4915324218 | D42: -0.06720538867 | E42: 42 | F42: -2.280018749 | G42: -0.2818901636 | H42: -0.1354947124 | I42: 42 | J42: -2.280018749 | K42: -0.2773659469 | L42: -0.1688319761 | M42: 42 | N42: -2.280018749 | O42: -0.2916578661 | P42: -0.1487805568 | Q42: 42 | R42: -2.280018749 | S42: -0.4239590318 | T42: -0.04270668021 | U42: 42 | V42: -2.280018749 | W42: -0.4426738007 | X42: 0.04611104782 | Y42: 42 | Z42: -2.280018749 | AA42: -0.5282690728 | AB42: 0.1919559103 | AC42: 42 | AD42: -2.280018749 | AE42: -0.2980218311 | AF42: -0.03207042928 | AG42: 42 | AH42: -2.280018749 | AI42: -0.0628168904 | AJ42: -0.2335119533 | AK42: 42 | AL42: -2.280018749 | AM42: 0.6582107856 | AN42: -0.1364818632 | AO42: 42 | AP42: -2.280018749 | AQ42: 0.005127594978 | AR42: 0.132114501
A43: 43 | B43: -2.259004751 | C43: 0.4971170589 | D43: -0.06885216655 | E43: 43 | F43: -2.259004751 | G43: -0.2770687189 | H43: -0.1369164428 | I43: 43 | J43: -2.259004751 | K43: -0.2730504799 | L43: -0.1701045057 | M43: 43 | N43: -2.259004751 | O43: -0.2868435107 | P43: -0.1502001968 | Q43: 43 | R43: -2.259004751 | S43: -0.4188200756 | T43: -0.04422203731 | U43: 43 | V43: -2.259004751 | W43: -0.4362578837 | X43: 0.04421914505 | Y43: 43 | Z43: -2.259004751 | AA43: -0.5192222626 | AB43: 0.1892882191 | AC43: 43 | AD43: -2.259004751 | AE43: -0.2954331287 | AF43: -0.03283377662 | AG43: 43 | AH43: -2.259004751 | AI43: -0.05874469462 | AJ43: -0.2347127479 | AK43: 43 | AL43: -2.259004751 | AM43: 0.6652708249 | AN43: -0.1385637024 | AO43: 43 | AP43: -2.259004751 | AQ43: 0.01025903037 | AR43: 0.1306013616
A44: 44 | B44: -2.237990753 | C44: 0.5027990455 | D44: -0.07045739164 | E44: 44 | F44: -2.237990753 | G44: -0.2721632285 | H44: -0.138302299 | I44: 44 | J44: -2.237990753 | K44: -0.2686597872 | L44: -0.1713449257 | M44: 44 | N44: -2.237990753 | O44: -0.2819452331 | P44: -0.1515840152 | Q44: 44 | R44: -2.237990753 | S44: -0.4135915389 | T44: -0.04569915772 | U44: 44 | V44: -2.237990753 | W44: -0.4297301265 | X44: 0.04237498026 | Y44: 44 | Z44: -2.237990753 | AA44: -0.5100177514 | AB44: 0.1866878412 | AC44: 44 | AD44: -2.237990753 | AE44: -0.2927993009 | AF44: -0.03357786259 | AG44: 44 | AH44: -2.237990753 | AI44: -0.05460151368 | AJ44: -0.2358832431 | AK44: 44 | AL44: -2.237990753 | AM44: 0.6724539326 | AN44: -0.1405930111 | AO44: 44 | AP44: -2.237990753 | AQ44: 0.01547991524 | AR44: 0.129126403
A45: 45 | B45: -2.216976756 | C45: 0.5085758726 | D45: -0.07202035511 | E45: 45 | F45: -2.216976756 | G45: -0.2671758584 | H45: -0.1396516691 | I45: 45 | J45: -2.216976756 | K45: -0.2641958074 | L45: -0.1725526886 | M45: 45 | N45: -2.216976756 | O45: -0.2769651962 | P45: -0.1529314012 | Q45: 45 | R45: -2.216976756 | S45: -0.4082757303 | T45: -0.0471373892 | U45: 45 | V45: -2.216976756 | W45: -0.4230934117 | X45: 0.04057936778 | Y45: 45 | Z45: -2.216976756 | AA45: -0.5006596037 | AB45: 0.1841559249 | AC45: 45 | AD45: -2.216976756 | AE45: -0.2901215107 | AF45: -0.0343023586 | AG45: 45 | AH45: -2.216976756 | AI45: -0.0503891771 | AJ45: -0.2370229221 | AK45: 45 | AL45: -2.216976756 | AM45: 0.6797569366 | AN45: -0.1425688931 | AO45: 45 | AP45: -2.216976756 | AQ45: 0.02078794417 | AR45: 0.1276902763
A46: 46 | B46: -2.195962758 | C46: 0.5144449893 | D46: -0.07354036681 | E46: 46 | F46: -2.195962758 | G46: -0.2621088108 | H46: -0.1409639571 | I46: 46 | J46: -2.195962758 | K46: -0.2596605119 | L46: -0.1737272609 | M46: 46 | N46: -2.195962758 | O46: -0.2719055991 | P46: -0.1542417597 | Q46: 46 | R46: -2.195962758 | S46: -0.4028749973 | T46: -0.04853609666 | U46: 46 | V46: -2.195962758 | W46: -0.4163506698 | X46: 0.03883310049 | Y46: 46 | Z46: -2.195962758 | AA46: -0.4911519518 | AB46: 0.1816935881 | AC46: 46 | AD46: -2.195962758 | AE46: -0.2874009406 | AF46: -0.03500694476 | AG46: 46 | AH46: -2.195962758 | AI46: -0.04610954493 | AJ46: -0.2381312815 | AK46: 46 | AL46: -2.195962758 | AM46: 0.6871766122 | AN46: -0.1444904759 | AO46: 46 | AP46: -2.195962758 | AQ46: 0.0261807733 | AR46: 0.1262936159
A47: 47 | B47: -2.17494876 | C47: 0.5204038041 | D47: -0.07501675554 | E47: 47 | F47: -2.17494876 | G47: -0.2569643234 | H47: -0.1422385836 | I47: 47 | J47: -2.17494876 | K47: -0.2550559032 | L47: -0.1748681241 | M47: 47 | N47: -2.17494876 | O47: -0.2667686759 | P47: -0.155514512 | Q47: 47 | R47: -2.17494876 | S47: -0.3973917246 | T47: -0.04989466247 | U47: 47 | V47: -2.17494876 | W47: -0.4095048782 | X47: 0.03713694951 | Y47: 47 | Z47: -2.17494876 | AA47: -0.481498994 | AB47: 0.1793019181 | AC47: 47 | AD47: -2.17494876 | AE47: -0.2846387919 | AF47: -0.03569130992 | AG47: 47 | AH47: -2.17494876 | AI47: -0.04176450692 | AJ47: -0.239207832 | AK47: 47 | AL47: -2.17494876 | AM47: 0.6947096831 | AN47: -0.146356911 | AO47: 47 | AP47: -2.17494876 | AQ47: 0.0316560213 | AR47: 0.1249370383
A48: 48 | B48: -2.153934762 | C48: 0.5264496855 | D48: -0.07644886937 | E48: 48 | F48: -2.153934762 | G48: -0.2517446676 | H48: -0.1434749858 | I48: 48 | J48: -2.153934762 | K48: -0.2503840147 | L48: -0.1759747744 | M48: 48 | N48: -2.153934762 | O48: -0.2615566949 | P48: -0.1567490963 | Q48: 48 | R48: -2.153934762 | S48: -0.3918283335 | T48: -0.05121248674 | U48: 48 | V48: -2.153934762 | W48: -0.4025590599 | X48: 0.0354916638 | Y48: 48 | Z48: -2.153934762 | AA48: -0.4717049927 | AB48: 0.1769819711 | AC48: 48 | AD48: -2.153934762 | AE48: -0.2818362843 | AF48: -0.0363551519 | AG48: 48 | AH48: -2.153934762 | AI48: -0.03735598174 | AJ48: -0.2402520983 | AK48: 48 | AL48: -2.153934762 | AM48: 0.7023528228 | AN48: -0.1481673742 | AO48: 48 | AP48: -2.153934762 | AQ48: 0.03721127046 | AR48: 0.1236211426
A49: 49 | B49: -2.132920765 | C49: 0.5325799641 | D49: -0.07783607591 | E49: 49 | F49: -2.132920765 | G49: -0.2464521484 | H49: -0.1446726177 | I49: 49 | J49: -2.132920765 | K49: -0.2456469092 | L49: -0.177046723 | M49: 49 | N49: -2.132920765 | O49: -0.2562719577 | P49: -0.1579449672 | Q49: 49 | R49: -2.132920765 | S49: -0.3861872807 | T49: -0.05248898754 | U49: 49 | V49: -2.132920765 | W49: -0.395516282 | X49: 0.03389796987 | Y49: 49 | Z49: -2.132920765 | AA49: -0.4617742728 | AB49: 0.1747347715 | AC49: 49 | AD49: -2.132920765 | AE49: -0.2789946553 | AF49: -0.03699817756 | AG49: 49 | AH49: -2.132920765 | AI49: -0.03288591605 | AJ49: -0.2412636191 | AK49: 49 | AL49: -2.132920765 | AM49: 0.7101026564 | AN49: -0.1499210661 | AO49: 49 | AP49: -2.132920765 | AQ49: 0.04284406773 | AR49: 0.12234651
A50: 50 | B50: -2.111906767 | C50: 0.5387919328 | D50: -0.07917776262 | E50: 50 | F50: -2.111906767 | G50: -0.2410891029 | H50: -0.1458309505 | I50: 50 | J50: -2.111906767 | K50: -0.2408466786 | L50: -0.1780834967 | M50: 50 | N50: -2.111906767 | O50: -0.2509167977 | P50: -0.1591015969 | Q50: 50 | R50: -2.111906767 | S50: -0.3804710569 | T50: -0.0537236012 | U50: 50 | V50: -2.111906767 | W50: -0.3883796542 | X50: 0.03235657146 | Y50: 50 | Z50: -2.111906767 | AA50: -0.4517112192 | AB50: 0.1725613115 | AC50: 50 | AD50: -2.111906767 | AE50: -0.2761151596 | AF50: -0.03762010295 | AG50: 50 | AH50: -2.111906767 | AI50: -0.02835628371 | AJ50: -0.2422419478 | AK50: 50 | AL50: -2.111906767 | AM50: 0.7179557618 | AN50: -0.1516172123 | AO50: 50 | AP50: -2.111906767 | AQ50: 0.04855192583 | AR50: 0.1211137032
A51: 51 | B51: -2.090892769 | C51: 0.5450828485 | D51: -0.08047333705 | E51: 51 | F51: -2.090892769 | G51: -0.2356578991 | H51: -0.1469494727 | I51: 51 | J51: -2.090892769 | K51: -0.2359854426 | L51: -0.1790846376 | M51: 51 | N51: -2.090892769 | O51: -0.2454935798 | P51: -0.1602184744 | Q51: 51 | R51: -2.090892769 | S51: -0.3746821865 | T51: -0.05491578257 | U51: 51 | V51: -2.090892769 | W51: -0.381152328 | X51: 0.03086814921 | Y51: 51 | Z51: -2.090892769 | AA51: -0.4415202758 | AB51: 0.170462551 | AC51: 51 | AD51: -2.090892769 | AE51: -0.2731990688 | AF51: -0.03822065346 | AG51: 51 | AH51: -2.090892769 | AI51: -0.02376908489 | AJ51: -0.2431866525 | AK51: 51 | AL51: -2.090892769 | AM51: 0.7259086713 | AN51: -0.1532550639 | AO51: 51 | AP51: -2.090892769 | AQ51: 0.05433232434 | AR51: 0.1199232665
A52: 52 | B52: -2.069878772 | C52: 0.5514499334 | D52: -0.08172222711 | E52: 52 | F52: -2.069878772 | G52: -0.2301609353 | H52: -0.1480276903 | I52: 52 | J52: -2.069878772 | K52: -0.2310653476 | L52: -0.1800497037 | M52: 52 | N52: -2.069878772 | O52: -0.2400046986 | P52: -0.1612951067 | Q52: 52 | R52: -2.069878772 | S52: -0.3688232256 | T52: -0.05606500519 | U52: 52 | V52: -2.069878772 | W52: -0.3738374948 | X52: 0.02943336035 | Y52: 52 | Z52: -2.069878772 | AA52: -0.4312059423 | AB52: 0.1684394166 | AC52: 52 | AD52: -2.069878772 | AE52: -0.2702476706 | AF52: -0.0387995639 | AG52: 52 | AH52: -2.069878772 | AI52: -0.01912634515 | AJ52: -0.2440973159 | AK52: 52 | AL52: -2.069878772 | AM52: 0.733957873 | AN52: -0.1548338975 | AO52: 52 | AP52: -2.069878772 | AQ52: 0.06018271079 | AR52: 0.1187757258
A53: 53 | B53: -2.048864774 | C53: 0.557890376 | D53: -0.08292388131 | E53: 53 | F53: -2.048864774 | G53: -0.2246006389 | H53: -0.1490651274 | I53: 53 | J53: -2.048864774 | K53: -0.2260885663 | L53: -0.1809782688 | M53: 53 | N53: -2.048864774 | O53: -0.2344525778 | P53: -0.1623310183 | Q53: 53 | R53: -2.048864774 | S53: -0.3628967612 | T53: -0.05717076162 | U53: 53 | V53: -2.048864774 | W53: -0.3664383845 | X53: 0.02805283846 | Y53: 53 | Z53: -2.048864774 | AA53: -0.4207727734 | AB53: 0.1664928017 | AC53: 53 | AD53: -2.048864774 | AE53: -0.2672622681 | AF53: -0.03935657864 | AG53: 53 | AH53: -2.048864774 | AI53: -0.01443011461 | AJ53: -0.244973536 | AK53: 53 | AL53: -2.048864774 | AM53: 0.7420998127 | AN53: -0.1563530161 | AO53: 53 | AP53: -2.048864774 | AQ53: 0.06610050181 | AR53: 0.1176715876
A54: 54 | B54: -2.027850776 | C54: 0.5644013323 | D54: -0.08407776905 | E54: 54 | F54: -2.027850776 | G54: -0.2189794651 | H54: -0.1500613256 | I54: 54 | J54: -2.027850776 | K54: -0.2210572963 | L54: -0.1818699228 | M54: 54 | N54: -2.027850776 | O54: -0.2288396692 | P54: -0.1633257518 | Q54: 54 | R54: -2.027850776 | S54: -0.3569054105 | T54: -0.05823256358 | U54: 54 | V54: -2.027850776 | W54: -0.3589582644 | X54: 0.02672719313 | Y54: 54 | Z54: -2.027850776 | AA54: -0.410225376 | AB54: 0.1646235659 | AC54: 54 | AD54: -2.027850776 | AE54: -0.2642441797 | AF54: -0.0398914517 | AG54: 54 | AH54: -2.027850776 | AI54: -0.009682466981 | AJ54: -0.2458149259 | AK54: 54 | AL54: -2.027850776 | AM54: 0.7503308952 | AN54: -0.1578117489 | AO54: 54 | AP54: -2.027850776 | AQ54: 0.07208308428 | AR54: 0.1166113396
A55: 55 | B55: -2.006836779 | C55: 0.5709799273 | D55: -0.0851833808 | E55: 55 | F55: -2.006836779 | G55: -0.2132998961 | H55: -0.1510158453 | I55: 55 | J55: -2.006836779 | K55: -0.2159737592 | L55: -0.1827242722 | M55: 55 | N55: -2.006836779 | O55: -0.2231684512 | P55: -0.164278868 | Q55: 55 | R55: -2.006836779 | S55: -0.350851819 | T55: -0.0592499422 | U55: 55 | V55: -2.006836779 | W55: -0.3514004376 | X55: 0.02545700972 | Y55: 55 | Z55: -2.006836779 | AA55: -0.3995684077 | AB55: 0.1628325346 | AC55: 55 | AD55: -2.006836779 | AE55: -0.2611947381 | AF55: -0.04040394692 | AG55: 55 | AH55: -2.006836779 | AI55: -0.004885498697 | AJ55: -0.2466211139 | AK55: 55 | AL55: -2.006836779 | AM55: 0.7586474857 | AN55: -0.1592094516 | AO55: 55 | AP55: -2.006836779 | AQ55: 0.07812781645 | AR55: 0.1155954499
A56: 56 | B56: -1.985822781 | C56: 0.5776232561 | D56: -0.08624022836 | E56: 56 | F56: -1.985822781 | G56: -0.2075644398 | H56: -0.1519282648 | I56: 56 | J56: -1.985822781 | K56: -0.2108401998 | L56: -0.1835409395 | M56: 56 | N56: -1.985822781 | O56: -0.2174414281 | P56: -0.1651899459 | Q56: 56 | R56: -1.985822781 | S56: -0.3447386598 | T56: -0.06022244824 | U56: 56 | V56: -1.985822781 | W56: -0.3437682413 | X56: 0.02424284913 | Y56: 56 | Z56: -1.985822781 | AA56: -0.3888065741 | AB56: 0.1611204987 | AC56: 56 | AD56: -1.985822781 | AE56: -0.2581152898 | AF56: -0.04089383799 | AG56: 56 | AH56: -1.985822781 | AI56: -4.132796162e-05 | AJ56: -0.2473917441 | AK56: 56 | AL56: -1.985822781 | AM56: 0.767045912 | AN56: -0.1605455072 | AO56: 56 | AP56: -1.985822781 | AQ56: 0.08423202914 | AR56: 0.1146243671
A57: 57 | B57: -1.964808783 | C57: 0.5843283851 | D57: -0.08724784504 | E57: 57 | F57: -1.964808783 | G57: -0.2017756288 | H57: -0.1527981814 | I57: 57 | J57: -1.964808783 | K57: -0.205658885 | L57: -0.1843195643 | M57: 57 | N57: -1.964808783 | O57: -0.2116611288 | P57: -0.1660585833 | Q57: 57 | R57: -1.964808783 | S57: -0.3385686323 | T57: -0.06114965227 | U57: 57 | V57: -1.964808783 | W57: -0.3360650456 | X57: 0.02308524748 | Y57: 57 | Z57: -1.964808783 | AA57: -0.3779446275 | AB57: 0.1594882141 | AC57: 57 | AD57: -1.964808783 | AE57: -0.2550071946 | AF57: -0.04136090858 | AG57: 57 | AH57: -1.964808783 | AI57: 0.004847906175 | AJ57: -0.2481264763 | AK57: 57 | AL57: -1.964808783 | AM57: 0.7755224656 | AN57: -0.1618193256 | AO57: 57 | AP57: -1.964808783 | AQ57: 0.0903930269 | AR57: 0.11369852
A58: 58 | B58: -1.943794786 | C58: 0.5910923536 | D58: -0.08820578592 | E58: 58 | F58: -1.943794786 | G58: -0.1959360193 | H58: -0.1536252107 | I58: 58 | J58: -1.943794786 | K58: -0.2004321026 | L58: -0.1850598026 | M58: 58 | N58: -1.943794786 | O58: -0.2058301056 | P58: -0.1668843967 | Q58: 58 | R58: -1.943794786 | S58: -0.332344461 | T58: -0.06203114486 | U58: 58 | V58: -1.943794786 | W58: -0.3282942522 | X58: 0.02198471594 | Y58: 58 | Z58: -1.943794786 | AA58: -0.3669873641 | AB58: 0.1579364017 | AC58: 58 | AD58: -1.943794786 | AE58: -0.2518718249 | AF58: -0.04180495245 | AG58: 58 | AH58: -1.943794786 | AI58: 0.009780044765 | AJ58: -0.2488249859 | AK58: 58 | AL58: -1.943794786 | AM58: 0.7840734033 | AN58: -0.1630303443 | AO58: 58 | AP58: -1.943794786 | AQ58: 0.09660808922 | AR58: 0.1128183175
A59: 59 | B59: -1.922780788 | C59: 0.5979121748 | D59: -0.08911362799 | E59: 59 | F59: -1.922780788 | G59: -0.1900481899 | H59: -0.1544089878 | I59: 59 | J59: -1.922780788 | K59: -0.1951621607 | L59: -0.1857613276 | M59: 59 | N59: -1.922780788 | O59: -0.1999509335 | P59: -0.1676670213 | Q59: 59 | R59: -1.922780788 | S59: -0.3260688943 | T59: -0.06286653677 | U59: 59 | V59: -1.922780788 | W59: -0.3204592924 | X59: 0.02094174047 | Y59: 59 | Z59: -1.922780788 | AA59: -0.3559396224 | AB59: 0.1564657466 | AC59: 59 | AD59: -1.922780788 | AE59: -0.2487105654 | AF59: -0.04222577352 | AG59: 59 | AH59: -1.922780788 | AI59: 0.01475290991 | AJ59: -0.2494869646 | AK59: 59 | AL59: -1.922780788 | AM59: 0.7926949495 | AN59: -0.1641780287 | AO59: 59 | AP59: -1.922780788 | AQ59: 0.1028744717 | AR59: 0.1119841481
A60: 60 | B60: -1.90176679 | C60: 0.6047848372 | D60: -0.08997097038 | E60: 60 | F60: -1.90176679 | G60: -0.1841147406 | H60: -0.1551491664 | I60: 60 | J60: -1.90176679 | K60: -0.1898513862 | L60: -0.1864238295 | M60: 60 | N60: -1.90176679 | O60: -0.1940262085 | P60: -0.1684061116 | Q60: 60 | R60: -1.90176679 | S60: -0.3197447034 | T60: -0.06365545912 | U60: 60 | V60: -1.90176679 | W60: -0.3125636258 | X60: 0.01995678162 | Y60: 60 | Z60: -1.90176679 | AA60: -0.3448062807 | AB60: 0.1550768983 | AC60: 60 | AD60: -1.90176679 | AE60: -0.2455248117 | AF60: -0.04262318598 | AG60: 60 | AH60: -1.90176679 | AI60: 0.01976430575 | AJ60: -0.25011212 | AK60: 60 | AL60: -1.90176679 | AM60: 0.8013832969 | AN60: -0.1652618719 | AO60: 60 | AP60: -1.90176679 | AQ60: 0.1091894072 | AR60: 0.1111963804
A61: 61 | B61: -1.880752793 | C61: 0.611707306 | D61: -0.09077743451 | E61: 61 | F61: -1.880752793 | G61: -0.1781382912 | H61: -0.1558454197 | I61: 61 | J61: -1.880752793 | K61: -0.1845021244 | L61: -0.1870470158 | M61: 61 | N61: -1.880752793 | O61: -0.1880585467 | P61: -0.1691013411 | Q61: 61 | R61: -1.880752793 | S61: -0.3133746808 | T61: -0.06439756354 | U61: 61 | V61: -1.880752793 | W61: -0.3046107391 | X61: 0.01903027433 | Y61: 61 | Z61: -1.880752793 | AA61: -0.3335922553 | AB61: 0.15377047 | AC61: 61 | AD61: -1.880752793 | AE61: -0.2423159708 | AF61: -0.04299701432 | AG61: 61 | AH61: -1.880752793 | AI61: 0.02481201937 | AJ61: -0.2507001761 | AK61: 61 | AL61: -1.880752793 | AM61: 0.8101346092 | AN61: -0.1662813954 | AO61: 61 | AP61: -1.880752793 | AQ61: 0.1155501074 | AR61: 0.110455362
A62: 62 | B62: -1.859738795 | C62: 0.6186765246 | D62: -0.09153266426 | E62: 62 | F62: -1.859738795 | G62: -0.172121481 | H62: -0.1564974403 | I62: 62 | J62: -1.859738795 | K62: -0.1791167373 | L62: -0.1876306113 | M62: 62 | N62: -1.859738795 | O62: -0.1820505833 | P62: -0.169752403 | Q62: 62 | R62: -1.859738795 | S62: -0.3069616393 | T62: -0.06509252233 | U62: 62 | V62: -1.859738795 | W62: -0.2966041439 | X62: 0.01816262771 | Y62: 62 | Z62: -1.859738795 | AA62: -0.3223024979 | AB62: 0.1525470386 | AC62: 62 | AD62: -1.859738795 | AE62: -0.2390854596 | AF62: -0.04334709349 | AG62: 62 | AH62: -1.859738795 | AI62: 0.02989382186 | AJ62: -0.2512508732 | AK62: 62 | AL62: -1.859738795 | AM62: 0.818945022 | AN62: -0.1672361489 | AO62: 62 | AP62: -1.859738795 | AQ62: 0.1219537634 | AR62: 0.1097614203
A63: 63 | B63: -1.838724797 | C63: 0.6256894155 | D63: -0.09223632615 | E63: 63 | F63: -1.838724797 | G63: -0.1660669667 | H63: -0.1571049403 | I63: 63 | J63: -1.838724797 | K63: -0.1736976028 | L63: -0.1881743583 | M63: 63 | N63: -1.838724797 | O63: -0.1760049713 | P63: -0.1703590098 | Q63: 63 | R63: -1.838724797 | S63: -0.3005084109 | T63: -0.06574002862 | U63: 63 | V63: -1.838724797 | W63: -0.2885473757 | X63: 0.01735422489 | Y63: 63 | Z63: -1.838724797 | AA63: -0.3109419937 | AB63: 0.1514071443 | AC63: 63 | AD63: -1.838724797 | AE63: -0.2358347045 | AF63: -0.04367326889 | AG63: 63 | AH63: -1.838724797 | AI63: 0.03500746922 | AJ63: -0.2517639681 | AK63: 63 | AL63: -1.838724797 | AM63: 0.8278106448 | AN63: -0.1681257109 | AO63: 63 | AP63: -1.838724797 | AQ63: 0.1283975477 | AR63: 0.1091148616
A64: 64 | B64: -1.8177108 | C64: 0.6327428819 | D64: -0.09288810947 | E64: 64 | F64: -1.8177108 | G64: -0.1599774218 | H64: -0.1576676514 | I64: 64 | J64: -1.8177108 | K64: -0.1682471141 | L64: -0.1886780167 | M64: 64 | N64: -1.8177108 | O64: -0.1699243803 | P64: -0.1709208935 | Q64: 64 | R64: -1.8177108 | S64: -0.2940178449 | T64: -0.0663397965 | U64: 64 | V64: -1.8177108 | W64: -0.2804439922 | X64: 0.01660542284 | Y64: 64 | Z64: -1.8177108 | AA64: -0.2995157593 | AB64: 0.1503512906 | AC64: 64 | AD64: -1.8177108 | AE64: -0.232565141 | AF64: -0.04397539649 | AG64: 64 | AH64: -1.8177108 | AI64: 0.04015070343 | AJ64: -0.2522392343 | AK64: 64 | AL64: -1.8177108 | AM64: 0.8367275628 | AN64: -0.1689496885 | AO64: 64 | AP64: -1.8177108 | AQ64: 0.1348786148 | AR64: 0.1085159715
A65: 65 | B65: =-3.14159265358979+(A65-1)*0.0210139976828748 -> -1.796696802 | C65: =0.347098823636324*COS(B65)+0.717578409393402 -> 0.6398338093 | D65: =0.121832989107382*SIN(B65)+0.0252498288314242+0*COS(B65) -> -0.09348772639 | E65: 65 | F65: =-3.14159265358979+(E65-1)*0.0210139976828748 -> -1.796696802 | G65: =0.299664552058601*COS(F65)+-0.0867354554826123 -> -0.1538555353 | H65: =0.105183381851725*SIN(F65)+-0.055674357386175+0*COS(F65) -> -0.1581853251 | I65: 65 | J65: =-3.14159265358979+(I65-1)*0.0210139976828748 -> -1.796696802 | K65: =0.268216805569019*COS(J65)+-0.102691391514969 -> -0.1627676777 | L65: =0.0941451048694578*SIN(J65)+-0.0973882217616218+0*COS(J65) -> -0.1891413641 | M65: 65 | N65: =-3.14159265358979+(M65-1)*0.0210139976828748 -> -1.796696802 | O65: =0.299223936258687*COS(N65)+-0.0967901063170089 -> -0.1638114952 | P65: =0.105028724053151*SIN(N65)+-0.0690775666880996+0*COS(N65) -> -0.171437806 | Q65: 65 | R65: =-3.14159265358979+(Q65-1)*0.0210139976828748 -> -1.796696802 | S65: =0.31939866983129*COS(R65)+-0.215952600146413 -> -0.2874928076 | T65: =0.112110131215079*SIN(R65)+0.0423701667184607+0*COS(R65) -> -0.06689156111 | U65: 65 | V65: =-3.14159265358979+(U65-1)*0.0210139976828748 -> -1.796696802 | W65: =0.398764905135784*COS(V65)+-0.18298059338715 -> -0.2722975716 | X65: =0.139967977519616*SIN(V65)+0.15232833674674+0*COS(V65) -> 0.0159165522 | Y65: 65 | Z65: =-3.14159265358979+(Y65-1)*0.0210139976828748 -> -1.796696802 | AA65: =0.562281335126711*COS(Z65)+-0.162086789732886 -> -0.2880288401 | AB65: =0.19736285781698*SIN(Z65)+0.341728365812427+0*COS(Z65) -> 0.1493799436 | AC65: 65 | AD65: =-3.14159265358979+(AC65-1)*0.0210139976828748 -> -1.796696802 | AE65: =0.16089417266906*COS(AD65)+-0.193240484481897 -> -0.2292782128 | AF65: =0.056474458140974*SIN(AD65)+0.0107862579656094+0*COS(AD65) -> -0.0442533429 | AG65: 65 | AH65: =-3.14159265358979+(AG65-1)*0.0210139976828748 -> -1.796696802 | AI65: =0.253096907093471*COS(AH65)+0.102010923502568 -> 0.04532125337 | AJ65: =0.0888379637879133*SIN(AH65)+-0.166095621152538+0*COS(AH65) -> -0.2526764619 | AK65: 65 | AL65: =-3.14159265358979+(AK65-1)*0.0210139976828748 -> -1.796696802 | AM65: =0.438798679365524*COS(AL65)+0.943975743712232 -> 0.8456918386 | AN65: =0.154019982445942*SIN(AL65)+-0.0196009503722022+0*COS(AL65) -> -0.1697077179 | AO65: 65 | AP65: =-3.14159265358979+(AO65-1)*0.0210139976828748 -> -1.796696802 | AQ65: =0.318931234452992*COS(AP65)+0.212829612221555 -> 0.1413941029 | AR65: =0.111946059643888*SIN(AP65)+0.217066839220887+0*COS(AP65) -> 0.1079650144
A66: 66 | B66: -1.775682804 | C66: 0.6469590666 | D66: -0.09403491216 | E66: 66 | F66: -1.775682804 | G66: -0.1477040105 | H66: -0.1586577328 | I66: 66 | J66: -1.775682804 | K66: -0.1572617134 | L66: -0.1895641959 | M66: 66 | N66: -1.775682804 | O66: -0.1576690154 | P66: -0.1719095192 | Q66: 66 | R66: -1.775682804 | S66: -0.2809361801 | T66: -0.06739507882 | U66: 66 | V66: -1.775682804 | W66: -0.2641117111 | X66: 0.01528791717 | Y66: 66 | Z66: -1.775682804 | AA66: -0.2764863084 | AB66: 0.1484935322 | AC66: 66 | AD66: -1.775682804 | AE66: -0.2259753714 | AF66: -0.04450698536 | AG66: 66 | AH66: -1.775682804 | AI66: 0.05051683587 | AJ66: -0.2530754579 | AK66: 66 | AL66: -1.775682804 | AM66: 0.8546995139 | AN66: -0.1703994644 | AO66: 66 | AP66: -1.775682804 | AQ66: 0.1479411348 | AR66: 0.1074622335
A67: 67 | B67: -1.754668807 | C67: 0.6541155074 | D67: -0.09452942514 | E67: 67 | F67: -1.754668807 | G67: -0.1415255637 | H67: -0.159084666 | I67: 67 | J67: -1.754668807 | K67: -0.1517316524 | L67: -0.1899463253 | M67: 67 | N67: -1.754668807 | O67: -0.1514996532 | P67: -0.1723358246 | Q67: 67 | R67: -1.754668807 | S67: -0.2743508577 | T67: -0.06785012729 | U67: 67 | V67: -1.754668807 | W67: -0.2558900255 | X67: 0.01471979533 | Y67: 67 | Z67: -1.754668807 | AA67: -0.2648932611 | AB67: 0.1476924479 | AC67: 67 | AD67: -1.754668807 | AE67: -0.2226580752 | AF67: -0.04473621189 | AG67: 67 | AH67: -1.754668807 | AI67: 0.05573515671 | AJ67: -0.253436046 | AK67: 67 | AL67: -1.754668807 | AM67: 0.863746611 | AN67: -0.1710246225 | AO67: 67 | AP67: -1.754668807 | AQ67: 0.1545168197 | AR67: 0.107007851
A68: 68 | B68: -1.733654809 | C68: 0.6612999716 | D68: -0.09497104697 | E68: 68 | F68: -1.733654809 | G68: -0.1353229231 | H68: -0.1594659362 | I68: 68 | J68: -1.733654809 | K68: -0.1461799365 | L68: -0.1902875838 | M68: 68 | N68: -1.733654809 | O68: -0.1453061327 | P68: -0.1727165341 | Q68: 68 | R68: -1.733654809 | S68: -0.2677397482 | T68: -0.06825650558 | U68: 68 | V68: -1.733654809 | W68: -0.247636145 | X68: 0.01421243755 | Y68: 68 | Z68: -1.733654809 | AA68: -0.2532548174 | AB68: 0.1469770444 | AC68: 68 | AD68: -1.733654809 | AE68: -0.2193277889 | AF68: -0.04494092125 | AG68: 68 | AH68: -1.733654809 | AI68: 0.06097391163 | AJ68: -0.253758067 | AK68: 68 | AL68: -1.733654809 | AM68: 0.872829135 | AN68: -0.1715829162 | AO68: 68 | AP68: -1.733654809 | AQ68: 0.1611182539 | AR68: 0.1066020675
A69: 69 | B69: -1.712640811 | C69: 0.6685092868 | D69: -0.09535958265 | E69: 69 | F69: -1.712640811 | G69: -0.1290988277 | H69: -0.1598013748 | I69: 69 | J69: -1.712640811 | K69: -0.1406090174 | L69: -0.1905878205 | M69: 69 | N69: -1.712640811 | O69: -0.139091189 | P69: -0.1730514796 | Q69: 69 | R69: -1.712640811 | S69: -0.261105771 | T69: -0.06861403425 | U69: 69 | V69: -1.712640811 | W69: -0.2393537145 | X69: 0.01376606786 | Y69: 69 | Z69: -1.712640811 | AA69: -0.2415761164 | AB69: 0.1463476376 | AC69: 69 | AD69: -1.712640811 | AE69: -0.2159859833 | AF69: -0.04512102306 | AG69: 69 | AH69: -1.712640811 | AI69: 0.06623078733 | AJ69: -0.2540413788 | AK69: 69 | AL69: -1.712640811 | AM69: 0.8819430754 | AN69: -0.1720740989 | AO69: 69 | AP69: -1.712640811 | AQ69: 0.1677425223 | AR69: 0.106245062
A70: 70 | B70: -1.691626813 | C70: 0.6757402695 | D70: -0.09569486061 | E70: 70 | F70: -1.691626813 | G70: -0.1228560258 | H70: -0.160090834 | I70: 70 | J70: -1.691626813 | K70: -0.1350213548 | L70: -0.1908469028 | M70: 70 | N70: -1.691626813 | O70: -0.1328575662 | P70: -0.1733405131 | Q70: 70 | R70: -1.691626813 | S70: -0.2544518555 | T70: -0.06892255542 | U70: 70 | V70: -1.691626813 | W70: -0.2310463913 | X70: 0.01338088337 | Y70: 70 | Z70: -1.691626813 | AA70: -0.2298623152 | AB70: 0.1458045054 | AC70: 70 | AD70: -1.691626813 | AE70: -0.2126341339 | AF70: -0.04527643779 | AG70: 70 | AH70: -1.691626813 | AI70: 0.07150346254 | AJ70: -0.2542858562 | AK70: 70 | AL70: -1.691626813 | AM70: 0.8910844076 | AN70: -0.1724979537 | AO70: 70 | AP70: -1.691626813 | AQ70: 0.1743867 | AR70: 0.1059369924
A71: 71 | B71: -1.670612816 | C71: 0.6829897267 | D71: -0.0959767328 | E71: 71 | F71: -1.670612816 | G71: -0.116597274 | H71: -0.1603341857 | I71: 71 | J71: -1.670612816 | K71: -0.1294194163 | L71: -0.1910647165 | M71: 71 | N71: -1.670612816 | O71: -0.1266080172 | P71: -0.173583507 | Q71: 71 | R71: -1.670612816 | S71: -0.2477809397 | T71: -0.06918193285 | U71: 71 | V71: -1.670612816 | W71: -0.2227178435 | X71: 0.01305705417 | Y71: 71 | Z71: -1.670612816 | AA71: -0.2181185863 | AB71: 0.1453478877 | AC71: 71 | AD71: -1.670612816 | AE71: -0.2092737208 | AF71: -0.04540709681 | AG71: 71 | AH71: -1.670612816 | AI71: 0.07678960898 | AJ71: -0.2544913912 | AK71: 71 | AL71: -1.670612816 | AM71: 0.9002490952 | AN71: -0.1728542936 | AO71: 71 | AP71: -1.670612816 | AQ71: 0.1810478529 | AR71: 0.1056779946
A72: 72 | B72: -1.649598818 | C72: 0.6902544574 | D72: -0.09620507475 | E72: 72 | F72: -1.649598818 | G72: -0.1103253362 | H72: -0.1605313226 | I72: 72 | J72: -1.649598818 | K72: -0.1238056755 | L72: -0.1912411652 | M72: 72 | N72: -1.649598818 | O72: -0.1203453013 | P72: -0.1737803541 | Q72: 72 | R72: -1.649598818 | S72: -0.2410959695 | T72: -0.06939205202 | U72: 72 | V72: -1.649598818 | W72: -0.2143717488 | X72: 0.01279472324 | Y72: 72 | Z72: -1.649598818 | AA72: -0.2063501152 | AB72: 0.1449779861 | AC72: 72 | AD72: -1.649598818 | AE72: -0.2059062279 | AF72: -0.04551294243 | AG72: 72 | AH72: -1.649598818 | AI72: 0.08208689245 | AJ72: -0.2546578932 | AK72: 72 | AL72: -1.649598818 | AM72: 0.9094330912 | AN72: -0.1731429611 | AO72: 72 | AP72: -1.649598818 | AQ72: 0.1877230398 | AR72: 0.1054681829
A73: 73 | B73: -1.62858482 | C73: 0.6975312535 | D73: -0.09637978564 | E73: 73 | F73: -1.62858482 | G73: -0.1040429817 | H73: -0.1606821576 | I73: 73 | J73: -1.62858482 | K73: -0.1181826111 | L73: -0.1913761711 | M73: 73 | N73: -1.62858482 | O73: -0.1140721842 | P73: -0.1739309673 | Q73: 73 | R73: -1.62858482 | S73: -0.2343998967 | T73: -0.06955282013 | U73: 73 | V73: -1.62858482 | W73: -0.2060117928 | X73: 0.01259400642 | Y73: 73 | Z73: -1.62858482 | AA73: -0.1945620988 | AB73: 0.1446949639 | AC73: 73 | AD73: -1.62858482 | AE73: -0.2025331422 | AF73: -0.04559392791 | AG73: 73 | AH73: -1.62858482 | AI73: 0.0873929738 | AJ73: -0.2547852886 | AK73: 73 | AL73: -1.62858482 | AM73: 0.9186323403 | AN73: -0.1733638287 | AO73: 73 | AP73: -1.62858482 | AQ73: 0.1944093131 | AR73: 0.1053076501
A74: 74 | B74: -1.607570823 | C74: 0.7048169019 | D74: -0.09650078831 | E74: 74 | F74: -1.607570823 | G74: -0.09775298466 | H74: -0.1607866242 | I74: 74 | J74: -1.607570823 | K74: -0.1125527063 | L74: -0.1914696746 | M74: 74 | N74: -1.607570823 | O74: -0.1077914357 | P74: -0.1740352802 | Q74: 74 | R74: -1.607570823 | S74: -0.227695678 | T74: -0.06966416621 | U74: 74 | V74: -1.607570823 | W74: -0.1976416667 | X74: 0.01245499236 | Y74: 74 | Z74: -1.607570823 | AA74: -0.1827597421 | AB74: 0.1444989461 | AC74: 74 | AD74: -1.607570823 | AE74: -0.1991559531 | AF74: -0.04565001748 | AG74: 74 | AH74: -1.607570823 | AI74: 0.09270551003 | AJ74: -0.2548735211 | AK74: 74 | AL74: -1.607570823 | AM74: 0.9278427803 | AN74: -0.173516799 | AO74: 74 | AP74: -1.607570823 | AQ74: 0.2011037202 | AR74: 0.1051964669
A75: 75 | B75: -1.586556825 | C75: 0.7121081855 | D75: -0.09656802934 | E75: 75 | F75: -1.586556825 | G75: -0.09145812262 | H75: -0.1608446761 | I75: 75 | J75: -1.586556825 | K75: -0.106918447 | L75: -0.1915216344 | M75: 75 | N75: -1.586556825 | O75: -0.1015058294 | P75: -0.1740932468 | Q75: 75 | R75: -1.586556825 | S75: -0.2209862739 | T75: -0.06972604108 | U75: 75 | V75: -1.586556825 | W75: -0.1892650668 | X75: 0.01237774242 | Y75: 75 | Z75: -1.586556825 | AA75: -0.1709482569 | AB75: 0.1443900193 | AC75: 75 | AD75: -1.586556825 | AE75: -0.1957761518 | AF75: -0.04568118638 | AG75: 75 | AH75: -1.586556825 | AI75: 0.09802215527 | AJ75: -0.2549225518 | AK75: 75 | AL75: -1.586556825 | AM75: 0.9370603442 | AN75: -0.1736018044 | AO75: 75 | AP75: -1.586556825 | AQ75: 0.2078033051 | AR75: 0.1051346826
A76: 76 | B76: -1.565542827 | C76: 0.7194018845 | D76: -0.09658147903 | E76: 76 | F76: -1.565542827 | G76: -0.08516117517 | H76: -0.1608562877 | I76: 76 | J76: -1.565542827 | K76: -0.1012823212 | L76: -0.1915320275 | M76: 76 | N76: -1.565542827 | O76: -0.09521814077 | P76: -0.1741048414 | Q76: 76 | R76: -1.565542827 | S76: -0.2142746471 | T76: -0.06973841742 | U76: 76 | V76: -1.565542827 | W76: -0.1808856918 | X76: 0.01236229073 | Y76: 76 | Z76: -1.565542827 | AA76: -0.1591328587 | AB76: 0.1443682315 | AC76: 76 | AD76: -1.565542827 | AE76: -0.1923952309 | AF76: -0.04568742085 | AG76: 76 | AH76: -1.565542827 | AI76: 0.1033405618 | AJ76: -0.254932359 | AK76: 76 | AL76: -1.565542827 | AM76: 0.9462809617 | AN76: -0.1736188074 | AO76: 76 | AP76: -1.565542827 | AQ76: 0.2145051096 | AR76: 0.1051223244
A77: 77 | B77: -1.54452883 | C77: 0.7266947783 | D77: -0.09654113144 | E77: 77 | F77: -1.54452883 | G77: -0.07886492289 | H77: -0.160821454 | I77: 77 | J77: -1.54452883 | K77: -0.09564681752 | L77: -0.1915008493 | M77: 77 | N77: -1.54452883 | O77: -0.08893114627 | P77: -0.1740700589 | Q77: 77 | R77: -1.54452883 | S77: -0.2075637613 | T77: -0.06970128977 | U77: 77 | V77: -1.54452883 | W77: -0.1725072419 | X77: 0.0124086441 | Y77: 77 | Z77: -1.54452883 | AA77: -0.1473187648 | AB77: 0.1444335924 | AC77: 77 | AD77: -1.54452883 | AE77: -0.1890146833 | AF77: -0.04566871813 | AG77: 77 | AH77: -1.54452883 | AI77: 0.1086583813 | AJ77: -0.2549029384 | AK77: 77 | AL77: -1.54452883 | AM77: 0.9555005613 | AN77: -0.1735678004 | AO77: 77 | AP77: -1.54452883 | AQ77: 0.2212061741 | AR77: 0.1051593977
A78: 78 | B78: -1.523514832 | C78: 0.7339836466 | D78: -0.0964470044 | E78: 78 | F78: -1.523514832 | G78: -0.07257214601 | H78: -0.1607401903 | I78: 78 | J78: -1.523514832 | K78: -0.09001442456 | L78: -0.1914281137 | M78: 78 | N78: -1.523514832 | O78: -0.08264762206 | P78: -0.1739889147 | Q78: 78 | R78: -1.523514832 | S78: -0.2008565797 | T78: -0.06961467451 | U78: 78 | V78: -1.523514832 | W78: -0.1641334167 | X78: 0.01251678207 | Y78: 78 | Z78: -1.523514832 | AA78: -0.1355111921 | AB78: 0.1445860732 | AC78: 78 | AD78: -1.523514832 | AE78: -0.1856360016 | AF78: -0.04562508649 | AG78: 78 | AH78: -1.523514832 | AI78: 0.1139732654 | AJ78: -0.254834303 | AK78: 78 | AL78: -1.523514832 | AM78: 0.9647150719 | AN78: -0.173448806 | AO78: 78 | AP78: -1.523514832 | AQ78: 0.2279035399 | AR78: 0.1052458862
A79: 79 | B79: -1.502500834 | C79: 0.7412652708 | D79: -0.09629913946 | E79: 79 | F79: -1.502500834 | G79: -0.06628562325 | H79: -0.1606125325 | I79: 79 | J79: -1.502500834 | K79: -0.0843876294 | L79: -0.1913138527 | M79: 79 | N79: -1.502500834 | O79: -0.07637034277 | P79: -0.1738614445 | Q79: 79 | R79: -1.502500834 | S79: -0.1941560641 | T79: -0.0694786099 | U79: 79 | V79: -1.502500834 | W79: -0.1557679139 | X79: 0.01268665689 | Y79: 79 | Z79: -1.502500834 | AA79: -0.1237153544 | AB79: 0.1448256064 | AC79: 79 | AD79: -1.502500834 | AE79: -0.1822606778 | AF79: -0.04555654518 | AG79: 79 | AH79: -1.502500834 | AI79: 0.1192828673 | AJ79: -0.2547264831 | AK79: 79 | AL79: -1.502500834 | AM79: 0.9739204246 | AN79: -0.1732618767 | AO79: 79 | AP79: -1.502500834 | AQ79: 0.2345942494 | AR79: 0.1053817517
A80: 80 | B80: -1.481486837 | C80: 0.7485364355 | D80: -0.09609760191 | E80: 80 | F80: -1.481486837 | G80: -0.06000813056 | H80: -0.1604385369 | I80: 80 | J80: -1.481486837 | K80: -0.07876891666 | L80: -0.1911581167 | M80: 80 | N80: -1.481486837 | O80: -0.07010208028 | P80: -0.1736877048 | Q80: 80 | R80: -1.481486837 | S80: -0.1874651732 | T80: -0.06929315603 | U80: 80 | V80: -1.481486837 | W80: -0.1474144274 | X80: 0.01291819354 | Y80: 80 | Z80: -1.481486837 | AA80: -0.1119364605 | AB80: 0.1451520863 | AC80: 80 | AD80: -1.481486837 | AE80: -0.1788902025 | AF80: -0.04546312447 | AG80: 80 | AH80: -1.481486837 | AI80: 0.1245848423 | AJ80: -0.2545795264 | AK80: 80 | AL80: -1.481486837 | AM80: 0.9831125545 | AN80: -0.173007095 | AO80: 80 | AP80: -1.481486837 | AQ80: 0.2412753482 | AR80: 0.1055669342
A81: 81 | B81: -1.460472839 | C81: 0.7557939301 | D81: -0.09584248076 | E81: 81 | F81: -1.460472839 | G81: -0.0537424399 | H81: -0.1602182804 | I81: 81 | J81: -1.460472839 | K81: -0.07316076741 | L81: -0.1909609747 | M81: 81 | N81: -1.460472839 | O81: -0.06384560246 | P81: -0.1734677722 | Q81: 81 | R81: -1.460472839 | S81: -0.1807868616 | T81: -0.06905839477 | U81: 81 | V81: -1.460472839 | W81: -0.139076646 | X81: 0.01321128979 | Y81: 81 | Z81: -1.460472839 | AA81: -0.1001797116 | AB81: 0.1455653688 | AC81: 81 | AD81: -1.460472839 | AE81: -0.1755260638 | AF81: -0.04534486563 | AG81: 81 | AH81: -1.460472839 | AI81: 0.1298768494 | AJ81: -0.2543934976 | AK81: 81 | AL81: -1.460472839 | AM81: 0.9922874027 | AN81: -0.1726845736 | AO81: 81 | AP81: -1.460472839 | AQ81: 0.2479438862 | AR81: 0.1058013518
A82: 82 | B82: -1.439458841 | C82: 0.7630345498 | D82: -0.09553388865 | E82: 82 | F82: -1.439458841 | G82: -0.04749131804 | H82: -0.1599518603 | I82: 82 | J82: -1.439458841 | K82: -0.06756565805 | L82: -0.1907225135 | M82: 82 | N82: -1.439458841 | O82: -0.05760367202 | P82: -0.1732017438 | Q82: 82 | R82: -1.439458841 | S82: -0.1741240782 | T82: -0.06877442979 | U82: 82 | V82: -1.439458841 | W82: -0.1307582513 | X82: 0.0135658162 | Y82: 82 | Z82: -1.439458841 | AA82: -0.08845029904 | AB82: 0.1460652713 | AC82: 82 | AD82: -1.439458841 | AE82: -0.1721697473 | AF82: -0.04520182086 | AG82: 82 | AH82: -1.439458841 | AI82: 0.1351565516 | AJ82: -0.2541684789 | AK82: 82 | AL82: -1.439458841 | AM82: 1.001440918 | AN82: -0.1722944547 | AO82: 82 | AP82: -1.439458841 | AQ82: 0.2545969187 | AR82: 0.1060849012
A83: 83 | B83: -1.418444844 | C83: 0.7702550973 | D83: -0.09517196186 | E83: 83 | F83: -1.418444844 | G83: -0.04125752527 | H83: -0.1596393942 | I83: 83 | J83: -1.418444844 | K83: -0.06198605923 | L83: -0.1904428385 | M83: 83 | N83: -1.418444844 | O83: -0.05137904519 | P83: -0.1728897371 | Q83: 83 | R83: -1.418444844 | S83: -0.1674797651 | T83: -0.06844138649 | U83: 83 | V83: -1.418444844 | W83: -0.1224629165 | X83: 0.01398161625 | Y83: 83 | Z83: -1.418444844 | AA83: -0.07675340231 | AB83: 0.1466515732 | AC83: 83 | AD83: -1.418444844 | AE83: -0.168822735 | AF83: -0.04503405333 | AG83: 83 | AH83: -1.418444844 | AI83: 0.1404216177 | AJ83: -0.2539045698 | AK83: 83 | AL83: -1.418444844 | AM83: 1.010569058 | AN83: -0.1718369106 | AO83: 83 | AP83: -1.418444844 | AQ83: 0.261231508 | AR83: 0.1064174571
A84: 84 | B84: -1.397430846 | C84: 0.7774523842 | D84: -0.09475686019 | E84: 84 | F84: -1.397430846 | G84: -0.03504381429 | H84: -0.15928102 | I84: 84 | J84: -1.397430846 | K84: -0.05642443474 | L84: -0.1901220733 | M84: 84 | N84: -1.397430846 | O84: -0.04517447062 | P84: -0.1725318898 | Q84: 84 | R84: -1.397430846 | S84: -0.1608568562 | T84: -0.06805941193 | U84: 84 | V84: -1.397430846 | W84: -0.1141943047 | X84: 0.0144585063 | Y84: 84 | Z84: -1.397430846 | AA84: -0.06509418641 | AB84: 0.1473240154 | AC84: 84 | AD84: -1.397430846 | AE84: -0.1654865049 | AF84: -0.04484163712 | AG84: 84 | AH84: -1.397430846 | AI84: 0.1456697227 | AJ84: -0.2536018867 | AK84: 84 | AL84: -1.397430846 | AM84: 1.019667792 | AN84: -0.1713121435 | AO84: 84 | AP84: -1.397430846 | AQ84: 0.2678447244 | AR84: 0.1067988727
A85: 85 | B85: -1.376416848 | C85: 0.7846232325 | D85: -0.09428876694 | E85: 85 | F85: -1.376416848 | G85: -0.02885292887 | H85: -0.158876896 | I85: 85 | J85: -1.376416848 | K85: -0.05088324044 | L85: -0.1897603594 | M85: 85 | N85: -1.376416848 | O85: -0.03899268806 | P85: -0.1721283601 | Q85: 85 | R85: -1.376416848 | S85: -0.154258276 | T85: -0.06762867477 | U85: 85 | V85: -1.376416848 | W85: -0.1059560669 | X85: 0.0149962758 | Y85: 85 | Z85: -1.376416848 | AA85: -0.05347779971 | AB85: 0.1480823012 | AC85: 85 | AD85: -1.376416848 | AE85: -0.1621625303 | AF85: -0.04462465719 | AG85: 85 | AH85: -1.376416848 | AI85: 0.1508985492 | AJ85: -0.2532605633 | AK85: 85 | AL85: -1.376416848 | AM85: 1.028733103 | AN85: -0.1707203849 | AO85: 85 | AP85: -1.376416848 | AQ85: 0.2744336476 | AR85: 0.1072289795
A86: 86 | B86: -1.355402851 | C86: 0.7917644757 | D86: -0.09376788882 | E86: 86 | F86: -1.355402851 | G86: -0.02268760275 | H86: -0.1584272007 | I86: 86 | J86: -1.355402851 | K86: -0.04536492315 | L86: -0.1893578565 | M86: 86 | N86: -1.355402851 | O86: -0.0328364272 | P86: -0.171679326 | Q86: 86 | R86: -1.355402851 | S86: -0.1476869383 | T86: -0.06714936523 | U86: 86 | V86: -1.355402851 | W86: -0.09775184096 | X86: 0.01559468726 | Y86: 86 | Z86: -1.355402851 | AA86: -0.04190937169 | AB86: 0.1489260956 | AC86: 86 | AD86: -1.355402851 | AE86: -0.1588522787 | AF86: -0.04438320937 | AG86: 86 | AH86: -1.355402851 | AI86: 0.1561057883 | AJ86: -0.2528807503 | AK86: 86 | AL86: -1.355402851 | AM86: 1.037760988 | AN86: -0.1700618963 | AO86: 86 | AP86: -1.355402851 | AQ86: 0.2809953682 | AR86: 0.1077075875
A87: 87 | B87: -1.334388853 | C87: 0.7988729605 | D87: -0.09319445582 | E87: 87 | F87: -1.334388853 | G87: -0.01655055836 | H87: -0.1579321327 | I87: 87 | J87: -1.334388853 | K87: -0.03987191962 | L87: -0.1889147425 | M87: 87 | N87: -1.334388853 | O87: -0.0267084065 | P87: -0.1711849859 | Q87: 87 | R87: -1.334388853 | S87: -0.1411457448 | T87: -0.06662169494 | U87: 87 | V87: -1.334388853 | W87: -0.08958524965 | X87: 0.01625347646 | Y87: 87 | Z87: -1.334388853 | AA87: -0.03039401062 | AB87: 0.1498550261 | AC87: 87 | AD87: -1.334388853 | AE87: -0.155557212 | AF87: -0.04411740027 | AG87: 87 | AH87: -1.334388853 | AI87: 0.1612891406 | AJ87: -0.2524626154 | AK87: 87 | AL87: -1.334388853 | AM87: 1.046747459 | AN87: -0.1693369683 | AO87: 87 | AP87: -1.334388853 | AQ87: 0.2875269888 | AR87: 0.1082344856
A88: 88 | B88: -1.313374855 | C88: 0.8059455478 | D88: -0.09256872116 | E88: 88 | F88: -1.313374855 | G88: -0.01044450564 | H88: -0.1573919104 | I88: 88 | J88: -1.313374855 | K88: -0.0344066554 | L88: -0.1884312129 | M88: 88 | N88: -1.313374855 | O88: -0.0206113319 | P88: -0.170645558 | Q88: 88 | R88: -1.313374855 | S88: -0.134637584 | T88: -0.06604589691 | U88: 88 | V88: -1.313374855 | W88: -0.08145989911 | X88: 0.01697235248 | Y88: 88 | Z88: -1.313374855 | AA88: -0.01893680139 | AB88: 0.1508686824 | AC88: 88 | AD88: -1.313374855 | AE88: -0.1522787852 | AF88: -0.04382734725 | AG88: 88 | AH88: -1.313374855 | AI88: 0.1664463174 | AJ88: -0.2520063433 | AK88: 88 | AL88: -1.313374855 | AM88: 1.05568855 | AN88: -0.1685459211 | AO88: 88 | AP88: -1.313374855 | AQ88: 0.294025625 | AR88: 0.1088094409
A89: 89 | B89: -1.292360857 | C89: 0.8129791147 | D89: -0.09189096114 | E89: 89 | F89: -1.292360857 | G89: -0.004372140859 | H89: -0.1568067726 | I89: 89 | J89: -1.292360857 | K89: -0.0289715438 | L89: -0.1879074813 | M89: 89 | N89: -1.292360857 | O89: -0.0145478957 | P89: -0.1700612805 | Q89: 89 | R89: -1.292360857 | S89: -0.1281653295 | T89: -0.0654222254 | U89: 89 | V89: -1.292360857 | W89: -0.07337937724 | X89: 0.0177509979 | Y89: 89 | Z89: -1.292360857 | AA89: -0.007542803153 | AB89: 0.151966617 | AC89: 89 | AD89: -1.292360857 | AE89: -0.149018446 | AF89: -0.04351317841 | AG89: 89 | AH89: -1.292360857 | AI89: 0.1715750413 | AJ89: -0.2515121355 | AK89: 89 | AL89: -1.292360857 | AM89: 1.064580311 | AN89: -0.1676891041 | AO89: 89 | AP89: -1.292360857 | AQ89: 0.3004884075 | AR89: 0.1094321997
A90: 90 | B90: -1.27134686 | C90: 0.8199705553 | D90: -0.09116147505 | E90: 90 | F90: -1.27134686 | G90: 0.001663854601 | H90: -0.1561769776 | I90: 90 | J90: -1.27134686 | K90: -0.0235689848 | L90: -0.1873437789 | M90: 90 | N90: -1.27134686 | O90: -0.008520775347 | P90: -0.1694324115 | Q90: 90 | R90: -1.27134686 | S90: -0.1217318394 | T90: -0.0647509558 | U90: 90 | V90: -1.27134686 | W90: -0.06534725218 | X90: 0.01858906888 | Y90: 90 | Z90: -1.27134686 | AA90: 0.003782952806 | AB90: 0.153148345 | AC90: 90 | AD90: -1.27134686 | AE90: -0.1457776339 | AF90: -0.04317503246 | AG90: 90 | AH90: -1.27134686 | AI90: 0.1766730476 | AJ90: -0.2509802101 | AK90: 90 | AL90: -1.27134686 | AM90: 1.073418817 | AN90: -0.1667668954 | AO90: 90 | AP90: -1.27134686 | AQ90: 0.3069124822 | AR90: 0.1101024869
A91: 91 | B91: -1.250332862 | C91: 0.8269167824 | D91: -0.09038058501 | E91: 91 | F91: -1.250332862 | G91: 0.007660815415 | H91: -0.1555028034 | I91: 91 | J91: -1.250332862 | K91: -0.01820136404 | L91: -0.1867403547 | M91: 91 | N91: -1.250332862 | O91: -0.002532632245 | P91: -0.1687592286 | Q91: 91 | R91: -1.250332862 | S91: -0.1153399546 | T91: -0.06403238454 | U91: 91 | V91: -1.250332862 | W91: -0.0573670707 | X91: 0.01948619536 | Y91: 91 | Z91: -1.250332862 | AA91: 0.01503546536 | AB91: 0.1544133447 | AC91: 91 | AD91: -1.250332862 | AE91: -0.1425577801 | AF91: -0.04281305872 | AG91: 91 | AH91: -1.250332862 | AI91: 0.1817380852 | AJ91: -0.2504108021 | AK91: 91 | AL91: -1.250332862 | AM91: 1.082200164 | AN91: -0.1657797025 | AO91: 91 | AP91: -1.250332862 | AQ91: 0.3132950126 | AR91: 0.1108200066
A92: 92 | B92: -1.229318864 | C92: 0.8338147288 | D92: -0.08954863583 | E92: 92 | F92: -1.229318864 | G92: 0.01361609349 | H92: -0.1547845478 | I92: 92 | J92: -1.229318864 | K92: -0.01287105169 | L92: -0.1860974751 | M92: 92 | N92: -1.229318864 | O92: 0.00341388941 | P92: -0.1680420291 | Q92: 92 | R92: -1.229318864 | S92: -0.1089924975 | T92: -0.0632668289 | U92: 92 | V92: -1.229318864 | W92: -0.04944235661 | X92: 0.02044198118 | Y92: 92 | Z92: -1.229318864 | AA92: 0.02620976571 | AB92: 0.1557610574 | AC92: 92 | AD92: -1.229318864 | AE92: -0.1393603063 | AF92: -0.04242741704 | AG92: 92 | AH92: -1.229318864 | AI92: 0.1867679176 | AJ92: -0.2498041628 | AK92: 92 | AL92: -1.229318864 | AM92: 1.090920475 | AN92: -0.1647279611 | AO92: 92 | AP92: -1.229318864 | AQ92: 0.3196331803 | AR92: 0.1115844418
A93: 93 | B93: -1.208304867 | C93: 0.8406613485 | D93: -0.08866599488 | E93: 93 | F93: -1.208304867 | G93: 0.01952705915 | H93: -0.1540225279 | I93: 93 | J93: -1.208304867 | K93: -0.007580401473 | L93: -0.185415424 | M93: 93 | N93: -1.208304867 | O93: 0.0093161638 | P93: -0.1672811296 | Q93: 93 | R93: -1.208304867 | S93: -0.1026922709 | T93: -0.06245462694 | U93: 93 | V93: -1.208304867 | W93: -0.04157660924 | X93: 0.02145600431 | Y93: 93 | Z93: -1.208304867 | AA93: 0.0373009196 | AB93: 0.1571908881 | AC93: 93 | AD93: -1.208304867 | AE93: -0.1361866246 | AF93: -0.04201827769 | AG93: 93 | AH93: -1.208304867 | AI93: 0.1917603237 | AJ93: -0.2491605603 | AK93: 93 | AL93: -1.208304867 | AM93: 1.0995759 | AN93: -0.1636121357 | AO93: 93 | AP93: -1.208304867 | AQ93: 0.3259241866 | AR93: 0.1123954551
A94: 94 | B94: -1.187290869 | C94: 0.8474536183 | D94: -0.08773305191 | E94: 94 | F94: -1.187290869 | G94: 0.02539110227 | H94: -0.1532170802 | I94: 94 | J94: -1.187290869 | K94: -0.002331749594 | L94: -0.1846945025 | M94: 94 | N94: -1.187290869 | O94: 0.01517158465 | P94: -0.1664768663 | Q94: 94 | R94: -1.187290869 | S94: -0.09644205693 | T94: -0.0615961373 | U94: 94 | V94: -1.187290869 | W94: -0.0337733019 | X94: 0.02252781698 | Y94: 94 | Z94: -1.187290869 | AA94: 0.04830402949 | AB94: 0.1587022052 | AC94: 94 | AD94: -1.187290869 | AE94: -0.1330381362 | AF94: -0.04158582135 | AG94: 94 | AH94: -1.187290869 | AI94: 0.1967130989 | AJ94: -0.2484802786 | AK94: 94 | AL94: -1.187290869 | AM94: 1.108162616 | AN94: -0.162432719 | AO94: 94 | AP94: -1.187290869 | AQ94: 0.3321652535 | AR94: 0.1132526884
A95: 95 | B95: -1.166276871 | C95: 0.8541885388 | D95: -0.08675021888 | E95: 95 | F95: -1.166276871 | G95: 0.03120563347 | H95: -0.1523685604 | I95: 95 | J95: -1.166276871 | K95: 0.002872586293 | L95: -0.1839350291 | M95: 95 | N95: -1.166276871 | O95: 0.02097756637 | P95: -0.1656295941 | Q95: 95 | R95: -1.166276871 | S95: -0.09024461543 | T95: -0.06069173906 | U95: 95 | V95: -1.166276871 | W95: -0.0260358803 | X95: 0.0236569459 | Y95: 95 | Z95: -1.166276871 | AA95: 0.05921423671 | AB95: 0.1602943416 | AC95: 95 | AD95: -1.166276871 | AE95: -0.1299162314 | AF95: -0.04113023897 | AG95: 95 | AH95: -1.166276871 | AI95: 0.2016240563 | AJ95: -0.2477636181 | AK95: 95 | AL95: -1.166276871 | AM95: 1.116676831 | AN95: -0.1611902318 | AO95: 95 | AP95: -1.166276871 | AQ95: 0.3383536251 | AR95: 0.1141557631
A96: 96 | B96: -1.145262874 | C96: 0.8608631361 | D96: -0.08571792978 | E96: 96 | F96: -1.145262874 | G96: 0.03696808519 | H96: -0.1514773432 | I96: 96 | J96: -1.145262874 | K96: 0.008030308099 | L96: -0.183137339 | M96: 96 | N96: -1.145262874 | O96: 0.0267315452 | P96: -0.1647396873 | Q96: 96 | R96: -1.145262874 | S96: -0.08410268305 | T96: -0.0597418316 | U96: 96 | V96: -1.145262874 | W96: -0.01836776106 | X96: 0.02484289248 | Y96: 96 | Z96: -1.145262874 | AA96: 0.07002672364 | AB96: 0.1619665942 | AC96: 96 | AD96: -1.145262874 | AE96: -0.1268222889 | AF96: -0.04065173173 | AG96: 96 | AH96: -1.145262874 | AI96: 0.2064910274 | AJ96: -0.2470108954 | AK96: 96 | AL96: -1.145262874 | AM96: 1.125114787 | AN96: -0.1598852228 | AO96: 96 | AP96: -1.145262874 | AQ96: 0.3444865689 | AR96: 0.1151042804
A97: 97 | B97: -1.124248876 | C97: 0.8674744629 | D97: -0.08463664044 | E97: 97 | F97: -1.124248876 | G97: 0.04267591292 | H97: -0.1505438221 | I97: 97 | J97: -1.124248876 | K97: 0.01313913832 | L97: -0.1823017846 | M97: 97 | N97: -1.124248876 | O97: 0.03243098034 | P97: -0.1638075388 | Q97: 97 | R97: -1.124248876 | S97: -0.07801897188 | T97: -0.05874683434 | U97: 97 | V97: -1.124248876 | W97: -0.01077233021 | X97: 0.02608513305 | Y97: 97 | Z97: -1.124248876 | AA97: 0.08073671577 | AB97: 0.1637182245 | AC97: 97 | AD97: -1.124248876 | AE97: -0.1237576748 | AF97: -0.04015051092 | AG97: 97 | AH97: -1.124248876 | AI97: 0.211311863 | AJ97: -0.2462224427 | AK97: 97 | AL97: -1.124248876 | AM97: 1.133472757 | AN97: -0.1585182682 | AO97: 97 | AP97: -1.124248876 | AQ97: 0.3505613766 | AR97: 0.1160978214
A98: 98 | B98: -1.103234878 | C98: 0.8740195999 | D98: -0.08350682833 | E98: 98 | F98: -1.103234878 | G98: 0.04832659623 | H98: -0.1495684093 | I98: 98 | J98: -1.103234878 | K98: 0.01819682104 | L98: -0.1814287347 | M98: 98 | N98: -1.103234878 | O98: 0.03807335509 | P98: -0.1628335602 | Q98: 98 | R98: -1.103234878 | S98: -0.07199616831 | T98: -0.05770718667 | U98: 98 | V98: -1.103234878 | W98: -0.00325294169 | X98: 0.02738311906 | Y98: 98 | Z98: -1.103234878 | AA98: 0.09133948388 | AB98: 0.165548459 | AC98: 98 | AD98: -1.103234878 | AE98: -0.1207237423 | AF98: -0.03962679787 | AG98: 98 | AH98: -1.103234878 | AI98: 0.2160844344 | AJ98: -0.2453986083 | AK98: 98 | AL98: -1.103234878 | AM98: 1.14174705 | AN98: -0.1570899716 | AO98: 98 | AP98: -1.103234878 | AQ98: 0.3565753659 | AR98: 0.1171359476
A99: 99 | B99: -1.082220881 | C99: 0.8804956568 | D99: -0.08232899234 | E99: 99 | F99: -1.082220881 | G99: 0.05391763994 | H99: -0.1485515355 | I99: 99 | J99: -1.082220881 | K99: 0.02320112293 | L99: -0.1805185748 | M99: 99 | N99: -1.082220881 | O99: 0.04365617794 | P99: -0.1618181816 | Q99: 99 | R99: -1.082220881 | S99: -0.06603693185 | T99: -0.05662334765 | U99: 99 | V99: -1.082220881 | W99: 0.004187084162 | X99: 0.02873627737 | Y99: 99 | Z99: -1.082220881 | AA99: 0.1018303461 | AB99: 0.1674564897 | AC99: 99 | AD99: -1.082220881 | AE99: -0.1177218312 | AF99: -0.03908082383 | AG99: 99 | AH99: -1.082220881 | AI99: 0.2208066342 | AJ99: -0.2445397559 | AK99: 99 | AL99: -1.082220881 | AM99: 1.149934013 | AN99: -0.1556009638 | AO99: 99 | AP99: -1.082220881 | AQ99: 0.3625258811 | AR99: 0.1182182004
A100: 100 | B100: -1.061206883 | C100: 0.886899774 | D100: -0.08110365258 | E100: 100 | F100: -1.061206883 | G100: 0.0594465752 | H100: -0.1474936497 | I100: 100 | J100: -1.061206883 | K100: 0.02814983422 | L100: -0.179571707 | M100: 100 | N100: -1.061206883 | O100: 0.04917698365 | P100: -0.1607618513 | Q100: 100 | R100: -1.061206883 | S100: -0.06014389394 | T100: -0.05549579589 | U100: 100 | V100: -1.061206883 | W100: 0.01154446204 | X100: 0.03014401045 | Y100: 100 | Z100: -1.061206883 | AA100: 0.1122046699 | AB100: 0.1694414739 | AC100: 100 | AD100: -1.061206883 | AE100: -0.1147532669 | AF100: -0.03851282989 | AG100: 100 | AH100: -1.061206883 | AI100: 0.2254763771 | AJ100: -0.2436462649 | AK100: 100 | AL100: -1.061206883 | AM100: 1.158030031 | AN100: -0.1540519021 | AO100: 100 | AP100: -1.061206883 | AQ100: 0.3684102946 | AR100: 0.1193441021
A101: 101 | B101: -1.040192885 | C101: 0.8932291237 | D101: -0.07983135011 | E101: 101 | F101: -1.040192885 | G101: 0.06491096059 | H101: -0.1463952192 | I101: 101 | J101: -1.040192885 | K101: 0.03304076972 | L101: -0.1785885492 | M101: 101 | N101: -1.040192885 | O101: 0.05463333441 | P101: -0.1596650359 | Q101: 101 | R101: -1.040192885 | S101: -0.05431965676 | T101: -0.05432502927 | U101: 101 | V101: -1.040192885 | W101: 0.01881594312 | X101: 0.03160569668 | Y101: 101 | Z101: -1.040192885 | AA101: 0.1224578743 | AB101: 0.1715025351 | AC101: 101 | AD101: -1.040192885 | AE101: -0.1118193605 | AF101: -0.03792306686 | AG101: 101 | AH101: -1.040192885 | AI101: 0.2300916011 | AJ101: -0.2427185296 | AK101: 101 | AL101: -1.040192885 | AM101: 1.166031528 | AN101: -0.1524434707 | AO101: 101 | AP101: -1.040192885 | AQ101: 0.3742260081 | AR101: 0.1205131553
A102: 102 | B102: -1.019178888 | C102: 0.899480911 | D102: -0.07851264675 | E102: 102 | F102: -1.019178888 | G102: 0.0703083832 | H102: -0.1452567289 | I102: 102 | J102: -1.019178888 | K102: 0.03787176971 | L102: -0.1775695357 | M102: 102 | N102: -1.019178888 | O102: 0.06002282084 | P102: -0.1585282195 | Q102: 102 | R102: -1.019178888 | S102: -0.04856679213 | T102: -0.05311156477 | U102: 102 | V102: -1.019178888 | W102: 0.02599831654 | X102: 0.03312069064 | Y102: 102 | Z102: -1.019178888 | AA102: 0.1325854319 | AB102: 0.1736387633 | AC102: 102 | AD102: -1.019178888 | AE102: -0.1089214073 | AF102: -0.03731179517 | AG102: 102 | AH102: -1.019178888 | AI102: 0.2346502683 | AJ102: -0.2417569598 | AK102: 102 | AL102: -1.019178888 | AM102: 1.173934972 | AN102: -0.1507763798 | AO102: 102 | AP102: -1.019178888 | AQ102: 0.3799704535 | AR102: 0.1217248439
A103: 103 | B103: -0.9981648899 | C103: 0.9056523753 | D103: -0.0771481248 | E103: 103 | F103: -0.9981648899 | G103: 0.07563645966 | H103: -0.1440786815 | I103: 103 | J103: -0.9981648899 | K103: 0.04264070097 | L103: -0.1765151163 | M103: 103 | N103: -0.9981648899 | O103: 0.0653430631 | P103: -0.1573519043 | Q103: 103 | R103: -0.9981648899 | S103: -0.04288784037 | T103: -0.05185593823 | U103: 103 | V103: -0.9981648899 | W103: 0.03308841075 | X103: 0.03468832334 | Y103: 103 | Z103: -0.9981648899 | AA103: 0.1425828704 | AB103: 0.1758492151 | AC103: 103 | AD103: -0.9981648899 | AE103: -0.106060687 | AF103: -0.03667928473 | AG103: 103 | AH103: -0.9981648899 | AI103: 0.2391503657 | AJ103: -0.2407619801 | AK103: 103 | AL103: -0.9981648899 | AM103: 1.181736872 | AN103: -0.1490513655 | AO103: 103 | AP103: -0.9981648899 | AQ103: 0.3856410942 | AR103: 0.1229786328
A104: 104 | B104: -0.9771508923 | C104: 0.9117407914 | D104: -0.0757383868 | E104: 104 | F104: -0.9771508923 | G104: 0.08089283726 | H104: -0.1428615973 | I104: 104 | J104: -0.9771508923 | K104: 0.04734545767 | L104: -0.1754257568 | M104: 104 | N104: -0.9771508923 | O104: 0.07059171191 | P104: -0.1561366096 | Q104: 104 | R104: -0.9771508923 | S104: -0.03728530914 | T104: -0.05055870409 | U104: 104 | V104: -0.9771508923 | W104: 0.04008309498 | X104: 0.03630790255 | Y104: 104 | Z104: -0.9771508923 | AA104: 0.1524457754 | AB104: 0.1781329145 | AC104: 104 | AD104: -0.9771508923 | AE104: -0.1032384629 | AF104: -0.03602581484 | AG104: 104 | AH104: -0.9771508923 | AI104: 0.2435899062 | AJ104: -0.2397340298 | AK104: 104 | AL104: -0.9771508923 | AM104: 1.189433783 | AN104: -0.1472691896 | AO104: 104 | AP104: -0.9771508923 | AQ104: 0.3912354262 | AR104: 0.1242739685
A105: 105 | B105: -0.9561368946 | C105: 0.9177434708 | D105: -0.07428405524 | E105: 105 | F105: -0.9561368946 | G105: 0.08607519492 | H105: -0.1416060136 | I105: 105 | J105: -0.9561368946 | K105: 0.05198396232 | L105: -0.174301938 | M105: 105 | N105: -0.9561368946 | O105: 0.07576644963 | P105: -0.1548828721 | Q105: 105 | R105: -0.9561368946 | S105: -0.03176167235 | T105: -0.04922043519 | U105: 105 | V105: -0.9561368946 | W105: 0.04697928055 | X105: 0.03797871313 | Y105: 105 | Z105: -0.9561368946 | AA105: 0.1621697917 | AB105: 0.180488853 | AC105: 105 | AD105: -0.9561368946 | AE105: -0.1004559812 | AF105: -0.03535167406 | AG105: 105 | AH105: -0.9561368946 | AI105: 0.2479669294 | AJ105: -0.2386735629 | AK105: 105 | AL105: -0.9561368946 | AM105: 1.197022307 | AN105: -0.145430639 | AO105: 105 | AP105: -0.9561368946 | AQ105: 0.3967509792 | AR105: 0.1256102789
A106: 106 | B106: -0.9351228969 | C106: 0.923657763 | D106: -0.07278577233 | E106: 106 | F106: -0.9351228969 | G106: 0.09118124427 | H106: -0.1403124849 | I106: 106 | J106: -0.9351228969 | K106: 0.05655416668 | L106: -0.1731441563 | M106: 106 | N106: -0.9351228969 | O106: 0.08086499123 | P106: -0.1535912454 | Q106: 106 | R106: -0.9351228969 | S106: -0.02631936908 | T106: -0.04784172245 | U106: 106 | V106: -0.9351228969 | W106: 0.05377392233 | X106: 0.03970001728 | Y106: 106 | Z106: -0.9351228969 | AA106: 0.1717506254 | AB106: 0.1829159903 | AC106: 106 | AD106: -0.9351228969 | AE106: -0.09771447043 | AF106: -0.03465716007 | AG106: 106 | AH106: -0.9351228969 | AI106: 0.2522795025 | AJ106: -0.2375810476 | AK106: 106 | AL106: -0.9351228969 | AM106: 1.204499093 | AN106: -0.1435365255 | AO106: 106 | AP106: -0.9351228969 | AQ106: 0.4021853178 | AR106: 0.1269869739
A107: 107 | B107: -0.9141088992 | C107: 0.9294810564 | D107: -0.07124419965 | E107: 107 | F107: -0.9141088992 | G107: 0.09620873061 | H107: -0.1389815825 | I107: 107 | J107: -0.9141088992 | K107: 0.0610540527 | L107: -0.171952923 | M107: 107 | N107: -0.9141088992 | O107: 0.08588508533 | P107: -0.1522622999 | Q107: 107 | R107: -0.9141088992 | S107: -0.02096080252 | T107: -0.04642317467 | U107: 107 | V107: -0.9141088992 | W107: 0.06046401997 | X107: 0.04147105492 | Y107: 107 | Z107: -0.9141088992 | AA107: 0.1811840459 | AB107: 0.1854132547 | AC107: 107 | AD107: -0.9141088992 | AE107: -0.0950151413 | AF107: -0.03394257954 | AG107: 107 | AH107: -0.9141088992 | AI107: 0.2565257213 | AJ107: -0.2364569664 | AK107: 107 | AL107: -0.9141088992 | AM107: 1.21186084 | AN107: -0.1415876855 | AO107: 107 | AP107: -0.9141088992 | AQ107: 0.4075360421 | AR107: 0.1284034456
A108: 108 | B108: -0.8930949015 | C108: 0.9352107795 | D108: -0.06966001793 | E108: 108 | F108: -0.8930949015 | G108: 0.1011554339 | H108: -0.1376138938 | I108: 108 | J108: -0.8930949015 | K108: 0.06548163333 | L108: -0.1707287639 | M108: 108 | N108: -0.8930949015 | O108: 0.09082451522 | P108: -0.1508966223 | Q108: 108 | R108: -0.8930949015 | S108: -0.01568833884 | T108: -0.04496541826 | U108: 108 | V108: -0.8930949015 | W108: 0.06704661932 | X108: 0.04329104402 | Y108: 108 | Z108: -0.8930949015 | AA108: 0.1904658877 | AB108: 0.1879795435 | AC108: 108 | AD108: -0.8930949015 | AE108: -0.09235918571 | AF108: -0.03320824801 | AG108: 108 | AH108: -0.8930949015 | AI108: 0.2607037107 | AJ108: -0.2353018156 | AK108: 108 | AL108: -0.8930949015 | AM108: 1.219104295 | AN108: -0.1395849796 | AO108: 108 | AP108: -0.8930949015 | AQ108: 0.4128007896 | AR108: 0.1298590686
A109: 109 | B109: -0.8720809038 | C109: 0.9408444023 | D109: -0.06803392669 | E109: 109 | F109: -0.8720809038 | G109: 0.10601917 | H109: -0.136210023 | I109: 109 | J109: -0.8720809038 | K109: 0.06983495349 | L109: -0.1694722198 | M109: 109 | N109: -0.8720809038 | O109: 0.09568109977 | P109: -0.1494948157 | Q109: 109 | R109: -0.8720809038 | S109: -0.01050430623 | T109: -0.04346909692 | U109: 109 | V109: -0.8720809038 | W109: 0.0735188137 | X109: 0.04515918091 | Y109: 109 | Z109: -0.8720809038 | AA109: 0.1995920522 | AB109: 0.1906137235 | AC109: 109 | AD109: -0.8720809038 | AE109: -0.08974777647 | AF109: -0.03245448976 | AG109: 109 | AH109: -0.8720809038 | AI109: 0.2648116258 | AJ109: -0.2341161052 | AK109: 109 | AL109: -0.8720809038 | AM109: 1.226226262 | AN109: -0.1375292922 | AO109: 109 | AP109: -0.8720809038 | AQ109: 0.4179772355 | AR109: 0.1313532001
A110: 110 | B110: -0.8510669062 | C110: 0.9463794371 | D110: -0.06636664397 | E110: 110 | F110: -0.8510669062 | G110: 0.1107977909 | H110: -0.13477059 | I110: 110 | J110: -0.8510669062 | K110: 0.07411209087 | L110: -0.1681838454 | M110: 110 | N110: -0.8510669062 | O110: 0.1004526945 | P110: -0.1480574991 | Q110: 110 | R110: -0.8510669062 | S110: -0.005410993792 | T110: -0.04193487137 | U110: 110 | V110: -0.8510669062 | W110: 0.07987774516 | X110: 0.04707464069 | Y110: 110 | Z110: -0.8510669062 | AA110: 0.2085585094 | AB110: 0.1933146313 | AC110: 110 | AD110: -0.8510669062 | AE110: -0.08718206669 | AF110: -0.0316816376 | AG110: 110 | AH110: -0.8510669062 | AI110: 0.2688476527 | AJ110: -0.232900359 | AK110: 110 | AL110: -0.8510669062 | AM110: 1.233223595 | AN110: -0.1354215309 | AO110: 110 | AP110: -0.8510669062 | AQ110: 0.423063094 | AR110: 0.1328851804
A111: 111 | B111: -0.8300529085 | C111: 0.9518134398 | D111: -0.06465890599 | E111: 111 | F111: -0.8300529085 | G111: 0.1154891868 | H111: -0.1332962302 | I111: 111 | J111: -0.8300529085 | K111: 0.07831115681 | L111: -0.1668642096 | M111: 111 | N111: -0.8300529085 | O111: 0.1051371923 | P111: -0.1465853071 | Q111: 111 | R111: -0.8300529085 | S111: -0.0004106506055 | T111: -0.04036341909 | U111: 111 | V111: -0.8300529085 | W111: 0.08612060577 | X111: 0.04903657754 | Y111: 111 | Z111: -0.8300529085 | AA111: 0.2173613001 | AB111: 0.1960810746 | AC111: 111 | AD111: -0.8300529085 | AE111: -0.08466318933 | AF111: -0.03089003282 | AG111: 111 | AH111: -0.8300529085 | AI111: 0.2728100092 | AJ111: -0.2316551136 | AK111: 111 | AL111: -0.8300529085 | AM111: 1.240093204 | AN111: -0.1332626266 | AO111: 111 | AP111: -0.8300529085 | AQ111: 0.4280561192 | AR111: 0.1344543328
A112: 112 | B112: -0.8090389108 | C112: 0.9571440109 | D112: -0.06291146685 | E112: 112 | F112: -0.8090389108 | G112: 0.120091286 | H112: -0.1317875948 | I112: 112 | J112: -0.8090389108 | K112: 0.08243029712 | L112: -0.1655138952 | M112: 112 | N112: -0.8090389108 | O112: 0.1097325247 | P112: -0.14507889 | Q112: 112 | R112: -0.8090389108 | S112: 0.004494515324 | T112: -0.03875543398 | U112: 112 | V112: -0.8090389108 | W112: 0.09224463887 | X112: 0.05104412512 | Y112: 112 | Z112: -0.8090389108 | AA112: 0.2259965372 | AB112: 0.1989118315 | AC112: 112 | AD112: -0.8090389108 | AE112: -0.08219225664 | AF112: -0.03008002496 | AG112: 112 | AH112: -0.8090389108 | AI112: 0.2766969456 | AJ112: -0.230380919 | AK112: 112 | AL112: -0.8090389108 | AM112: 1.246832056 | AN112: -0.1310535324 | AO112: 112 | AP112: -0.8090389108 | AQ112: 0.4329541065 | AR112: 0.1360599647
A113: 113 | B113: -0.7880249131 | C113: 0.9623687966 | D113: -0.06112509816 | E113: 113 | F113: -0.7880249131 | G113: 0.1246020563 | H113: -0.13024535 | I113: 113 | J113: -0.7880249131 | K113: 0.08646769291 | L113: -0.1641334984 | M113: 113 | N113: -0.7880249131 | O113: 0.1142366625 | P113: -0.1435389128 | Q113: 113 | R113: -0.7880249131 | S113: 0.009302338014 | T113: -0.0371116261 | U113: 113 | V113: -0.7880249131 | W113: 0.09824714026 | X113: 0.05309639696 | Y113: 113 | Z113: -0.7880249131 | AA113: 0.2344604077 | AB113: 0.2018056523 | AC113: 113 | AD113: -0.7880249131 | AE113: -0.07977035972 | AF113: -0.0292519717 | AG113: 113 | AH113: -0.7880249131 | AI113: 0.2805067456 | AJ113: -0.2290783378 | AK113: 113 | AL113: -0.7880249131 | AM113: 1.253437175 | AN113: -0.1287952239 | AO113: 113 | AP113: -0.7880249131 | AQ113: 0.437754893 | AR113: 0.1377013669
A114: 114 | B114: -0.7670109154 | C114: 0.9674854897 | D114: -0.05930058873 | E114: 114 | F114: -0.7670109154 | G114: 0.1290195059 | H114: -0.1286701767 | I114: 114 | J114: -0.7670109154 | K114: 0.09042156137 | L114: -0.1627236288 | M114: 114 | N114: -0.7670109154 | O114: 0.1186476168 | P114: -0.1419660556 | Q114: 114 | R114: -0.7670109154 | S114: 0.01401069446 | T114: -0.03543272129 | U114: 114 | V114: -0.7670109154 | W114: 0.1041254594 | X114: 0.05519248683 | Y114: 114 | Z114: -0.7670109154 | AA114: 0.242749174 | AB114: 0.2047612589 | AC114: 114 | AD114: -0.7670109154 | AE114: -0.07739856801 | AF114: -0.02840623868 | AG114: 114 | AH114: -0.7670109154 | AI114: 0.2842377269 | AJ114: -0.2277479453 | AK114: 114 | AL114: -0.7670109154 | AM114: 1.259905644 | AN114: -0.1264886983 | AO114: 114 | AP114: -0.7670109154 | AQ114: 0.4424563588 | AR114: 0.1393778146
A115: 115 | B115: -0.7459969177 | C115: 0.9724918309 | D115: -0.05743874422 | E115: 115 | F115: -0.7459969177 | G115: 0.1333416842 | H115: -0.1270627705 | I115: 115 | J115: -0.7459969177 | K115: 0.09429015658 | L115: -0.1612849088 | M115: 115 | N115: -0.7459969177 | O115: 0.12296344 | P115: -0.1403610129 | Q115: 115 | R115: -0.7459969177 | S115: 0.0186175056 | T115: -0.03371946092 | U115: 115 | V115: -0.7459969177 | W115: 0.1098770006 | X115: 0.05733146916 | Y115: 115 | Z115: -0.7459969177 | AA115: 0.2508591762 | AB115: 0.2077773464 | AC115: 115 | AD115: -0.7459969177 | AE115: -0.07507792884 | AF115: -0.02754319937 | AG115: 115 | AH115: -0.7459969177 | AI115: 0.2878882419 | AJ115: -0.2263903288 | AK115: 115 | AL115: -0.7459969177 | AM115: 1.266234608 | AN115: -0.1241349741 | AO115: 115 | AP115: -0.7459969177 | AQ115: 0.447056428 | AR115: 0.1410885677
A116: 116 | B116: -0.7249829201 | C116: 0.9773856096 | D116: -0.05554038677 | E116: 116 | F116: -0.7249829201 | G116: 0.1375666826 | H116: -0.1254238412 | I116: 116 | J116: -0.7249829201 | K116: 0.09807177029 | L116: -0.159817974 | M116: 116 | N116: -0.7249829201 | O116: 0.1271822261 | P116: -0.1387244934 | Q116: 116 | R116: -0.7249829201 | S116: 0.02312073717 | T116: -0.03197260151 | U116: 116 | V116: -0.7249829201 | W116: 0.1154992241 | X116: 0.05951239943 | Y116: 116 | Z116: -0.7249829201 | AA116: 0.2587868331 | AB116: 0.2108525829 | AC116: 116 | AD116: -0.7249829201 | AE116: -0.07280946692 | AF116: -0.02666323484 | AG116: 116 | AH116: -0.7249829201 | AI116: 0.2914566788 | AJ116: -0.2250060879 | AK116: 116 | AL116: -0.7249829201 | AM116: 1.272421272 | AN116: -0.1217350906 | AO116: 116 | AP116: -0.7249829201 | AQ116: 0.4515530691 | AR116: 0.1428328706
A117: 117 | B117: -0.7039689224 | C117: 0.9821646646 | D117: -0.05360635463 | E117: 117 | F117: -0.7039689224 | G117: 0.1416926355 | H117: -0.1237541124 | I117: 117 | J117: -0.7039689224 | K117: 0.1017647326 | L117: -0.1583234719 | M117: 117 | N117: -0.7039689224 | O117: 0.1313021123 | P117: -0.1370572198 | Q117: 117 | R117: -0.7039689224 | S117: 0.0275184007 | T117: -0.03019291443 | U117: 117 | V117: -0.7039689224 | W117: 0.1209896473 | X117: 0.0617343146 | Y117: 117 | Z117: -0.7039689224 | AA117: 0.266528644 | AB117: 0.2139856104 | AC117: 117 | AD117: -0.7039689224 | AE117: -0.07059418395 | AF117: -0.02576673367 | AG117: 117 | AH117: -0.7039689224 | AI117: 0.2949414617 | AJ117: -0.2235958337 | AK117: 117 | AL117: -0.7039689224 | AM117: 1.278462903 | AN117: -0.1192901075 | AO117: 117 | AP117: -0.7039689224 | AQ117: 0.4559442967 | AR117: 0.1446099531
A118: 118 | B118: -0.6829549247 | C118: 0.9868268859 | D118: -0.05163750182 | E118: 118 | F118: -0.6829549247 | G118: 0.145717721 | H118: -0.1220543216 | I118: 118 | J118: -0.6829549247 | K118: 0.1053674129 | L118: -0.1568020625 | M118: 118 | N118: -0.6829549247 | O118: 0.1353212795 | P118: -0.1353599282 | Q118: 118 | R118: -0.6829549247 | S118: 0.03180855428 | T118: -0.02838118553 | U118: 118 | V118: -0.6829549247 | W118: 0.1263458459 | X118: 0.06399623354 | Y118: 118 | Z118: -0.6829549247 | AA118: 0.2740811905 | AB118: 0.2171750456 | AC118: 118 | AD118: -0.6829549247 | AE118: -0.06843305813 | AF118: -0.02485409173 | AG118: 118 | AH118: -0.6829549247 | AI118: 0.298341052 | AJ118: -0.2221601891 | AK118: 118 | AL118: -0.6829549247 | AM118: 1.284356834 | AN118: -0.1168011045 | AO118: 118 | AP118: -0.6829549247 | AQ118: 0.4602281717 | AR118: 0.1464190306
A119: 119 | B119: -0.661940927 | C119: 0.9913702146 | D119: -0.04963469772 | E119: 119 | F119: -0.661940927 | G119: 0.1496401617 | H119: -0.1203252193 | I119: 119 | J119: -0.661940927 | K119: 0.1088782203 | L119: -0.1552544176 | M119: 119 | N119: -0.661940927 | O119: 0.1392379528 | P119: -0.1336333683 | Q119: 119 | R119: -0.661940927 | S119: 0.03598930351 | T119: -0.02653821483 | U119: 119 | V119: -0.661940927 | W119: 0.1315654545 | X119: 0.06629715746 | Y119: 119 | Z119: -0.661940927 | AA119: 0.2814411374 | AB119: 0.22041948 | AC119: 119 | AD119: -0.661940927 | AE119: -0.06632704376 | AF119: -0.02392571201 | AG119: 119 | AH119: -0.661940927 | AI119: 0.3016539484 | AJ119: -0.2206997879 | AK119: 119 | AL119: -0.661940927 | AM119: 1.290100462 | AN119: -0.1142691806 | AO119: 119 | AP119: -0.661940927 | AQ119: 0.4644028025 | AR119: 0.1482593041
A120: 120 | B120: -0.6409269293 | C120: 0.9957926445 | D120: -0.04759882673 | E120: 120 | F120: -0.6409269293 | G120: 0.1534582256 | H120: -0.1185675689 | I120: 120 | J120: -0.6409269293 | K120: 0.1122956045 | L120: -0.1536812206 | M120: 120 | N120: -0.6409269293 | O120: 0.1430504027 | P120: -0.1318783023 | Q120: 120 | R120: -0.6409269293 | S120: 0.04005880229 | T120: -0.02466481612 | U120: 120 | V120: -0.6409269293 | W120: 0.1366461685 | X120: 0.06863607032 | Y120: 120 | Z120: -0.6409269293 | AA120: 0.2886052349 | AB120: 0.2237174809 | AC120: 120 | AD120: -0.6409269293 | AE120: -0.0642770708 | AF120: -0.02298200447 | AG120: 120 | AH120: -0.6409269293 | AI120: 0.304878688 | AJ120: -0.2192152751 | AK120: 120 | AL120: -0.6409269293 | AM120: 1.295691251 | AN120: -0.1116954539 | AO120: 120 | AP120: -0.6409269293 | AQ120: 0.4684663456 | AR120: 0.1501299611
A121: 121 | B121: -0.6199129316 | C121: 1.000092223 | D121: -0.04553078783 | E121: 121 | F121: -0.6199129316 | G121: 0.1571702267 | H121: -0.1167821467 | I121: 121 | J121: -0.6199129316 | K121: 0.1156180565 | L121: -0.1520831663 | M121: 121 | N121: -0.6199129316 | O121: 0.1467569459 | P121: -0.1300955053 | Q121: 121 | R121: -0.6199129316 | S121: 0.04401525364 | T121: -0.02276181666 | U121: 121 | V121: -0.6199129316 | W121: 0.1415857444 | X121: 0.07101193933 | Y121: 121 | Z121: -0.6199129316 | AA121: 0.2955703195 | AB121: 0.2270675922 | AC121: 121 | AD121: -0.6199129316 | AE121: -0.06228404444 | AF121: -0.02202338581 | AG121: 121 | AH121: -0.6199129316 | AI121: 0.308013847 | AJ121: -0.2177073062 | AK121: 121 | AL121: -0.6199129316 | AM121: 1.301126733 | AN121: -0.1090810609 | AO121: 121 | AP121: -0.6199129316 | AQ121: 0.4724170068 | AR121: 0.1520301756
A122: 122 | B122: -0.598898934 | C122: 1.004267051 | D122: -0.04343149419 | E122: 122 | F122: -0.598898934 | G122: 0.1607745259 | H122: -0.114969741 | I122: 122 | J122: -0.598898934 | K122: 0.1188441091 | L122: -0.1504609602 | M122: 122 | N122: -0.598898934 | O122: 0.1503559455 | P122: -0.1282857645 | Q122: 122 | R122: -0.598898934 | S122: 0.0478569105 | T122: -0.02083005674 | U122: 122 | V122: -0.598898934 | W122: 0.1463820008 | X122: 0.07342371537 | Y122: 122 | Z122: -0.598898934 | AA122: 0.3023333155 | AB122: 0.2304683344 | AC122: 122 | AD122: -0.598898934 | AE122: -0.06034884476 | AF122: -0.02105027934 | AG122: 122 | AH122: -0.598898934 | AI122: 0.3110580408 | AJ122: -0.216176547 | AK122: 122 | AL122: -0.598898934 | AM122: 1.306404507 | AN122: -0.106427156 | AO122: 122 | AP122: -0.598898934 | AQ122: 0.4762530414 | AR122: 0.1539591084
A123: 123 | B123: -0.5778849363 | C123: 1.008315286 | D123: -0.04130187282 | E123: 123 | F123: -0.5778849363 | G123: 0.1642695317 | H123: -0.1131311521 | I123: 123 | J123: -0.5778849363 | K123: 0.121972338 | L123: -0.1488153186 | M123: 123 | N123: -0.5778849363 | O123: 0.1538458124 | P123: -0.1264498791 | Q123: 123 | R123: -0.5778849363 | S123: 0.05158207651 | T123: -0.01887038939 | U123: 123 | V123: -0.5778849363 | W123: 0.1510328201 | X123: 0.07587033347 | Y123: 123 | Z123: -0.5778849363 | AA123: 0.3088912368 | AB123: 0.233918206 | AC123: 123 | AD123: -0.5778849363 | AE123: -0.05847232629 | AF123: -0.02006311474 | AG123: 123 | AH123: -0.5778849363 | AI123: 0.3140099254 | AJ123: -0.2146236734 | AK123: 123 | AL123: -0.5778849363 | AM123: 1.311522242 | AN123: -0.1037349111 | AO123: 123 | AP123: -0.5778849363 | AQ123: 0.4799727557 | AR123: 0.1559159078
A124: 124 | B124: -0.5568709386 | C124: 1.012235139 | D124: -0.03914286409 | E124: 124 | F124: -0.5568709386 | G124: 0.1676537008 | H124: -0.111267192 | I124: 124 | J124: -0.5568709386 | K124: 0.1250013616 | L124: -0.1471469683 | M124: 124 | N124: -0.5568709386 | O124: 0.1572250055 | P124: -0.1245886596 | Q124: 124 | R124: -0.5568709386 | S124: 0.05518910674 | T124: -0.01688367992 | U124: 124 | V124: -0.5568709386 | W124: 0.1555361483 | X124: 0.07835071327 | Y124: 124 | Z124: -0.5568709386 | AA124: 0.3152411874 | AB124: 0.2374156834 | AC124: 124 | AD124: -0.5568709386 | AE124: -0.05665531765 | AF124: -0.01906232794 | AG124: 124 | AH124: -0.5568709386 | AI124: 0.3168681971 | AJ124: -0.2130493712 | AK124: 124 | AL124: -0.5568709386 | AM124: 1.31647768 | AN124: -0.101005515 | AO124: 124 | AP124: -0.5568709386 | AQ124: 0.4835745071 | AR124: 0.1578997097
A125: 125 | B125: -0.5358569409 | C125: 1.01602488 | D125: -0.03695542136 | E125: 125 | F125: -0.5358569409 | G125: 0.1709255388 | H125: -0.1093786835 | I125: 125 | J125: -0.5358569409 | K125: 0.1279298426 | L125: -0.145456646 | M125: 125 | N125: -0.5358569409 | O125: 0.1604920326 | P125: -0.122702928 | Q125: 125 | R125: -0.5358569409 | S125: 0.05867640843 | T125: -0.01487080563 | U125: 125 | V125: -0.5358569409 | W125: 0.1598899972 | X125: 0.08086375951 | Y125: 125 | Z125: -0.5358569409 | AA125: 0.3213803634 | AB125: 0.2409592224 | AC125: 125 | AD125: -0.5358569409 | AE125: -0.05489862116 | AF125: -0.01804836083 | AG125: 125 | AH125: -0.5358569409 | AI125: 0.3196315939 | AJ125: -0.2114543356 | AK125: 125 | AL125: -0.5358569409 | AM125: 1.321268631 | AN125: -0.09824017291 | AO125: 125 | AP125: -0.5358569409 | AQ125: 0.4870567052 | AR125: 0.1599096382
A126: 126 | B126: -0.5148429432 | C126: 1.019682836 | D126: -0.03474051054 | E126: 126 | F126: -0.5148429432 | G126: 0.1740836009 | H126: -0.1074664608 | I126: 126 | J126: -0.5148429432 | K126: 0.1307564877 | L126: -0.1437450979 | M126: 126 | N126: -0.5148429432 | O126: 0.1636454513 | P126: -0.1207935169 | Q126: 126 | R126: -0.5148429432 | S126: 0.06204244167 | T126: -0.01283265534 | U126: 126 | V126: -0.5148429432 | W126: 0.164092444 | X126: 0.08340836249 | Y126: 126 | Z126: -0.5148429432 | AA126: 0.3273060539 | AB126: 0.2445472582 | AC126: 126 | AD126: -0.5148429432 | AE126: -0.05320301256 | AF126: -0.01702166117 | AG126: 126 | AH126: -0.5148429432 | AI126: 0.3222988956 | AJ126: -0.2098392708 | AK126: 126 | AL126: -0.5148429432 | AM126: 1.32589298 | AN126: -0.09544010596 | AO126: 126 | AP126: -0.5148429432 | AQ126: 0.4904178123 | AR126: 0.1619448057
A127: 127 | B127: -0.4938289455 | C127: 1.023207391 | D127: -0.03249910968 | E127: 127 | F127: -0.4938289455 | G127: 0.1771264927 | H127: -0.1055313682 | I127: 127 | J127: -0.4938289455 | K127: 0.1334800487 | L127: -0.14201308 | M127: 127 | N127: -0.4938289455 | O127: 0.1666838689 | P127: -0.1188612695 | Q127: 127 | R127: -0.4938289455 | S127: 0.06528572013 | T127: -0.01077012903 | U127: 127 | V127: -0.4938289455 | W127: 0.1681416332 | X127: 0.0859833986 | Y127: 127 | Z127: -0.4938289455 | AA127: 0.3330156423 | AB127: 0.2481782065 | AC127: 127 | AD127: -0.4938289455 | AE127: -0.05156924055 | AF127: -0.01598268232 | AG127: 127 | AH127: -0.4938289455 | AI127: 0.3248689243 | AJ127: -0.2082048901 | AK127: 127 | AL127: -0.4938289455 | AM127: 1.330348685 | AN127: -0.09260655058 | AO127: 127 | AP127: -0.4938289455 | AQ127: 0.4936563442 | AR127: 0.1640043135
A128: 128 | B128: -0.4728149479 | C128: 1.026596989 | D128: -0.03023220851 | E128: 128 | F128: -0.4728149479 | G128: 0.1800528705 | H128: -0.10357426 | I128: 128 | J128: -0.4728149479 | K128: 0.1360993232 | L128: -0.140261357 | M128: 128 | N128: -0.4728149479 | O128: 0.1696059438 | P128: -0.1169070391 | Q128: 128 | R128: -0.4728149479 | S128: 0.06840481167 | T128: -0.00868413747 | U128: 128 | V128: -0.4728149479 | W128: 0.1720357766 | X128: 0.08858773076 | Y128: 128 | Z128: -0.4728149479 | AA128: 0.3385066074 | AB128: 0.2518504639 | AC128: 128 | AD128: -0.4728149479 | AE128: -0.04999802658 | AF128: -0.01493188306 | AG128: 128 | AH128: -0.4728149479 | AI128: 0.3273405452 | AJ128: -0.2065519151 | AK128: 128 | AL128: -0.4728149479 | AM128: 1.334633779 | AN128: -0.08974075799 | AO128: 128 | AP128: -0.4728149479 | AQ128: 0.496770871 | AR128: 0.1660872523
A129: 129 | B129: =-3.14159265358979+(A129-1)*0.0210139976828748 -> -0.4518009502 | C129: =0.347098823636324*COS(B129)+0.717578409393402 -> 1.029850132 | D129: =0.121832989107382*SIN(B129)+0.0252498288314242+0*COS(B129) -> -0.02794080803 | E129: 129 | F129: =-3.14159265358979+(E129-1)*0.0210139976828748 -> -0.4518009502 | G129: =0.299664552058601*COS(F129)+-0.0867354554826123 -> 0.182861442 | H129: =0.105183381851725*SIN(F129)+-0.055674357386175+0*COS(F129) -> -0.1015960007 | I129: 129 | J129: =-3.14159265358979+(I129-1)*0.0210139976828748 -> -0.4518009502 | K129: =0.268216805569019*COS(J129)+-0.102691391514969 -> 0.1386131543 | L129: =0.0941451048694578*SIN(J129)+-0.0973882217616218+0*COS(J129) -> -0.1384907025 | M129: 129 | N129: =-3.14159265358979+(M129-1)*0.0210139976828748 -> -0.4518009502 | O129: =0.299223936258687*COS(N129)+-0.0967901063170089 -> 0.1724103858 | P129: =0.105028724053151*SIN(N129)+-0.0690775666880996+0*COS(N129) -> -0.1149316885 | Q129: 129 | R129: =-3.14159265358979+(Q129-1)*0.0210139976828748 -> -0.4518009502 | S129: =0.31939866983129*COS(R129)+-0.215952600146413 -> 0.07139833898 | T129: =0.112110131215079*SIN(R129)+0.0423701667184607+0*COS(R129) -> -0.006575601763 | U129: 129 | V129: =-3.14159265358979+(U129-1)*0.0210139976828748 -> -0.4518009502 | W129: =0.398764905135784*COS(V129)+-0.18298059338715 -> 0.1757731548 | X129: =0.139967977519616*SIN(V129)+0.15232833674674+0*COS(V129) -> 0.09122020898 | Y129: 129 | Z129: =-3.14159265358979+(Y129-1)*0.0210139976828748 -> -0.4518009502 | AA129: =0.562281335126711*COS(Z129)+-0.162086789732886 -> 0.3437765246 | AB129: =0.19736285781698*SIN(Z129)+0.341728365812427+0*COS(Z129) -> 0.2555624088 | AC129: 129 | AD129: =-3.14159265358979+(AC129-1)*0.0210139976828748 -> -0.4518009502 | AE129: =0.16089417266906*COS(AD129)+-0.193240484481897 -> -0.04849006445 | AF129: =0.056474458140974*SIN(AD129)+0.0107862579656094+0*COS(AD129) -> -0.01386972739 | AG129: 129 | AH129: =-3.14159265358979+(AG129-1)*0.0210139976828748 -> -0.4518009502 | AI129: =0.253096907093471*COS(AH129)+0.102010923502568 -> 0.3297126668 | AJ129: =0.0888379637879133*SIN(AH129)+-0.166095621152538+0*COS(AH129) -> -0.2048810758 | AK129: 129 | AL129: =-3.14159265358979+(AK129-1)*0.0210139976828748 -> -0.4518009502 | AM129: =0.438798679365524*COS(AL129)+0.943975743712232 -> 1.338746369 | AN129: =0.154019982445942*SIN(AL129)+-0.0196009503722022+0*COS(AL129) -> -0.08684399362 | AO129: 129 | AP129: =-3.14159265358979+(AO129-1)*0.0210139976828748 -> -0.4518009502 | AQ129: =0.318931234452992*COS(AP129)+0.212829612221555 -> 0.4997600174 | AR129: =0.111946059643888*SIN(AP129)+0.217066839220887+0*COS(AP129) -> 0.1681927022
A130: 130 | B130: -0.4307869525 | C130: 1.032965386 | D130: -0.02562592007 | E130: 130 | F130: -0.4307869525 | G130: 0.1855509672 | H130: -0.09959746362 | I130: 130 | J130: -0.4307869525 | K130: 0.1410204322 | L130: -0.1367018982 | M130: 130 | N130: -0.4307869525 | O130: 0.1750959564 | P130: -0.11293609 | Q130: 130 | R130: -0.4307869525 | S130: 0.0742649802 | T130: -0.004445452981 | U130: 130 | V130: -0.4307869525 | W130: 0.1793521175 | X130: 0.09387967083 | Y130: 130 | Z130: -0.4307869525 | AA130: 0.3488230667 | AB130: 0.2593124022 | AC130: 130 | AD130: -0.4307869525 | AE130: -0.04704602003 | AF130: -0.01279668433 | AG130: 130 | AH130: -0.4307869525 | AI130: 0.3319842418 | AJ130: -0.2031931099 | AK130: 130 | AL130: -0.4307869525 | AM130: 1.34268464 | AN130: -0.08391753663 | AO130: 130 | AP130: -0.4307869525 | AQ130: 0.5026224633 | AR130: 0.1703197335
A131: 131 | B131: -0.4097729548 | C131: 1.035941373 | D131: -0.02328856681 | E131: 131 | F131: -0.4097729548 | G131: 0.1881202583 | H131: -0.09757953135 | I131: 131 | J131: -0.4097729548 | K131: 0.1433200938 | L131: -0.1348957341 | M131: 131 | N131: -0.4097729548 | O131: 0.1776614697 | P131: -0.1109211248 | Q131: 131 | R131: -0.4097729548 | S131: 0.07700346951 | T131: -0.00229463174 | U131: 131 | V131: -0.4097729548 | W131: 0.1827710842 | X131: 0.09656494196 | Y131: 131 | Z131: -0.4097729548 | AA131: 0.3536440055 | AB131: 0.2630987882 | AC131: 131 | AD131: -0.4097729548 | AE131: -0.04566653096 | AF131: -0.01171322771 | AG131: 131 | AH131: -0.4097729548 | AI131: 0.3341542671 | AJ131: -0.2014887627 | AK131: 131 | AL131: -0.4097729548 | AM131: 1.346446852 | AN131: -0.08096267924 | AO131: 131 | AP131: -0.4097729548 | AQ131: 0.5053569449 | AR131: 0.1724674071
A132: 132 | B132: -0.3887589571 | C132: 1.03877678 | D132: -0.02092978036 | E132: 132 | F132: -0.3887589571 | G132: 0.1905681809 | H132: -0.09554309493 | I132: 132 | J132: -0.3887589571 | K132: 0.1455111237 | L132: -0.1330730078 | M132: 132 | N132: -0.3887589571 | O132: 0.180105793 | P132: -0.1088876827 | Q132: 132 | R132: -0.3887589571 | S132: 0.07961259766 | T132: -0.0001240877819 | U132: 132 | V132: -0.3887589571 | W132: 0.1860285453 | X132: 0.09927483664 | Y132: 132 | Z132: -0.3887589571 | AA132: 0.358237212 | AB132: 0.2669198947 | AC132: 132 | AD132: -0.3887589571 | AE132: -0.0443522064 | AF132: -0.01061983594 | AG132: 132 | AH132: -0.3887589571 | AI132: 0.3362217843 | AJ132: -0.199768787 | AK132: 132 | AL132: -0.3887589571 | AM132: 1.350031344 | AN132: -0.07798072623 | AO132: 132 | AP132: -0.3887589571 | AQ132: 0.5079622546 | AR132: 0.1746347745
A133: 133 | B133: -0.3677449595 | C133: 1.041470356 | D133: -0.01855060229 | E133: 133 | F133: -0.3677449595 | G133: 0.192893654 | H133: -0.0934890536 | I133: 133 | J133: -0.3677449595 | K133: 0.1475925543 | L133: -0.1312345241 | M133: 133 | N133: -0.3677449595 | O133: 0.1824278468 | P133: -0.1068366616 | Q133: 133 | R133: -0.3677449595 | S133: 0.08209121255 | T133: 0.002065220443 | U133: 133 | V133: -0.3677449595 | W133: 0.1891230624 | X133: 0.1020081582 | Y133: 133 | Z133: -0.3677449595 | AA133: 0.3626006581 | AB133: 0.2707740346 | AC133: 133 | AD133: -0.3677449595 | AE133: -0.04310362672 | AF133: -0.009516991853 | AG133: 133 | AH133: -0.3677449595 | AI133: 0.3381858807 | AJ133: -0.1980339421 | AK133: 133 | AL133: -0.3677449595 | AM133: 1.353436533 | AN133: -0.07497299437 | AO133: 133 | AP133: -0.3677449595 | AQ133: 0.5104372421 | AR133: 0.1768208787
A134: 134 | B134: -0.3467309618 | C134: 1.044020909 | D134: -0.01615208319 | E134: 134 | F134: -0.3467309618 | G134: 0.1950956508 | H134: -0.09141831437 | I134: 134 | J134: -0.3467309618 | K134: 0.1495634665 | L134: -0.1293810948 | M134: 134 | N134: -0.3467309618 | O134: 0.1846266058 | P134: -0.1047689671 | Q134: 134 | R134: -0.3467309618 | S134: 0.08443821968 | T134: 0.004272326198 | U134: 134 | V134: -0.3467309618 | W134: 0.1920532689 | X134: 0.1047636998 | Y134: 134 | Z134: -0.3467309618 | AA134: 0.3667324171 | AB134: 0.2746595059 | AC134: 134 | AD134: -0.3467309618 | AE134: -0.04192134324 | AF134: -0.008405182419 | AG134: 134 | AH134: -0.3467309618 | AI134: 0.3400456888 | AJ134: -0.1962849942 | AK134: 134 | AL134: -0.3467309618 | AM134: 1.356660916 | AN134: -0.07194081176 | AO134: 134 | AP134: -0.3467309618 | AQ134: 0.5127808144 | AR134: 0.1790247543
A135: 135 | B135: -0.3257169641 | C135: 1.046427315 | D135: -0.01373528217 | E135: 135 | F135: -0.3257169641 | G135: 0.1971731989 | H135: -0.08933179161 | I135: 135 | J135: -0.3257169641 | K135: 0.1514229901 | L135: -0.1275135383 | M135: 135 | N135: -0.3257169641 | O135: 0.1867010992 | P135: -0.1026855122 | Q135: 135 | R135: -0.3257169641 | S135: 0.08665258267 | T135: 0.006496254887 | U135: 135 | V135: -0.3257169641 | W135: 0.1948178711 | X135: 0.1075402446 | Y135: 135 | Z135: -0.3257169641 | AA135: 0.3706306643 | AB135: 0.278574593 | AC135: 135 | AD135: -0.3257169641 | AE135: -0.04080587804 | AF135: -0.007284898585 | AG135: 135 | AH135: -0.3257169641 | AI135: 0.3418003875 | AJ135: -0.1945227155 | AK135: 135 | AL135: -0.3257169641 | AM135: 1.359703069 | AN135: -0.06888551735 | AO135: 135 | AP135: -0.3257169641 | AQ135: 0.5149919367 | AR135: 0.1812454283
A136: 136 | B136: -0.3047029664 | C136: 1.04868851 | D136: -0.01130126642 | E136: 136 | F136: -0.3047029664 | G136: 0.1991253809 | H136: -0.08723040667 | I136: 136 | J136: -0.3047029664 | K136: 0.153170304 | L136: -0.1256326794 | M136: 136 | N136: -0.3047029664 | O136: 0.1886504108 | P136: -0.1005872171 | Q136: 136 | R136: -0.3047029664 | S136: 0.08873332374 | T136: 0.008736024485 | U136: 136 | V136: -0.3047029664 | W136: 0.1974156481 | X136: 0.1103365666 | Y136: 136 | Z136: -0.3047029664 | AA136: 0.3742936785 | AB136: 0.2825175669 | AC136: 136 | AD136: -0.3047029664 | AE136: -0.03975772366 | AF136: -0.006156635037 | AG136: 136 | AH136: -0.3047029664 | AI136: 0.3434492019 | AJ136: -0.1927478842 | AK136: 136 | AL136: -0.3047029664 | AM136: 1.362561648 | AN136: -0.06580846026 | AO136: 136 | AP136: -0.3047029664 | AQ136: 0.5170696326 | AR136: 0.1834819201
A137: 137 | B137: -0.2836889687 | C137: 1.050803497 | D137: -0.008851110733 | E137: 137 | F137: -0.2836889687 | G137: 0.2009513348 | H137: -0.08511508747 | I137: 137 | J137: -0.2836889687 | K137: 0.1548046365 | L137: -0.1237393485 | M137: 137 | N137: -0.2836889687 | O137: 0.1904736799 | P137: -0.0984750082 | Q137: 137 | R137: -0.2836889687 | S137: 0.09067952408 | T137: 0.01099064597 | U137: 137 | V137: -0.2836889687 | W137: 0.1998454528 | X137: 0.1131514309 | Y137: 137 | Z137: -0.2836889687 | AA137: 0.3777198422 | AB137: 0.2864866867 | AC137: 137 | AD137: -0.2836889687 | AE137: -0.03877734296 | AF137: -0.005020889984 | AG137: 137 | AH137: -0.2836889687 | AI137: 0.344991404 | AJ137: -0.190961284 | AK137: 137 | AL137: -0.2836889687 | AM137: 1.365235392 | AN137: -0.06271099923 | AO137: 137 | AP137: -0.2836889687 | AQ137: 0.5190129847 | AR137: 0.185733242
A138: 138 | B138: -0.262674971 | C138: 1.05277134 | D138: -0.006385897034 | E138: 138 | F138: -0.262674971 | G138: 0.2026502544 | H138: -0.08298676807 | I138: 138 | J138: -0.262674971 | K138: 0.1563252661 | L138: -0.1218343816 | M138: 138 | N138: -0.262674971 | O138: 0.1921701014 | P138: -0.09634981821 | Q138: 138 | R138: -0.262674971 | S138: 0.09249032431 | T138: 0.01325912377 | U138: 138 | V138: -0.262674971 | W138: 0.2021062123 | X138: 0.1159835947 | Y138: 138 | Z138: -0.262674971 | AA138: 0.3809076425 | AB138: 0.2904801997 | AC138: 138 | AD138: -0.262674971 | AE138: -0.03786516882 | AF138: -0.00387816494 | AG138: 138 | AH138: -0.262674971 | AI138: 0.3464263127 | AJ138: -0.1891637039 | AK138: 138 | AL138: -0.262674971 | AM138: 1.367723119 | AN138: -0.05959450202 | AO138: 138 | AP138: -0.262674971 | AQ138: 0.5208211349 | AR138: 0.1879983999
A139: 139 | B139: -0.2416609734 | C139: 1.054591172 | D139: -0.003906713889 | E139: 139 | F139: -0.2416609734 | G139: 0.2042213893 | H139: -0.08084638829 | I139: 139 | J139: -0.2416609734 | K139: 0.1577315211 | L139: -0.1199186201 | M139: 139 | N139: -0.2416609734 | O139: 0.1937389262 | P139: -0.09421258555 | Q139: 139 | R139: -0.2416609734 | S139: 0.09416492482 | T139: 0.01554045619 | U139: 139 | V139: -0.2416609734 | W139: 0.2041969283 | X139: 0.1188318072 | Y139: 139 | Z139: -0.2416609734 | AA139: 0.3838556717 | AB139: 0.2944963424 | AC139: 139 | AD139: -0.2416609734 | AE139: -0.03702160406 | AF139: -0.0027289645 | AG139: 139 | AH139: -0.2416609734 | AI139: 0.3477532945 | AJ139: -0.1873559375 | AK139: 139 | AL139: -0.2416609734 | AM139: 1.370023731 | AN139: -0.05646034478 | AO139: 139 | AP139: -0.2416609734 | AQ139: 0.5224932846 | AR139: 0.1902763936
A140: 140 | B140: -0.2206469757 | C140: 1.056262189 | D140: -0.001414656035 | E140: 140 | F140: -0.2206469757 | G140: 0.2056640459 | H140: -0.07869489324 | I140: 140 | J140: -0.2206469757 | K140: 0.1590227808 | L140: -0.1179929097 | M140: 140 | N140: -0.2206469757 | O140: 0.1951794615 | P140: -0.09206425399 | Q140: 140 | R140: -0.2206469757 | S140: 0.09570258617 | T140: 0.01783363586 | U140: 140 | V140: -0.2206469757 | W140: 0.2061166777 | X140: 0.1216948109 | Y140: 140 | Z140: -0.2206469757 | AA140: 0.3865626281 | AB140: 0.2985333414 | AC140: 140 | AD140: -0.2206469757 | AE140: -0.03624702115 | AF140: -0.001573796117 | AG140: 140 | AH140: -0.2206469757 | AI140: 0.3489717633 | AJ140: -0.1855387831 | AK140: 140 | AL140: -0.2206469757 | AM140: 1.372136212 | AN140: -0.05330991148 | AO140: 140 | AP140: -0.2206469757 | AQ140: 0.5240286956 | AR140: 0.1925662172
A141: 141 | B141: -0.199632978 | C141: 1.057783652 | D141: 0.001089176104 | E141: 141 | F141: -0.199632978 | G141: 0.2069775871 | H141: -0.07653323297 | I141: 141 | J141: -0.199632978 | K141: 0.1601984748 | L141: -0.1160581009 | M141: 141 | N141: -0.199632978 | O141: 0.1964910714 | P141: -0.08990577214 | Q141: 141 | R141: -0.199632978 | S141: 0.09710262936 | T141: 0.02013765016 | U141: 141 | V141: -0.199632978 | W141: 0.2078646126 | X141: 0.1245713415 | Y141: 141 | Z141: -0.199632978 | AA141: 0.3890273164 | AB141: 0.3025894142 | AC141: 141 | AD141: -0.199632978 | AE141: -0.03554176214 | AF141: -0.0004131698832 | AG141: 141 | AH141: -0.199632978 | AI141: 0.3500811812 | AJ141: -0.1837130432 | AK141: 141 | AL141: -0.199632978 | AM141: 1.37405963 | AN141: -0.05014459324 | AO141: 141 | AP141: -0.199632978 | AQ141: 0.5254266899 | AR141: 0.1948668596
A142: 142 | B142: -0.1786189803 | C142: 1.05915489 | D142: 0.003603676908 | E142: 142 | F142: -0.1786189803 | G142: 0.2081614329 | H142: -0.07436236201 | I142: 142 | J142: -0.1786189803 | K142: 0.1612580841 | L142: -0.114115048 | M142: 142 | N142: -0.1786189803 | O142: 0.1976731765 | P142: -0.08773809315 | Q142: 142 | R142: -0.1786189803 | S142: 0.09836443617 | T142: 0.02245148172 | U142: 142 | V142: -0.1786189803 | W142: 0.2094399613 | X142: 0.1274601288 | Y142: 142 | Z142: -0.1786189803 | AA142: 0.3912486482 | AB142: 0.3066627696 | AC142: 142 | AD142: -0.1786189803 | AE142: -0.03490613844 | AF142: 0.0007524017031 | AG142: 142 | AH142: -0.1786189803 | AI142: 0.3510810583 | AJ142: -0.181879524 | AK142: 142 | AL142: -0.1786189803 | AM142: 1.375793135 | AN142: -0.04696578779 | AO142: 142 | AP142: -0.1786189803 | AQ142: 0.5266866501 | AR142: 0.1971773049
A143: 143 | B143: -0.1576049826 | C143: 1.060375298 | D143: 0.006127736043 | E143: 143 | F143: -0.1576049826 | G143: 0.2092150605 | H143: -0.07218323895 | I143: 143 | J143: -0.1576049826 | K143: 0.1622011407 | L143: -0.112164609 | M143: 143 | N143: -0.1576049826 | O143: 0.1987252549 | P143: -0.0855621742 | Q143: 143 | R143: -0.1576049826 | S143: 0.09948744943 | T143: 0.02477410881 | U143: 143 | V143: -0.1576049826 | W143: 0.2108420281 | X143: 0.1303598972 | Y143: 143 | Z143: -0.1576049826 | AA143: 0.3932256426 | AB143: 0.310751609 | AC143: 143 | AD143: -0.1576049826 | AE143: -0.03434043074 | AF143: 0.001922403958 | AG143: 143 | AH143: -0.1576049826 | AI143: 0.351970953 | AJ143: -0.180039035 | AK143: 143 | AL143: -0.1576049826 | AM143: 1.377335962 | AN143: -0.0437748988 | AO143: 143 | AP143: -0.1576049826 | AQ143: 0.5278080198 | AR143: 0.1994965329
A144: 144 | B144: -0.1365909849 | C144: 1.061444336 | D144: 0.008660238955 | E144: 144 | F144: -0.1365909849 | G144: 0.2101380048 | H144: -0.06999682603 | I144: 144 | J144: -0.1365909849 | K144: 0.1630272283 | L144: -0.1102076452 | M144: 144 | N144: -0.1365909849 | O144: 0.1996468421 | P144: -0.0833789761 | Q144: 144 | R144: -0.1365909849 | S144: 0.1004711732 | T144: 0.02710450582 | U144: 144 | V144: -0.1365909849 | W144: 0.2120701939 | X144: 0.1332693663 | Y144: 144 | Z144: -0.1365909849 | AA144: 0.3949574267 | AB144: 0.3148541268 | AC144: 144 | AD144: -0.1365909849 | AE144: -0.03384488882 | AF144: 0.003096320241 | AG144: 144 | AH144: -0.1365909849 | AI144: 0.3527504723 | AJ144: -0.178192389 | AK144: 144 | AL144: -0.1365909849 | AM144: 1.378687428 | AN144: -0.04057333528 | AO144: 144 | AP144: -0.1365909849 | AQ144: 0.5287903039 | AR144: 0.2018235194
A145: 145 | B145: -0.1155769873 | C145: 1.062361533 | D145: 0.01120006736 | E145: 145 | F145: -0.1155769873 | G145: 0.210929858 | H145: -0.06780408872 | I145: 145 | J145: -0.1155769873 | K145: 0.1637359819 | L145: -0.1082450207 | M145: 145 | N145: -0.1155769873 | O145: 0.200437531 | P145: -0.08118946291 | Q145: 145 | R145: -0.1155769873 | S145: 0.1013151732 | T145: 0.02944164372 | U145: 145 | V145: -0.1155769873 | W145: 0.2131239164 | X145: 0.1361872512 | Y145: 145 | Z145: -0.1155769873 | AA145: 0.3964432358 | AB145: 0.3189685116 | AC145: 145 | AD145: -0.1155769873 | AE145: -0.03341973151 | AF145: 0.004273632184 | AG145: 145 | AH145: -0.1155769873 | AI145: 0.3534192722 | AJ145: -0.1763404014 | AK145: 145 | AL145: -0.1155769873 | AM145: 1.379846939 | AN145: -0.03736251094 | AO145: 145 | AP145: -0.1155769873 | AQ145: 0.5296330687 | AR145: 0.2041572369
A146: 146 | B146: -0.09456298957 | C146: 1.063126483 | D146: 0.01374609975 | E146: 146 | F146: -0.09456298957 | G146: 0.2115902707 | H146: -0.06560599526 | I146: 146 | J146: -0.09456298957 | K146: 0.1643270888 | L146: -0.1062776021 | M146: 146 | N146: -0.09456298957 | O146: 0.2010969726 | P146: -0.07899460144 | Q146: 146 | R146: -0.09456298957 | S146: 0.1020190767 | T146: 0.03178449049 | U146: 146 | V146: -0.09456298957 | W146: 0.2140027303 | X146: 0.1391122636 | Y146: 146 | Z146: -0.09456298957 | AA146: 0.3976824137 | AB146: 0.3230929464 | AC146: 146 | AD146: -0.09456298957 | AE146: -0.03306514655 | AF146: 0.00545381992 | AG146: 146 | AH146: -0.09456298957 | AI146: 0.3539770572 | AJ146: -0.17448389 | AK146: 146 | AL146: -0.09456298957 | AM146: 1.380813981 | AN146: -0.03414384359 | AO146: 146 | AP146: -0.09456298957 | AQ146: 0.5303359421 | AR146: 0.206496655
A147: 147 | B147: -0.07354899189 | C147: 1.063738849 | D147: 0.01629721186 | E147: 147 | F147: -0.07354899189 | G147: 0.212118951 | H147: -0.06340351626 | I147: 147 | J147: -0.07354899189 | K147: 0.1648002878 | L147: -0.1043062582 | M147: 147 | N147: -0.07354899189 | O147: 0.2016248756 | P147: -0.07679536089 | Q147: 147 | R147: -0.07354899189 | S147: 0.1025825728 | T147: 0.0341320116 | U147: 147 | V147: -0.07354899189 | W147: 0.2147062476 | X147: 0.1420431119 | Y147: 147 | Z147: -0.07354899189 | AA147: 0.3986744133 | AB147: 0.3272256102 | AC147: 147 | AD147: -0.07354899189 | AE147: -0.03278129051 | AF147: 0.006636362309 | AG147: 147 | AH147: -0.07354899189 | AI147: 0.3544235811 | AJ147: -0.1726236746 | AK147: 147 | AL147: -0.07354899189 | AM147: 1.381588127 | AN147: -0.03091875451 | AO147: 147 | AP147: -0.07354899189 | AQ147: 0.5308986135 | AR147: 0.2088407405
A148: 148 | B148: -0.05253499421 | C148: 1.06419836 | D148: 0.0188522772 | E148: 148 | F148: -0.05253499421 | G148: 0.2125156657 | H148: -0.06119762429 | I148: 148 | J148: -0.05253499421 | K148: 0.16515537 | L148: -0.1023318596 | M148: 148 | N148: -0.05253499421 | O148: 0.202021007 | P148: -0.07459271238 | Q148: 148 | R148: -0.05253499421 | S148: 0.1030054128 | T148: 0.03648317044 | U148: 148 | V148: -0.05253499421 | W148: 0.2152341576 | X148: 0.1449785018 | Y148: 148 | Z148: -0.05253499421 | AA148: 0.3994187965 | AB148: 0.3313646779 | AC148: 148 | AD148: -0.05253499421 | AE148: -0.03256828873 | AF148: 0.007820737176 | AG148: 148 | AH148: -0.05253499421 | AI148: 0.3547586466 | AJ148: -0.1707605766 | AK148: 148 | AL148: -0.05253499421 | AM148: 1.382169036 | AN148: -0.02768866781 | AO148: 148 | AP148: -0.05253499421 | AQ148: 0.5313208346 | AR148: 0.2111884585
A149: 149 | B149: -0.03152099652 | C149: 1.064504813 | D149: 0.02141016751 | E149: 149 | F149: -0.03152099652 | G149: 0.2127802396 | H149: -0.0589892934 | I149: 149 | J149: -0.03152099652 | K149: 0.1653921786 | L149: -0.1003552779 | M149: 149 | N149: -0.03152099652 | O149: 0.2022851918 | P149: -0.07238762854 | Q149: 149 | R149: -0.03152099652 | S149: 0.1032874098 | T149: 0.03883692882 | U149: 149 | V149: -0.03152099652 | W149: 0.2155862271 | X149: 0.1479171372 | Y149: 149 | Z149: -0.03152099652 | AA149: 0.3999152347 | AB149: 0.335508322 | AC149: 149 | AD149: -0.03152099652 | AE149: -0.03242623527 | AF149: 0.009006421534 | AG149: 149 | AH149: -0.03152099652 | AI149: 0.3549821059 | AJ149: -0.1688954186 | AK149: 149 | AL149: -0.03152099652 | AM149: 1.382556452 | AN149: -0.0244550098 | AO149: 149 | AP149: -0.03152099652 | AQ149: 0.531602419 | AR149: 0.2135387722
A150: 150 | B150: -0.01050699884 | C150: 1.064658074 | D150: 0.02396975331 | E150: 150 | F150: -0.01050699884 | G150: 0.2129125557 | H150: -0.05677949872 | I150: 150 | J150: -0.01050699884 | K150: 0.165510609 | L150: -0.09837738607 | M150: 150 | N150: -0.01050699884 | O150: 0.2024173134 | P150: -0.07018108307 | Q150: 150 | R150: -0.01050699884 | S150: 0.1034284395 | T150: 0.04119224737 | U150: 150 | V150: -0.01050699884 | W150: 0.2157623007 | X150: 0.1508577204 | Y150: 150 | Z150: -0.01050699884 | AA150: 0.4001635086 | AB150: 0.3396547126 | AC150: 150 | AD150: -0.01050699884 | AE150: -0.03235519285 | AF150: 0.01019289182 | AG150: 150 | AH150: -0.01050699884 | AI150: 0.3550938602 | AJ150: -0.1670290244 | AK150: 150 | AL150: -0.01050699884 | AM150: 1.382750202 | AN150: -0.02121920837 | AO150: 150 | AP150: -0.01050699884 | AQ150: 0.5317432423 | AR150: 0.2158906437
A151: 151 | B151: 0.01050699884 | C151: 1.064658074 | D151: 0.02652990435 | E151: 151 | F151: 0.01050699884 | G151: 0.2129125557 | H151: -0.05456921605 | I151: 151 | J151: 0.01050699884 | K151: 0.165510609 | L151: -0.09639905745 | M151: 151 | N151: 0.01050699884 | O151: 0.2024173134 | P151: -0.06797405031 | Q151: 151 | R151: 0.01050699884 | S151: 0.1034284395 | T151: 0.04354808606 | U151: 151 | V151: 0.01050699884 | W151: 0.2157623007 | X151: 0.1537989531 | Y151: 151 | Z151: 0.01050699884 | AA151: 0.4001635086 | AB151: 0.343802019 | AC151: 151 | AD151: 0.01050699884 | AE151: -0.03235519285 | AF151: 0.01137962411 | AG151: 151 | AH151: 0.01050699884 | AI151: 0.3550938602 | AJ151: -0.1651622179 | AK151: 151 | AL151: 0.01050699884 | AM151: 1.382750202 | AN151: -0.01798269237 | AO151: 151 | AP151: 0.01050699884 | AQ151: 0.5317432423 | AR151: 0.2182430347
A152: 152 | B152: 0.03152099652 | C152: 1.064504813 | D152: 0.02908949015 | E152: 152 | F152: 0.03152099652 | G152: 0.2127802396 | H152: -0.05235942137 | I152: 152 | J152: 0.03152099652 | K152: 0.1653921786 | L152: -0.09442116563 | M152: 152 | N152: 0.03152099652 | O152: 0.2022851918 | P152: -0.06576750484 | Q152: 152 | R152: 0.03152099652 | S152: 0.1032874098 | T152: 0.04590340462 | U152: 152 | V152: 0.03152099652 | W152: 0.2155862271 | X152: 0.1567395363 | Y152: 152 | Z152: 0.03152099652 | AA152: 0.3999152347 | AB152: 0.3479484096 | AC152: 152 | AD152: 0.03152099652 | AE152: -0.03242623527 | AF152: 0.0125660944 | AG152: 152 | AH152: 0.03152099652 | AI152: 0.3549821059 | AJ152: -0.1632958237 | AK152: 152 | AL152: 0.03152099652 | AM152: 1.382556452 | AN152: -0.01474689094 | AO152: 152 | AP152: 0.03152099652 | AQ152: 0.531602419 | AR152: 0.2205949063
A153: 153 | B153: 0.05253499421 | C153: 1.06419836 | D153: 0.03164738047 | E153: 153 | F153: 0.05253499421 | G153: 0.2125156657 | H153: -0.05015109048 | I153: 153 | J153: 0.05253499421 | K153: 0.16515537 | L153: -0.09244458397 | M153: 153 | N153: 0.05253499421 | O153: 0.202021007 | P153: -0.06356242099 | Q153: 153 | R153: 0.05253499421 | S153: 0.1030054128 | T153: 0.04825716299 | U153: 153 | V153: 0.05253499421 | W153: 0.2152341576 | X153: 0.1596781717 | Y153: 153 | Z153: 0.05253499421 | AA153: 0.3994187965 | AB153: 0.3520920537 | AC153: 153 | AD153: 0.05253499421 | AE153: -0.03256828873 | AF153: 0.01375177875 | AG153: 153 | AH153: 0.05253499421 | AI153: 0.3547586466 | AJ153: -0.1614306658 | AK153: 153 | AL153: 0.05253499421 | AM153: 1.382169036 | AN153: -0.01151323293 | AO153: 153 | AP153: 0.05253499421 | AQ153: 0.5313208346 | AR153: 0.22294522
A154: 154 | B154: 0.07354899189 | C154: 1.063738849 | D154: 0.0342024458 | E154: 154 | F154: 0.07354899189 | G154: 0.212118951 | H154: -0.04794519851 | I154: 154 | J154: 0.07354899189 | K154: 0.1648002878 | L154: -0.09047018528 | M154: 154 | N154: 0.07354899189 | O154: 0.2016248756 | P154: -0.06135977248 | Q154: 154 | R154: 0.07354899189 | S154: 0.1025825728 | T154: 0.05060832184 | U154: 154 | V154: 0.07354899189 | W154: 0.2147062476 | X154: 0.1626135616 | Y154: 154 | Z154: 0.07354899189 | AA154: 0.3986744133 | AB154: 0.3562311215 | AC154: 154 | AD154: 0.07354899189 | AE154: -0.03278129051 | AF154: 0.01493615362 | AG154: 154 | AH154: 0.07354899189 | AI154: 0.3544235811 | AJ154: -0.1595675677 | AK154: 154 | AL154: 0.07354899189 | AM154: 1.381588127 | AN154: -0.008283146233 | AO154: 154 | AP154: 0.07354899189 | AQ154: 0.5308986135 | AR154: 0.2252929379
A155: 155 | B155: 0.09456298957 | C155: 1.063126483 | D155: 0.03675355791 | E155: 155 | F155: 0.09456298957 | G155: 0.2115902707 | H155: -0.04574271952 | I155: 155 | J155: 0.09456298957 | K155: 0.1643270888 | L155: -0.0884988414 | M155: 155 | N155: 0.09456298957 | O155: 0.2010969726 | P155: -0.05916053193 | Q155: 155 | R155: 0.09456298957 | S155: 0.1020190767 | T155: 0.05295584295 | U155: 155 | V155: 0.09456298957 | W155: 0.2140027303 | X155: 0.1655444099 | Y155: 155 | Z155: 0.09456298957 | AA155: 0.3976824137 | AB155: 0.3603637852 | AC155: 155 | AD155: 0.09456298957 | AE155: -0.03306514655 | AF155: 0.01611869601 | AG155: 155 | AH155: 0.09456298957 | AI155: 0.3539770572 | AJ155: -0.1577073523 | AK155: 155 | AL155: 0.09456298957 | AM155: 1.380813981 | AN155: -0.005058057155 | AO155: 155 | AP155: 0.09456298957 | AQ155: 0.5303359421 | AR155: 0.2276370235
A156: 156 | B156: 0.1155769873 | C156: 1.062361533 | D156: 0.0392995903 | E156: 156 | F156: 0.1155769873 | G156: 0.210929858 | H156: -0.04354462605 | I156: 156 | J156: 0.1155769873 | K156: 0.1637359819 | L156: -0.08653142282 | M156: 156 | N156: 0.1155769873 | O156: 0.200437531 | P156: -0.05696567047 | Q156: 156 | R156: 0.1155769873 | S156: 0.1013151732 | T156: 0.05529868972 | U156: 156 | V156: 0.1155769873 | W156: 0.2131239164 | X156: 0.1684694223 | Y156: 156 | Z156: 0.1155769873 | AA156: 0.3964432358 | AB156: 0.3644882201 | AC156: 156 | AD156: 0.1155769873 | AE156: -0.03341973151 | AF156: 0.01729888375 | AG156: 156 | AH156: 0.1155769873 | AI156: 0.3534192722 | AJ156: -0.1558508409 | AK156: 156 | AL156: 0.1155769873 | AM156: 1.379846939 | AN156: -0.001839389809 | AO156: 156 | AP156: 0.1155769873 | AQ156: 0.5296330687 | AR156: 0.2299764415
A157: 157 | B157: 0.1365909849 | C157: 1.061444336 | D157: 0.04183941871 | E157: 157 | F157: 0.1365909849 | G157: 0.2101380048 | H157: -0.04135188874 | I157: 157 | J157: 0.1365909849 | K157: 0.1630272283 | L157: -0.0845687983 | M157: 157 | N157: 0.1365909849 | O157: 0.1996468421 | P157: -0.05477615727 | Q157: 157 | R157: 0.1365909849 | S157: 0.1004711732 | T157: 0.05763582762 | U157: 157 | V157: 0.1365909849 | W157: 0.2120701939 | X157: 0.1713873072 | Y157: 157 | Z157: 0.1365909849 | AA157: 0.3949574267 | AB157: 0.3686026048 | AC157: 157 | AD157: 0.1365909849 | AE157: -0.03384488882 | AF157: 0.01847619569 | AG157: 157 | AH157: 0.1365909849 | AI157: 0.3527504723 | AJ157: -0.1539988533 | AK157: 157 | AL157: 0.1365909849 | AM157: 1.378687428 | AN157: 0.001371434531 | AO157: 157 | AP157: 0.1365909849 | AQ157: 0.5287903039 | AR157: 0.232310159
A158: 158 | B158: 0.1576049826 | C158: 1.060375298 | D158: 0.04437192162 | E158: 158 | F158: 0.1576049826 | G158: 0.2092150605 | H158: -0.03916547582 | I158: 158 | J158: 0.1576049826 | K158: 0.1622011407 | L158: -0.08261183448 | M158: 158 | N158: 0.1576049826 | O158: 0.1987252549 | P158: -0.05259295918 | Q158: 158 | R158: 0.1576049826 | S158: 0.09948744943 | T158: 0.05996622463 | U158: 158 | V158: 0.1576049826 | W158: 0.2108420281 | X158: 0.1742967763 | Y158: 158 | Z158: 0.1576049826 | AA158: 0.3932256426 | AB158: 0.3727051227 | AC158: 158 | AD158: 0.1576049826 | AE158: -0.03434043074 | AF158: 0.01965011197 | AG158: 158 | AH158: 0.1576049826 | AI158: 0.351970953 | AJ158: -0.1521522073 | AK158: 158 | AL158: 0.1576049826 | AM158: 1.377335962 | AN158: 0.004572998057 | AO158: 158 | AP158: 0.1576049826 | AQ158: 0.5278080198 | AR158: 0.2346371456
A159: 159 | B159: 0.1786189803 | C159: 1.05915489 | D159: 0.04689598076 | E159: 159 | F159: 0.1786189803 | G159: 0.2081614329 | H159: -0.03698635277 | I159: 159 | J159: 0.1786189803 | K159: 0.1612580841 | L159: -0.08066139549 | M159: 159 | N159: 0.1786189803 | O159: 0.1976731765 | P159: -0.05041704023 | Q159: 159 | R159: 0.1786189803 | S159: 0.09836443617 | T159: 0.06228885172 | U159: 159 | V159: 0.1786189803 | W159: 0.2094399613 | X159: 0.1771965447 | Y159: 159 | Z159: 0.1786189803 | AA159: 0.3912486482 | AB159: 0.376793962 | AC159: 159 | AD159: 0.1786189803 | AE159: -0.03490613844 | AF159: 0.02082011423 | AG159: 159 | AH159: 0.1786189803 | AI159: 0.3510810583 | AJ159: -0.1503117183 | AK159: 159 | AL159: 0.1786189803 | AM159: 1.375793135 | AN159: 0.007763887048 | AO159: 159 | AP159: 0.1786189803 | AQ159: 0.5266866501 | AR159: 0.2369563735
A160: 160 | B160: 0.199632978 | C160: 1.057783652 | D160: 0.04941048156 | E160: 160 | F160: 0.199632978 | G160: 0.2069775871 | H160: -0.0348154818 | I160: 160 | J160: 0.199632978 | K160: 0.1601984748 | L160: -0.0787183426 | M160: 160 | N160: 0.199632978 | O160: 0.1964910714 | P160: -0.04824936123 | Q160: 160 | R160: 0.199632978 | S160: 0.09710262936 | T160: 0.06460268328 | U160: 160 | V160: 0.199632978 | W160: 0.2078646126 | X160: 0.180085332 | Y160: 160 | Z160: 0.199632978 | AA160: 0.3890273164 | AB160: 0.3808673175 | AC160: 160 | AD160: 0.199632978 | AE160: -0.03554176214 | AF160: 0.02198568581 | AG160: 160 | AH160: 0.199632978 | AI160: 0.3500811812 | AJ160: -0.1484781991 | AK160: 160 | AL160: 0.199632978 | AM160: 1.37405963 | AN160: 0.0109426925 | AO160: 160 | AP160: 0.199632978 | AQ160: 0.5254266899 | AR160: 0.2392668188
A161: 161 | B161: 0.2206469757 | C161: 1.056262189 | D161: 0.0519143137 | E161: 161 | F161: 0.2206469757 | G161: 0.2056640459 | H161: -0.03265382153 | I161: 161 | J161: 0.2206469757 | K161: 0.1590227808 | L161: -0.0767835338 | M161: 161 | N161: 0.2206469757 | O161: 0.1951794615 | P161: -0.04609087939 | Q161: 161 | R161: 0.2206469757 | S161: 0.09570258617 | T161: 0.06690669758 | U161: 161 | V161: 0.2206469757 | W161: 0.2061166777 | X161: 0.1829618626 | Y161: 161 | Z161: 0.2206469757 | AA161: 0.3865626281 | AB161: 0.3849233902 | AC161: 161 | AD161: 0.2206469757 | AE161: -0.03624702115 | AF161: 0.02314631205 | AG161: 161 | AH161: 0.2206469757 | AI161: 0.3489717633 | AJ161: -0.1466524592 | AK161: 161 | AL161: 0.2206469757 | AM161: 1.372136212 | AN161: 0.01410801073 | AO161: 161 | AP161: 0.2206469757 | AQ161: 0.5240286956 | AR161: 0.2415674612
A162: 162 | B162: 0.2416609734 | C162: 1.054591172 | D162: 0.05440637155 | E162: 162 | F162: 0.2416609734 | G162: 0.2042213893 | H162: -0.03050232649 | I162: 162 | J162: 0.2416609734 | K162: 0.1577315211 | L162: -0.07485782345 | M162: 162 | N162: 0.2416609734 | O162: 0.1937389262 | P162: -0.04394254782 | Q162: 162 | R162: 0.2416609734 | S162: 0.09416492482 | T162: 0.06919987724 | U162: 162 | V162: 0.2416609734 | W162: 0.2041969283 | X162: 0.1858248663 | Y162: 162 | Z162: 0.2416609734 | AA162: 0.3838556717 | AB162: 0.3889603892 | AC162: 162 | AD162: 0.2416609734 | AE162: -0.03702160406 | AF162: 0.02430148043 | AG162: 162 | AH162: 0.2416609734 | AI162: 0.3477532945 | AJ162: -0.1448353048 | AK162: 162 | AL162: 0.2416609734 | AM162: 1.370023731 | AN162: 0.01725844404 | AO162: 162 | AP162: 0.2416609734 | AQ162: 0.5224932846 | AR162: 0.2438572848
A163: 163 | B163: 0.262674971 | C163: 1.05277134 | D163: 0.0568855547 | E163: 163 | F163: 0.262674971 | G163: 0.2026502544 | H163: -0.0283619467 | I163: 163 | J163: 0.262674971 | K163: 0.1563252661 | L163: -0.07294206189 | M163: 163 | N163: 0.262674971 | O163: 0.1921701014 | P163: -0.04180531517 | Q163: 163 | R163: 0.262674971 | S163: 0.09249032431 | T163: 0.07148120966 | U163: 163 | V163: 0.262674971 | W163: 0.2021062123 | X163: 0.1886730788 | Y163: 163 | Z163: 0.262674971 | AA163: 0.3809076425 | AB163: 0.3929765319 | AC163: 163 | AD163: 0.262674971 | AE163: -0.03786516882 | AF163: 0.02545068087 | AG163: 163 | AH163: 0.262674971 | AI163: 0.3464263127 | AJ163: -0.1430275384 | AK163: 163 | AL163: 0.262674971 | AM163: 1.367723119 | AN163: 0.02039260128 | AO163: 163 | AP163: 0.262674971 | AQ163: 0.5208211349 | AR163: 0.2461352786
A164: 164 | B164: 0.2836889687 | C164: 1.050803497 | D164: 0.0593507684 | E164: 164 | F164: 0.2836889687 | G164: 0.2009513348 | H164: -0.0262336273 | I164: 164 | J164: 0.2836889687 | K164: 0.1548046365 | L164: -0.07103709507 | M164: 164 | N164: 0.2836889687 | O164: 0.1904736799 | P164: -0.03968012518 | Q164: 164 | R164: 0.2836889687 | S164: 0.09067952408 | T164: 0.07374968746 | U164: 164 | V164: 0.2836889687 | W164: 0.1998454528 | X164: 0.1915052426 | Y164: 164 | Z164: 0.2836889687 | AA164: 0.3777198422 | AB164: 0.3969700449 | AC164: 164 | AD164: 0.2836889687 | AE164: -0.03877734296 | AF164: 0.02659340592 | AG164: 164 | AH164: 0.2836889687 | AI164: 0.344991404 | AJ164: -0.1412299583 | AK164: 164 | AL164: 0.2836889687 | AM164: 1.365235392 | AN164: 0.02350909849 | AO164: 164 | AP164: 0.2836889687 | AQ164: 0.5190129847 | AR164: 0.2484004365
A165: 165 | B165: 0.3047029664 | C165: 1.04868851 | D165: 0.06180092408 | E165: 165 | F165: 0.3047029664 | G165: 0.1991253809 | H165: -0.0241183081 | I165: 165 | J165: 0.3047029664 | K165: 0.153170304 | L165: -0.06914376416 | M165: 165 | N165: 0.3047029664 | O165: 0.1886504108 | P165: -0.03756791627 | Q165: 165 | R165: 0.3047029664 | S165: 0.08873332374 | T165: 0.07600430895 | U165: 165 | V165: 0.3047029664 | W165: 0.1974156481 | X165: 0.1943201069 | Y165: 165 | Z165: 0.3047029664 | AA165: 0.3742936785 | AB165: 0.4009391647 | AC165: 165 | AD165: 0.3047029664 | AE165: -0.03975772366 | AF165: 0.02772915097 | AG165: 165 | AH165: 0.3047029664 | AI165: 0.3434492019 | AJ165: -0.1394433581 | AK165: 165 | AL165: 0.3047029664 | AM165: 1.362561648 | AN165: 0.02660655951 | AO165: 165 | AP165: 0.3047029664 | AQ165: 0.5170696326 | AR165: 0.2506517584
A166: 166 | B166: 0.3257169641 | C166: 1.046427315 | D166: 0.06423493983 | E166: 166 | F166: 0.3257169641 | G166: 0.1971731989 | H166: -0.02201692317 | I166: 166 | J166: 0.3257169641 | K166: 0.1514229901 | L166: -0.06726290521 | M166: 166 | N166: 0.3257169641 | O166: 0.1867010992 | P166: -0.03546962113 | Q166: 166 | R166: 0.3257169641 | S166: 0.08665258267 | T166: 0.07824407855 | U166: 166 | V166: 0.3257169641 | W166: 0.1948178711 | X166: 0.1971164289 | Y166: 166 | Z166: 0.3257169641 | AA166: 0.3706306643 | AB166: 0.4048821387 | AC166: 166 | AD166: 0.3257169641 | AE166: -0.04080587804 | AF166: 0.02885741452 | AG166: 166 | AH166: 0.3257169641 | AI166: 0.3418003875 | AJ166: -0.1376685268 | AK166: 166 | AL166: 0.3257169641 | AM166: 1.359703069 | AN166: 0.0296836166 | AO166: 166 | AP166: 0.3257169641 | AQ166: 0.5149919367 | AR166: 0.2528882501
A167: 167 | B167: 0.3467309618 | C167: 1.044020909 | D167: 0.06665174085 | E167: 167 | F167: 0.3467309618 | G167: 0.1950956508 | H167: -0.01993040041 | I167: 167 | J167: 0.3467309618 | K167: 0.1495634665 | L167: -0.06539534875 | M167: 167 | N167: 0.3467309618 | O167: 0.1846266058 | P167: -0.03338616632 | Q167: 167 | R167: 0.3467309618 | S167: 0.08443821968 | T167: 0.08046800724 | U167: 167 | V167: 0.3467309618 | W167: 0.1920532689 | X167: 0.1998929737 | Y167: 167 | Z167: 0.3467309618 | AA167: 0.3667324171 | AB167: 0.4087972257 | AC167: 167 | AD167: 0.3467309618 | AE167: -0.04192134324 | AF167: 0.02997769835 | AG167: 167 | AH167: 0.3467309618 | AI167: 0.3400456888 | AJ167: -0.1359062481 | AK167: 167 | AL167: 0.3467309618 | AM167: 1.356660916 | AN167: 0.03273891102 | AO167: 167 | AP167: 0.3467309618 | AQ167: 0.5127808144 | AR167: 0.2551089241
A168: 168 | B168: 0.3677449595 | C168: 1.041470356 | D168: 0.06905025995 | E168: 168 | F168: 0.3677449595 | G168: 0.192893654 | H168: -0.01785966117 | I168: 168 | J168: 0.3677449595 | K168: 0.1475925543 | L168: -0.06354191945 | M168: 168 | N168: 0.3677449595 | O168: 0.1824278468 | P168: -0.03131847182 | Q168: 168 | R168: 0.3677449595 | S168: 0.08209121255 | T168: 0.08267511299 | U168: 168 | V168: 0.3677449595 | W168: 0.1891230624 | X168: 0.2026485152 | Y168: 168 | Z168: 0.3677449595 | AA168: 0.3626006581 | AB168: 0.412682697 | AC168: 168 | AD168: 0.3677449595 | AE168: -0.04310362672 | AF168: 0.03108950778 | AG168: 168 | AH168: 0.3677449595 | AI168: 0.3381858807 | AJ168: -0.1341573002 | AK168: 168 | AL168: 0.3677449595 | AM168: 1.353436533 | AN168: 0.03577109362 | AO168: 168 | AP168: 0.3677449595 | AQ168: 0.5104372421 | AR168: 0.2573127998
A169: 169 | B169: 0.3887589571 | C169: 1.03877678 | D169: 0.07142943802 | E169: 169 | F169: 0.3887589571 | G169: 0.1905681809 | H169: -0.01580561984 | I169: 169 | J169: 0.3887589571 | K169: 0.1455111237 | L169: -0.06170343571 | M169: 169 | N169: 0.3887589571 | O169: 0.180105793 | P169: -0.02926745068 | Q169: 169 | R169: 0.3887589571 | S169: 0.07961259766 | T169: 0.08486442122 | U169: 169 | V169: 0.3887589571 | W169: 0.1860285453 | X169: 0.2053818369 | Y169: 169 | Z169: 0.3887589571 | AA169: 0.358237212 | AB169: 0.4165368369 | AC169: 169 | AD169: 0.3887589571 | AE169: -0.0443522064 | AF169: 0.03219235188 | AG169: 169 | AH169: 0.3887589571 | AI169: 0.3362217843 | AJ169: -0.1324224553 | AK169: 169 | AL169: 0.3887589571 | AM169: 1.350031344 | AN169: 0.03877882549 | AO169: 169 | AP169: 0.3887589571 | AQ169: 0.5079622546 | AR169: 0.259498904
A170: 170 | B170: 0.4097729548 | C170: 1.035941373 | D170: 0.07378822447 | E170: 170 | F170: 0.4097729548 | G170: 0.1881202583 | H170: -0.01376918342 | I170: 170 | J170: 0.4097729548 | K170: 0.1433200938 | L170: -0.05988070938 | M170: 170 | N170: 0.4097729548 | O170: 0.1776614697 | P170: -0.02723400856 | Q170: 170 | R170: 0.4097729548 | S170: 0.07700346951 | T170: 0.08703496518 | U170: 170 | V170: 0.4097729548 | W170: 0.1827710842 | X170: 0.2080917315 | Y170: 170 | Z170: 0.4097729548 | AA170: 0.3536440055 | AB170: 0.4203579435 | AC170: 170 | AD170: 0.4097729548 | AE170: -0.04566653096 | AF170: 0.03328574364 | AG170: 170 | AH170: 0.4097729548 | AI170: 0.3341542671 | AJ170: -0.1307024796 | AK170: 170 | AL170: 0.4097729548 | AM170: 1.346446852 | AN170: 0.04176077849 | AO170: 170 | AP170: 0.4097729548 | AQ170: 0.5053569449 | AR170: 0.2616662714
A171: 171 | B171: 0.4307869525 | C171: 1.032965386 | D171: 0.07612557773 | E171: 171 | F171: 0.4307869525 | G171: 0.1855509672 | H171: -0.01175125115 | I171: 171 | J171: 0.4307869525 | K171: 0.1410204322 | L171: -0.0580745453 | M171: 171 | N171: 0.4307869525 | O171: 0.1750959564 | P171: -0.02521904338 | Q171: 171 | R171: 0.4307869525 | S171: 0.0742649802 | T171: 0.08918578642 | U171: 171 | V171: 0.4307869525 | W171: 0.1793521175 | X171: 0.2107770027 | Y171: 171 | Z171: 0.4307869525 | AA171: 0.3488230667 | AB171: 0.4241443294 | AC171: 171 | AD171: 0.4307869525 | AE171: -0.04704602003 | AF171: 0.03436920026 | AG171: 171 | AH171: 0.4307869525 | AI171: 0.3319842418 | AJ171: -0.1289981324 | AK171: 171 | AL171: 0.4307869525 | AM171: 1.34268464 | AN171: 0.04471563588 | AO171: 171 | AP171: 0.4307869525 | AQ171: 0.5026224633 | AR171: 0.2638139449
A172: 172 | B172: 0.4518009502 | C172: 1.029850132 | D172: 0.0784404657 | E172: 172 | F172: 0.4518009502 | G172: 0.182861442 | H172: -0.009752714085 | I172: 172 | J172: 0.4518009502 | K172: 0.1386131543 | L172: -0.05628574104 | M172: 172 | N172: 0.4518009502 | O172: 0.1724103858 | P172: -0.02322344489 | Q172: 172 | R172: 0.4518009502 | S172: 0.07139833898 | T172: 0.0913159352 | U172: 172 | V172: 0.4518009502 | W172: 0.1757731548 | X172: 0.2134364645 | Y172: 172 | Z172: 0.4518009502 | AA172: 0.3437765246 | AB172: 0.4278943228 | AC172: 172 | AD172: 0.4518009502 | AE172: -0.04849006445 | AF172: 0.03544224332 | AG172: 172 | AH172: 0.4518009502 | AI172: 0.3297126668 | AJ172: -0.1273101665 | AK172: 172 | AL172: 0.4518009502 | AM172: 1.338746369 | AN172: 0.04764209288 | AO172: 172 | AP172: 0.4518009502 | AQ172: 0.4997600174 | AR172: 0.2659409763
A173: 173 | B173: 0.4728149479 | C173: 1.026596989 | D173: 0.08073186617 | E173: 173 | F173: 0.4728149479 | G173: 0.1800528705 | H173: -0.007774454724 | I173: 173 | J173: 0.4728149479 | K173: 0.1360993232 | L173: -0.05451508648 | M173: 173 | N173: 0.4728149479 | O173: 0.1696059438 | P173: -0.02124809429 | Q173: 173 | R173: 0.4728149479 | S173: 0.06840481167 | T173: 0.09342447091 | U173: 173 | V173: 0.4728149479 | W173: 0.1720357766 | X173: 0.2160689427 | Y173: 173 | Z173: 0.4728149479 | AA173: 0.3385066074 | AB173: 0.4316062677 | AC173: 173 | AD173: 0.4728149479 | AE173: -0.04999802658 | AF173: 0.03650439899 | AG173: 173 | AH173: 0.4728149479 | AI173: 0.3273405452 | AJ173: -0.1256393272 | AK173: 173 | AL173: 0.4728149479 | AM173: 1.334633779 | AN173: 0.05053885724 | AO173: 173 | AP173: 0.4728149479 | AQ173: 0.496770871 | AR173: 0.2680464262
A174: 174 | B174: 0.4938289455 | C174: 1.023207391 | D174: 0.08299876734 | E174: 174 | F174: 0.4938289455 | G174: 0.1771264927 | H174: -0.005817346612 | I174: 174 | J174: 0.4938289455 | K174: 0.1334800487 | L174: -0.05276336349 | M174: 174 | N174: 0.4938289455 | O174: 0.1666838689 | P174: -0.01929386384 | Q174: 174 | R174: 0.4938289455 | S174: 0.06528572013 | T174: 0.09551046247 | U174: 174 | V174: 0.4938289455 | W174: 0.1681416332 | X174: 0.2186732749 | Y174: 174 | Z174: 0.4938289455 | AA174: 0.3330156423 | AB174: 0.4352785251 | AC174: 174 | AD174: 0.4938289455 | AE174: -0.05156924055 | AF174: 0.03755519825 | AG174: 174 | AH174: 0.4938289455 | AI174: 0.3248689243 | AJ174: -0.1239863522 | AK174: 174 | AL174: 0.4938289455 | AM174: 1.330348685 | AN174: 0.05340464984 | AO174: 174 | AP174: 0.4938289455 | AQ174: 0.4936563442 | AR174: 0.2701293649
A175: 175 | B175: 0.5148429432 | C175: 1.019682836 | D175: 0.0852401682 | E175: 175 | F175: 0.5148429432 | G175: 0.1740836009 | H175: -0.003882253952 | I175: 175 | J175: 0.5148429432 | K175: 0.1307564877 | L175: -0.05103134558 | M175: 175 | N175: 0.5148429432 | O175: 0.1636454513 | P175: -0.01736161647 | Q175: 175 | R175: 0.5148429432 | S175: 0.06204244167 | T175: 0.09757298878 | U175: 175 | V175: 0.5148429432 | W175: 0.164092444 | X175: 0.221248311 | Y175: 175 | Z175: 0.5148429432 | AA175: 0.3273060539 | AB175: 0.4389094734 | AC175: 175 | AD175: 0.5148429432 | AE175: -0.05320301256 | AF175: 0.03859417711 | AG175: 175 | AH175: 0.5148429432 | AI175: 0.3222988956 | AJ175: -0.1223519715 | AK175: 175 | AL175: 0.5148429432 | AM175: 1.32589298 | AN175: 0.05623820522 | AO175: 175 | AP175: 0.5148429432 | AQ175: 0.4904178123 | AR175: 0.2721888727
A176: 176 | B176: 0.5358569409 | C176: 1.01602488 | D176: 0.08745507902 | E176: 176 | F176: 0.5358569409 | G176: 0.1709255388 | H176: -0.001970031228 | I176: 176 | J176: 0.5358569409 | K176: 0.1279298426 | L176: -0.04931979756 | M176: 176 | N176: 0.5358569409 | O176: 0.1604920326 | P176: -0.01545220541 | Q176: 176 | R176: 0.5358569409 | S176: 0.05867640843 | T176: 0.09961113907 | U176: 176 | V176: 0.5358569409 | W176: 0.1598899972 | X176: 0.223792914 | Y176: 176 | Z176: 0.5358569409 | AA176: 0.3213803634 | AB176: 0.4424975092 | AC176: 176 | AD176: 0.5358569409 | AE176: -0.05489862116 | AF176: 0.03962087676 | AG176: 176 | AH176: 0.5358569409 | AI176: 0.3196315939 | AJ176: -0.1207369067 | AK176: 176 | AL176: 0.5358569409 | AM176: 1.321268631 | AN176: 0.05903827216 | AO176: 176 | AP176: 0.5358569409 | AQ176: 0.4870567052 | AR176: 0.2742240402
A177: 177 | B177: 0.5568709386 | C177: 1.012235139 | D177: 0.08964252175 | E177: 177 | F177: 0.5568709386 | G177: 0.1676537008 | H177: -8.152282162e-05 | I177: 177 | J177: 0.5568709386 | K177: 0.1250013616 | L177: -0.0476294752 | M177: 177 | N177: 0.5568709386 | O177: 0.1572250055 | P177: -0.01356647379 | Q177: 177 | R177: 0.5568709386 | S177: 0.05518910674 | T177: 0.1016240134 | U177: 177 | V177: 0.5568709386 | W177: 0.1555361483 | X177: 0.2263059602 | Y177: 177 | Z177: 0.5568709386 | AA177: 0.3152411874 | AB177: 0.4460410482 | AC177: 177 | AD177: 0.5568709386 | AE177: -0.05665531765 | AF177: 0.04063484387 | AG177: 177 | AH177: 0.5568709386 | AI177: 0.3168681971 | AJ177: -0.1191418711 | AK177: 177 | AL177: 0.5568709386 | AM177: 1.31647768 | AN177: 0.06180361424 | AO177: 177 | AP177: 0.5568709386 | AQ177: 0.4835745071 | AR177: 0.2762339687
A178: 178 | B178: 0.5778849363 | C178: 1.008315286 | D178: 0.09180153048 | E178: 178 | F178: 0.5778849363 | G178: 0.1642695317 | H178: 0.001782437354 | I178: 178 | J178: 0.5778849363 | K178: 0.121972338 | L178: -0.0459611249 | M178: 178 | N178: 0.5778849363 | O178: 0.1538458124 | P178: -0.01170525432 | Q178: 178 | R178: 0.5778849363 | S178: 0.05158207651 | T178: 0.1036107228 | U178: 178 | V178: 0.5778849363 | W178: 0.1510328201 | X178: 0.22878634 | Y178: 178 | Z178: 0.5778849363 | AA178: 0.3088912368 | AB178: 0.4495385257 | AC178: 178 | AD178: 0.5778849363 | AE178: -0.05847232629 | AF178: 0.04163563067 | AG178: 178 | AH178: 0.5778849363 | AI178: 0.3140099254 | AJ178: -0.1175675689 | AK178: 178 | AL178: 0.5778849363 | AM178: 1.311522242 | AN178: 0.06453301035 | AO178: 178 | AP178: 0.5778849363 | AQ178: 0.4799727557 | AR178: 0.2782177706
A179: 179 | B179: 0.598898934 | C179: 1.004267051 | D179: 0.09393115186 | E179: 179 | F179: 0.598898934 | G179: 0.1607745259 | H179: 0.003621026226 | I179: 179 | J179: 0.598898934 | K179: 0.1188441091 | L179: -0.04431548337 | M179: 179 | N179: 0.598898934 | O179: 0.1503559455 | P179: -0.00986936884 | Q179: 179 | R179: 0.598898934 | S179: 0.0478569105 | T179: 0.1055703902 | U179: 179 | V179: 0.598898934 | W179: 0.1463820008 | X179: 0.2312329581 | Y179: 179 | Z179: 0.598898934 | AA179: 0.3023333155 | AB179: 0.4529883972 | AC179: 179 | AD179: 0.598898934 | AE179: -0.06034884476 | AF179: 0.04262279527 | AG179: 179 | AH179: 0.598898934 | AI179: 0.3110580408 | AJ179: -0.1160146954 | AK179: 179 | AL179: 0.598898934 | AM179: 1.306404507 | AN179: 0.06722525527 | AO179: 179 | AP179: 0.598898934 | AQ179: 0.4762530414 | AR179: 0.2801745701
A180: 180 | B180: 0.6199129316 | C180: 1.000092223 | D180: 0.09603044549 | E180: 180 | F180: 0.6199129316 | G180: 0.1571702267 | H180: 0.005433431926 | I180: 180 | J180: 0.6199129316 | K180: 0.1156180565 | L180: -0.04269327726 | M180: 180 | N180: 0.6199129316 | O180: 0.1467569459 | P180: -0.008059628035 | Q180: 180 | R180: 0.6199129316 | S180: 0.04401525364 | T180: 0.1075021501 | U180: 180 | V180: 0.6199129316 | W180: 0.1415857444 | X180: 0.2336447342 | Y180: 180 | Z180: 0.6199129316 | AA180: 0.2955703195 | AB180: 0.4563891394 | AC180: 180 | AD180: 0.6199129316 | AE180: -0.06228404444 | AF180: 0.04359590174 | AG180: 180 | AH180: 0.6199129316 | AI180: 0.308013847 | AJ180: -0.1144839361 | AK180: 180 | AL180: 0.6199129316 | AM180: 1.301126733 | AN180: 0.06987916019 | AO180: 180 | AP180: 0.6199129316 | AQ180: 0.4724170068 | AR180: 0.2821035029
A181: 181 | B181: 0.6409269293 | C181: 0.9957926445 | D181: 0.0980984844 | E181: 181 | F181: 0.6409269293 | G181: 0.1534582256 | H181: 0.007218854147 | I181: 181 | J181: 0.6409269293 | K181: 0.1122956045 | L181: -0.0410952229 | M181: 181 | N181: 0.6409269293 | O181: 0.1430504027 | P181: -0.006276831034 | Q181: 181 | R181: 0.6409269293 | S181: 0.04005880229 | T181: 0.1094051496 | U181: 181 | V181: 0.6409269293 | W181: 0.1366461685 | X181: 0.2360206032 | Y181: 181 | Z181: 0.6409269293 | AA181: 0.2886052349 | AB181: 0.4597392507 | AC181: 181 | AD181: 0.6409269293 | AE181: -0.0642770708 | AF181: 0.0445545204 | AG181: 181 | AH181: 0.6409269293 | AI181: 0.304878688 | AJ181: -0.1129759672 | AK181: 181 | AL181: 0.6409269293 | AM181: 1.295691251 | AN181: 0.07249355321 | AO181: 181 | AP181: 0.6409269293 | AQ181: 0.4684663456 | AR181: 0.2840037173
A182: 182 | B182: 0.661940927 | C182: 0.9913702146 | D182: 0.1001343554 | E182: 182 | F182: 0.661940927 | G182: 0.1496401617 | H182: 0.008976504496 | I182: 182 | J182: 0.661940927 | K182: 0.1088782203 | L182: -0.03952202594 | M182: 182 | N182: 0.661940927 | O182: 0.1392379528 | P182: -0.00452176507 | Q182: 182 | R182: 0.661940927 | S182: 0.03598930351 | T182: 0.1112785483 | U182: 182 | V182: 0.661940927 | W182: 0.1315654545 | X182: 0.238359516 | Y182: 182 | Z182: 0.661940927 | AA182: 0.2814411374 | AB182: 0.4630372517 | AC182: 182 | AD182: 0.661940927 | AE182: -0.06632704376 | AF182: 0.04549822794 | AG182: 182 | AH182: 0.661940927 | AI182: 0.3016539484 | AJ182: -0.1114914544 | AK182: 182 | AL182: 0.661940927 | AM182: 1.290100462 | AN182: 0.07506727988 | AO182: 182 | AP182: 0.661940927 | AQ182: 0.4644028025 | AR182: 0.2858743743
A183: 183 | B183: 0.6829549247 | C183: 0.9868268859 | D183: 0.1021371595 | E183: 183 | F183: 0.6829549247 | G183: 0.145717721 | H183: 0.01070560684 | I183: 183 | J183: 0.6829549247 | K183: 0.1053674129 | L183: -0.03797438106 | M183: 183 | N183: 0.6829549247 | O183: 0.1353212795 | P183: -0.00279520513 | Q183: 183 | R183: 0.6829549247 | S183: 0.03180855428 | T183: 0.113121519 | U183: 183 | V183: 0.6829549247 | W183: 0.1263458459 | X183: 0.24066044 | Y183: 183 | Z183: 0.6829549247 | AA183: 0.2740811905 | AB183: 0.466281686 | AC183: 183 | AD183: 0.6829549247 | AE183: -0.06843305813 | AF183: 0.04642660766 | AG183: 183 | AH183: 0.6829549247 | AI183: 0.298341052 | AJ183: -0.1100310532 | AK183: 183 | AL183: 0.6829549247 | AM183: 1.284356834 | AN183: 0.07759920373 | AO183: 183 | AP183: 0.6829549247 | AQ183: 0.4602281717 | AR183: 0.2877146479
A184: 184 | B184: 0.7039689224 | C184: 0.9821646646 | D184: 0.1041060123 | E184: 184 | F184: 0.7039689224 | G184: 0.1416926355 | H184: 0.01240539767 | I184: 184 | J184: 0.7039689224 | K184: 0.1017647326 | L184: -0.03645297167 | M184: 184 | N184: 0.7039689224 | O184: 0.1313021123 | P184: -0.001097913616 | Q184: 184 | R184: 0.7039689224 | S184: 0.0275184007 | T184: 0.1149332479 | U184: 184 | V184: 0.7039689224 | W184: 0.1209896473 | X184: 0.2429223589 | Y184: 184 | Z184: 0.7039689224 | AA184: 0.266528644 | AB184: 0.4694711212 | AC184: 184 | AD184: 0.7039689224 | AE184: -0.07059418395 | AF184: 0.0473392496 | AG184: 184 | AH184: 0.7039689224 | AI184: 0.2949414617 | AJ184: -0.1085954086 | AK184: 184 | AL184: 0.7039689224 | AM184: 1.278462903 | AN184: 0.08008820673 | AO184: 184 | AP184: 0.7039689224 | AQ184: 0.4559442967 | AR184: 0.2895237253
A185: 185 | B185: 0.7249829201 | C185: 0.9773856096 | D185: 0.1060400444 | E185: 185 | F185: 0.7249829201 | G185: 0.1375666826 | H185: 0.01407512639 | I185: 185 | J185: 0.7249829201 | K185: 0.09807177029 | L185: -0.03495846956 | M185: 185 | N185: 0.7249829201 | O185: 0.1271822261 | P185: 0.0005693599977 | Q185: 185 | R185: 0.7249829201 | S185: 0.02312073717 | T185: 0.1167129349 | U185: 185 | V185: 0.7249829201 | W185: 0.1154992241 | X185: 0.2451442741 | Y185: 185 | Z185: 0.7249829201 | AA185: 0.2587868331 | AB185: 0.4726041487 | AC185: 185 | AD185: 0.7249829201 | AE185: -0.07280946692 | AF185: 0.04823575077 | AG185: 185 | AH185: 0.7249829201 | AI185: 0.2914566788 | AJ185: -0.1071851545 | AK185: 185 | AL185: 0.7249829201 | AM185: 1.272421272 | AN185: 0.08253318981 | AO185: 185 | AP185: 0.7249829201 | AQ185: 0.4515530691 | AR185: 0.2913008079
A186: 186 | B186: 0.7459969177 | C186: 0.9724918309 | D186: 0.1079384019 | E186: 186 | F186: 0.7459969177 | G186: 0.1333416842 | H186: 0.0157140557 | I186: 186 | J186: 0.7459969177 | K186: 0.09429015658 | L186: -0.03349153468 | M186: 186 | N186: 0.7459969177 | O186: 0.12296344 | P186: 0.002205879489 | Q186: 186 | R186: 0.7459969177 | S186: 0.0186175056 | T186: 0.1184597944 | U186: 186 | V186: 0.7459969177 | W186: 0.1098770006 | X186: 0.2473252043 | Y186: 186 | Z186: 0.7459969177 | AA186: 0.2508591762 | AB186: 0.4756793852 | AC186: 186 | AD186: 0.7459969177 | AE186: -0.07507792884 | AF186: 0.0491157153 | AG186: 186 | AH186: 0.7459969177 | AI186: 0.2878882419 | AJ186: -0.1058009135 | AK186: 186 | AL186: 0.7459969177 | AM186: 1.266234608 | AN186: 0.08493307332 | AO186: 186 | AP186: 0.7459969177 | AQ186: 0.447056428 | AR186: 0.2930451108
A187: 187 | B187: 0.7670109154 | C187: 0.9674854897 | D187: 0.1098002464 | E187: 187 | F187: 0.7670109154 | G187: 0.1290195059 | H187: 0.0173214619 | I187: 187 | J187: 0.7670109154 | K187: 0.09042156137 | L187: -0.03205281477 | M187: 187 | N187: 0.7670109154 | O187: 0.1186476168 | P187: 0.003810922217 | Q187: 187 | R187: 0.7670109154 | S187: 0.01401069446 | T187: 0.1201730547 | U187: 187 | V187: 0.7670109154 | W187: 0.1041254594 | X187: 0.2494641867 | Y187: 187 | Z187: 0.7670109154 | AA187: 0.242749174 | AB187: 0.4786954727 | AC187: 187 | AD187: 0.7670109154 | AE187: -0.07739856801 | AF187: 0.04997875462 | AG187: 187 | AH187: 0.7670109154 | AI187: 0.2842377269 | AJ187: -0.104443297 | AK187: 187 | AL187: 0.7670109154 | AM187: 1.259905644 | AN187: 0.08728679755 | AO187: 187 | AP187: 0.7670109154 | AQ187: 0.4424563588 | AR187: 0.2947558638
A188: 188 | B188: 0.7880249131 | C188: 0.9623687966 | D188: 0.1116247558 | E188: 188 | F188: 0.7880249131 | G188: 0.1246020563 | H188: 0.0188966352 | I188: 188 | J188: 0.7880249131 | K188: 0.08646769291 | L188: -0.03064294514 | M188: 188 | N188: 0.7880249131 | O188: 0.1142366625 | P188: 0.00538377944 | Q188: 188 | R188: 0.7880249131 | S188: 0.009302338014 | T188: 0.1218519595 | U188: 188 | V188: 0.7880249131 | W188: 0.09824714026 | X188: 0.2515602765 | Y188: 188 | Z188: 0.7880249131 | AA188: 0.2344604077 | AB188: 0.4816510793 | AC188: 188 | AD188: 0.7880249131 | AE188: -0.07977035972 | AF188: 0.05082448763 | AG188: 188 | AH188: 0.7880249131 | AI188: 0.2805067456 | AJ188: -0.1031129045 | AK188: 188 | AL188: 0.7880249131 | AM188: 1.253437175 | AN188: 0.08959332317 | AO188: 188 | AP188: 0.7880249131 | AQ188: 0.437754893 | AR188: 0.2964323116
A189: 189 | B189: 0.8090389108 | C189: 0.9571440109 | D189: 0.1134111245 | E189: 189 | F189: 0.8090389108 | G189: 0.120091286 | H189: 0.02043888005 | I189: 189 | J189: 0.8090389108 | K189: 0.08243029712 | L189: -0.02926254835 | M189: 189 | N189: 0.8090389108 | O189: 0.1097325247 | P189: 0.006923756629 | Q189: 189 | R189: 0.8090389108 | S189: 0.004494515324 | T189: 0.1234957674 | U189: 189 | V189: 0.8090389108 | W189: 0.09224463887 | X189: 0.2536125484 | Y189: 189 | Z189: 0.8090389108 | AA189: 0.2259965372 | AB189: 0.4845449001 | AC189: 189 | AD189: 0.8090389108 | AE189: -0.08219225664 | AF189: 0.05165254089 | AG189: 189 | AH189: 0.8090389108 | AI189: 0.2766969456 | AJ189: -0.1018103233 | AK189: 189 | AL189: 0.8090389108 | AM189: 1.246832056 | AN189: 0.09185163166 | AO189: 189 | AP189: 0.8090389108 | AQ189: 0.4329541065 | AR189: 0.2980737138
A190: 190 | B190: 0.8300529085 | C190: 0.9518134398 | D190: 0.1151585637 | E190: 190 | F190: 0.8300529085 | G190: 0.1154891868 | H190: 0.02194751544 | I190: 190 | J190: 0.8300529085 | K190: 0.07831115681 | L190: -0.02791223393 | M190: 190 | N190: 0.8300529085 | O190: 0.1051371923 | P190: 0.008430173773 | Q190: 190 | R190: 0.8300529085 | S190: -0.0004106506055 | T190: 0.1251037525 | U190: 190 | V190: 0.8300529085 | W190: 0.08612060577 | X190: 0.255620096 | Y190: 190 | Z190: 0.8300529085 | AA190: 0.2173613001 | AB190: 0.487375657 | AC190: 190 | AD190: 0.8300529085 | AE190: -0.08466318933 | AF190: 0.05246254875 | AG190: 190 | AH190: 0.8300529085 | AI190: 0.2728100092 | AJ190: -0.1005361287 | AK190: 190 | AL190: 0.8300529085 | AM190: 1.240093204 | AN190: 0.09406072583 | AO190: 190 | AP190: 0.8300529085 | AQ190: 0.4280561192 | AR190: 0.2996793456
A191: 191 | B191: 0.8510669062 | C191: 0.9463794371 | D191: 0.1168663016 | E191: 191 | F191: 0.8510669062 | G191: 0.1107977909 | H191: 0.02342187519 | I191: 191 | J191: 0.8510669062 | K191: 0.07411209087 | L191: -0.02659259816 | M191: 191 | N191: 0.8510669062 | O191: 0.1004526945 | P191: 0.009902365681 | Q191: 191 | R191: 0.8510669062 | S191: -0.005410993792 | T191: 0.1266752048 | U191: 191 | V191: 0.8510669062 | W191: 0.07987774516 | X191: 0.2575820328 | Y191: 191 | Z191: 0.8510669062 | AA191: 0.2085585094 | AB191: 0.4901421003 | AC191: 191 | AD191: 0.8510669062 | AE191: -0.08718206669 | AF191: 0.05325415353 | AG191: 191 | AH191: 0.8510669062 | AI191: 0.2688476527 | AJ191: -0.09929088335 | AK191: 191 | AL191: 0.8510669062 | AM191: 1.233223595 | AN191: 0.0962196302 | AO191: 191 | AP191: 0.8510669062 | AQ191: 0.423063094 | AR191: 0.3012484981
A192: 192 | B192: 0.8720809038 | C192: 0.9408444023 | D192: 0.1185335843 | E192: 192 | F192: 0.8720809038 | G192: 0.10601917 | H192: 0.02486130827 | I192: 192 | J192: 0.8720809038 | K192: 0.06983495349 | L192: -0.02530422374 | M192: 192 | N192: 0.8720809038 | O192: 0.09568109977 | P192: 0.01133968227 | Q192: 192 | R192: 0.8720809038 | S192: -0.01050430623 | T192: 0.1282094304 | U192: 192 | V192: 0.8720809038 | W192: 0.0735188137 | X192: 0.2594974926 | Y192: 192 | Z192: 0.8720809038 | AA192: 0.1995920522 | AB192: 0.4928430082 | AC192: 192 | AD192: 0.8720809038 | AE192: -0.08974777647 | AF192: 0.05402700569 | AG192: 192 | AH192: 0.8720809038 | AI192: 0.2648116258 | AJ192: -0.09807513708 | AK192: 192 | AL192: 0.8720809038 | AM192: 1.226226262 | AN192: 0.09832739147 | AO192: 192 | AP192: 0.8720809038 | AQ192: 0.4179772355 | AR192: 0.3027804783
A193: 193 | B193: =-3.14159265358979+(A193-1)*0.0210139976828748 -> 0.8930949015 | C193: =0.347098823636324*COS(B193)+0.717578409393402 -> 0.9352107795 | D193: =0.121832989107382*SIN(B193)+0.0252498288314242+0*COS(B193) -> 0.1201596756 | E193: 193 | F193: =-3.14159265358979+(E193-1)*0.0210139976828748 -> 0.8930949015 | G193: =0.299664552058601*COS(F193)+-0.0867354554826123 -> 0.1011554339 | H193: =0.105183381851725*SIN(F193)+-0.055674357386175+0*COS(F193) -> 0.02626517907 | I193: 193 | J193: =-3.14159265358979+(I193-1)*0.0210139976828748 -> 0.8930949015 | K193: =0.268216805569019*COS(J193)+-0.102691391514969 -> 0.06548163333 | L193: =0.0941451048694578*SIN(J193)+-0.0973882217616218+0*COS(J193) -> -0.02404767958 | M193: 193 | N193: =-3.14159265358979+(M193-1)*0.0210139976828748 -> 0.8930949015 | O193: =0.299223936258687*COS(N193)+-0.0967901063170089 -> 0.09082451522 | P193: =0.105028724053151*SIN(N193)+-0.0690775666880996+0*COS(N193) -> 0.01274148887 | Q193: 193 | R193: =-3.14159265358979+(Q193-1)*0.0210139976828748 -> 0.8930949015 | S193: =0.31939866983129*COS(R193)+-0.215952600146413 -> -0.01568833884 | T193: =0.112110131215079*SIN(R193)+0.0423701667184607+0*COS(R193) -> 0.1297057517 | U193: 193 | V193: =-3.14159265358979+(U193-1)*0.0210139976828748 -> 0.8930949015 | W193: =0.398764905135784*COS(V193)+-0.18298059338715 -> 0.06704661932 | X193: =0.139967977519616*SIN(V193)+0.15232833674674+0*COS(V193) -> 0.2613656295 | Y193: 193 | Z193: =-3.14159265358979+(Y193-1)*0.0210139976828748 -> 0.8930949015 | AA193: =0.562281335126711*COS(Z193)+-0.162086789732886 -> 0.1904658877 | AB193: =0.19736285781698*SIN(Z193)+0.341728365812427+0*COS(Z193) -> 0.4954771881 | AC193: 193 | AD193: =-3.14159265358979+(AC193-1)*0.0210139976828748 -> 0.8930949015 | AE193: =0.16089417266906*COS(AD193)+-0.193240484481897 -> -0.09235918571 | AF193: =0.056474458140974*SIN(AD193)+0.0107862579656094+0*COS(AD193) -> 0.05478076395 | AG193: 193 | AH193: =-3.14159265358979+(AG193-1)*0.0210139976828748 -> 0.8930949015 | AI193: =0.253096907093471*COS(AH193)+0.102010923502568 -> 0.2607037107 | AJ193: =0.0888379637879133*SIN(AH193)+-0.166095621152538+0*COS(AH193) -> -0.09688942674 | AK193: 193 | AL193: =-3.14159265358979+(AK193-1)*0.0210139976828748 -> 0.8930949015 | AM193: =0.438798679365524*COS(AL193)+0.943975743712232 -> 1.219104295 | AN193: =0.154019982445942*SIN(AL193)+-0.0196009503722022+0*COS(AL193) -> 0.1003830789 | AO193: 193 | AP193: =-3.14159265358979+(AO193-1)*0.0210139976828748 -> 0.8930949015 | AQ193: =0.318931234452992*COS(AP193)+0.212829612221555 -> 0.4128007896 | AR193: =0.111946059643888*SIN(AP193)+0.217066839220887+0*COS(AP193) -> 0.3042746098
A194: 194 | B194: 0.9141088992 | C194: 0.9294810564 | D194: 0.1217438573 | E194: 194 | F194: 0.9141088992 | G194: 0.09620873061 | H194: 0.02763286768 | I194: 194 | J194: 0.9141088992 | K194: 0.0610540527 | L194: -0.02282352055 | M194: 194 | N194: 0.9141088992 | O194: 0.08588508533 | P194: 0.01410716648 | Q194: 194 | R194: 0.9141088992 | S194: -0.02096080252 | T194: 0.1311635081 | U194: 194 | V194: 0.9141088992 | W194: 0.06046401997 | X194: 0.2631856186 | Y194: 194 | Z194: 0.9141088992 | AA194: 0.1811840459 | AB194: 0.4980434769 | AC194: 194 | AD194: 0.9141088992 | AE194: -0.0950151413 | AF194: 0.05551509547 | AG194: 194 | AH194: 0.9141088992 | AI194: 0.2565257213 | AJ194: -0.09573427591 | AK194: 194 | AL194: 0.9141088992 | AM194: 1.21186084 | AN194: 0.1023857848 | AO194: 194 | AP194: 0.9141088992 | AQ194: 0.4075360421 | AR194: 0.3057302328
A195: 195 | B195: 0.9351228969 | C195: 0.923657763 | D195: 0.12328543 | E195: 195 | F195: 0.9351228969 | G195: 0.09118124427 | H195: 0.02896377016 | I195: 195 | J195: 0.9351228969 | K195: 0.05655416668 | L195: -0.02163228718 | M195: 195 | N195: 0.9351228969 | O195: 0.08086499123 | P195: 0.01543611205 | Q195: 195 | R195: 0.9351228969 | S195: -0.02631936908 | T195: 0.1325820559 | U195: 195 | V195: 0.9351228969 | W195: 0.05377392233 | X195: 0.2649566562 | Y195: 195 | Z195: 0.9351228969 | AA195: 0.1717506254 | AB195: 0.5005407413 | AC195: 195 | AD195: 0.9351228969 | AE195: -0.09771447043 | AF195: 0.056229676 | AG195: 195 | AH195: 0.9351228969 | AI195: 0.2522795025 | AJ195: -0.09461019467 | AK195: 195 | AL195: 0.9351228969 | AM195: 1.204499093 | AN195: 0.1043346247 | AO195: 195 | AP195: 0.9351228969 | AQ195: 0.4021853178 | AR195: 0.3071467046
A196: 196 | B196: 0.9561368946 | C196: 0.9177434708 | D196: 0.1247837129 | E196: 196 | F196: 0.9561368946 | G196: 0.08607519492 | H196: 0.03025729883 | I196: 196 | J196: 0.9561368946 | K196: 0.05198396232 | L196: -0.02047450551 | M196: 196 | N196: 0.9561368946 | O196: 0.07576644963 | P196: 0.01672773876 | Q196: 196 | R196: 0.9561368946 | S196: -0.03176167235 | T196: 0.1339607686 | U196: 196 | V196: 0.9561368946 | W196: 0.04697928055 | X196: 0.2666779604 | Y196: 196 | Z196: 0.9561368946 | AA196: 0.1621697917 | AB196: 0.5029678786 | AC196: 196 | AD196: 0.9561368946 | AE196: -0.1004559812 | AF196: 0.05692418999 | AG196: 196 | AH196: 0.9561368946 | AI196: 0.2479669294 | AJ196: -0.09351767938 | AK196: 196 | AL196: 0.9561368946 | AM196: 1.197022307 | AN196: 0.1062287382 | AO196: 196 | AP196: 0.9561368946 | AQ196: 0.3967509792 | AR196: 0.3085233996
A197: 197 | B197: 0.9771508923 | C197: 0.9117407914 | D197: 0.1262380445 | E197: 197 | F197: 0.9771508923 | G197: 0.08089283726 | H197: 0.0315128825 | I197: 197 | J197: 0.9771508923 | K197: 0.04734545767 | L197: -0.01935068677 | M197: 197 | N197: 0.9771508923 | O197: 0.07059171191 | P197: 0.01798147627 | Q197: 197 | R197: 0.9771508923 | S197: -0.03728530914 | T197: 0.1352990375 | U197: 197 | V197: 0.9771508923 | W197: 0.04008309498 | X197: 0.2683487709 | Y197: 197 | Z197: 0.9771508923 | AA197: 0.1524457754 | AB197: 0.5053238172 | AC197: 197 | AD197: 0.9771508923 | AE197: -0.1032384629 | AF197: 0.05759833077 | AG197: 197 | AH197: 0.9771508923 | AI197: 0.2435899062 | AJ197: -0.09245721247 | AK197: 197 | AL197: 0.9771508923 | AM197: 1.189433783 | AN197: 0.1080672889 | AO197: 197 | AP197: 0.9771508923 | AQ197: 0.3912354262 | AR197: 0.30985971
A198: 198 | B198: 0.9981648899 | C198: 0.9056523753 | D198: 0.1276477825 | E198: 198 | F198: 0.9981648899 | G198: 0.07563645966 | H198: 0.03272996674 | I198: 198 | J198: 0.9981648899 | K198: 0.04264070097 | L198: -0.0182613272 | M198: 198 | N198: 0.9981648899 | O198: 0.0653430631 | P198: 0.01919677095 | Q198: 198 | R198: 0.9981648899 | S198: -0.04288784037 | T198: 0.1365962717 | U198: 198 | V198: 0.9981648899 | W198: 0.03308841075 | X198: 0.2699683502 | Y198: 198 | Z198: 0.9981648899 | AA198: 0.1425828704 | AB198: 0.5076075165 | AC198: 198 | AD198: 0.9981648899 | AE198: -0.106060687 | AF198: 0.05825180066 | AG198: 198 | AH198: 0.9981648899 | AI198: 0.2391503657 | AJ198: -0.0914292622 | AK198: 198 | AL198: 0.9981648899 | AM198: 1.181736872 | AN198: 0.1098494648 | AO198: 198 | AP198: 0.9981648899 | AQ198: 0.3856410942 | AR198: 0.3111550456
A199: 199 | B199: 1.019178888 | C199: 0.899480911 | D199: 0.1290123044 | E199: 199 | F199: 1.019178888 | G199: 0.0703083832 | H199: 0.03390801411 | I199: 199 | J199: 1.019178888 | K199: 0.03787176971 | L199: -0.01720690784 | M199: 199 | N199: 1.019178888 | O199: 0.06002282084 | P199: 0.02037308617 | Q199: 199 | R199: 1.019178888 | S199: -0.04856679213 | T199: 0.1378518982 | U199: 199 | V199: 1.019178888 | W199: 0.02599831654 | X199: 0.2715359829 | Y199: 199 | Z199: 1.019178888 | AA199: 0.1325854319 | AB199: 0.5098179683 | AC199: 199 | AD199: 1.019178888 | AE199: -0.1089214073 | AF199: 0.0588843111 | AG199: 199 | AH199: 1.019178888 | AI199: 0.2346502683 | AJ199: -0.0904342825 | AK199: 199 | AL199: 1.019178888 | AM199: 1.173934972 | AN199: 0.1115744791 | AO199: 199 | AP199: 1.019178888 | AQ199: 0.3799704535 | AR199: 0.3124088346
A200: 200 | B200: 1.040192885 | C200: 0.8932291237 | D200: 0.1303310078 | E200: 200 | F200: 1.040192885 | G200: 0.06491096059 | H200: 0.03504650443 | I200: 200 | J200: 1.040192885 | K200: 0.03304076972 | L200: -0.0161878943 | M200: 200 | N200: 1.040192885 | O200: 0.05463333441 | P200: 0.02150990249 | Q200: 200 | R200: 1.040192885 | S200: -0.05431965676 | T200: 0.1390653627 | U200: 200 | V200: 1.040192885 | W200: 0.01881594312 | X200: 0.2730509768 | Y200: 200 | Z200: 1.040192885 | AA200: 0.1224578743 | AB200: 0.5119541965 | AC200: 200 | AD200: 1.040192885 | AE200: -0.1118193605 | AF200: 0.0594955828 | AG200: 200 | AH200: 1.040192885 | AI200: 0.2300916011 | AJ200: -0.08947271271 | AK200: 200 | AL200: 1.040192885 | AM200: 1.166031528 | AN200: 0.11324157 | AO200: 200 | AP200: 1.040192885 | AQ200: 0.3742260081 | AR200: 0.3136205232
... 100 more rows

Sheet XLSTAT_20240829_230944_1_HID2_1 (hidden)
A1: -0.6280650118 | B1: 0.09987700891 | C1: 0.7175784094 | D1: 0.02524982883
A2: 0.3315531528 | B2: -1.537987863 | C2: -0.08673545548 | D2: -0.05567435739
A3: 3.068084507 | B3: -0.1814980043 | C3: -0.1026913915 | D3: -0.09738822176
A4: 0.6917330665 | B4: 2.009963669 | C4: -0.09679010632 | D4: -0.06907756669
C5: -0.2159526001 | D5: 0.04237016672
C6: -0.1829805934 | D6: 0.1523283367
C7: -0.1620867897 | D7: 0.3417283658

Sheet XLSTAT_20240829_230944_1_HID2_H (hidden)
A1: -0.1932404845 | B1: 0.01078625797
A2: 0.1020109235 | B2: -0.1660956212
A3: 0.9439757437 | B3: -0.01960095037
A4: 0.2128296122 | B4: 0.2170668392

Sheet XLSTAT_20240829_230944_1_HID1 (hidden)
A1: 0.7175784094 | B1: 0.02524982883
A2: -0.08673545548 | B2: -0.05567435739
A3: -0.1026913915 | B3: -0.09738822176
A4: -0.09679010632 | B4: -0.06907756669
A5: -0.2159526001 | B5: 0.04237016672
A6: -0.1829805934 | B6: 0.1523283367
A7: -0.1620867897 | B7: 0.3417283658

Sheet XLSTAT_20240829_230944_1_HID (hidden)
A1: -0.1932404845 | B1: 0.01078625797 | C1: 0.7175784094 | D1: 0.02524982883
A2: 0.1020109235 | B2: -0.1660956212 | C2: -0.08673545548 | D2: -0.05567435739
A3: 0.9439757437 | B3: -0.01960095037 | C3: -0.1026913915 | D3: -0.09738822176
A4: 0.2128296122 | B4: 0.2170668392 | C4: -0.09679010632 | D4: -0.06907756669
C5: -0.2159526001 | D5: 0.04237016672
C6: -0.1829805934 | D6: 0.1523283367
C7: -0.1620867897 | D7: 0.3417283658

Sheet XLSTAT_20220208_160121_1_HID5 (hidden)
A1: -0.1932404845 | B1: 0.01078625797 | C1: 0.9109008237 | D1: 0.09131632231
A2: 0.1020109235 | B2: -0.1660956212 | C2: -0.115805974 | D2: -0.2117764945
A3: 0.9439757437 | B3: -0.01960095037 | C3: -0.1505237879 | D3: -0.4066921393
A4: 0.2128296122 | B4: 0.2170668392 | C4: -0.1366367453 | D4: -0.2778189174
C5: -0.2498844434 | D5: 0.1396783826
C6: -0.2009960116 | D6: 0.4767068038
C7: -0.1126056092 | D7: 0.6763658561

Sheet XLSTAT_20220208_160121_1_HID4 (hidden)
A1: -0.486437311 | B1: 0.07735489596 | C1: 0.7175784094 | D1: 0.02524982883
A2: 0.1478921492 | B2: -0.686032778 | C2: -0.08673545548 | D2: -0.05567435739
A3: 0.8244995665 | B3: -0.04877474058 | C3: -0.1026913915 | D3: -0.09738822176
A4: 0.2484091776 | B4: 0.721800715 | C4: -0.09679010632 | D4: -0.06907756669
C5: -0.2159526001 | D5: 0.04237016672
C6: -0.1829805934 | D6: 0.1523283367
C7: -0.1620867897 | D7: 0.3417283658

Sheet XLSTAT_20220208_160121_1_HID3 (hidden)
A1: -0.1932404845 | B1: 0.01078625797 | C1: 2.332253996 | D1: 0.2338046603
A2: 0.1020109235 | B2: -0.1660956212 | C2: -0.2819052385 | D2: -0.5155252458
A3: 0.9439757437 | B3: -0.01960095037 | C3: -0.3337647915 | D3: -0.9017811667
A4: 0.2128296122 | B4: 0.2170668392 | C4: -0.3145845935 | D4: -0.6396343167
C5: -0.7018833177 | D5: 0.3923330531
C6: -0.5947185904 | D6: 1.410507582
C7: -0.5268101132 | D7: 3.164286182

Sheet XLSTAT_20220208_160121_1_HID2 (hidden)
A1: 1 | B1: =-3.14159265358979+(A1-1)*0.0210139976828749 -> -3.141592654 | C1: =0.347098823636323*COS(B1)+0.717578409393402 -> 0.3704795858 | D1: =0.121832989107382*SIN(B1)+0.0252498288314242+0*COS(B1) -> 0.02524982883 | E1: 1 | F1: =-3.14159265358979+(E1-1)*0.0210139976828749 -> -3.141592654 | G1: =0.299664552058601*COS(F1)+-0.0867354554826122 -> -0.3864000075 | H1: =0.105183381851725*SIN(F1)+-0.0556743573861749+0*COS(F1) -> -0.05567435739 | I1: 1 | J1: =-3.14159265358979+(I1-1)*0.0210139976828749 -> -3.141592654 | K1: =0.268216805569019*COS(J1)+-0.102691391514969 -> -0.3709081971 | L1: =0.0941451048694578*SIN(J1)+-0.0973882217616218+0*COS(J1) -> -0.09738822176 | M1: 1 | N1: =-3.14159265358979+(M1-1)*0.0210139976828749 -> -3.141592654 | O1: =0.299223936258687*COS(N1)+-0.0967901063170089 -> -0.3960140426 | P1: =0.105028724053151*SIN(N1)+-0.0690775666880996+0*COS(N1) -> -0.06907756669 | Q1: 1 | R1: =-3.14159265358979+(Q1-1)*0.0210139976828749 -> -3.141592654 | S1: =0.31939866983129*COS(R1)+-0.215952600146413 -> -0.53535127 | T1: =0.112110131215079*SIN(R1)+0.0423701667184608+0*COS(R1) -> 0.04237016672 | U1: 1 | V1: =-3.14159265358979+(U1-1)*0.0210139976828749 -> -3.141592654 | W1: =0.398764905135784*COS(V1)+-0.18298059338715 -> -0.5817454985 | X1: =0.139967977519616*SIN(V1)+0.15232833674674+0*COS(V1) -> 0.1523283367 | Y1: 1 | Z1: =-3.14159265358979+(Y1-1)*0.0210139976828749 -> -3.141592654 | AA1: =0.562281335126711*COS(Z1)+-0.162086789732886 -> -0.7243681249 | AB1: =0.19736285781698*SIN(Z1)+0.341728365812426+0*COS(Z1) -> 0.3417283658 | AC1: 1 | AD1: =-3.14159265358979+(AC1-1)*0.0210139976828749 -> -3.141592654 | AE1: =0.16089417266906*COS(AD1)+-0.193240484481897 -> -0.3541346572 | AF1: =0.056474458140974*SIN(AD1)+0.0107862579656095+0*COS(AD1) -> 0.01078625797 | AG1: 1 | AH1: =-3.14159265358979+(AG1-1)*0.0210139976828749 -> -3.141592654 | AI1: =0.253096907093471*COS(AH1)+0.102010923502568 -> -0.1510859836 | AJ1: =0.0888379637879133*SIN(AH1)+-0.166095621152538+0*COS(AH1) -> -0.1660956212 | AK1: 1 | AL1: =-3.14159265358979+(AK1-1)*0.0210139976828749 -> -3.141592654 | AM1: =0.438798679365524*COS(AL1)+0.943975743712232 -> 0.5051770643 | AN1: =0.154019982445942*SIN(AL1)+-0.0196009503722022+0*COS(AL1) -> -0.01960095037 | AO1: 1 | AP1: =-3.14159265358979+(AO1-1)*0.0210139976828749 -> -3.141592654 | AQ1: =0.318931234452992*COS(AP1)+0.212829612221555 -> -0.1061016222 | AR1: =0.111946059643888*SIN(AP1)+0.217066839220886+0*COS(AP1) -> 0.2170668392
A2: 2 | B2: -3.120578656 | C2: 0.3705562203 | D2: 0.0226898191 | E2: 2 | F2: -3.120578656 | G2: -0.3863338458 | H2: -0.05788451806 | I2: 2 | J2: -3.120578656 | K2: -0.3708489786 | L2: -0.09936644118 | M2: 2 | N2: -3.120578656 | O2: -0.3959479781 | P2: -0.07128447762 | Q2: 2 | R2: -3.120578656 | S2: -0.5352807512 | T2: 0.04001445807 | U2: 2 | V2: -3.120578656 | W2: -0.5816574568 | X2: 0.1493872665 | Y2: 2 | Z2: -3.120578656 | AA2: -0.7242439811 | AB2: 0.3375812884 | AC2: 2 | AD2: -3.120578656 | AE2: -0.354099134 | AF2: 0.009599591174 | AG2: 2 | AH2: -3.120578656 | AI2: -0.1510301034 | AJ2: -0.1679623245 | AK2: 2 | AL2: -3.120578656 | AM2: 0.5052739449 | AN2: -0.02283728773 | AO2: 2 | AP2: -3.120578656 | AQ2: -0.1060312067 | AR2: 0.2147145781
A3: 3 | B3: -3.099564658 | C3: 0.3707860901 | D3: 0.0201309398 | E3: 3 | F3: -3.099564658 | G3: -0.3861353899 | H3: -0.06009370278 | I3: 3 | J3: -3.099564658 | K3: -0.3706713493 | L3: -0.1013437871 | M3: 3 | N3: -3.099564658 | O3: -0.395749814 | P3: -0.07349041404 | Q3: 3 | R3: -3.099564658 | S3: -0.5350692262 | T3: 0.03765978963 | U3: 3 | V3: -3.099564658 | W3: -0.5813933707 | X3: 0.1464474949 | Y3: 3 | Z3: -3.099564658 | AA3: -0.7238716045 | AB3: 0.3334360422 | AC3: 3 | AD3: -3.099564658 | AE3: -0.3539925802 | AF3: 0.008413448381 | AG3: 3 | AH3: -3.099564658 | AI3: -0.1508624873 | AJ3: -0.1698282036 | AK3: 3 | AL3: -3.099564658 | AM3: 0.5055645439 | AN3: -0.026072196 | AO3: 3 | AP3: -3.099564658 | AQ3: -0.1058199912 | AR3: 0.2123633557
A4: 4 | B4: -3.078550661 | C4: 0.3711690935 | D4: 0.01757432086 | E4: 4 | F4: -3.078550661 | G4: -0.3858047274 | H4: -0.06230093605 | I4: 4 | J4: -3.078550661 | K4: -0.3703753875 | L4: -0.1033193863 | M4: 4 | N4: -3.078550661 | O4: -0.3954196377 | P4: -0.07569440187 | Q4: 4 | R4: -3.078550661 | S4: -0.5347167882 | T4: 0.03530720116 | U4: 4 | V4: -3.078550661 | W4: -0.5809533567 | X4: 0.1435103201 | Y4: 4 | Z4: -3.078550661 | AA4: -0.7232511595 | AB4: 0.3292944577 | AC4: 4 | AD4: -3.078550661 | AE4: -0.3538150427 | AF4: 0.007228353354 | AG4: 4 | AH4: -3.078550661 | AI4: -0.1505832095 | AJ4: -0.1716924345 | AK4: 4 | AL4: -3.078550661 | AM4: 0.5060487328 | AN4: -0.02930424676 | AO4: 4 | AP4: -3.078550661 | AQ4: -0.105468069 | AR4: 0.2100142102
A5: 5 | B5: -3.057536663 | C5: 0.3717050616 | D5: 0.0150210912 | E5: 5 | F5: -3.057536663 | G5: -0.3853420043 | H5: -0.06450524321 | I5: 5 | J5: -3.057536663 | K5: -0.3699612241 | L5: -0.1052923665 | M5: 5 | N5: -3.057536663 | O5: -0.394957595 | P5: -0.0778954679 | Q5: 5 | R5: -3.057536663 | S5: -0.534223593 | T5: 0.0329577315 | U5: 5 | V5: -3.057536663 | W5: -0.5803376091 | X5: 0.1405770391 | Y5: 5 | Z5: -3.057536663 | AA5: -0.7223829202 | AB5: 0.3251583637 | AC5: 5 | AD5: -3.057536663 | AE5: -0.3535666001 | AF5: 0.006044829397 | AG5: 5 | AH5: -3.057536663 | AI5: -0.1501923933 | AJ5: -0.173554194 | AK5: 5 | AL5: -3.057536663 | AM5: 0.5067262981 | AN5: -0.03253201282 | AO5: 5 | AP5: -3.057536663 | AQ5: -0.1049755956 | AR5: 0.207668179
A6: 6 | B6: -3.036522665 | C6: 0.3723937577 | D6: 0.01247237827 | E6: 6 | F6: -3.036522665 | G6: -0.384747425 | H6: -0.06670565089 | I6: 6 | J6: -3.036522665 | K6: -0.3694290418 | L6: -0.1072618564 | M6: 6 | N6: -3.036522665 | O6: -0.3943638899 | P6: -0.08009264018 | Q6: 6 | R6: -3.036522665 | S6: -0.5335898582 | T6: 0.0306124181 | U6: 6 | V6: -3.036522665 | W6: -0.5795463998 | X6: 0.1376489471 | Y6: 6 | Z6: -3.036522665 | AA6: -0.7212672698 | AB6: 0.3210295865 | AC6: 6 | AD6: -3.036522665 | AE6: -0.353247362 | AF6: 0.004863399122 | AG6: 6 | AH6: -3.036522665 | AI6: -0.1496902111 | AJ6: -0.17541266 | AK6: 6 | AL6: -3.036522665 | AM6: 0.5075969403 | AN6: -0.03575406888 | AO6: 6 | AP6: -3.036522665 | AQ6: -0.1043427882 | AR6: 0.2053262979
A7: 7 | B7: -3.015508667 | C7: 0.3732348775 | D7: 0.009929307497 | E7: 7 | F7: -3.015508667 | G7: -0.3840212519 | H7: -0.06890118747 | I7: 7 | J7: -3.015508667 | K7: -0.3687790756 | L7: -0.1092269864 | M7: 7 | N7: -3.015508667 | O7: -0.3936387846 | P7: -0.08228494853 | Q7: 7 | R7: -3.015508667 | S7: -0.5328158637 | T7: 0.0282722966 | U7: 7 | V7: -3.015508667 | W7: -0.5785800782 | X7: 0.1347273372 | Y7: 7 | Z7: -3.015508667 | AA7: -0.7199047011 | AB7: 0.3169099493 | AC7: 7 | AD7: -3.015508667 | AE7: -0.3528574693 | AF7: 0.003684584214 | AG7: 7 | AH7: -3.015508667 | AI7: -0.1490768848 | AJ7: -0.1772670118 | AK7: 7 | AL7: -3.015508667 | AM7: 0.5086602752 | AN7: -0.03896899218 | AO7: 7 | AP7: -3.015508667 | AQ7: -0.1035699265 | AR7: 0.2029896011
A8: 8 | B8: -2.99449467 | C8: 0.3742280498 | D8: 0.007393001838 | E8: 8 | F8: -2.99449467 | G8: -0.3831638059 | H8: -0.07109088345 | I8: 8 | J8: -2.99449467 | K8: -0.3680116127 | L8: -0.1111868888 | M8: 8 | N8: -2.99449467 | O8: -0.3927825993 | P8: -0.08447142486 | Q8: 8 | R8: -2.99449467 | S8: -0.5319019514 | T8: 0.02593840031 | U8: 8 | V8: -2.99449467 | W8: -0.5774390711 | X8: 0.1318134994 | Y8: 8 | Z8: -2.99449467 | AA8: -0.7182958157 | AB8: 0.3128012712 | AC8: 8 | AD8: -2.99449467 | AE8: -0.3523970943 | AF8: 0.002508905206 | AG8: 8 | AH8: -2.99449467 | AI8: -0.1483526852 | AJ8: -0.1791164307 | AK8: 8 | AL8: -2.99449467 | AM8: 0.5099158331 | AN8: -0.0421753631 | AO8: 8 | AP8: -2.99449467 | AQ8: -0.1026573517 | AR8: 0.2006591205
A9: 9 | B9: -2.973480672 | C9: 0.3753728359 | D9: 0.00486458125 | E9: 9 | F9: -2.973480672 | G9: -0.3821754654 | H9: -0.07327377193 | I9: 9 | J9: -2.973480672 | K9: -0.3671269918 | L9: -0.113140698 | M9: 9 | N9: -2.973480672 | O9: -0.391795712 | P9: -0.0866511037 | Q9: 9 | R9: -2.973480672 | S9: -0.5308485247 | T9: 0.02361175984 | U9: 9 | V9: -2.973480672 | W9: -0.5761238822 | X9: 0.1289087203 | Y9: 9 | Z9: -2.973480672 | AA9: -0.7164413241 | AB9: 0.3087053665 | AC9: 9 | AD9: -2.973480672 | AE9: -0.3518664402 | AF9: 0.001336881244 | AG9: 9 | AH9: -2.973480672 | AI9: -0.1475179321 | AJ9: -0.1809601 | AK9: 9 | AL9: -2.973480672 | AM9: 0.5113630597 | AN9: -0.04537176579 | AO9: 9 | AP9: -2.973480672 | AQ9: -0.1016054667 | AR9: 0.198335885
A10: 10 | B10: -2.952466674 | C10: 0.3766687303 | D10: 0.002345162214 | E10: 10 | F10: -2.952466674 | G10: -0.3810566669 | H10: -0.075448889 | I10: 10 | J10: -2.952466674 | K10: -0.3661256035 | L10: -0.1150875514 | M10: 10 | N10: -2.952466674 | O10: -0.3906785586 | P10: -0.08882302256 | Q10: 10 | R10: -2.952466674 | S10: -0.5296560489 | T10: 0.02129340255 | U10: 10 | V10: -2.952466674 | W10: -0.5746350922 | X10: 0.1260142827 | Y10: 10 | Z10: -2.952466674 | AA10: -0.7143420451 | AB10: 0.3046240438 | AC10: 10 | AD10: -2.952466674 | AE10: -0.3512657414 | AF10: 0.0001690298602 | AG10: 10 | AH10: -2.952466674 | AI10: -0.1465729941 | AJ10: -0.1827972055 | AK10: 10 | AL10: -2.952466674 | AM10: 0.5130013158 | AN10: -0.04855678882 | AO10: 10 | AP10: -2.952466674 | AQ10: -0.100414736 | AR10: 0.1960209206
A11: 11 | B11: -2.931452677 | C11: 0.3781151609 | D11: -0.0001641427662 | E11: 11 | F11: -2.931452677 | G11: -0.3798079045 | H11: -0.0776152742 | I11: 11 | J11: -2.931452677 | K11: -0.3650078902 | L11: -0.1170265893 | M11: 11 | N11: -2.931452677 | O11: -0.3894316323 | P11: -0.09098622238 | Q11: 11 | R11: -2.931452677 | S11: -0.5283250504 | T11: 0.01898435216 | U11: 11 | V11: -2.931452677 | W11: -0.5729733587 | X11: 0.1231314646 | Y11: 11 | Z11: -2.931452677 | AA11: -0.7119989058 | AB11: 0.3005591053 | AC11: 11 | AD11: -2.931452677 | AE11: -0.350595263 | AF11: -0.0009941332544 | AG11: 11 | AH11: -2.931452677 | AI11: -0.1455182884 | AJ11: -0.1846269361 | AK11: 11 | AL11: -2.931452677 | AM11: 0.5148298781 | AN11: -0.05172902576 | AO11: 11 | AP11: -2.931452677 | AQ11: -0.09908568542 | AR11: 0.1937152495
A12: 12 | B12: -2.910438679 | C12: 0.3797114889 | D12: -0.002662225652 | E12: 12 | F12: -2.910438679 | G12: -0.3784297295 | H12: -0.0797719709 | I12: 12 | J12: -2.910438679 | K12: -0.3637743453 | L12: -0.1189569554 | M12: 12 | N12: -2.910438679 | O12: -0.3880554838 | P12: -0.09313974795 | Q12: 12 | R12: -2.910438679 | S12: -0.526856117 | T12: 0.01668562829 | U12: 12 | V12: -2.910438679 | W12: -0.5711394154 | X12: 0.1202615391 | Y12: 12 | Z12: -2.910438679 | AA12: -0.7094129407 | AB12: 0.2965123461 | AC12: 12 | AD12: -2.910438679 | AE12: -0.3498553012 | AF12: -0.00215209448 | AG12: 12 | AH12: -2.910438679 | AI12: -0.1443542807 | AJ12: -0.1864484837 | AK12: 12 | AL12: -2.910438679 | AM12: 0.5168479392 | AN12: -0.05488707585 | AO12: 12 | AP12: -2.910438679 | AQ12: -0.09761890183 | AR12: 0.1914198897
A13: 13 | B13: -2.889424681 | C13: 0.3814570094 | D13: -0.00514798336 | E13: 13 | F13: -2.889424681 | G13: -0.3769227506 | H13: -0.08191802678 | I13: 13 | J13: -2.889424681 | K13: -0.3624255134 | L13: -0.1208777974 | M13: 13 | N13: -2.889424681 | O13: -0.3865507206 | P13: -0.09528264835 | Q13: 13 | R13: -2.889424681 | S13: -0.5252498975 | T13: 0.01439824599 | U13: 13 | V13: -2.889424681 | W13: -0.569134072 | X13: 0.1174057733 | Y13: 13 | Z13: -2.889424681 | AA13: -0.7065852918 | AB13: 0.2924855529 | AC13: 13 | AD13: -2.889424681 | AE13: -0.3490461827 | AF13: -0.003304342493 | AG13: 13 | AH13: -2.889424681 | AI13: -0.1430814852 | AJ13: -0.1882610442 | AK13: 13 | AL13: -2.889424681 | AM13: 0.5190546078 | AN13: -0.05802954458 | AO13: 13 | AP13: -2.889424681 | AQ13: -0.09601503292 | AR13: 0.189135855
A14: 14 | B14: -2.868410684 | C14: 0.3833509517 | D14: -0.00762031825 | E14: 14 | F14: -2.868410684 | G14: -0.3752876331 | H14: -0.08405249419 | I14: 14 | J14: -2.868410684 | K14: -0.3609619904 | L14: -0.1227882671 | M14: 14 | N14: -2.868410684 | O14: -0.3849180073 | P14: -0.09741397732 | Q14: 14 | R14: -2.868410684 | S14: -0.5235071009 | T14: 0.0121232153 | U14: 14 | V14: -2.868410684 | W14: -0.5669582141 | X14: 0.1145654283 | Y14: 14 | Z14: -2.868410684 | AA14: -0.7035172077 | AB14: 0.288480504 | AC14: 14 | AD14: -2.868410684 | AE14: -0.3481682648 | AF14: -0.004450368494 | AG14: 14 | AH14: -2.868410684 | AI14: -0.1417004637 | AJ14: -0.1900638169 | AK14: 14 | AL14: -2.868410684 | AM14: 0.5214489097 | AN14: -0.06115504433 | AO14: 14 | AP14: -2.868410684 | AQ14: -0.09427478691 | AR14: 0.1868641538
A15: 15 | B15: -2.847396686 | C15: 0.3853924794 | D15: -0.01007813861 | E15: 15 | F15: -2.847396686 | G15: -0.3735250991 | H15: -0.08617443061 | I15: 15 | J15: -2.847396686 | K15: -0.3593844222 | L15: -0.1246875208 | M15: 15 | N15: -2.847396686 | O15: -0.3831580649 | P15: -0.09953279372 | Q15: 15 | R15: -2.847396686 | S15: -0.5216284969 | T15: 0.009861540818 | U15: 15 | V15: -2.847396686 | W15: -0.5646128026 | X15: 0.1117417584 | Y15: 15 | Z15: -2.847396686 | AA15: -0.7002100431 | AB15: 0.2844989679 | AC15: 15 | AD15: -2.847396686 | AE15: -0.3472219351 | AF15: -0.005589666429 | AG15: 15 | AH15: -2.847396686 | AI15: -0.1402118262 | AJ15: -0.191856006 | AK15: 15 | AL15: -2.847396686 | AM15: 0.5240297875 | AN15: -0.06426219496 | AO15: 15 | AP15: -2.847396686 | AQ15: -0.09239893224 | AR15: 0.1846057892
A16: 16 | B16: -2.826382688 | C16: 0.387580691 | D16: -0.01252035913 | E16: 16 | F16: -2.826382688 | G16: -0.3716359268 | H16: -0.08828289906 | I16: 16 | J16: -2.826382688 | K16: -0.3576935057 | L16: -0.1265747199 | M16: 16 | N16: -2.826382688 | O16: -0.3812716704 | P16: -0.101638162 | Q16: 16 | R16: -2.826382688 | S16: -0.5196149151 | T16: 0.007614221227 | U16: 16 | V16: -2.826382688 | W16: -0.5620988729 | X16: 0.1089360104 | Y16: 16 | Z16: -2.826382688 | AA16: -0.6966652585 | AB16: 0.2805427026 | AC16: 16 | AD16: -2.826382688 | AE16: -0.3462076116 | AF16: -0.006721733217 | AG16: 16 | AH16: -2.826382688 | AI16: -0.1386162298 | AJ16: -0.1936368201 | AK16: 16 | AL16: -2.826382688 | AM16: 0.5267961017 | AN16: -0.06734962443 | AO16: 16 | AP16: -2.826382688 | AQ16: -0.09038829724 | AR16: 0.1823617586
A17: 17 | B17: -2.805368691 | C17: 0.3899146204 | D17: -0.0149459014 | E17: 17 | F17: -2.805368691 | G17: -0.3696209505 | H17: -0.0903769685 | I17: 17 | J17: -2.805368691 | K17: -0.3558899874 | L17: -0.128449031 | M17: 17 | N17: -2.805368691 | O17: -0.3792596569 | P17: -0.1037291524 | Q17: 17 | R17: -2.805368691 | S17: -0.5174672445 | T17: 0.005382248883 | U17: 17 | V17: -2.805368691 | W17: -0.5594175354 | X17: 0.1061494232 | Y17: 17 | Z17: -2.805368691 | AA17: -0.6928844191 | AB17: 0.2766134552 | AC17: 17 | AD17: -2.805368691 | AE17: -0.3451257421 | AF17: -0.007846068969 | AG17: 17 | AH17: -2.805368691 | AI17: -0.1369143794 | AJ17: -0.1954054727 | AK17: 17 | AL17: -2.805368691 | AM17: 0.5297466306 | AN17: -0.07041596944 | AO17: 17 | AP17: -2.805368691 | AQ17: -0.08824376974 | AR17: 0.1801330527
A18: 18 | B18: -2.784354693 | C18: 0.3923932369 | D18: -0.01735369437 | E18: 18 | F18: -2.784354693 | G18: -0.36748106 | H18: -0.09245571424 | I18: 18 | J18: -2.784354693 | K18: -0.3539746638 | L18: -0.1303096266 | M18: 18 | N18: -2.784354693 | O18: -0.3771229127 | P18: -0.1058048416 | Q18: 18 | R18: -2.784354693 | S18: -0.5151864335 | T18: 0.003166609362 | U18: 18 | V18: -2.784354693 | W18: -0.5565699738 | X18: 0.1033832274 | Y18: 18 | Z18: -2.784354693 | AA18: -0.6888691944 | AB18: 0.2727129608 | AC18: 18 | AD18: -2.784354693 | AE18: -0.3439768043 | AF18: -0.00896217721 | AG18: 18 | AH18: -2.784354693 | AI18: -0.1351070262 | AJ18: -0.1971611829 | AK18: 18 | AL18: -2.784354693 | AM18: 0.5328800714 | AN18: -0.07345987597 | AO18: 18 | AP18: -2.784354693 | AQ18: -0.08596629672 | AR18: 0.1779206557
A19: 19 | B19: -2.763340695 | C19: 0.3950154459 | D19: -0.01974267482 | E19: 19 | F19: -2.763340695 | G19: -0.3652172001 | H19: -0.09451821837 | I19: 19 | J19: -2.763340695 | K19: -0.3519483805 | L19: -0.132155685 | M19: 19 | N19: -2.763340695 | O19: -0.3748623815 | P19: -0.1078643131 | Q19: 19 | R19: -2.763340695 | S19: -0.5127734893 | T19: 0.0009682810292 | U19: 19 | V19: -2.763340695 | W19: -0.5535574457 | X19: 0.1006386443 | Y19: 19 | Z19: -2.763340695 | AA19: -0.6846213574 | AB19: 0.2688429415 | AC19: 19 | AD19: -2.763340695 | AE19: -0.3427613057 | AF19: -0.0100695651 | AG19: 19 | AH19: -2.763340695 | AI19: -0.1331949684 | AJ19: -0.1989031755 | AK19: 19 | AL19: -2.763340695 | AM19: 0.5361950405 | AN19: -0.07647999991 | AO19: 19 | AP19: -2.763340695 | AQ19: -0.08355688383 | AR19: 0.1757255446
A20: 20 | B20: -2.742326698 | C20: 0.3977800897 | D20: -0.02211178785 | E20: 20 | F20: -2.742326698 | G20: -0.3628303705 | H20: -0.09656357014 | I20: 20 | J20: -2.742326698 | K20: -0.3498120323 | L20: -0.1339863911 | M20: 20 | N20: -2.742326698 | O20: -0.3724790614 | P20: -0.1099066574 | Q20: 20 | R20: -2.742326698 | S20: -0.5102294774 | T20: -0.001211765397 | U20: 20 | V20: -2.742326698 | W20: -0.5503812814 | X20: 0.0979168859 | Y20: 20 | Z20: -2.742326698 | AA20: -0.6801427839 | AB20: 0.2650051065 | AC20: 20 | AD20: -2.742326698 | AE20: -0.3414797828 | AF20: -0.01116774364 | AG20: 20 | AH20: -2.742326698 | AI20: -0.1311790503 | AJ20: -0.2006306811 | AK20: 20 | AL20: -2.742326698 | AM20: 0.5396900741 | AN20: -0.07947500766 | AO20: 20 | AP20: -2.742326698 | AQ20: -0.08101659501 | AR20: 0.1735486886
A21: 21 | B21: -2.7213127 | C21: 0.4006859475 | D21: -0.02445998732 | E21: 21 | F21: -2.7213127 | G21: -0.3603216251 | H21: -0.09859086639 | I21: 21 | J21: -2.7213127 | K21: -0.3475665627 | L21: -0.1358009365 | M21: 21 | N21: -2.7213127 | O21: -0.3699740049 | P21: -0.1119309728 | Q21: 21 | R21: -2.7213127 | S21: -0.507555521 | T21: -0.003372567269 | U21: 21 | V21: -2.7213127 | W21: -0.5470428832 | X21: 0.09521915408 | Y21: 21 | Z21: -2.7213127 | AA21: -0.6754354514 | AB21: 0.2612011502 | AC21: 21 | AD21: -2.7213127 | AE21: -0.3401328016 | AF21: -0.01225622792 | AG21: 21 | AH21: -2.7213127 | AI21: -0.1290601621 | AJ21: -0.2023429371 | AK21: 21 | AL21: -2.7213127 | AM21: 0.5433636289 | AN21: -0.08244357672 | AO21: 21 | AP21: -2.7213127 | AQ21: -0.07834655198 | AR21: 0.1713910491
A22: 22 | B22: -2.700298702 | C22: 0.403731736 | D22: -0.02678623634 | E22: 22 | F22: -2.700298702 | G22: -0.3576920718 | H22: -0.1005992119 | I22: 22 | J22: -2.700298702 | K22: -0.345212963 | L22: -0.1375985199 | M22: 22 | N22: -2.700298702 | O22: -0.367348318 | P22: -0.1139363654 | Q22: 22 | R22: -2.700298702 | S22: -0.5047528011 | T22: -0.005513170437 | U22: 22 | V22: -2.700298702 | W22: -0.5435437253 | X22: 0.09254664007 | Y22: 22 | Z22: -2.700298702 | AA22: -0.6705014386 | AB22: 0.2574327526 | AC22: 22 | AD22: -2.700298702 | AE22: -0.338720957 | AF22: -0.01333453728 | AG22: 22 | AH22: -2.700298702 | AI22: -0.1268392394 | AJ22: -0.2040391872 | AK22: 22 | AL22: -2.700298702 | AM22: 0.5472140827 | AN22: -0.08538439624 | AO22: 22 | AP22: -2.700298702 | AQ22: -0.07554793375 | AR22: 0.1692535786
A23: 23 | B23: -2.679284705 | C23: 0.4069161104 | D23: -0.02908950769 | E23: 23 | F23: -2.679284705 | G23: -0.3549428717 | H23: -0.1025877199 | I23: 23 | J23: -2.679284705 | K23: -0.3427522727 | L23: -0.1393783475 | M23: 23 | N23: -2.679284705 | O23: -0.3646031602 | P23: -0.1159219495 | Q23: 23 | R23: -2.679284705 | S23: -0.5018225551 | T23: -0.007632629671 | U23: 23 | V23: -2.679284705 | W23: -0.5398853529 | X23: 0.08990052398 | Y23: 23 | Z23: -2.679284705 | AA23: -0.6653429242 | AB23: 0.2537015774 | AC23: 23 | AD23: -2.679284705 | AE23: -0.3372448722 | AF23: -0.01440219558 | AG23: 23 | AH23: -2.679284705 | AI23: -0.1245172629 | AJ23: -0.2057186826 | AK23: 23 | AL23: -2.679284705 | AM23: 0.5512397353 | AN23: -0.08829616764 | AO23: 23 | AP23: -2.679284705 | AQ23: -0.07262197612 | AR23: 0.1671372212
A24: 24 | B24: -2.658270707 | C24: 0.4102376645 | D24: -0.03136878433 | E24: 24 | F24: -2.658270707 | G24: -0.3520752388 | H24: -0.1045555122 | I24: 24 | J24: -2.658270707 | K24: -0.3401855782 | L24: -0.1411396335 | M24: 24 | N24: -2.658270707 | O24: -0.3617397437 | P24: -0.1178868485 | Q24: 24 | R24: -2.658270707 | S24: -0.4987660769 | T24: -0.009730009078 | U24: 24 | V24: -2.658270707 | W24: -0.5360693815 | X24: 0.08728197425 | Y24: 24 | Z24: -2.658270707 | AA24: -0.659962186 | AB24: 0.2500092725 | AC24: 24 | AD24: -2.658270707 | AE24: -0.3357051992 | AF24: -0.01545873136 | AG24: 24 | AH24: -2.658270707 | AI24: -0.122095258 | AJ24: -0.2073806815 | AK24: 24 | AL24: -2.658270707 | AM24: 0.555438809 | AN24: -0.09117760517 | AO24: 24 | AP24: -2.658270707 | AQ24: -0.06956997109 | AR24: 0.1650429113
A25: 25 | B25: -2.637256709 | C25: 0.4136949316 | D25: -0.03362305977 | E25: 25 | F25: -2.637256709 | G25: -0.3490904392 | H25: -0.1065017201 | I25: 25 | J25: -2.637256709 | K25: -0.337514013 | L25: -0.1428816001 | M25: 25 | N25: -2.637256709 | O25: -0.3587593329 | P25: -0.1198301947 | Q25: 25 | R25: -2.637256709 | S25: -0.4955847163 | T25: -0.01180438251 | U25: 25 | V25: -2.637256709 | W25: -0.5320974959 | X25: 0.08469214716 | Y25: 25 | Z25: -2.637256709 | AA25: -0.6543616001 | AB25: 0.2463574681 | AC25: 25 | AD25: -2.637256709 | AE25: -0.3341026177 | AF25: -0.0165036781 | AG25: 25 | AH25: -2.637256709 | AI25: -0.119574294 | AJ25: -0.2090244501 | AK25: 25 | AL25: -2.637256709 | AM25: 0.5598094497 | AN25: -0.09402743647 | AO25: 25 | AP25: -2.637256709 | AQ25: -0.06639326637 | AR25: 0.1629715737
A26: 26 | B26: -2.616242712 | C26: 0.4172863852 | D26: -0.03585133861 | E26: 26 | F26: -2.616242712 | G26: -0.3459897911 | H26: -0.1084254839 | I26: 26 | J26: -2.616242712 | K26: -0.3347387567 | L26: -0.1446034781 | M26: 26 | N26: -2.616242712 | O26: -0.3556632439 | P26: -0.1217511299 | Q26: 26 | R26: -2.616242712 | S26: -0.4922798781 | T26: -0.01385483399 | U26: 26 | V26: -2.616242712 | W26: -0.5279714502 | X26: 0.08213218631 | Y26: 26 | Z26: -2.616242712 | AA26: -0.6485436395 | AB26: 0.2427477768 | AC26: 26 | AD26: -2.616242712 | AE26: -0.3324378355 | AF26: -0.01753657437 | AG26: 26 | AH26: -2.616242712 | AI26: -0.1169554843 | AJ26: -0.2106492625 | AK26: 26 | AL26: -2.616242712 | AM26: 0.5643497275 | AN26: -0.09684440312 | AO26: 26 | AP26: -2.616242712 | AQ26: -0.06309326468 | AR26: 0.160924123
A27: 27 | B27: -2.595228714 | C27: 0.4210104392 | D27: -0.03805263689 | E27: 27 | F27: -2.595228714 | G27: -0.3427746636 | H27: -0.1103259544 | I27: 27 | J27: -2.595228714 | K27: -0.3318610348 | L27: -0.1463045072 | M27: 27 | N27: -2.595228714 | O27: -0.3524528438 | P27: -0.123648806 | Q27: 27 | R27: -2.595228714 | S27: -0.4888530214 | T27: -0.0158804581 | U27: 27 | V27: -2.595228714 | W27: -0.5236930662 | X27: 0.07960322211 | Y27: 27 | Z27: -2.595228714 | AA27: -0.6425108733 | AB27: 0.2391817926 | AC27: 27 | AD27: -2.595228714 | AE27: -0.3307115877 | AF27: -0.01855696407 | AG27: 27 | AH27: -2.595228714 | AI27: -0.1142399851 | AJ27: -0.2122544013 | AK27: 27 | AL27: -2.595228714 | AM27: 0.5690576374 | AN27: -0.09962726124 | AO27: 27 | AP27: -2.595228714 | AQ27: -0.05967142321 | AR27: 0.1589014634
A28: 28 | B28: -2.574214716 | C28: 0.4248654493 | D28: -0.04022598259 | E28: 28 | F28: -2.574214716 | G28: -0.3394464764 | H28: -0.1122022923 | I28: 28 | J28: -2.574214716 | K28: -0.3288821181 | L28: -0.1479839363 | M28: 28 | N28: -2.574214716 | O28: -0.3491295502 | P28: -0.125522385 | Q28: 28 | R28: -2.574214716 | S28: -0.4853056597 | T28: -0.01788036036 | U28: 28 | V28: -2.574214716 | W28: -0.5192642332 | X28: 0.07710637127 | Y28: 28 | Z28: -2.574214716 | AA28: -0.6362659653 | AB28: 0.23566109 | AC28: 28 | AD28: -2.574214716 | AE28: -0.3289246365 | AF28: -0.01956439663 | AG28: 28 | AH28: -2.574214716 | AI28: -0.1114289957 | AJ28: -0.2138391577 | AK28: 28 | AL28: -2.574214716 | AM28: 0.5739311006 | AN28: -0.102374782 | AO28: 28 | AP28: -2.574214716 | AQ28: -0.05612925296 | AR28: 0.1569044879
A29: 29 | B29: -2.553200718 | C29: 0.4288497132 | D29: -0.04237041601 | E29: 29 | F29: -2.553200718 | G29: -0.3360066991 | H29: -0.114053669 | I29: 29 | J29: -2.553200718 | K29: -0.3258033219 | L29: -0.1496410236 | M29: 29 | N29: -2.553200718 | O29: -0.3456948306 | P29: -0.1273710395 | Q29: 29 | R29: -2.553200718 | S29: -0.4816393592 | T29: -0.01985365769 | U29: 29 | V29: -2.553200718 | W29: -0.5146869067 | X29: 0.07464273633 | Y29: 29 | Z29: -2.553200718 | AA29: -0.6298116731 | AB29: 0.2321872237 | AC29: 29 | AD29: -2.553200718 | AE29: -0.327077771 | AF29: -0.0205584272 | AG29: 29 | AH29: -2.553200718 | AI29: -0.1085237572 | AJ29: -0.2154028318 | AK29: 29 | AL29: -2.553200718 | AM29: 0.578967965 | AN29: -0.1050857521 | AO29: 29 | AP29: -2.553200718 | AQ29: -0.05246831805 | AR29: 0.1549340785
A30: 30 | B30: -2.532186721 | C30: 0.4329614715 | D30: -0.04448499023 | E30: 30 | F30: -2.532186721 | G30: -0.3324568506 | H30: -0.115879267 | I30: 30 | J30: -2.532186721 | K30: -0.3226260058 | L30: -0.1512750377 | M30: 30 | N30: -2.532186721 | O30: -0.3421502017 | P30: -0.1291939532 | Q30: 30 | R30: -2.532186721 | S30: -0.4778557389 | T30: -0.02179947873 | U30: 30 | V30: -2.532186721 | W30: -0.5099631082 | X30: 0.07221340516 | Y30: 30 | Z30: -2.532186721 | AA30: -0.6231508468 | AB30: 0.2287617278 | AC30: 30 | AD30: -2.532186721 | AE30: -0.3251718067 | AF30: -0.02153861684 | AG30: 30 | AH30: -2.532186721 | AI30: -0.1055255525 | AJ30: -0.2169447333 | AK30: 30 | AL30: -2.532186721 | AM30: 0.5841660067 | AN30: -0.1077589746 | AO30: 30 | AP30: -2.532186721 | AQ30: -0.04869023503 | AR30: 0.1529911051
A31: 31 | B31: -2.511172723 | C31: 0.4371989087 | D31: -0.04656877152 | E31: 31 | F31: -2.511172723 | G31: -0.3287984985 | H31: -0.1176782803 | I31: 31 | J31: -2.511172723 | K31: -0.3193515727 | L31: -0.1528852568 | M31: 31 | N31: -2.511172723 | O31: -0.3384972287 | P31: -0.1309903213 | Q31: 31 | R31: -2.511172723 | S31: -0.4739564696 | T31: -0.02371696427 | U31: 31 | V31: -2.511172723 | W31: -0.5050949233 | X31: 0.0698194505 | Y31: 31 | Z31: -2.511172723 | AA31: -0.6162864276 | AB31: 0.2253861147 | AC31: 31 | AD31: -2.511172723 | AE31: -0.3232075853 | AF31: -0.02250453272 | AG31: 31 | AH31: -2.511172723 | AI31: -0.1024357055 | AJ31: -0.2184641813 | AK31: 31 | AL31: -2.511172723 | AM31: 0.5895229302 | AN31: -0.110393269 | AO31: 31 | AP31: -2.511172723 | AQ31: -0.04479667222 | AR31: 0.1510764258
A32: 32 | B32: -2.490158725 | C32: 0.4415601536 | D32: -0.04862083974 | E32: 32 | F32: -2.490158725 | G32: -0.3250332582 | H32: -0.1194499144 | I32: 32 | J32: -2.490158725 | K32: -0.3159814686 | L32: -0.15447097 | M32: 32 | N32: -2.490158725 | O32: -0.3347375246 | P32: -0.1327593504 | Q32: 32 | R32: -2.490158725 | S32: -0.469943273 | T32: -0.02560526758 | U32: 32 | V32: -2.490158725 | W32: -0.5000845018 | X32: 0.06746192943 | Y32: 32 | Z32: -2.490158725 | AA32: -0.6092214466 | AB32: 0.2220618751 | AC32: 32 | AD32: -2.490158725 | AE32: -0.321185974 | AF32: -0.02345574833 | AG32: 32 | AH32: -2.490158725 | AI32: -0.09925558069 | AJ32: -0.2199605048 | AK32: 32 | AL32: -2.490158725 | AM32: 0.59503637 | AN32: -0.112987472 | AO32: 32 | AP32: -2.490158725 | AQ32: -0.04078934889 | AR32: 0.149190886
A33: 33 | B33: -2.469144728 | C33: 0.4460432804 | D33: -0.05064028875 | E33: 33 | F33: -2.469144728 | G33: -0.3211627922 | H33: -0.121193387 | I33: 33 | J33: -2.469144728 | K33: -0.3125171816 | L33: -0.156031477 | M33: 33 | N33: -2.469144728 | O33: -0.3308727497 | P33: -0.1345002595 | Q33: 33 | R33: -2.469144728 | S33: -0.4658179213 | T33: -0.02746355486 | U33: 33 | V33: -2.469144728 | W33: -0.4949340562 | X33: 0.06514188298 | Y33: 33 | Z33: -2.469144728 | AA33: -0.6019590235 | AB33: 0.2187904769 | AC33: 33 | AD33: -2.469144728 | AE33: -0.3191078656 | AF33: -0.02439184363 | AG33: 33 | AH33: -2.469144728 | AI33: -0.09598658223 | AJ33: -0.221433043 | AK33: 33 | AL33: -2.469144728 | AM33: 0.6007038917 | AN33: -0.1155404382 | AO33: 33 | AP33: -2.469144728 | AQ33: -0.03667003457 | AR33: 0.1473353183
A34: 34 | B34: -2.44813073 | C34: 0.4506463094 | D34: -0.05262622682 | E34: 34 | F34: -2.44813073 | G34: -0.3171888098 | H34: -0.1229079282 | I34: 34 | J34: -2.44813073 | K34: -0.3089602414 | L34: -0.1575660889 | M34: 34 | N34: -2.44813073 | O34: -0.3269046104 | P34: -0.1362122797 | Q34: 34 | R34: -2.44813073 | S34: -0.461582236 | T34: -0.02929100553 | U34: 34 | V34: -2.44813073 | W34: -0.4896458607 | X34: 0.06286033562 | Y34: 34 | Z34: -2.44813073 | AA34: -0.5945023652 | AB34: 0.2155733645 | AC34: 34 | AD34: -2.44813073 | AE34: -0.3169741778 | AF34: -0.02531240527 | AG34: 34 | AH34: -2.44813073 | AI34: -0.09263015365 | AJ34: -0.2228811459 | AK34: 34 | AL34: -2.44813073 | AM34: 0.6065229926 | AN34: -0.1180510402 | AO34: 34 | AP34: -2.44813073 | AQ34: -0.03244054822 | AR34: 0.1455105421
A35: 35 | B35: -2.427116732 | C35: 0.4553672081 | D35: -0.05457777702 | E35: 35 | F35: -2.427116732 | G35: -0.3131130656 | H35: -0.124592781 | I35: 35 | J35: -2.427116732 | K35: -0.3053122188 | L35: -0.1590741278 | M35: 35 | N35: -2.427116732 | O35: -0.3228348591 | P35: -0.1378946551 | Q35: 35 | R35: -2.427116732 | S35: -0.4572380877 | T35: -0.03108681265 | U35: 35 | V35: -2.427116732 | W35: -0.4842222504 | X35: 0.0606182948 | Y35: 35 | Z35: -2.427116732 | AA35: -0.5868547644 | AB35: 0.2124119587 | AC35: 35 | AD35: -2.427116732 | AE35: -0.3147858526 | AF35: -0.02621702676 | AG35: 35 | AH35: -2.427116732 | AI35: -0.08918777704 | AJ35: -0.2243041738 | AK35: 35 | AL35: -2.427116732 | AM35: 0.6124911031 | AN35: -0.1205181694 | AO35: 35 | AP35: -2.427116732 | AQ35: -0.02810275748 | AR35: 0.1437173631
A36: 36 | B36: -2.406102735 | C36: 0.460203892 | D36: -0.0564940776 | E36: 36 | F36: -2.406102735 | G36: -0.3089373594 | H36: -0.1262472013 | I36: 36 | J36: -2.406102735 | K36: -0.3015747244 | L36: -0.1605549281 | M36: 36 | N36: -2.406102735 | O36: -0.3186652927 | P36: -0.1395466429 | Q36: 36 | R36: -2.406102735 | S36: -0.4527873945 | T36: -0.03285018323 | U36: 36 | V36: -2.406102735 | W36: -0.4786656203 | X36: 0.05841675056 | Y36: 36 | Z36: -2.406102735 | AA36: -0.579019598 | AB36: 0.2093076553 | AC36: 36 | AD36: -2.406102735 | AE36: -0.3125438564 | AF36: -0.02710530864 | AG36: 36 | AH36: -2.406102735 | AI36: -0.08566097247 | AJ36: -0.2257014984 | AK36: 36 | AL36: -2.406102735 | AM36: 0.6186055879 | AN36: -0.1229407365 | AO36: 36 | AP36: -2.406102735 | AQ36: -0.02365857779 | AR36: 0.1419565732
A37: 37 | B37: -2.385088737 | C37: 0.4651542251 | D37: -0.05837428236 | E37: 37 | F37: -2.385088737 | G37: -0.3046635352 | H37: -0.1278704587 | I37: 37 | J37: -2.385088737 | K37: -0.2977494088 | L37: -0.1620078357 | M37: 37 | N37: -2.385088737 | O37: -0.3143977525 | P37: -0.1411675135 | Q37: 37 | R37: -2.385088737 | S37: -0.4482321217 | T37: -0.03458033862 | U37: 37 | V37: -2.385088737 | W37: -0.4729784241 | X37: 0.05625667503 | Y37: 37 | Z37: -2.385088737 | AA37: -0.5710003258 | AB37: 0.2062618252 | AC37: 37 | AD37: -2.385088737 | AE37: -0.3102491792 | AF37: -0.02797685867 | AG37: 37 | AH37: -2.385088737 | AI37: -0.08205129728 | AJ37: -0.2270725028 | AK37: 37 | AL37: -2.385088737 | AM37: 0.6248637469 | AN37: -0.1253176715 | AO37: 37 | AP37: -2.385088737 | AQ37: -0.01910997157 | AR37: 0.1402289498
A38: 38 | B38: -2.364074739 | C38: 0.4702160217 | D38: -0.06021756107 | E38: 38 | F38: -2.364074739 | G38: -0.30029348 | H38: -0.1294618362 | I38: 38 | J38: -2.364074739 | K38: -0.2938379611 | L38: -0.1634322091 | M38: 38 | N38: -2.364074739 | O38: -0.3100341229 | P38: -0.1427565511 | Q38: 38 | R38: -2.364074739 | S38: -0.4435742808 | T38: -0.03627651483 | U38: 38 | V38: -2.364074739 | W38: -0.4671631729 | X38: 0.05413902204 | Y38: 38 | Z38: -2.364074739 | AA38: -0.5628004889 | AB38: 0.2032758133 | AC38: 38 | AD38: -2.364074739 | AE38: -0.3079028342 | AF38: -0.028831292 | AG38: 38 | AH38: -2.364074739 | AI38: -0.07836034539 | AJ38: -0.2284165816 | AK38: 38 | AL38: -2.364074739 | AM38: 0.6312628169 | AN38: -0.1276479251 | AO38: 38 | AP38: -2.364074739 | AQ38: -0.01445894736 | AR38: 0.138535256
A39: 39 | B39: -2.343060742 | C39: 0.4753870466 | D39: -0.06202309979 | E39: 39 | F39: -2.343060742 | G39: -0.2958291237 | H39: -0.1310206314 | I39: 39 | J39: -2.343060742 | K39: -0.2898421084 | L39: -0.1648274193 | M39: 39 | N39: -2.343060742 | O39: -0.3055763308 | P39: -0.1443130543 | Q39: 39 | R39: -2.343060742 | S39: -0.4388159286 | T39: -0.03793796289 | U39: 39 | V39: -2.343060742 | W39: -0.4612224347 | X39: 0.05206472669 | Y39: 39 | Z39: -2.343060742 | AA39: -0.5544237081 | AB39: 0.2003509382 | AC39: 39 | AD39: -2.343060742 | AE39: -0.3055058576 | AF39: -0.02966823134 | AG39: 39 | AH39: -2.343060742 | AI39: -0.07458974662 | AJ39: -0.2297331411 | AK39: 39 | AL39: -2.343060742 | AM39: 0.6377999721 | AN39: -0.1299304681 | AO39: 39 | AP39: -2.343060742 | AQ39: -0.009707558916 | AR39: 0.1368762394
A40: 40 | B40: -2.322046744 | C40: 0.4806650163 | D40: -0.06379010124 | E40: 40 | F40: -2.322046744 | G40: -0.2912724374 | H40: -0.1325461557 | I40: 40 | J40: -2.322046744 | K40: -0.2857636152 | L40: -0.1661928503 | M40: 40 | N40: -2.322046744 | O40: -0.3010263445 | P40: -0.1458363355 | Q40: 40 | R40: -2.322046744 | S40: -0.4339591662 | T40: -0.03956394913 | U40: 40 | V40: -2.322046744 | W40: -0.4551588328 | X40: 0.05003470493 | Y40: 40 | Z40: -2.322046744 | AA40: -0.5458736824 | AB40: 0.1974884913 | AC40: 40 | AD40: -2.322046744 | AE40: -0.3030593078 | AF40: -0.03048730711 | AG40: 40 | AH40: -2.322046744 | AI40: -0.07074116597 | AJ40: -0.2310216001 | AK40: 40 | AL40: -2.322046744 | AM40: 0.6444723259 | AN40: -0.1321642928 | AO40: 40 | AP40: -2.322046744 | AQ40: -0.004857904325 | AR40: 0.1352526328
A41: 41 | B41: -2.301032746 | C41: 0.4860476003 | D41: -0.06551778517 | E41: 41 | F41: -2.301032746 | G41: -0.2866254334 | H41: -0.1340377356 | I41: 41 | J41: -2.301032746 | K41: -0.2816042825 | L41: -0.167527899 | M41: 41 | N41: -2.301032746 | O41: -0.2963861733 | P41: -0.1473257222 | Q41: 41 | R41: -2.301032746 | S41: -0.4290061382 | T41: -0.04115375558 | U41: 41 | V41: -2.301032746 | W41: -0.4489750446 | X41: 0.04804985315 | Y41: 41 | Z41: -2.301032746 | AA41: -0.5371541872 | AB41: 0.1946897367 | AC41: 41 | AD41: -2.301032746 | AE41: -0.300564265 | AF41: -0.03128815763 | AG41: 41 | AH41: -2.301032746 | AI41: -0.06681630286 | AJ41: -0.2322813896 | AK41: 41 | AL41: -2.301032746 | AM41: 0.6512769319 | AN41: -0.1343484126 | AO41: 41 | AP41: -2.301032746 | AQ41: 8.787494522e-05 | AR41: 0.133665153
A42: 42 | B42: -2.280018749 | C42: 0.4915324218 | D42: -0.06720538867 | E42: 42 | F42: -2.280018749 | G42: -0.2818901636 | H42: -0.1354947124 | I42: 42 | J42: -2.280018749 | K42: -0.2773659469 | L42: -0.1688319761 | M42: 42 | N42: -2.280018749 | O42: -0.2916578661 | P42: -0.1487805568 | Q42: 42 | R42: -2.280018749 | S42: -0.4239590318 | T42: -0.04270668021 | U42: 42 | V42: -2.280018749 | W42: -0.4426738007 | X42: 0.04611104782 | Y42: 42 | Z42: -2.280018749 | AA42: -0.5282690728 | AB42: 0.1919559103 | AC42: 42 | AD42: -2.280018749 | AE42: -0.2980218311 | AF42: -0.03207042928 | AG42: 42 | AH42: -2.280018749 | AI42: -0.0628168904 | AJ42: -0.2335119533 | AK42: 42 | AL42: -2.280018749 | AM42: 0.6582107856 | AN42: -0.1364818632 | AO42: 42 | AP42: -2.280018749 | AQ42: 0.005127594978 | AR42: 0.132114501
A43: 43 | B43: -2.259004751 | C43: 0.4971170589 | D43: -0.06885216655 | E43: 43 | F43: -2.259004751 | G43: -0.2770687189 | H43: -0.1369164428 | I43: 43 | J43: -2.259004751 | K43: -0.2730504799 | L43: -0.1701045057 | M43: 43 | N43: -2.259004751 | O43: -0.2868435107 | P43: -0.1502001968 | Q43: 43 | R43: -2.259004751 | S43: -0.4188200756 | T43: -0.04422203731 | U43: 43 | V43: -2.259004751 | W43: -0.4362578837 | X43: 0.04421914505 | Y43: 43 | Z43: -2.259004751 | AA43: -0.5192222626 | AB43: 0.1892882191 | AC43: 43 | AD43: -2.259004751 | AE43: -0.2954331287 | AF43: -0.03283377662 | AG43: 43 | AH43: -2.259004751 | AI43: -0.05874469462 | AJ43: -0.2347127479 | AK43: 43 | AL43: -2.259004751 | AM43: 0.6652708249 | AN43: -0.1385637024 | AO43: 43 | AP43: -2.259004751 | AQ43: 0.01025903037 | AR43: 0.1306013616
A44: 44 | B44: -2.237990753 | C44: 0.5027990455 | D44: -0.07045739164 | E44: 44 | F44: -2.237990753 | G44: -0.2721632285 | H44: -0.138302299 | I44: 44 | J44: -2.237990753 | K44: -0.2686597872 | L44: -0.1713449257 | M44: 44 | N44: -2.237990753 | O44: -0.2819452331 | P44: -0.1515840152 | Q44: 44 | R44: -2.237990753 | S44: -0.4135915389 | T44: -0.04569915772 | U44: 44 | V44: -2.237990753 | W44: -0.4297301265 | X44: 0.04237498026 | Y44: 44 | Z44: -2.237990753 | AA44: -0.5100177514 | AB44: 0.1866878412 | AC44: 44 | AD44: -2.237990753 | AE44: -0.2927993009 | AF44: -0.03357786259 | AG44: 44 | AH44: -2.237990753 | AI44: -0.05460151368 | AJ44: -0.2358832431 | AK44: 44 | AL44: -2.237990753 | AM44: 0.6724539326 | AN44: -0.1405930111 | AO44: 44 | AP44: -2.237990753 | AQ44: 0.01547991524 | AR44: 0.129126403
A45: 45 | B45: -2.216976756 | C45: 0.5085758726 | D45: -0.07202035511 | E45: 45 | F45: -2.216976756 | G45: -0.2671758584 | H45: -0.1396516691 | I45: 45 | J45: -2.216976756 | K45: -0.2641958074 | L45: -0.1725526886 | M45: 45 | N45: -2.216976756 | O45: -0.2769651962 | P45: -0.1529314012 | Q45: 45 | R45: -2.216976756 | S45: -0.4082757303 | T45: -0.0471373892 | U45: 45 | V45: -2.216976756 | W45: -0.4230934117 | X45: 0.04057936778 | Y45: 45 | Z45: -2.216976756 | AA45: -0.5006596037 | AB45: 0.1841559249 | AC45: 45 | AD45: -2.216976756 | AE45: -0.2901215107 | AF45: -0.0343023586 | AG45: 45 | AH45: -2.216976756 | AI45: -0.0503891771 | AJ45: -0.2370229221 | AK45: 45 | AL45: -2.216976756 | AM45: 0.6797569366 | AN45: -0.1425688931 | AO45: 45 | AP45: -2.216976756 | AQ45: 0.02078794417 | AR45: 0.1276902763
A46: 46 | B46: -2.195962758 | C46: 0.5144449893 | D46: -0.07354036681 | E46: 46 | F46: -2.195962758 | G46: -0.2621088108 | H46: -0.1409639571 | I46: 46 | J46: -2.195962758 | K46: -0.2596605119 | L46: -0.1737272609 | M46: 46 | N46: -2.195962758 | O46: -0.2719055991 | P46: -0.1542417597 | Q46: 46 | R46: -2.195962758 | S46: -0.4028749973 | T46: -0.04853609666 | U46: 46 | V46: -2.195962758 | W46: -0.4163506698 | X46: 0.03883310049 | Y46: 46 | Z46: -2.195962758 | AA46: -0.4911519518 | AB46: 0.1816935881 | AC46: 46 | AD46: -2.195962758 | AE46: -0.2874009406 | AF46: -0.03500694476 | AG46: 46 | AH46: -2.195962758 | AI46: -0.04610954493 | AJ46: -0.2381312815 | AK46: 46 | AL46: -2.195962758 | AM46: 0.6871766122 | AN46: -0.1444904759 | AO46: 46 | AP46: -2.195962758 | AQ46: 0.0261807733 | AR46: 0.1262936159
A47: 47 | B47: -2.17494876 | C47: 0.5204038041 | D47: -0.07501675554 | E47: 47 | F47: -2.17494876 | G47: -0.2569643234 | H47: -0.1422385836 | I47: 47 | J47: -2.17494876 | K47: -0.2550559032 | L47: -0.1748681241 | M47: 47 | N47: -2.17494876 | O47: -0.2667686759 | P47: -0.155514512 | Q47: 47 | R47: -2.17494876 | S47: -0.3973917246 | T47: -0.04989466247 | U47: 47 | V47: -2.17494876 | W47: -0.4095048782 | X47: 0.03713694951 | Y47: 47 | Z47: -2.17494876 | AA47: -0.481498994 | AB47: 0.1793019181 | AC47: 47 | AD47: -2.17494876 | AE47: -0.2846387919 | AF47: -0.03569130992 | AG47: 47 | AH47: -2.17494876 | AI47: -0.04176450692 | AJ47: -0.239207832 | AK47: 47 | AL47: -2.17494876 | AM47: 0.6947096831 | AN47: -0.146356911 | AO47: 47 | AP47: -2.17494876 | AQ47: 0.0316560213 | AR47: 0.1249370383
A48: 48 | B48: -2.153934762 | C48: 0.5264496855 | D48: -0.07644886937 | E48: 48 | F48: -2.153934762 | G48: -0.2517446676 | H48: -0.1434749858 | I48: 48 | J48: -2.153934762 | K48: -0.2503840147 | L48: -0.1759747744 | M48: 48 | N48: -2.153934762 | O48: -0.2615566949 | P48: -0.1567490963 | Q48: 48 | R48: -2.153934762 | S48: -0.3918283335 | T48: -0.05121248674 | U48: 48 | V48: -2.153934762 | W48: -0.4025590599 | X48: 0.0354916638 | Y48: 48 | Z48: -2.153934762 | AA48: -0.4717049927 | AB48: 0.1769819711 | AC48: 48 | AD48: -2.153934762 | AE48: -0.2818362843 | AF48: -0.0363551519 | AG48: 48 | AH48: -2.153934762 | AI48: -0.03735598174 | AJ48: -0.2402520983 | AK48: 48 | AL48: -2.153934762 | AM48: 0.7023528228 | AN48: -0.1481673742 | AO48: 48 | AP48: -2.153934762 | AQ48: 0.03721127046 | AR48: 0.1236211426
A49: 49 | B49: -2.132920765 | C49: 0.5325799641 | D49: -0.07783607591 | E49: 49 | F49: -2.132920765 | G49: -0.2464521484 | H49: -0.1446726177 | I49: 49 | J49: -2.132920765 | K49: -0.2456469092 | L49: -0.177046723 | M49: 49 | N49: -2.132920765 | O49: -0.2562719577 | P49: -0.1579449672 | Q49: 49 | R49: -2.132920765 | S49: -0.3861872807 | T49: -0.05248898754 | U49: 49 | V49: -2.132920765 | W49: -0.395516282 | X49: 0.03389796987 | Y49: 49 | Z49: -2.132920765 | AA49: -0.4617742728 | AB49: 0.1747347715 | AC49: 49 | AD49: -2.132920765 | AE49: -0.2789946553 | AF49: -0.03699817756 | AG49: 49 | AH49: -2.132920765 | AI49: -0.03288591605 | AJ49: -0.2412636191 | AK49: 49 | AL49: -2.132920765 | AM49: 0.7101026564 | AN49: -0.1499210661 | AO49: 49 | AP49: -2.132920765 | AQ49: 0.04284406773 | AR49: 0.12234651
A50: 50 | B50: -2.111906767 | C50: 0.5387919328 | D50: -0.07917776262 | E50: 50 | F50: -2.111906767 | G50: -0.2410891029 | H50: -0.1458309505 | I50: 50 | J50: -2.111906767 | K50: -0.2408466786 | L50: -0.1780834967 | M50: 50 | N50: -2.111906767 | O50: -0.2509167977 | P50: -0.1591015969 | Q50: 50 | R50: -2.111906767 | S50: -0.3804710569 | T50: -0.0537236012 | U50: 50 | V50: -2.111906767 | W50: -0.3883796542 | X50: 0.03235657146 | Y50: 50 | Z50: -2.111906767 | AA50: -0.4517112192 | AB50: 0.1725613115 | AC50: 50 | AD50: -2.111906767 | AE50: -0.2761151596 | AF50: -0.03762010295 | AG50: 50 | AH50: -2.111906767 | AI50: -0.02835628371 | AJ50: -0.2422419478 | AK50: 50 | AL50: -2.111906767 | AM50: 0.7179557618 | AN50: -0.1516172123 | AO50: 50 | AP50: -2.111906767 | AQ50: 0.04855192583 | AR50: 0.1211137032
A51: 51 | B51: -2.090892769 | C51: 0.5450828485 | D51: -0.08047333705 | E51: 51 | F51: -2.090892769 | G51: -0.2356578991 | H51: -0.1469494727 | I51: 51 | J51: -2.090892769 | K51: -0.2359854426 | L51: -0.1790846376 | M51: 51 | N51: -2.090892769 | O51: -0.2454935798 | P51: -0.1602184744 | Q51: 51 | R51: -2.090892769 | S51: -0.3746821865 | T51: -0.05491578257 | U51: 51 | V51: -2.090892769 | W51: -0.381152328 | X51: 0.03086814921 | Y51: 51 | Z51: -2.090892769 | AA51: -0.4415202758 | AB51: 0.170462551 | AC51: 51 | AD51: -2.090892769 | AE51: -0.2731990688 | AF51: -0.03822065346 | AG51: 51 | AH51: -2.090892769 | AI51: -0.02376908489 | AJ51: -0.2431866525 | AK51: 51 | AL51: -2.090892769 | AM51: 0.7259086713 | AN51: -0.1532550639 | AO51: 51 | AP51: -2.090892769 | AQ51: 0.05433232434 | AR51: 0.1199232665
A52: 52 | B52: -2.069878772 | C52: 0.5514499334 | D52: -0.08172222711 | E52: 52 | F52: -2.069878772 | G52: -0.2301609353 | H52: -0.1480276903 | I52: 52 | J52: -2.069878772 | K52: -0.2310653476 | L52: -0.1800497037 | M52: 52 | N52: -2.069878772 | O52: -0.2400046986 | P52: -0.1612951067 | Q52: 52 | R52: -2.069878772 | S52: -0.3688232256 | T52: -0.05606500519 | U52: 52 | V52: -2.069878772 | W52: -0.3738374948 | X52: 0.02943336035 | Y52: 52 | Z52: -2.069878772 | AA52: -0.4312059423 | AB52: 0.1684394166 | AC52: 52 | AD52: -2.069878772 | AE52: -0.2702476706 | AF52: -0.0387995639 | AG52: 52 | AH52: -2.069878772 | AI52: -0.01912634515 | AJ52: -0.2440973159 | AK52: 52 | AL52: -2.069878772 | AM52: 0.733957873 | AN52: -0.1548338975 | AO52: 52 | AP52: -2.069878772 | AQ52: 0.06018271079 | AR52: 0.1187757258
A53: 53 | B53: -2.048864774 | C53: 0.557890376 | D53: -0.08292388131 | E53: 53 | F53: -2.048864774 | G53: -0.2246006389 | H53: -0.1490651274 | I53: 53 | J53: -2.048864774 | K53: -0.2260885663 | L53: -0.1809782688 | M53: 53 | N53: -2.048864774 | O53: -0.2344525778 | P53: -0.1623310183 | Q53: 53 | R53: -2.048864774 | S53: -0.3628967612 | T53: -0.05717076162 | U53: 53 | V53: -2.048864774 | W53: -0.3664383845 | X53: 0.02805283846 | Y53: 53 | Z53: -2.048864774 | AA53: -0.4207727734 | AB53: 0.1664928017 | AC53: 53 | AD53: -2.048864774 | AE53: -0.2672622681 | AF53: -0.03935657864 | AG53: 53 | AH53: -2.048864774 | AI53: -0.01443011461 | AJ53: -0.244973536 | AK53: 53 | AL53: -2.048864774 | AM53: 0.7420998127 | AN53: -0.1563530161 | AO53: 53 | AP53: -2.048864774 | AQ53: 0.06610050181 | AR53: 0.1176715876
A54: 54 | B54: -2.027850776 | C54: 0.5644013323 | D54: -0.08407776905 | E54: 54 | F54: -2.027850776 | G54: -0.2189794651 | H54: -0.1500613256 | I54: 54 | J54: -2.027850776 | K54: -0.2210572963 | L54: -0.1818699228 | M54: 54 | N54: -2.027850776 | O54: -0.2288396692 | P54: -0.1633257518 | Q54: 54 | R54: -2.027850776 | S54: -0.3569054105 | T54: -0.05823256358 | U54: 54 | V54: -2.027850776 | W54: -0.3589582644 | X54: 0.02672719313 | Y54: 54 | Z54: -2.027850776 | AA54: -0.410225376 | AB54: 0.1646235659 | AC54: 54 | AD54: -2.027850776 | AE54: -0.2642441797 | AF54: -0.0398914517 | AG54: 54 | AH54: -2.027850776 | AI54: -0.009682466981 | AJ54: -0.2458149259 | AK54: 54 | AL54: -2.027850776 | AM54: 0.7503308952 | AN54: -0.1578117489 | AO54: 54 | AP54: -2.027850776 | AQ54: 0.07208308428 | AR54: 0.1166113396
A55: 55 | B55: -2.006836779 | C55: 0.5709799273 | D55: -0.0851833808 | E55: 55 | F55: -2.006836779 | G55: -0.2132998961 | H55: -0.1510158453 | I55: 55 | J55: -2.006836779 | K55: -0.2159737592 | L55: -0.1827242722 | M55: 55 | N55: -2.006836779 | O55: -0.2231684512 | P55: -0.164278868 | Q55: 55 | R55: -2.006836779 | S55: -0.350851819 | T55: -0.0592499422 | U55: 55 | V55: -2.006836779 | W55: -0.3514004376 | X55: 0.02545700972 | Y55: 55 | Z55: -2.006836779 | AA55: -0.3995684077 | AB55: 0.1628325346 | AC55: 55 | AD55: -2.006836779 | AE55: -0.2611947381 | AF55: -0.04040394692 | AG55: 55 | AH55: -2.006836779 | AI55: -0.004885498697 | AJ55: -0.2466211139 | AK55: 55 | AL55: -2.006836779 | AM55: 0.7586474857 | AN55: -0.1592094516 | AO55: 55 | AP55: -2.006836779 | AQ55: 0.07812781645 | AR55: 0.1155954499
A56: 56 | B56: -1.985822781 | C56: 0.5776232561 | D56: -0.08624022836 | E56: 56 | F56: -1.985822781 | G56: -0.2075644398 | H56: -0.1519282648 | I56: 56 | J56: -1.985822781 | K56: -0.2108401998 | L56: -0.1835409395 | M56: 56 | N56: -1.985822781 | O56: -0.2174414281 | P56: -0.1651899459 | Q56: 56 | R56: -1.985822781 | S56: -0.3447386598 | T56: -0.06022244824 | U56: 56 | V56: -1.985822781 | W56: -0.3437682413 | X56: 0.02424284913 | Y56: 56 | Z56: -1.985822781 | AA56: -0.3888065741 | AB56: 0.1611204987 | AC56: 56 | AD56: -1.985822781 | AE56: -0.2581152898 | AF56: -0.04089383799 | AG56: 56 | AH56: -1.985822781 | AI56: -4.132796162e-05 | AJ56: -0.2473917441 | AK56: 56 | AL56: -1.985822781 | AM56: 0.767045912 | AN56: -0.1605455072 | AO56: 56 | AP56: -1.985822781 | AQ56: 0.08423202914 | AR56: 0.1146243671
A57: 57 | B57: -1.964808783 | C57: 0.5843283851 | D57: -0.08724784504 | E57: 57 | F57: -1.964808783 | G57: -0.2017756288 | H57: -0.1527981814 | I57: 57 | J57: -1.964808783 | K57: -0.205658885 | L57: -0.1843195643 | M57: 57 | N57: -1.964808783 | O57: -0.2116611288 | P57: -0.1660585833 | Q57: 57 | R57: -1.964808783 | S57: -0.3385686323 | T57: -0.06114965227 | U57: 57 | V57: -1.964808783 | W57: -0.3360650456 | X57: 0.02308524748 | Y57: 57 | Z57: -1.964808783 | AA57: -0.3779446275 | AB57: 0.1594882141 | AC57: 57 | AD57: -1.964808783 | AE57: -0.2550071946 | AF57: -0.04136090858 | AG57: 57 | AH57: -1.964808783 | AI57: 0.004847906175 | AJ57: -0.2481264763 | AK57: 57 | AL57: -1.964808783 | AM57: 0.7755224656 | AN57: -0.1618193256 | AO57: 57 | AP57: -1.964808783 | AQ57: 0.0903930269 | AR57: 0.11369852
A58: 58 | B58: -1.943794786 | C58: 0.5910923536 | D58: -0.08820578592 | E58: 58 | F58: -1.943794786 | G58: -0.1959360193 | H58: -0.1536252107 | I58: 58 | J58: -1.943794786 | K58: -0.2004321026 | L58: -0.1850598026 | M58: 58 | N58: -1.943794786 | O58: -0.2058301056 | P58: -0.1668843967 | Q58: 58 | R58: -1.943794786 | S58: -0.332344461 | T58: -0.06203114486 | U58: 58 | V58: -1.943794786 | W58: -0.3282942522 | X58: 0.02198471594 | Y58: 58 | Z58: -1.943794786 | AA58: -0.3669873641 | AB58: 0.1579364017 | AC58: 58 | AD58: -1.943794786 | AE58: -0.2518718249 | AF58: -0.04180495245 | AG58: 58 | AH58: -1.943794786 | AI58: 0.009780044765 | AJ58: -0.2488249859 | AK58: 58 | AL58: -1.943794786 | AM58: 0.7840734033 | AN58: -0.1630303443 | AO58: 58 | AP58: -1.943794786 | AQ58: 0.09660808922 | AR58: 0.1128183175
A59: 59 | B59: -1.922780788 | C59: 0.5979121748 | D59: -0.08911362799 | E59: 59 | F59: -1.922780788 | G59: -0.1900481899 | H59: -0.1544089878 | I59: 59 | J59: -1.922780788 | K59: -0.1951621607 | L59: -0.1857613276 | M59: 59 | N59: -1.922780788 | O59: -0.1999509335 | P59: -0.1676670213 | Q59: 59 | R59: -1.922780788 | S59: -0.3260688943 | T59: -0.06286653677 | U59: 59 | V59: -1.922780788 | W59: -0.3204592924 | X59: 0.02094174047 | Y59: 59 | Z59: -1.922780788 | AA59: -0.3559396224 | AB59: 0.1564657466 | AC59: 59 | AD59: -1.922780788 | AE59: -0.2487105654 | AF59: -0.04222577352 | AG59: 59 | AH59: -1.922780788 | AI59: 0.01475290991 | AJ59: -0.2494869646 | AK59: 59 | AL59: -1.922780788 | AM59: 0.7926949495 | AN59: -0.1641780287 | AO59: 59 | AP59: -1.922780788 | AQ59: 0.1028744717 | AR59: 0.1119841481
A60: 60 | B60: -1.90176679 | C60: 0.6047848372 | D60: -0.08997097038 | E60: 60 | F60: -1.90176679 | G60: -0.1841147406 | H60: -0.1551491664 | I60: 60 | J60: -1.90176679 | K60: -0.1898513862 | L60: -0.1864238295 | M60: 60 | N60: -1.90176679 | O60: -0.1940262085 | P60: -0.1684061116 | Q60: 60 | R60: -1.90176679 | S60: -0.3197447034 | T60: -0.06365545912 | U60: 60 | V60: -1.90176679 | W60: -0.3125636258 | X60: 0.01995678162 | Y60: 60 | Z60: -1.90176679 | AA60: -0.3448062807 | AB60: 0.1550768983 | AC60: 60 | AD60: -1.90176679 | AE60: -0.2455248117 | AF60: -0.04262318598 | AG60: 60 | AH60: -1.90176679 | AI60: 0.01976430575 | AJ60: -0.25011212 | AK60: 60 | AL60: -1.90176679 | AM60: 0.8013832969 | AN60: -0.1652618719 | AO60: 60 | AP60: -1.90176679 | AQ60: 0.1091894072 | AR60: 0.1111963804
A61: 61 | B61: -1.880752793 | C61: 0.611707306 | D61: -0.09077743451 | E61: 61 | F61: -1.880752793 | G61: -0.1781382912 | H61: -0.1558454197 | I61: 61 | J61: -1.880752793 | K61: -0.1845021244 | L61: -0.1870470158 | M61: 61 | N61: -1.880752793 | O61: -0.1880585467 | P61: -0.1691013411 | Q61: 61 | R61: -1.880752793 | S61: -0.3133746808 | T61: -0.06439756354 | U61: 61 | V61: -1.880752793 | W61: -0.3046107391 | X61: 0.01903027433 | Y61: 61 | Z61: -1.880752793 | AA61: -0.3335922553 | AB61: 0.15377047 | AC61: 61 | AD61: -1.880752793 | AE61: -0.2423159708 | AF61: -0.04299701432 | AG61: 61 | AH61: -1.880752793 | AI61: 0.02481201937 | AJ61: -0.2507001761 | AK61: 61 | AL61: -1.880752793 | AM61: 0.8101346092 | AN61: -0.1662813954 | AO61: 61 | AP61: -1.880752793 | AQ61: 0.1155501074 | AR61: 0.110455362
A62: 62 | B62: -1.859738795 | C62: 0.6186765246 | D62: -0.09153266426 | E62: 62 | F62: -1.859738795 | G62: -0.172121481 | H62: -0.1564974403 | I62: 62 | J62: -1.859738795 | K62: -0.1791167373 | L62: -0.1876306113 | M62: 62 | N62: -1.859738795 | O62: -0.1820505833 | P62: -0.169752403 | Q62: 62 | R62: -1.859738795 | S62: -0.3069616393 | T62: -0.06509252233 | U62: 62 | V62: -1.859738795 | W62: -0.2966041439 | X62: 0.01816262771 | Y62: 62 | Z62: -1.859738795 | AA62: -0.3223024979 | AB62: 0.1525470386 | AC62: 62 | AD62: -1.859738795 | AE62: -0.2390854596 | AF62: -0.04334709349 | AG62: 62 | AH62: -1.859738795 | AI62: 0.02989382186 | AJ62: -0.2512508732 | AK62: 62 | AL62: -1.859738795 | AM62: 0.818945022 | AN62: -0.1672361489 | AO62: 62 | AP62: -1.859738795 | AQ62: 0.1219537634 | AR62: 0.1097614203
A63: 63 | B63: -1.838724797 | C63: 0.6256894155 | D63: -0.09223632615 | E63: 63 | F63: -1.838724797 | G63: -0.1660669667 | H63: -0.1571049403 | I63: 63 | J63: -1.838724797 | K63: -0.1736976028 | L63: -0.1881743583 | M63: 63 | N63: -1.838724797 | O63: -0.1760049713 | P63: -0.1703590098 | Q63: 63 | R63: -1.838724797 | S63: -0.3005084109 | T63: -0.06574002862 | U63: 63 | V63: -1.838724797 | W63: -0.2885473757 | X63: 0.01735422489 | Y63: 63 | Z63: -1.838724797 | AA63: -0.3109419937 | AB63: 0.1514071443 | AC63: 63 | AD63: -1.838724797 | AE63: -0.2358347045 | AF63: -0.04367326889 | AG63: 63 | AH63: -1.838724797 | AI63: 0.03500746922 | AJ63: -0.2517639681 | AK63: 63 | AL63: -1.838724797 | AM63: 0.8278106448 | AN63: -0.1681257109 | AO63: 63 | AP63: -1.838724797 | AQ63: 0.1283975477 | AR63: 0.1091148616
A64: 64 | B64: -1.8177108 | C64: 0.6327428819 | D64: -0.09288810947 | E64: 64 | F64: -1.8177108 | G64: -0.1599774218 | H64: -0.1576676514 | I64: 64 | J64: -1.8177108 | K64: -0.1682471141 | L64: -0.1886780167 | M64: 64 | N64: -1.8177108 | O64: -0.1699243803 | P64: -0.1709208935 | Q64: 64 | R64: -1.8177108 | S64: -0.2940178449 | T64: -0.0663397965 | U64: 64 | V64: -1.8177108 | W64: -0.2804439922 | X64: 0.01660542284 | Y64: 64 | Z64: -1.8177108 | AA64: -0.2995157593 | AB64: 0.1503512906 | AC64: 64 | AD64: -1.8177108 | AE64: -0.232565141 | AF64: -0.04397539649 | AG64: 64 | AH64: -1.8177108 | AI64: 0.04015070343 | AJ64: -0.2522392343 | AK64: 64 | AL64: -1.8177108 | AM64: 0.8367275628 | AN64: -0.1689496885 | AO64: 64 | AP64: -1.8177108 | AQ64: 0.1348786148 | AR64: 0.1085159715
A65: 65 | B65: =-3.14159265358979+(A65-1)*0.0210139976828749 -> -1.796696802 | C65: =0.347098823636323*COS(B65)+0.717578409393402 -> 0.6398338093 | D65: =0.121832989107382*SIN(B65)+0.0252498288314242+0*COS(B65) -> -0.09348772639 | E65: 65 | F65: =-3.14159265358979+(E65-1)*0.0210139976828749 -> -1.796696802 | G65: =0.299664552058601*COS(F65)+-0.0867354554826122 -> -0.1538555353 | H65: =0.105183381851725*SIN(F65)+-0.0556743573861749+0*COS(F65) -> -0.1581853251 | I65: 65 | J65: =-3.14159265358979+(I65-1)*0.0210139976828749 -> -1.796696802 | K65: =0.268216805569019*COS(J65)+-0.102691391514969 -> -0.1627676777 | L65: =0.0941451048694578*SIN(J65)+-0.0973882217616218+0*COS(J65) -> -0.1891413641 | M65: 65 | N65: =-3.14159265358979+(M65-1)*0.0210139976828749 -> -1.796696802 | O65: =0.299223936258687*COS(N65)+-0.0967901063170089 -> -0.1638114952 | P65: =0.105028724053151*SIN(N65)+-0.0690775666880996+0*COS(N65) -> -0.171437806 | Q65: 65 | R65: =-3.14159265358979+(Q65-1)*0.0210139976828749 -> -1.796696802 | S65: =0.31939866983129*COS(R65)+-0.215952600146413 -> -0.2874928076 | T65: =0.112110131215079*SIN(R65)+0.0423701667184608+0*COS(R65) -> -0.06689156111 | U65: 65 | V65: =-3.14159265358979+(U65-1)*0.0210139976828749 -> -1.796696802 | W65: =0.398764905135784*COS(V65)+-0.18298059338715 -> -0.2722975716 | X65: =0.139967977519616*SIN(V65)+0.15232833674674+0*COS(V65) -> 0.0159165522 | Y65: 65 | Z65: =-3.14159265358979+(Y65-1)*0.0210139976828749 -> -1.796696802 | AA65: =0.562281335126711*COS(Z65)+-0.162086789732886 -> -0.2880288401 | AB65: =0.19736285781698*SIN(Z65)+0.341728365812426+0*COS(Z65) -> 0.1493799436 | AC65: 65 | AD65: =-3.14159265358979+(AC65-1)*0.0210139976828749 -> -1.796696802 | AE65: =0.16089417266906*COS(AD65)+-0.193240484481897 -> -0.2292782128 | AF65: =0.056474458140974*SIN(AD65)+0.0107862579656095+0*COS(AD65) -> -0.0442533429 | AG65: 65 | AH65: =-3.14159265358979+(AG65-1)*0.0210139976828749 -> -1.796696802 | AI65: =0.253096907093471*COS(AH65)+0.102010923502568 -> 0.04532125337 | AJ65: =0.0888379637879133*SIN(AH65)+-0.166095621152538+0*COS(AH65) -> -0.2526764619 | AK65: 65 | AL65: =-3.14159265358979+(AK65-1)*0.0210139976828749 -> -1.796696802 | AM65: =0.438798679365524*COS(AL65)+0.943975743712232 -> 0.8456918386 | AN65: =0.154019982445942*SIN(AL65)+-0.0196009503722022+0*COS(AL65) -> -0.1697077179 | AO65: 65 | AP65: =-3.14159265358979+(AO65-1)*0.0210139976828749 -> -1.796696802 | AQ65: =0.318931234452992*COS(AP65)+0.212829612221555 -> 0.1413941029 | AR65: =0.111946059643888*SIN(AP65)+0.217066839220886+0*COS(AP65) -> 0.1079650144
A66: 66 | B66: -1.775682804 | C66: 0.6469590666 | D66: -0.09403491216 | E66: 66 | F66: -1.775682804 | G66: -0.1477040105 | H66: -0.1586577328 | I66: 66 | J66: -1.775682804 | K66: -0.1572617134 | L66: -0.1895641959 | M66: 66 | N66: -1.775682804 | O66: -0.1576690154 | P66: -0.1719095192 | Q66: 66 | R66: -1.775682804 | S66: -0.2809361801 | T66: -0.06739507882 | U66: 66 | V66: -1.775682804 | W66: -0.2641117111 | X66: 0.01528791717 | Y66: 66 | Z66: -1.775682804 | AA66: -0.2764863084 | AB66: 0.1484935322 | AC66: 66 | AD66: -1.775682804 | AE66: -0.2259753714 | AF66: -0.04450698536 | AG66: 66 | AH66: -1.775682804 | AI66: 0.05051683587 | AJ66: -0.2530754579 | AK66: 66 | AL66: -1.775682804 | AM66: 0.8546995139 | AN66: -0.1703994644 | AO66: 66 | AP66: -1.775682804 | AQ66: 0.1479411348 | AR66: 0.1074622335
A67: 67 | B67: -1.754668807 | C67: 0.6541155074 | D67: -0.09452942514 | E67: 67 | F67: -1.754668807 | G67: -0.1415255637 | H67: -0.159084666 | I67: 67 | J67: -1.754668807 | K67: -0.1517316524 | L67: -0.1899463253 | M67: 67 | N67: -1.754668807 | O67: -0.1514996532 | P67: -0.1723358246 | Q67: 67 | R67: -1.754668807 | S67: -0.2743508577 | T67: -0.06785012729 | U67: 67 | V67: -1.754668807 | W67: -0.2558900255 | X67: 0.01471979533 | Y67: 67 | Z67: -1.754668807 | AA67: -0.2648932611 | AB67: 0.1476924479 | AC67: 67 | AD67: -1.754668807 | AE67: -0.2226580752 | AF67: -0.04473621189 | AG67: 67 | AH67: -1.754668807 | AI67: 0.05573515671 | AJ67: -0.253436046 | AK67: 67 | AL67: -1.754668807 | AM67: 0.863746611 | AN67: -0.1710246225 | AO67: 67 | AP67: -1.754668807 | AQ67: 0.1545168197 | AR67: 0.107007851
A68: 68 | B68: -1.733654809 | C68: 0.6612999716 | D68: -0.09497104697 | E68: 68 | F68: -1.733654809 | G68: -0.1353229231 | H68: -0.1594659362 | I68: 68 | J68: -1.733654809 | K68: -0.1461799365 | L68: -0.1902875838 | M68: 68 | N68: -1.733654809 | O68: -0.1453061327 | P68: -0.1727165341 | Q68: 68 | R68: -1.733654809 | S68: -0.2677397482 | T68: -0.06825650558 | U68: 68 | V68: -1.733654809 | W68: -0.247636145 | X68: 0.01421243755 | Y68: 68 | Z68: -1.733654809 | AA68: -0.2532548174 | AB68: 0.1469770444 | AC68: 68 | AD68: -1.733654809 | AE68: -0.2193277889 | AF68: -0.04494092125 | AG68: 68 | AH68: -1.733654809 | AI68: 0.06097391163 | AJ68: -0.253758067 | AK68: 68 | AL68: -1.733654809 | AM68: 0.872829135 | AN68: -0.1715829162 | AO68: 68 | AP68: -1.733654809 | AQ68: 0.1611182539 | AR68: 0.1066020675
A69: 69 | B69: -1.712640811 | C69: 0.6685092868 | D69: -0.09535958265 | E69: 69 | F69: -1.712640811 | G69: -0.1290988277 | H69: -0.1598013748 | I69: 69 | J69: -1.712640811 | K69: -0.1406090174 | L69: -0.1905878205 | M69: 69 | N69: -1.712640811 | O69: -0.139091189 | P69: -0.1730514796 | Q69: 69 | R69: -1.712640811 | S69: -0.261105771 | T69: -0.06861403425 | U69: 69 | V69: -1.712640811 | W69: -0.2393537145 | X69: 0.01376606786 | Y69: 69 | Z69: -1.712640811 | AA69: -0.2415761164 | AB69: 0.1463476376 | AC69: 69 | AD69: -1.712640811 | AE69: -0.2159859833 | AF69: -0.04512102306 | AG69: 69 | AH69: -1.712640811 | AI69: 0.06623078733 | AJ69: -0.2540413788 | AK69: 69 | AL69: -1.712640811 | AM69: 0.8819430754 | AN69: -0.1720740989 | AO69: 69 | AP69: -1.712640811 | AQ69: 0.1677425223 | AR69: 0.106245062
A70: 70 | B70: -1.691626813 | C70: 0.6757402695 | D70: -0.09569486061 | E70: 70 | F70: -1.691626813 | G70: -0.1228560258 | H70: -0.160090834 | I70: 70 | J70: -1.691626813 | K70: -0.1350213548 | L70: -0.1908469028 | M70: 70 | N70: -1.691626813 | O70: -0.1328575662 | P70: -0.1733405131 | Q70: 70 | R70: -1.691626813 | S70: -0.2544518555 | T70: -0.06892255542 | U70: 70 | V70: -1.691626813 | W70: -0.2310463913 | X70: 0.01338088337 | Y70: 70 | Z70: -1.691626813 | AA70: -0.2298623152 | AB70: 0.1458045054 | AC70: 70 | AD70: -1.691626813 | AE70: -0.2126341339 | AF70: -0.04527643779 | AG70: 70 | AH70: -1.691626813 | AI70: 0.07150346254 | AJ70: -0.2542858562 | AK70: 70 | AL70: -1.691626813 | AM70: 0.8910844076 | AN70: -0.1724979537 | AO70: 70 | AP70: -1.691626813 | AQ70: 0.1743867 | AR70: 0.1059369924
A71: 71 | B71: -1.670612816 | C71: 0.6829897267 | D71: -0.0959767328 | E71: 71 | F71: -1.670612816 | G71: -0.116597274 | H71: -0.1603341857 | I71: 71 | J71: -1.670612816 | K71: -0.1294194163 | L71: -0.1910647165 | M71: 71 | N71: -1.670612816 | O71: -0.1266080172 | P71: -0.173583507 | Q71: 71 | R71: -1.670612816 | S71: -0.2477809397 | T71: -0.06918193285 | U71: 71 | V71: -1.670612816 | W71: -0.2227178435 | X71: 0.01305705417 | Y71: 71 | Z71: -1.670612816 | AA71: -0.2181185863 | AB71: 0.1453478877 | AC71: 71 | AD71: -1.670612816 | AE71: -0.2092737208 | AF71: -0.04540709681 | AG71: 71 | AH71: -1.670612816 | AI71: 0.07678960898 | AJ71: -0.2544913912 | AK71: 71 | AL71: -1.670612816 | AM71: 0.9002490952 | AN71: -0.1728542936 | AO71: 71 | AP71: -1.670612816 | AQ71: 0.1810478529 | AR71: 0.1056779946
A72: 72 | B72: -1.649598818 | C72: 0.6902544574 | D72: -0.09620507475 | E72: 72 | F72: -1.649598818 | G72: -0.1103253362 | H72: -0.1605313226 | I72: 72 | J72: -1.649598818 | K72: -0.1238056755 | L72: -0.1912411652 | M72: 72 | N72: -1.649598818 | O72: -0.1203453013 | P72: -0.1737803541 | Q72: 72 | R72: -1.649598818 | S72: -0.2410959695 | T72: -0.06939205202 | U72: 72 | V72: -1.649598818 | W72: -0.2143717488 | X72: 0.01279472324 | Y72: 72 | Z72: -1.649598818 | AA72: -0.2063501152 | AB72: 0.1449779861 | AC72: 72 | AD72: -1.649598818 | AE72: -0.2059062279 | AF72: -0.04551294243 | AG72: 72 | AH72: -1.649598818 | AI72: 0.08208689245 | AJ72: -0.2546578932 | AK72: 72 | AL72: -1.649598818 | AM72: 0.9094330912 | AN72: -0.1731429611 | AO72: 72 | AP72: -1.649598818 | AQ72: 0.1877230398 | AR72: 0.1054681829
A73: 73 | B73: -1.62858482 | C73: 0.6975312535 | D73: -0.09637978564 | E73: 73 | F73: -1.62858482 | G73: -0.1040429817 | H73: -0.1606821576 | I73: 73 | J73: -1.62858482 | K73: -0.1181826111 | L73: -0.1913761711 | M73: 73 | N73: -1.62858482 | O73: -0.1140721842 | P73: -0.1739309673 | Q73: 73 | R73: -1.62858482 | S73: -0.2343998967 | T73: -0.06955282013 | U73: 73 | V73: -1.62858482 | W73: -0.2060117928 | X73: 0.01259400642 | Y73: 73 | Z73: -1.62858482 | AA73: -0.1945620988 | AB73: 0.1446949639 | AC73: 73 | AD73: -1.62858482 | AE73: -0.2025331422 | AF73: -0.04559392791 | AG73: 73 | AH73: -1.62858482 | AI73: 0.0873929738 | AJ73: -0.2547852886 | AK73: 73 | AL73: -1.62858482 | AM73: 0.9186323403 | AN73: -0.1733638287 | AO73: 73 | AP73: -1.62858482 | AQ73: 0.1944093131 | AR73: 0.1053076501
A74: 74 | B74: -1.607570823 | C74: 0.7048169019 | D74: -0.09650078831 | E74: 74 | F74: -1.607570823 | G74: -0.09775298466 | H74: -0.1607866242 | I74: 74 | J74: -1.607570823 | K74: -0.1125527063 | L74: -0.1914696746 | M74: 74 | N74: -1.607570823 | O74: -0.1077914357 | P74: -0.1740352802 | Q74: 74 | R74: -1.607570823 | S74: -0.227695678 | T74: -0.06966416621 | U74: 74 | V74: -1.607570823 | W74: -0.1976416667 | X74: 0.01245499236 | Y74: 74 | Z74: -1.607570823 | AA74: -0.1827597421 | AB74: 0.1444989461 | AC74: 74 | AD74: -1.607570823 | AE74: -0.1991559531 | AF74: -0.04565001748 | AG74: 74 | AH74: -1.607570823 | AI74: 0.09270551003 | AJ74: -0.2548735211 | AK74: 74 | AL74: -1.607570823 | AM74: 0.9278427803 | AN74: -0.173516799 | AO74: 74 | AP74: -1.607570823 | AQ74: 0.2011037202 | AR74: 0.1051964669
A75: 75 | B75: -1.586556825 | C75: 0.7121081855 | D75: -0.09656802934 | E75: 75 | F75: -1.586556825 | G75: -0.09145812262 | H75: -0.1608446761 | I75: 75 | J75: -1.586556825 | K75: -0.106918447 | L75: -0.1915216344 | M75: 75 | N75: -1.586556825 | O75: -0.1015058294 | P75: -0.1740932468 | Q75: 75 | R75: -1.586556825 | S75: -0.2209862739 | T75: -0.06972604108 | U75: 75 | V75: -1.586556825 | W75: -0.1892650668 | X75: 0.01237774242 | Y75: 75 | Z75: -1.586556825 | AA75: -0.1709482569 | AB75: 0.1443900193 | AC75: 75 | AD75: -1.586556825 | AE75: -0.1957761518 | AF75: -0.04568118638 | AG75: 75 | AH75: -1.586556825 | AI75: 0.09802215527 | AJ75: -0.2549225518 | AK75: 75 | AL75: -1.586556825 | AM75: 0.9370603442 | AN75: -0.1736018044 | AO75: 75 | AP75: -1.586556825 | AQ75: 0.2078033051 | AR75: 0.1051346826
A76: 76 | B76: -1.565542827 | C76: 0.7194018845 | D76: -0.09658147903 | E76: 76 | F76: -1.565542827 | G76: -0.08516117517 | H76: -0.1608562877 | I76: 76 | J76: -1.565542827 | K76: -0.1012823212 | L76: -0.1915320275 | M76: 76 | N76: -1.565542827 | O76: -0.09521814077 | P76: -0.1741048414 | Q76: 76 | R76: -1.565542827 | S76: -0.2142746471 | T76: -0.06973841742 | U76: 76 | V76: -1.565542827 | W76: -0.1808856918 | X76: 0.01236229073 | Y76: 76 | Z76: -1.565542827 | AA76: -0.1591328587 | AB76: 0.1443682315 | AC76: 76 | AD76: -1.565542827 | AE76: -0.1923952309 | AF76: -0.04568742085 | AG76: 76 | AH76: -1.565542827 | AI76: 0.1033405618 | AJ76: -0.254932359 | AK76: 76 | AL76: -1.565542827 | AM76: 0.9462809617 | AN76: -0.1736188074 | AO76: 76 | AP76: -1.565542827 | AQ76: 0.2145051096 | AR76: 0.1051223244
A77: 77 | B77: -1.54452883 | C77: 0.7266947783 | D77: -0.09654113144 | E77: 77 | F77: -1.54452883 | G77: -0.07886492289 | H77: -0.160821454 | I77: 77 | J77: -1.54452883 | K77: -0.09564681752 | L77: -0.1915008493 | M77: 77 | N77: -1.54452883 | O77: -0.08893114627 | P77: -0.1740700589 | Q77: 77 | R77: -1.54452883 | S77: -0.2075637613 | T77: -0.06970128977 | U77: 77 | V77: -1.54452883 | W77: -0.1725072419 | X77: 0.0124086441 | Y77: 77 | Z77: -1.54452883 | AA77: -0.1473187648 | AB77: 0.1444335924 | AC77: 77 | AD77: -1.54452883 | AE77: -0.1890146833 | AF77: -0.04566871813 | AG77: 77 | AH77: -1.54452883 | AI77: 0.1086583813 | AJ77: -0.2549029384 | AK77: 77 | AL77: -1.54452883 | AM77: 0.9555005613 | AN77: -0.1735678004 | AO77: 77 | AP77: -1.54452883 | AQ77: 0.2212061741 | AR77: 0.1051593977
A78: 78 | B78: -1.523514832 | C78: 0.7339836466 | D78: -0.0964470044 | E78: 78 | F78: -1.523514832 | G78: -0.07257214601 | H78: -0.1607401903 | I78: 78 | J78: -1.523514832 | K78: -0.09001442456 | L78: -0.1914281137 | M78: 78 | N78: -1.523514832 | O78: -0.08264762206 | P78: -0.1739889147 | Q78: 78 | R78: -1.523514832 | S78: -0.2008565797 | T78: -0.06961467451 | U78: 78 | V78: -1.523514832 | W78: -0.1641334167 | X78: 0.01251678207 | Y78: 78 | Z78: -1.523514832 | AA78: -0.1355111921 | AB78: 0.1445860732 | AC78: 78 | AD78: -1.523514832 | AE78: -0.1856360016 | AF78: -0.04562508649 | AG78: 78 | AH78: -1.523514832 | AI78: 0.1139732654 | AJ78: -0.254834303 | AK78: 78 | AL78: -1.523514832 | AM78: 0.9647150719 | AN78: -0.173448806 | AO78: 78 | AP78: -1.523514832 | AQ78: 0.2279035399 | AR78: 0.1052458862
A79: 79 | B79: -1.502500834 | C79: 0.7412652708 | D79: -0.09629913946 | E79: 79 | F79: -1.502500834 | G79: -0.06628562325 | H79: -0.1606125325 | I79: 79 | J79: -1.502500834 | K79: -0.0843876294 | L79: -0.1913138527 | M79: 79 | N79: -1.502500834 | O79: -0.07637034277 | P79: -0.1738614445 | Q79: 79 | R79: -1.502500834 | S79: -0.1941560641 | T79: -0.0694786099 | U79: 79 | V79: -1.502500834 | W79: -0.1557679139 | X79: 0.01268665689 | Y79: 79 | Z79: -1.502500834 | AA79: -0.1237153544 | AB79: 0.1448256064 | AC79: 79 | AD79: -1.502500834 | AE79: -0.1822606778 | AF79: -0.04555654518 | AG79: 79 | AH79: -1.502500834 | AI79: 0.1192828673 | AJ79: -0.2547264831 | AK79: 79 | AL79: -1.502500834 | AM79: 0.9739204246 | AN79: -0.1732618767 | AO79: 79 | AP79: -1.502500834 | AQ79: 0.2345942494 | AR79: 0.1053817517
A80: 80 | B80: -1.481486837 | C80: 0.7485364355 | D80: -0.09609760191 | E80: 80 | F80: -1.481486837 | G80: -0.06000813056 | H80: -0.1604385369 | I80: 80 | J80: -1.481486837 | K80: -0.07876891666 | L80: -0.1911581167 | M80: 80 | N80: -1.481486837 | O80: -0.07010208028 | P80: -0.1736877048 | Q80: 80 | R80: -1.481486837 | S80: -0.1874651732 | T80: -0.06929315603 | U80: 80 | V80: -1.481486837 | W80: -0.1474144274 | X80: 0.01291819354 | Y80: 80 | Z80: -1.481486837 | AA80: -0.1119364605 | AB80: 0.1451520863 | AC80: 80 | AD80: -1.481486837 | AE80: -0.1788902025 | AF80: -0.04546312447 | AG80: 80 | AH80: -1.481486837 | AI80: 0.1245848423 | AJ80: -0.2545795264 | AK80: 80 | AL80: -1.481486837 | AM80: 0.9831125545 | AN80: -0.173007095 | AO80: 80 | AP80: -1.481486837 | AQ80: 0.2412753482 | AR80: 0.1055669342
A81: 81 | B81: -1.460472839 | C81: 0.7557939301 | D81: -0.09584248076 | E81: 81 | F81: -1.460472839 | G81: -0.0537424399 | H81: -0.1602182804 | I81: 81 | J81: -1.460472839 | K81: -0.07316076741 | L81: -0.1909609747 | M81: 81 | N81: -1.460472839 | O81: -0.06384560246 | P81: -0.1734677722 | Q81: 81 | R81: -1.460472839 | S81: -0.1807868616 | T81: -0.06905839477 | U81: 81 | V81: -1.460472839 | W81: -0.139076646 | X81: 0.01321128979 | Y81: 81 | Z81: -1.460472839 | AA81: -0.1001797116 | AB81: 0.1455653688 | AC81: 81 | AD81: -1.460472839 | AE81: -0.1755260638 | AF81: -0.04534486563 | AG81: 81 | AH81: -1.460472839 | AI81: 0.1298768494 | AJ81: -0.2543934976 | AK81: 81 | AL81: -1.460472839 | AM81: 0.9922874027 | AN81: -0.1726845736 | AO81: 81 | AP81: -1.460472839 | AQ81: 0.2479438862 | AR81: 0.1058013518
A82: 82 | B82: -1.439458841 | C82: 0.7630345498 | D82: -0.09553388865 | E82: 82 | F82: -1.439458841 | G82: -0.04749131804 | H82: -0.1599518603 | I82: 82 | J82: -1.439458841 | K82: -0.06756565805 | L82: -0.1907225135 | M82: 82 | N82: -1.439458841 | O82: -0.05760367202 | P82: -0.1732017438 | Q82: 82 | R82: -1.439458841 | S82: -0.1741240782 | T82: -0.06877442979 | U82: 82 | V82: -1.439458841 | W82: -0.1307582513 | X82: 0.0135658162 | Y82: 82 | Z82: -1.439458841 | AA82: -0.08845029904 | AB82: 0.1460652713 | AC82: 82 | AD82: -1.439458841 | AE82: -0.1721697473 | AF82: -0.04520182086 | AG82: 82 | AH82: -1.439458841 | AI82: 0.1351565516 | AJ82: -0.2541684789 | AK82: 82 | AL82: -1.439458841 | AM82: 1.001440918 | AN82: -0.1722944547 | AO82: 82 | AP82: -1.439458841 | AQ82: 0.2545969187 | AR82: 0.1060849012
A83: 83 | B83: -1.418444844 | C83: 0.7702550973 | D83: -0.09517196186 | E83: 83 | F83: -1.418444844 | G83: -0.04125752527 | H83: -0.1596393942 | I83: 83 | J83: -1.418444844 | K83: -0.06198605923 | L83: -0.1904428385 | M83: 83 | N83: -1.418444844 | O83: -0.05137904519 | P83: -0.1728897371 | Q83: 83 | R83: -1.418444844 | S83: -0.1674797651 | T83: -0.06844138649 | U83: 83 | V83: -1.418444844 | W83: -0.1224629165 | X83: 0.01398161625 | Y83: 83 | Z83: -1.418444844 | AA83: -0.07675340231 | AB83: 0.1466515732 | AC83: 83 | AD83: -1.418444844 | AE83: -0.168822735 | AF83: -0.04503405333 | AG83: 83 | AH83: -1.418444844 | AI83: 0.1404216177 | AJ83: -0.2539045698 | AK83: 83 | AL83: -1.418444844 | AM83: 1.010569058 | AN83: -0.1718369106 | AO83: 83 | AP83: -1.418444844 | AQ83: 0.261231508 | AR83: 0.1064174571
A84: 84 | B84: -1.397430846 | C84: 0.7774523842 | D84: -0.09475686019 | E84: 84 | F84: -1.397430846 | G84: -0.03504381429 | H84: -0.15928102 | I84: 84 | J84: -1.397430846 | K84: -0.05642443474 | L84: -0.1901220733 | M84: 84 | N84: -1.397430846 | O84: -0.04517447062 | P84: -0.1725318898 | Q84: 84 | R84: -1.397430846 | S84: -0.1608568562 | T84: -0.06805941193 | U84: 84 | V84: -1.397430846 | W84: -0.1141943047 | X84: 0.0144585063 | Y84: 84 | Z84: -1.397430846 | AA84: -0.06509418641 | AB84: 0.1473240154 | AC84: 84 | AD84: -1.397430846 | AE84: -0.1654865049 | AF84: -0.04484163712 | AG84: 84 | AH84: -1.397430846 | AI84: 0.1456697227 | AJ84: -0.2536018867 | AK84: 84 | AL84: -1.397430846 | AM84: 1.019667792 | AN84: -0.1713121435 | AO84: 84 | AP84: -1.397430846 | AQ84: 0.2678447244 | AR84: 0.1067988727
A85: 85 | B85: -1.376416848 | C85: 0.7846232325 | D85: -0.09428876694 | E85: 85 | F85: -1.376416848 | G85: -0.02885292887 | H85: -0.158876896 | I85: 85 | J85: -1.376416848 | K85: -0.05088324044 | L85: -0.1897603594 | M85: 85 | N85: -1.376416848 | O85: -0.03899268806 | P85: -0.1721283601 | Q85: 85 | R85: -1.376416848 | S85: -0.154258276 | T85: -0.06762867477 | U85: 85 | V85: -1.376416848 | W85: -0.1059560669 | X85: 0.0149962758 | Y85: 85 | Z85: -1.376416848 | AA85: -0.05347779971 | AB85: 0.1480823012 | AC85: 85 | AD85: -1.376416848 | AE85: -0.1621625303 | AF85: -0.04462465719 | AG85: 85 | AH85: -1.376416848 | AI85: 0.1508985492 | AJ85: -0.2532605633 | AK85: 85 | AL85: -1.376416848 | AM85: 1.028733103 | AN85: -0.1707203849 | AO85: 85 | AP85: -1.376416848 | AQ85: 0.2744336476 | AR85: 0.1072289795
A86: 86 | B86: -1.355402851 | C86: 0.7917644757 | D86: -0.09376788882 | E86: 86 | F86: -1.355402851 | G86: -0.02268760275 | H86: -0.1584272007 | I86: 86 | J86: -1.355402851 | K86: -0.04536492315 | L86: -0.1893578565 | M86: 86 | N86: -1.355402851 | O86: -0.0328364272 | P86: -0.171679326 | Q86: 86 | R86: -1.355402851 | S86: -0.1476869383 | T86: -0.06714936523 | U86: 86 | V86: -1.355402851 | W86: -0.09775184096 | X86: 0.01559468726 | Y86: 86 | Z86: -1.355402851 | AA86: -0.04190937169 | AB86: 0.1489260956 | AC86: 86 | AD86: -1.355402851 | AE86: -0.1588522787 | AF86: -0.04438320937 | AG86: 86 | AH86: -1.355402851 | AI86: 0.1561057883 | AJ86: -0.2528807503 | AK86: 86 | AL86: -1.355402851 | AM86: 1.037760988 | AN86: -0.1700618963 | AO86: 86 | AP86: -1.355402851 | AQ86: 0.2809953682 | AR86: 0.1077075875
A87: 87 | B87: -1.334388853 | C87: 0.7988729605 | D87: -0.09319445582 | E87: 87 | F87: -1.334388853 | G87: -0.01655055836 | H87: -0.1579321327 | I87: 87 | J87: -1.334388853 | K87: -0.03987191962 | L87: -0.1889147425 | M87: 87 | N87: -1.334388853 | O87: -0.0267084065 | P87: -0.1711849859 | Q87: 87 | R87: -1.334388853 | S87: -0.1411457448 | T87: -0.06662169494 | U87: 87 | V87: -1.334388853 | W87: -0.08958524965 | X87: 0.01625347646 | Y87: 87 | Z87: -1.334388853 | AA87: -0.03039401062 | AB87: 0.1498550261 | AC87: 87 | AD87: -1.334388853 | AE87: -0.155557212 | AF87: -0.04411740027 | AG87: 87 | AH87: -1.334388853 | AI87: 0.1612891406 | AJ87: -0.2524626154 | AK87: 87 | AL87: -1.334388853 | AM87: 1.046747459 | AN87: -0.1693369683 | AO87: 87 | AP87: -1.334388853 | AQ87: 0.2875269888 | AR87: 0.1082344856
A88: 88 | B88: -1.313374855 | C88: 0.8059455478 | D88: -0.09256872116 | E88: 88 | F88: -1.313374855 | G88: -0.01044450564 | H88: -0.1573919104 | I88: 88 | J88: -1.313374855 | K88: -0.0344066554 | L88: -0.1884312129 | M88: 88 | N88: -1.313374855 | O88: -0.0206113319 | P88: -0.170645558 | Q88: 88 | R88: -1.313374855 | S88: -0.134637584 | T88: -0.06604589691 | U88: 88 | V88: -1.313374855 | W88: -0.08145989911 | X88: 0.01697235248 | Y88: 88 | Z88: -1.313374855 | AA88: -0.01893680139 | AB88: 0.1508686824 | AC88: 88 | AD88: -1.313374855 | AE88: -0.1522787852 | AF88: -0.04382734725 | AG88: 88 | AH88: -1.313374855 | AI88: 0.1664463174 | AJ88: -0.2520063433 | AK88: 88 | AL88: -1.313374855 | AM88: 1.05568855 | AN88: -0.1685459211 | AO88: 88 | AP88: -1.313374855 | AQ88: 0.294025625 | AR88: 0.1088094409
A89: 89 | B89: -1.292360857 | C89: 0.8129791147 | D89: -0.09189096114 | E89: 89 | F89: -1.292360857 | G89: -0.004372140859 | H89: -0.1568067726 | I89: 89 | J89: -1.292360857 | K89: -0.0289715438 | L89: -0.1879074813 | M89: 89 | N89: -1.292360857 | O89: -0.0145478957 | P89: -0.1700612805 | Q89: 89 | R89: -1.292360857 | S89: -0.1281653295 | T89: -0.0654222254 | U89: 89 | V89: -1.292360857 | W89: -0.07337937724 | X89: 0.0177509979 | Y89: 89 | Z89: -1.292360857 | AA89: -0.007542803153 | AB89: 0.151966617 | AC89: 89 | AD89: -1.292360857 | AE89: -0.149018446 | AF89: -0.04351317841 | AG89: 89 | AH89: -1.292360857 | AI89: 0.1715750413 | AJ89: -0.2515121355 | AK89: 89 | AL89: -1.292360857 | AM89: 1.064580311 | AN89: -0.1676891041 | AO89: 89 | AP89: -1.292360857 | AQ89: 0.3004884075 | AR89: 0.1094321997
A90: 90 | B90: -1.27134686 | C90: 0.8199705553 | D90: -0.09116147505 | E90: 90 | F90: -1.27134686 | G90: 0.001663854601 | H90: -0.1561769776 | I90: 90 | J90: -1.27134686 | K90: -0.0235689848 | L90: -0.1873437789 | M90: 90 | N90: -1.27134686 | O90: -0.008520775347 | P90: -0.1694324115 | Q90: 90 | R90: -1.27134686 | S90: -0.1217318394 | T90: -0.0647509558 | U90: 90 | V90: -1.27134686 | W90: -0.06534725218 | X90: 0.01858906888 | Y90: 90 | Z90: -1.27134686 | AA90: 0.003782952806 | AB90: 0.153148345 | AC90: 90 | AD90: -1.27134686 | AE90: -0.1457776339 | AF90: -0.04317503246 | AG90: 90 | AH90: -1.27134686 | AI90: 0.1766730476 | AJ90: -0.2509802101 | AK90: 90 | AL90: -1.27134686 | AM90: 1.073418817 | AN90: -0.1667668954 | AO90: 90 | AP90: -1.27134686 | AQ90: 0.3069124822 | AR90: 0.1101024869
A91: 91 | B91: -1.250332862 | C91: 0.8269167824 | D91: -0.09038058501 | E91: 91 | F91: -1.250332862 | G91: 0.007660815415 | H91: -0.1555028034 | I91: 91 | J91: -1.250332862 | K91: -0.01820136404 | L91: -0.1867403547 | M91: 91 | N91: -1.250332862 | O91: -0.002532632245 | P91: -0.1687592286 | Q91: 91 | R91: -1.250332862 | S91: -0.1153399546 | T91: -0.06403238454 | U91: 91 | V91: -1.250332862 | W91: -0.0573670707 | X91: 0.01948619536 | Y91: 91 | Z91: -1.250332862 | AA91: 0.01503546536 | AB91: 0.1544133447 | AC91: 91 | AD91: -1.250332862 | AE91: -0.1425577801 | AF91: -0.04281305872 | AG91: 91 | AH91: -1.250332862 | AI91: 0.1817380852 | AJ91: -0.2504108021 | AK91: 91 | AL91: -1.250332862 | AM91: 1.082200164 | AN91: -0.1657797025 | AO91: 91 | AP91: -1.250332862 | AQ91: 0.3132950126 | AR91: 0.1108200066
A92: 92 | B92: -1.229318864 | C92: 0.8338147288 | D92: -0.08954863583 | E92: 92 | F92: -1.229318864 | G92: 0.01361609349 | H92: -0.1547845478 | I92: 92 | J92: -1.229318864 | K92: -0.01287105169 | L92: -0.1860974751 | M92: 92 | N92: -1.229318864 | O92: 0.00341388941 | P92: -0.1680420291 | Q92: 92 | R92: -1.229318864 | S92: -0.1089924975 | T92: -0.0632668289 | U92: 92 | V92: -1.229318864 | W92: -0.04944235661 | X92: 0.02044198118 | Y92: 92 | Z92: -1.229318864 | AA92: 0.02620976571 | AB92: 0.1557610574 | AC92: 92 | AD92: -1.229318864 | AE92: -0.1393603063 | AF92: -0.04242741704 | AG92: 92 | AH92: -1.229318864 | AI92: 0.1867679176 | AJ92: -0.2498041628 | AK92: 92 | AL92: -1.229318864 | AM92: 1.090920475 | AN92: -0.1647279611 | AO92: 92 | AP92: -1.229318864 | AQ92: 0.3196331803 | AR92: 0.1115844418
A93: 93 | B93: -1.208304867 | C93: 0.8406613485 | D93: -0.08866599488 | E93: 93 | F93: -1.208304867 | G93: 0.01952705915 | H93: -0.1540225279 | I93: 93 | J93: -1.208304867 | K93: -0.007580401473 | L93: -0.185415424 | M93: 93 | N93: -1.208304867 | O93: 0.0093161638 | P93: -0.1672811296 | Q93: 93 | R93: -1.208304867 | S93: -0.1026922709 | T93: -0.06245462694 | U93: 93 | V93: -1.208304867 | W93: -0.04157660924 | X93: 0.02145600431 | Y93: 93 | Z93: -1.208304867 | AA93: 0.0373009196 | AB93: 0.1571908881 | AC93: 93 | AD93: -1.208304867 | AE93: -0.1361866246 | AF93: -0.04201827769 | AG93: 93 | AH93: -1.208304867 | AI93: 0.1917603237 | AJ93: -0.2491605603 | AK93: 93 | AL93: -1.208304867 | AM93: 1.0995759 | AN93: -0.1636121357 | AO93: 93 | AP93: -1.208304867 | AQ93: 0.3259241866 | AR93: 0.1123954551
A94: 94 | B94: -1.187290869 | C94: 0.8474536183 | D94: -0.08773305191 | E94: 94 | F94: -1.187290869 | G94: 0.02539110227 | H94: -0.1532170802 | I94: 94 | J94: -1.187290869 | K94: -0.002331749594 | L94: -0.1846945025 | M94: 94 | N94: -1.187290869 | O94: 0.01517158465 | P94: -0.1664768663 | Q94: 94 | R94: -1.187290869 | S94: -0.09644205693 | T94: -0.0615961373 | U94: 94 | V94: -1.187290869 | W94: -0.0337733019 | X94: 0.02252781698 | Y94: 94 | Z94: -1.187290869 | AA94: 0.04830402949 | AB94: 0.1587022052 | AC94: 94 | AD94: -1.187290869 | AE94: -0.1330381362 | AF94: -0.04158582135 | AG94: 94 | AH94: -1.187290869 | AI94: 0.1967130989 | AJ94: -0.2484802786 | AK94: 94 | AL94: -1.187290869 | AM94: 1.108162616 | AN94: -0.162432719 | AO94: 94 | AP94: -1.187290869 | AQ94: 0.3321652535 | AR94: 0.1132526884
A95: 95 | B95: -1.166276871 | C95: 0.8541885388 | D95: -0.08675021888 | E95: 95 | F95: -1.166276871 | G95: 0.03120563347 | H95: -0.1523685604 | I95: 95 | J95: -1.166276871 | K95: 0.002872586293 | L95: -0.1839350291 | M95: 95 | N95: -1.166276871 | O95: 0.02097756637 | P95: -0.1656295941 | Q95: 95 | R95: -1.166276871 | S95: -0.09024461543 | T95: -0.06069173906 | U95: 95 | V95: -1.166276871 | W95: -0.0260358803 | X95: 0.0236569459 | Y95: 95 | Z95: -1.166276871 | AA95: 0.05921423671 | AB95: 0.1602943416 | AC95: 95 | AD95: -1.166276871 | AE95: -0.1299162314 | AF95: -0.04113023897 | AG95: 95 | AH95: -1.166276871 | AI95: 0.2016240563 | AJ95: -0.2477636181 | AK95: 95 | AL95: -1.166276871 | AM95: 1.116676831 | AN95: -0.1611902318 | AO95: 95 | AP95: -1.166276871 | AQ95: 0.3383536251 | AR95: 0.1141557631
A96: 96 | B96: -1.145262874 | C96: 0.8608631361 | D96: -0.08571792978 | E96: 96 | F96: -1.145262874 | G96: 0.03696808519 | H96: -0.1514773432 | I96: 96 | J96: -1.145262874 | K96: 0.008030308099 | L96: -0.183137339 | M96: 96 | N96: -1.145262874 | O96: 0.0267315452 | P96: -0.1647396873 | Q96: 96 | R96: -1.145262874 | S96: -0.08410268305 | T96: -0.0597418316 | U96: 96 | V96: -1.145262874 | W96: -0.01836776106 | X96: 0.02484289248 | Y96: 96 | Z96: -1.145262874 | AA96: 0.07002672364 | AB96: 0.1619665942 | AC96: 96 | AD96: -1.145262874 | AE96: -0.1268222889 | AF96: -0.04065173173 | AG96: 96 | AH96: -1.145262874 | AI96: 0.2064910274 | AJ96: -0.2470108954 | AK96: 96 | AL96: -1.145262874 | AM96: 1.125114787 | AN96: -0.1598852228 | AO96: 96 | AP96: -1.145262874 | AQ96: 0.3444865689 | AR96: 0.1151042804
A97: 97 | B97: -1.124248876 | C97: 0.8674744629 | D97: -0.08463664044 | E97: 97 | F97: -1.124248876 | G97: 0.04267591292 | H97: -0.1505438221 | I97: 97 | J97: -1.124248876 | K97: 0.01313913832 | L97: -0.1823017846 | M97: 97 | N97: -1.124248876 | O97: 0.03243098034 | P97: -0.1638075388 | Q97: 97 | R97: -1.124248876 | S97: -0.07801897188 | T97: -0.05874683434 | U97: 97 | V97: -1.124248876 | W97: -0.01077233021 | X97: 0.02608513305 | Y97: 97 | Z97: -1.124248876 | AA97: 0.08073671577 | AB97: 0.1637182245 | AC97: 97 | AD97: -1.124248876 | AE97: -0.1237576748 | AF97: -0.04015051092 | AG97: 97 | AH97: -1.124248876 | AI97: 0.211311863 | AJ97: -0.2462224427 | AK97: 97 | AL97: -1.124248876 | AM97: 1.133472757 | AN97: -0.1585182682 | AO97: 97 | AP97: -1.124248876 | AQ97: 0.3505613766 | AR97: 0.1160978214
A98: 98 | B98: -1.103234878 | C98: 0.8740195999 | D98: -0.08350682833 | E98: 98 | F98: -1.103234878 | G98: 0.04832659623 | H98: -0.1495684093 | I98: 98 | J98: -1.103234878 | K98: 0.01819682104 | L98: -0.1814287347 | M98: 98 | N98: -1.103234878 | O98: 0.03807335509 | P98: -0.1628335602 | Q98: 98 | R98: -1.103234878 | S98: -0.07199616831 | T98: -0.05770718667 | U98: 98 | V98: -1.103234878 | W98: -0.00325294169 | X98: 0.02738311906 | Y98: 98 | Z98: -1.103234878 | AA98: 0.09133948388 | AB98: 0.165548459 | AC98: 98 | AD98: -1.103234878 | AE98: -0.1207237423 | AF98: -0.03962679787 | AG98: 98 | AH98: -1.103234878 | AI98: 0.2160844344 | AJ98: -0.2453986083 | AK98: 98 | AL98: -1.103234878 | AM98: 1.14174705 | AN98: -0.1570899716 | AO98: 98 | AP98: -1.103234878 | AQ98: 0.3565753659 | AR98: 0.1171359476
A99: 99 | B99: -1.082220881 | C99: 0.8804956568 | D99: -0.08232899234 | E99: 99 | F99: -1.082220881 | G99: 0.05391763994 | H99: -0.1485515355 | I99: 99 | J99: -1.082220881 | K99: 0.02320112293 | L99: -0.1805185748 | M99: 99 | N99: -1.082220881 | O99: 0.04365617794 | P99: -0.1618181816 | Q99: 99 | R99: -1.082220881 | S99: -0.06603693185 | T99: -0.05662334765 | U99: 99 | V99: -1.082220881 | W99: 0.004187084162 | X99: 0.02873627737 | Y99: 99 | Z99: -1.082220881 | AA99: 0.1018303461 | AB99: 0.1674564897 | AC99: 99 | AD99: -1.082220881 | AE99: -0.1177218312 | AF99: -0.03908082383 | AG99: 99 | AH99: -1.082220881 | AI99: 0.2208066342 | AJ99: -0.2445397559 | AK99: 99 | AL99: -1.082220881 | AM99: 1.149934013 | AN99: -0.1556009638 | AO99: 99 | AP99: -1.082220881 | AQ99: 0.3625258811 | AR99: 0.1182182004
A100: 100 | B100: -1.061206883 | C100: 0.886899774 | D100: -0.08110365258 | E100: 100 | F100: -1.061206883 | G100: 0.0594465752 | H100: -0.1474936497 | I100: 100 | J100: -1.061206883 | K100: 0.02814983422 | L100: -0.179571707 | M100: 100 | N100: -1.061206883 | O100: 0.04917698365 | P100: -0.1607618513 | Q100: 100 | R100: -1.061206883 | S100: -0.06014389394 | T100: -0.05549579589 | U100: 100 | V100: -1.061206883 | W100: 0.01154446204 | X100: 0.03014401045 | Y100: 100 | Z100: -1.061206883 | AA100: 0.1122046699 | AB100: 0.1694414739 | AC100: 100 | AD100: -1.061206883 | AE100: -0.1147532669 | AF100: -0.03851282989 | AG100: 100 | AH100: -1.061206883 | AI100: 0.2254763771 | AJ100: -0.2436462649 | AK100: 100 | AL100: -1.061206883 | AM100: 1.158030031 | AN100: -0.1540519021 | AO100: 100 | AP100: -1.061206883 | AQ100: 0.3684102946 | AR100: 0.1193441021
A101: 101 | B101: -1.040192885 | C101: 0.8932291237 | D101: -0.07983135011 | E101: 101 | F101: -1.040192885 | G101: 0.06491096059 | H101: -0.1463952192 | I101: 101 | J101: -1.040192885 | K101: 0.03304076972 | L101: -0.1785885492 | M101: 101 | N101: -1.040192885 | O101: 0.05463333441 | P101: -0.1596650359 | Q101: 101 | R101: -1.040192885 | S101: -0.05431965676 | T101: -0.05432502927 | U101: 101 | V101: -1.040192885 | W101: 0.01881594312 | X101: 0.03160569668 | Y101: 101 | Z101: -1.040192885 | AA101: 0.1224578743 | AB101: 0.1715025351 | AC101: 101 | AD101: -1.040192885 | AE101: -0.1118193605 | AF101: -0.03792306686 | AG101: 101 | AH101: -1.040192885 | AI101: 0.2300916011 | AJ101: -0.2427185296 | AK101: 101 | AL101: -1.040192885 | AM101: 1.166031528 | AN101: -0.1524434707 | AO101: 101 | AP101: -1.040192885 | AQ101: 0.3742260081 | AR101: 0.1205131553
A102: 102 | B102: -1.019178888 | C102: 0.899480911 | D102: -0.07851264675 | E102: 102 | F102: -1.019178888 | G102: 0.0703083832 | H102: -0.1452567289 | I102: 102 | J102: -1.019178888 | K102: 0.03787176971 | L102: -0.1775695357 | M102: 102 | N102: -1.019178888 | O102: 0.06002282084 | P102: -0.1585282195 | Q102: 102 | R102: -1.019178888 | S102: -0.04856679213 | T102: -0.05311156477 | U102: 102 | V102: -1.019178888 | W102: 0.02599831654 | X102: 0.03312069064 | Y102: 102 | Z102: -1.019178888 | AA102: 0.1325854319 | AB102: 0.1736387633 | AC102: 102 | AD102: -1.019178888 | AE102: -0.1089214073 | AF102: -0.03731179517 | AG102: 102 | AH102: -1.019178888 | AI102: 0.2346502683 | AJ102: -0.2417569598 | AK102: 102 | AL102: -1.019178888 | AM102: 1.173934972 | AN102: -0.1507763798 | AO102: 102 | AP102: -1.019178888 | AQ102: 0.3799704535 | AR102: 0.1217248439
A103: 103 | B103: -0.9981648899 | C103: 0.9056523753 | D103: -0.0771481248 | E103: 103 | F103: -0.9981648899 | G103: 0.07563645966 | H103: -0.1440786815 | I103: 103 | J103: -0.9981648899 | K103: 0.04264070097 | L103: -0.1765151163 | M103: 103 | N103: -0.9981648899 | O103: 0.0653430631 | P103: -0.1573519043 | Q103: 103 | R103: -0.9981648899 | S103: -0.04288784037 | T103: -0.05185593823 | U103: 103 | V103: -0.9981648899 | W103: 0.03308841075 | X103: 0.03468832334 | Y103: 103 | Z103: -0.9981648899 | AA103: 0.1425828704 | AB103: 0.1758492151 | AC103: 103 | AD103: -0.9981648899 | AE103: -0.106060687 | AF103: -0.03667928473 | AG103: 103 | AH103: -0.9981648899 | AI103: 0.2391503657 | AJ103: -0.2407619801 | AK103: 103 | AL103: -0.9981648899 | AM103: 1.181736872 | AN103: -0.1490513655 | AO103: 103 | AP103: -0.9981648899 | AQ103: 0.3856410942 | AR103: 0.1229786328
A104: 104 | B104: -0.9771508923 | C104: 0.9117407914 | D104: -0.0757383868 | E104: 104 | F104: -0.9771508923 | G104: 0.08089283726 | H104: -0.1428615973 | I104: 104 | J104: -0.9771508923 | K104: 0.04734545767 | L104: -0.1754257568 | M104: 104 | N104: -0.9771508923 | O104: 0.07059171191 | P104: -0.1561366096 | Q104: 104 | R104: -0.9771508923 | S104: -0.03728530914 | T104: -0.05055870409 | U104: 104 | V104: -0.9771508923 | W104: 0.04008309498 | X104: 0.03630790255 | Y104: 104 | Z104: -0.9771508923 | AA104: 0.1524457754 | AB104: 0.1781329145 | AC104: 104 | AD104: -0.9771508923 | AE104: -0.1032384629 | AF104: -0.03602581484 | AG104: 104 | AH104: -0.9771508923 | AI104: 0.2435899062 | AJ104: -0.2397340298 | AK104: 104 | AL104: -0.9771508923 | AM104: 1.189433783 | AN104: -0.1472691896 | AO104: 104 | AP104: -0.9771508923 | AQ104: 0.3912354262 | AR104: 0.1242739685
A105: 105 | B105: -0.9561368946 | C105: 0.9177434708 | D105: -0.07428405524 | E105: 105 | F105: -0.9561368946 | G105: 0.08607519492 | H105: -0.1416060136 | I105: 105 | J105: -0.9561368946 | K105: 0.05198396232 | L105: -0.174301938 | M105: 105 | N105: -0.9561368946 | O105: 0.07576644963 | P105: -0.1548828721 | Q105: 105 | R105: -0.9561368946 | S105: -0.03176167235 | T105: -0.04922043519 | U105: 105 | V105: -0.9561368946 | W105: 0.04697928055 | X105: 0.03797871313 | Y105: 105 | Z105: -0.9561368946 | AA105: 0.1621697917 | AB105: 0.180488853 | AC105: 105 | AD105: -0.9561368946 | AE105: -0.1004559812 | AF105: -0.03535167406 | AG105: 105 | AH105: -0.9561368946 | AI105: 0.2479669294 | AJ105: -0.2386735629 | AK105: 105 | AL105: -0.9561368946 | AM105: 1.197022307 | AN105: -0.145430639 | AO105: 105 | AP105: -0.9561368946 | AQ105: 0.3967509792 | AR105: 0.1256102789
A106: 106 | B106: -0.9351228969 | C106: 0.923657763 | D106: -0.07278577233 | E106: 106 | F106: -0.9351228969 | G106: 0.09118124427 | H106: -0.1403124849 | I106: 106 | J106: -0.9351228969 | K106: 0.05655416668 | L106: -0.1731441563 | M106: 106 | N106: -0.9351228969 | O106: 0.08086499123 | P106: -0.1535912454 | Q106: 106 | R106: -0.9351228969 | S106: -0.02631936908 | T106: -0.04784172245 | U106: 106 | V106: -0.9351228969 | W106: 0.05377392233 | X106: 0.03970001728 | Y106: 106 | Z106: -0.9351228969 | AA106: 0.1717506254 | AB106: 0.1829159903 | AC106: 106 | AD106: -0.9351228969 | AE106: -0.09771447043 | AF106: -0.03465716007 | AG106: 106 | AH106: -0.9351228969 | AI106: 0.2522795025 | AJ106: -0.2375810476 | AK106: 106 | AL106: -0.9351228969 | AM106: 1.204499093 | AN106: -0.1435365255 | AO106: 106 | AP106: -0.9351228969 | AQ106: 0.4021853178 | AR106: 0.1269869739
A107: 107 | B107: -0.9141088992 | C107: 0.9294810564 | D107: -0.07124419965 | E107: 107 | F107: -0.9141088992 | G107: 0.09620873061 | H107: -0.1389815825 | I107: 107 | J107: -0.9141088992 | K107: 0.0610540527 | L107: -0.171952923 | M107: 107 | N107: -0.9141088992 | O107: 0.08588508533 | P107: -0.1522622999 | Q107: 107 | R107: -0.9141088992 | S107: -0.02096080252 | T107: -0.04642317467 | U107: 107 | V107: -0.9141088992 | W107: 0.06046401997 | X107: 0.04147105492 | Y107: 107 | Z107: -0.9141088992 | AA107: 0.1811840459 | AB107: 0.1854132547 | AC107: 107 | AD107: -0.9141088992 | AE107: -0.0950151413 | AF107: -0.03394257954 | AG107: 107 | AH107: -0.9141088992 | AI107: 0.2565257213 | AJ107: -0.2364569664 | AK107: 107 | AL107: -0.9141088992 | AM107: 1.21186084 | AN107: -0.1415876855 | AO107: 107 | AP107: -0.9141088992 | AQ107: 0.4075360421 | AR107: 0.1284034456
A108: 108 | B108: -0.8930949015 | C108: 0.9352107795 | D108: -0.06966001793 | E108: 108 | F108: -0.8930949015 | G108: 0.1011554339 | H108: -0.1376138938 | I108: 108 | J108: -0.8930949015 | K108: 0.06548163333 | L108: -0.1707287639 | M108: 108 | N108: -0.8930949015 | O108: 0.09082451522 | P108: -0.1508966223 | Q108: 108 | R108: -0.8930949015 | S108: -0.01568833884 | T108: -0.04496541826 | U108: 108 | V108: -0.8930949015 | W108: 0.06704661932 | X108: 0.04329104402 | Y108: 108 | Z108: -0.8930949015 | AA108: 0.1904658877 | AB108: 0.1879795435 | AC108: 108 | AD108: -0.8930949015 | AE108: -0.09235918571 | AF108: -0.03320824801 | AG108: 108 | AH108: -0.8930949015 | AI108: 0.2607037107 | AJ108: -0.2353018156 | AK108: 108 | AL108: -0.8930949015 | AM108: 1.219104295 | AN108: -0.1395849796 | AO108: 108 | AP108: -0.8930949015 | AQ108: 0.4128007896 | AR108: 0.1298590686
A109: 109 | B109: -0.8720809038 | C109: 0.9408444023 | D109: -0.06803392669 | E109: 109 | F109: -0.8720809038 | G109: 0.10601917 | H109: -0.136210023 | I109: 109 | J109: -0.8720809038 | K109: 0.06983495349 | L109: -0.1694722198 | M109: 109 | N109: -0.8720809038 | O109: 0.09568109977 | P109: -0.1494948157 | Q109: 109 | R109: -0.8720809038 | S109: -0.01050430623 | T109: -0.04346909692 | U109: 109 | V109: -0.8720809038 | W109: 0.0735188137 | X109: 0.04515918091 | Y109: 109 | Z109: -0.8720809038 | AA109: 0.1995920522 | AB109: 0.1906137235 | AC109: 109 | AD109: -0.8720809038 | AE109: -0.08974777647 | AF109: -0.03245448976 | AG109: 109 | AH109: -0.8720809038 | AI109: 0.2648116258 | AJ109: -0.2341161052 | AK109: 109 | AL109: -0.8720809038 | AM109: 1.226226262 | AN109: -0.1375292922 | AO109: 109 | AP109: -0.8720809038 | AQ109: 0.4179772355 | AR109: 0.1313532001
A110: 110 | B110: -0.8510669062 | C110: 0.9463794371 | D110: -0.06636664397 | E110: 110 | F110: -0.8510669062 | G110: 0.1107977909 | H110: -0.13477059 | I110: 110 | J110: -0.8510669062 | K110: 0.07411209087 | L110: -0.1681838454 | M110: 110 | N110: -0.8510669062 | O110: 0.1004526945 | P110: -0.1480574991 | Q110: 110 | R110: -0.8510669062 | S110: -0.005410993792 | T110: -0.04193487137 | U110: 110 | V110: -0.8510669062 | W110: 0.07987774516 | X110: 0.04707464069 | Y110: 110 | Z110: -0.8510669062 | AA110: 0.2085585094 | AB110: 0.1933146313 | AC110: 110 | AD110: -0.8510669062 | AE110: -0.08718206669 | AF110: -0.0316816376 | AG110: 110 | AH110: -0.8510669062 | AI110: 0.2688476527 | AJ110: -0.232900359 | AK110: 110 | AL110: -0.8510669062 | AM110: 1.233223595 | AN110: -0.1354215309 | AO110: 110 | AP110: -0.8510669062 | AQ110: 0.423063094 | AR110: 0.1328851804
A111: 111 | B111: -0.8300529085 | C111: 0.9518134398 | D111: -0.06465890599 | E111: 111 | F111: -0.8300529085 | G111: 0.1154891868 | H111: -0.1332962302 | I111: 111 | J111: -0.8300529085 | K111: 0.07831115681 | L111: -0.1668642096 | M111: 111 | N111: -0.8300529085 | O111: 0.1051371923 | P111: -0.1465853071 | Q111: 111 | R111: -0.8300529085 | S111: -0.0004106506055 | T111: -0.04036341909 | U111: 111 | V111: -0.8300529085 | W111: 0.08612060577 | X111: 0.04903657754 | Y111: 111 | Z111: -0.8300529085 | AA111: 0.2173613001 | AB111: 0.1960810746 | AC111: 111 | AD111: -0.8300529085 | AE111: -0.08466318933 | AF111: -0.03089003282 | AG111: 111 | AH111: -0.8300529085 | AI111: 0.2728100092 | AJ111: -0.2316551136 | AK111: 111 | AL111: -0.8300529085 | AM111: 1.240093204 | AN111: -0.1332626266 | AO111: 111 | AP111: -0.8300529085 | AQ111: 0.4280561192 | AR111: 0.1344543328
A112: 112 | B112: -0.8090389108 | C112: 0.9571440109 | D112: -0.06291146685 | E112: 112 | F112: -0.8090389108 | G112: 0.120091286 | H112: -0.1317875948 | I112: 112 | J112: -0.8090389108 | K112: 0.08243029712 | L112: -0.1655138952 | M112: 112 | N112: -0.8090389108 | O112: 0.1097325247 | P112: -0.14507889 | Q112: 112 | R112: -0.8090389108 | S112: 0.004494515324 | T112: -0.03875543398 | U112: 112 | V112: -0.8090389108 | W112: 0.09224463887 | X112: 0.05104412512 | Y112: 112 | Z112: -0.8090389108 | AA112: 0.2259965372 | AB112: 0.1989118315 | AC112: 112 | AD112: -0.8090389108 | AE112: -0.08219225664 | AF112: -0.03008002496 | AG112: 112 | AH112: -0.8090389108 | AI112: 0.2766969456 | AJ112: -0.230380919 | AK112: 112 | AL112: -0.8090389108 | AM112: 1.246832056 | AN112: -0.1310535324 | AO112: 112 | AP112: -0.8090389108 | AQ112: 0.4329541065 | AR112: 0.1360599647
A113: 113 | B113: -0.7880249131 | C113: 0.9623687966 | D113: -0.06112509816 | E113: 113 | F113: -0.7880249131 | G113: 0.1246020563 | H113: -0.13024535 | I113: 113 | J113: -0.7880249131 | K113: 0.08646769291 | L113: -0.1641334984 | M113: 113 | N113: -0.7880249131 | O113: 0.1142366625 | P113: -0.1435389128 | Q113: 113 | R113: -0.7880249131 | S113: 0.009302338014 | T113: -0.0371116261 | U113: 113 | V113: -0.7880249131 | W113: 0.09824714026 | X113: 0.05309639696 | Y113: 113 | Z113: -0.7880249131 | AA113: 0.2344604077 | AB113: 0.2018056523 | AC113: 113 | AD113: -0.7880249131 | AE113: -0.07977035972 | AF113: -0.0292519717 | AG113: 113 | AH113: -0.7880249131 | AI113: 0.2805067456 | AJ113: -0.2290783378 | AK113: 113 | AL113: -0.7880249131 | AM113: 1.253437175 | AN113: -0.1287952239 | AO113: 113 | AP113: -0.7880249131 | AQ113: 0.437754893 | AR113: 0.1377013669
A114: 114 | B114: -0.7670109154 | C114: 0.9674854897 | D114: -0.05930058873 | E114: 114 | F114: -0.7670109154 | G114: 0.1290195059 | H114: -0.1286701767 | I114: 114 | J114: -0.7670109154 | K114: 0.09042156137 | L114: -0.1627236288 | M114: 114 | N114: -0.7670109154 | O114: 0.1186476168 | P114: -0.1419660556 | Q114: 114 | R114: -0.7670109154 | S114: 0.01401069446 | T114: -0.03543272129 | U114: 114 | V114: -0.7670109154 | W114: 0.1041254594 | X114: 0.05519248683 | Y114: 114 | Z114: -0.7670109154 | AA114: 0.242749174 | AB114: 0.2047612589 | AC114: 114 | AD114: -0.7670109154 | AE114: -0.07739856801 | AF114: -0.02840623868 | AG114: 114 | AH114: -0.7670109154 | AI114: 0.2842377269 | AJ114: -0.2277479453 | AK114: 114 | AL114: -0.7670109154 | AM114: 1.259905644 | AN114: -0.1264886983 | AO114: 114 | AP114: -0.7670109154 | AQ114: 0.4424563588 | AR114: 0.1393778146
A115: 115 | B115: -0.7459969177 | C115: 0.9724918309 | D115: -0.05743874422 | E115: 115 | F115: -0.7459969177 | G115: 0.1333416842 | H115: -0.1270627705 | I115: 115 | J115: -0.7459969177 | K115: 0.09429015658 | L115: -0.1612849088 | M115: 115 | N115: -0.7459969177 | O115: 0.12296344 | P115: -0.1403610129 | Q115: 115 | R115: -0.7459969177 | S115: 0.0186175056 | T115: -0.03371946092 | U115: 115 | V115: -0.7459969177 | W115: 0.1098770006 | X115: 0.05733146916 | Y115: 115 | Z115: -0.7459969177 | AA115: 0.2508591762 | AB115: 0.2077773464 | AC115: 115 | AD115: -0.7459969177 | AE115: -0.07507792884 | AF115: -0.02754319937 | AG115: 115 | AH115: -0.7459969177 | AI115: 0.2878882419 | AJ115: -0.2263903288 | AK115: 115 | AL115: -0.7459969177 | AM115: 1.266234608 | AN115: -0.1241349741 | AO115: 115 | AP115: -0.7459969177 | AQ115: 0.447056428 | AR115: 0.1410885677
A116: 116 | B116: -0.7249829201 | C116: 0.9773856096 | D116: -0.05554038677 | E116: 116 | F116: -0.7249829201 | G116: 0.1375666826 | H116: -0.1254238412 | I116: 116 | J116: -0.7249829201 | K116: 0.09807177029 | L116: -0.159817974 | M116: 116 | N116: -0.7249829201 | O116: 0.1271822261 | P116: -0.1387244934 | Q116: 116 | R116: -0.7249829201 | S116: 0.02312073717 | T116: -0.03197260151 | U116: 116 | V116: -0.7249829201 | W116: 0.1154992241 | X116: 0.05951239943 | Y116: 116 | Z116: -0.7249829201 | AA116: 0.2587868331 | AB116: 0.2108525829 | AC116: 116 | AD116: -0.7249829201 | AE116: -0.07280946692 | AF116: -0.02666323484 | AG116: 116 | AH116: -0.7249829201 | AI116: 0.2914566788 | AJ116: -0.2250060879 | AK116: 116 | AL116: -0.7249829201 | AM116: 1.272421272 | AN116: -0.1217350906 | AO116: 116 | AP116: -0.7249829201 | AQ116: 0.4515530691 | AR116: 0.1428328706
A117: 117 | B117: -0.7039689224 | C117: 0.9821646646 | D117: -0.05360635463 | E117: 117 | F117: -0.7039689224 | G117: 0.1416926355 | H117: -0.1237541124 | I117: 117 | J117: -0.7039689224 | K117: 0.1017647326 | L117: -0.1583234719 | M117: 117 | N117: -0.7039689224 | O117: 0.1313021123 | P117: -0.1370572198 | Q117: 117 | R117: -0.7039689224 | S117: 0.0275184007 | T117: -0.03019291443 | U117: 117 | V117: -0.7039689224 | W117: 0.1209896473 | X117: 0.0617343146 | Y117: 117 | Z117: -0.7039689224 | AA117: 0.266528644 | AB117: 0.2139856104 | AC117: 117 | AD117: -0.7039689224 | AE117: -0.07059418395 | AF117: -0.02576673367 | AG117: 117 | AH117: -0.7039689224 | AI117: 0.2949414617 | AJ117: -0.2235958337 | AK117: 117 | AL117: -0.7039689224 | AM117: 1.278462903 | AN117: -0.1192901075 | AO117: 117 | AP117: -0.7039689224 | AQ117: 0.4559442967 | AR117: 0.1446099531
A118: 118 | B118: -0.6829549247 | C118: 0.9868268859 | D118: -0.05163750182 | E118: 118 | F118: -0.6829549247 | G118: 0.145717721 | H118: -0.1220543216 | I118: 118 | J118: -0.6829549247 | K118: 0.1053674129 | L118: -0.1568020625 | M118: 118 | N118: -0.6829549247 | O118: 0.1353212795 | P118: -0.1353599282 | Q118: 118 | R118: -0.6829549247 | S118: 0.03180855428 | T118: -0.02838118553 | U118: 118 | V118: -0.6829549247 | W118: 0.1263458459 | X118: 0.06399623354 | Y118: 118 | Z118: -0.6829549247 | AA118: 0.2740811905 | AB118: 0.2171750456 | AC118: 118 | AD118: -0.6829549247 | AE118: -0.06843305813 | AF118: -0.02485409173 | AG118: 118 | AH118: -0.6829549247 | AI118: 0.298341052 | AJ118: -0.2221601891 | AK118: 118 | AL118: -0.6829549247 | AM118: 1.284356834 | AN118: -0.1168011045 | AO118: 118 | AP118: -0.6829549247 | AQ118: 0.4602281717 | AR118: 0.1464190306
A119: 119 | B119: -0.661940927 | C119: 0.9913702146 | D119: -0.04963469772 | E119: 119 | F119: -0.661940927 | G119: 0.1496401617 | H119: -0.1203252193 | I119: 119 | J119: -0.661940927 | K119: 0.1088782203 | L119: -0.1552544176 | M119: 119 | N119: -0.661940927 | O119: 0.1392379528 | P119: -0.1336333683 | Q119: 119 | R119: -0.661940927 | S119: 0.03598930351 | T119: -0.02653821483 | U119: 119 | V119: -0.661940927 | W119: 0.1315654545 | X119: 0.06629715746 | Y119: 119 | Z119: -0.661940927 | AA119: 0.2814411374 | AB119: 0.22041948 | AC119: 119 | AD119: -0.661940927 | AE119: -0.06632704376 | AF119: -0.02392571201 | AG119: 119 | AH119: -0.661940927 | AI119: 0.3016539484 | AJ119: -0.2206997879 | AK119: 119 | AL119: -0.661940927 | AM119: 1.290100462 | AN119: -0.1142691806 | AO119: 119 | AP119: -0.661940927 | AQ119: 0.4644028025 | AR119: 0.1482593041
A120: 120 | B120: -0.6409269293 | C120: 0.9957926445 | D120: -0.04759882673 | E120: 120 | F120: -0.6409269293 | G120: 0.1534582256 | H120: -0.1185675689 | I120: 120 | J120: -0.6409269293 | K120: 0.1122956045 | L120: -0.1536812206 | M120: 120 | N120: -0.6409269293 | O120: 0.1430504027 | P120: -0.1318783023 | Q120: 120 | R120: -0.6409269293 | S120: 0.04005880229 | T120: -0.02466481612 | U120: 120 | V120: -0.6409269293 | W120: 0.1366461685 | X120: 0.06863607032 | Y120: 120 | Z120: -0.6409269293 | AA120: 0.2886052349 | AB120: 0.2237174809 | AC120: 120 | AD120: -0.6409269293 | AE120: -0.0642770708 | AF120: -0.02298200447 | AG120: 120 | AH120: -0.6409269293 | AI120: 0.304878688 | AJ120: -0.2192152751 | AK120: 120 | AL120: -0.6409269293 | AM120: 1.295691251 | AN120: -0.1116954539 | AO120: 120 | AP120: -0.6409269293 | AQ120: 0.4684663456 | AR120: 0.1501299611
A121: 121 | B121: -0.6199129316 | C121: 1.000092223 | D121: -0.04553078783 | E121: 121 | F121: -0.6199129316 | G121: 0.1571702267 | H121: -0.1167821467 | I121: 121 | J121: -0.6199129316 | K121: 0.1156180565 | L121: -0.1520831663 | M121: 121 | N121: -0.6199129316 | O121: 0.1467569459 | P121: -0.1300955053 | Q121: 121 | R121: -0.6199129316 | S121: 0.04401525364 | T121: -0.02276181666 | U121: 121 | V121: -0.6199129316 | W121: 0.1415857444 | X121: 0.07101193933 | Y121: 121 | Z121: -0.6199129316 | AA121: 0.2955703195 | AB121: 0.2270675922 | AC121: 121 | AD121: -0.6199129316 | AE121: -0.06228404444 | AF121: -0.02202338581 | AG121: 121 | AH121: -0.6199129316 | AI121: 0.308013847 | AJ121: -0.2177073062 | AK121: 121 | AL121: -0.6199129316 | AM121: 1.301126733 | AN121: -0.1090810609 | AO121: 121 | AP121: -0.6199129316 | AQ121: 0.4724170068 | AR121: 0.1520301756
A122: 122 | B122: -0.598898934 | C122: 1.004267051 | D122: -0.04343149419 | E122: 122 | F122: -0.598898934 | G122: 0.1607745259 | H122: -0.114969741 | I122: 122 | J122: -0.598898934 | K122: 0.1188441091 | L122: -0.1504609602 | M122: 122 | N122: -0.598898934 | O122: 0.1503559455 | P122: -0.1282857645 | Q122: 122 | R122: -0.598898934 | S122: 0.0478569105 | T122: -0.02083005674 | U122: 122 | V122: -0.598898934 | W122: 0.1463820008 | X122: 0.07342371537 | Y122: 122 | Z122: -0.598898934 | AA122: 0.3023333155 | AB122: 0.2304683344 | AC122: 122 | AD122: -0.598898934 | AE122: -0.06034884476 | AF122: -0.02105027934 | AG122: 122 | AH122: -0.598898934 | AI122: 0.3110580408 | AJ122: -0.216176547 | AK122: 122 | AL122: -0.598898934 | AM122: 1.306404507 | AN122: -0.106427156 | AO122: 122 | AP122: -0.598898934 | AQ122: 0.4762530414 | AR122: 0.1539591084
A123: 123 | B123: -0.5778849363 | C123: 1.008315286 | D123: -0.04130187282 | E123: 123 | F123: -0.5778849363 | G123: 0.1642695317 | H123: -0.1131311521 | I123: 123 | J123: -0.5778849363 | K123: 0.121972338 | L123: -0.1488153186 | M123: 123 | N123: -0.5778849363 | O123: 0.1538458124 | P123: -0.1264498791 | Q123: 123 | R123: -0.5778849363 | S123: 0.05158207651 | T123: -0.01887038939 | U123: 123 | V123: -0.5778849363 | W123: 0.1510328201 | X123: 0.07587033347 | Y123: 123 | Z123: -0.5778849363 | AA123: 0.3088912368 | AB123: 0.233918206 | AC123: 123 | AD123: -0.5778849363 | AE123: -0.05847232629 | AF123: -0.02006311474 | AG123: 123 | AH123: -0.5778849363 | AI123: 0.3140099254 | AJ123: -0.2146236734 | AK123: 123 | AL123: -0.5778849363 | AM123: 1.311522242 | AN123: -0.1037349111 | AO123: 123 | AP123: -0.5778849363 | AQ123: 0.4799727557 | AR123: 0.1559159078
A124: 124 | B124: -0.5568709386 | C124: 1.012235139 | D124: -0.03914286409 | E124: 124 | F124: -0.5568709386 | G124: 0.1676537008 | H124: -0.111267192 | I124: 124 | J124: -0.5568709386 | K124: 0.1250013616 | L124: -0.1471469683 | M124: 124 | N124: -0.5568709386 | O124: 0.1572250055 | P124: -0.1245886596 | Q124: 124 | R124: -0.5568709386 | S124: 0.05518910674 | T124: -0.01688367992 | U124: 124 | V124: -0.5568709386 | W124: 0.1555361483 | X124: 0.07835071327 | Y124: 124 | Z124: -0.5568709386 | AA124: 0.3152411874 | AB124: 0.2374156834 | AC124: 124 | AD124: -0.5568709386 | AE124: -0.05665531765 | AF124: -0.01906232794 | AG124: 124 | AH124: -0.5568709386 | AI124: 0.3168681971 | AJ124: -0.2130493712 | AK124: 124 | AL124: -0.5568709386 | AM124: 1.31647768 | AN124: -0.101005515 | AO124: 124 | AP124: -0.5568709386 | AQ124: 0.4835745071 | AR124: 0.1578997097
A125: 125 | B125: -0.5358569409 | C125: 1.01602488 | D125: -0.03695542136 | E125: 125 | F125: -0.5358569409 | G125: 0.1709255388 | H125: -0.1093786835 | I125: 125 | J125: -0.5358569409 | K125: 0.1279298426 | L125: -0.145456646 | M125: 125 | N125: -0.5358569409 | O125: 0.1604920326 | P125: -0.122702928 | Q125: 125 | R125: -0.5358569409 | S125: 0.05867640843 | T125: -0.01487080563 | U125: 125 | V125: -0.5358569409 | W125: 0.1598899972 | X125: 0.08086375951 | Y125: 125 | Z125: -0.5358569409 | AA125: 0.3213803634 | AB125: 0.2409592224 | AC125: 125 | AD125: -0.5358569409 | AE125: -0.05489862116 | AF125: -0.01804836083 | AG125: 125 | AH125: -0.5358569409 | AI125: 0.3196315939 | AJ125: -0.2114543356 | AK125: 125 | AL125: -0.5358569409 | AM125: 1.321268631 | AN125: -0.09824017291 | AO125: 125 | AP125: -0.5358569409 | AQ125: 0.4870567052 | AR125: 0.1599096382
A126: 126 | B126: -0.5148429432 | C126: 1.019682836 | D126: -0.03474051054 | E126: 126 | F126: -0.5148429432 | G126: 0.1740836009 | H126: -0.1074664608 | I126: 126 | J126: -0.5148429432 | K126: 0.1307564877 | L126: -0.1437450979 | M126: 126 | N126: -0.5148429432 | O126: 0.1636454513 | P126: -0.1207935169 | Q126: 126 | R126: -0.5148429432 | S126: 0.06204244167 | T126: -0.01283265534 | U126: 126 | V126: -0.5148429432 | W126: 0.164092444 | X126: 0.08340836249 | Y126: 126 | Z126: -0.5148429432 | AA126: 0.3273060539 | AB126: 0.2445472582 | AC126: 126 | AD126: -0.5148429432 | AE126: -0.05320301256 | AF126: -0.01702166117 | AG126: 126 | AH126: -0.5148429432 | AI126: 0.3222988956 | AJ126: -0.2098392708 | AK126: 126 | AL126: -0.5148429432 | AM126: 1.32589298 | AN126: -0.09544010596 | AO126: 126 | AP126: -0.5148429432 | AQ126: 0.4904178123 | AR126: 0.1619448057
A127: 127 | B127: -0.4938289455 | C127: 1.023207391 | D127: -0.03249910968 | E127: 127 | F127: -0.4938289455 | G127: 0.1771264927 | H127: -0.1055313682 | I127: 127 | J127: -0.4938289455 | K127: 0.1334800487 | L127: -0.14201308 | M127: 127 | N127: -0.4938289455 | O127: 0.1666838689 | P127: -0.1188612695 | Q127: 127 | R127: -0.4938289455 | S127: 0.06528572013 | T127: -0.01077012903 | U127: 127 | V127: -0.4938289455 | W127: 0.1681416332 | X127: 0.0859833986 | Y127: 127 | Z127: -0.4938289455 | AA127: 0.3330156423 | AB127: 0.2481782065 | AC127: 127 | AD127: -0.4938289455 | AE127: -0.05156924055 | AF127: -0.01598268232 | AG127: 127 | AH127: -0.4938289455 | AI127: 0.3248689243 | AJ127: -0.2082048901 | AK127: 127 | AL127: -0.4938289455 | AM127: 1.330348685 | AN127: -0.09260655058 | AO127: 127 | AP127: -0.4938289455 | AQ127: 0.4936563442 | AR127: 0.1640043135
A128: 128 | B128: -0.4728149479 | C128: 1.026596989 | D128: -0.03023220851 | E128: 128 | F128: -0.4728149479 | G128: 0.1800528705 | H128: -0.10357426 | I128: 128 | J128: -0.4728149479 | K128: 0.1360993232 | L128: -0.140261357 | M128: 128 | N128: -0.4728149479 | O128: 0.1696059438 | P128: -0.1169070391 | Q128: 128 | R128: -0.4728149479 | S128: 0.06840481167 | T128: -0.00868413747 | U128: 128 | V128: -0.4728149479 | W128: 0.1720357766 | X128: 0.08858773076 | Y128: 128 | Z128: -0.4728149479 | AA128: 0.3385066074 | AB128: 0.2518504639 | AC128: 128 | AD128: -0.4728149479 | AE128: -0.04999802658 | AF128: -0.01493188306 | AG128: 128 | AH128: -0.4728149479 | AI128: 0.3273405452 | AJ128: -0.2065519151 | AK128: 128 | AL128: -0.4728149479 | AM128: 1.334633779 | AN128: -0.08974075799 | AO128: 128 | AP128: -0.4728149479 | AQ128: 0.496770871 | AR128: 0.1660872523
A129: 129 | B129: =-3.14159265358979+(A129-1)*0.0210139976828749 -> -0.4518009502 | C129: =0.347098823636323*COS(B129)+0.717578409393402 -> 1.029850132 | D129: =0.121832989107382*SIN(B129)+0.0252498288314242+0*COS(B129) -> -0.02794080803 | E129: 129 | F129: =-3.14159265358979+(E129-1)*0.0210139976828749 -> -0.4518009502 | G129: =0.299664552058601*COS(F129)+-0.0867354554826122 -> 0.182861442 | H129: =0.105183381851725*SIN(F129)+-0.0556743573861749+0*COS(F129) -> -0.1015960007 | I129: 129 | J129: =-3.14159265358979+(I129-1)*0.0210139976828749 -> -0.4518009502 | K129: =0.268216805569019*COS(J129)+-0.102691391514969 -> 0.1386131543 | L129: =0.0941451048694578*SIN(J129)+-0.0973882217616218+0*COS(J129) -> -0.1384907025 | M129: 129 | N129: =-3.14159265358979+(M129-1)*0.0210139976828749 -> -0.4518009502 | O129: =0.299223936258687*COS(N129)+-0.0967901063170089 -> 0.1724103858 | P129: =0.105028724053151*SIN(N129)+-0.0690775666880996+0*COS(N129) -> -0.1149316885 | Q129: 129 | R129: =-3.14159265358979+(Q129-1)*0.0210139976828749 -> -0.4518009502 | S129: =0.31939866983129*COS(R129)+-0.215952600146413 -> 0.07139833898 | T129: =0.112110131215079*SIN(R129)+0.0423701667184608+0*COS(R129) -> -0.006575601763 | U129: 129 | V129: =-3.14159265358979+(U129-1)*0.0210139976828749 -> -0.4518009502 | W129: =0.398764905135784*COS(V129)+-0.18298059338715 -> 0.1757731548 | X129: =0.139967977519616*SIN(V129)+0.15232833674674+0*COS(V129) -> 0.09122020898 | Y129: 129 | Z129: =-3.14159265358979+(Y129-1)*0.0210139976828749 -> -0.4518009502 | AA129: =0.562281335126711*COS(Z129)+-0.162086789732886 -> 0.3437765246 | AB129: =0.19736285781698*SIN(Z129)+0.341728365812426+0*COS(Z129) -> 0.2555624088 | AC129: 129 | AD129: =-3.14159265358979+(AC129-1)*0.0210139976828749 -> -0.4518009502 | AE129: =0.16089417266906*COS(AD129)+-0.193240484481897 -> -0.04849006445 | AF129: =0.056474458140974*SIN(AD129)+0.0107862579656095+0*COS(AD129) -> -0.01386972739 | AG129: 129 | AH129: =-3.14159265358979+(AG129-1)*0.0210139976828749 -> -0.4518009502 | AI129: =0.253096907093471*COS(AH129)+0.102010923502568 -> 0.3297126668 | AJ129: =0.0888379637879133*SIN(AH129)+-0.166095621152538+0*COS(AH129) -> -0.2048810758 | AK129: 129 | AL129: =-3.14159265358979+(AK129-1)*0.0210139976828749 -> -0.4518009502 | AM129: =0.438798679365524*COS(AL129)+0.943975743712232 -> 1.338746369 | AN129: =0.154019982445942*SIN(AL129)+-0.0196009503722022+0*COS(AL129) -> -0.08684399362 | AO129: 129 | AP129: =-3.14159265358979+(AO129-1)*0.0210139976828749 -> -0.4518009502 | AQ129: =0.318931234452992*COS(AP129)+0.212829612221555 -> 0.4997600174 | AR129: =0.111946059643888*SIN(AP129)+0.217066839220886+0*COS(AP129) -> 0.1681927022
